Workbook

Sheet System-Kennzahlen ohne Poolung
C2: KENNZAHLEN | E2: SYSTEM | G2: Route 1 | H2: Route 2 | I2: Route 3 | J2: Route 4 | K2: Route 5 | L2: Route 6 | M2: Route 7 | N2: Route 8 | O2: Route 9 | P2: Route 10
C3: Route berücksichtigen? | G3: ='R_1 Kennzahlen'!E3 -> Ja | H3: ='R_2 Kennzahlen'!E3 -> nein | I3: ='R_3 Kennzahlen'!E3 -> nein | J3: ='R_4 Kennzahlen'!E3 -> nein | K3: ='R_5 Kennzahlen'!E3 -> nein | L3: ='R_6 Kennzahlen'!E3 -> nein | M3: ='R_7 Kennzahlen'!E3 -> nein | N3: ='R_8 Kennzahlen'!E3 -> nein | O3: ='R_9 Kennzahlen'!E3 -> nein | P3: ='R_10 Kennzahlen'!E3 -> nein
B4: Abk. | C4: Bezeichnung | D4: Einheit | E4: Wert Ø | F4: Wert ∑ | G4: Wert | H4: Wert | I4: Wert | J4: Wert | K4: Wert | L4: Wert | M4: Wert | N4: Wert | O4: Wert | P4: Wert
C5: Strukturkennzahlen
B7: S-1 | C7: Anzahl der Routen | D7: [Stk] | E7: =F7/$F$7 -> 1 | F7: =SUM(G7:P7) -> 1 | G7: =IF(G$3="Ja",'R_1 Kennzahlen'!E7,0) -> 1 | H7: =IF(H$3="Ja",'R_2 Kennzahlen'!E7,0) -> 0 | I7: =IF(I$3="Ja",'R_3 Kennzahlen'!E7,0) -> 0 | J7: =IF(J$3="Ja",'R_4 Kennzahlen'!E7,0) -> 0 | K7: =IF(K$3="Ja",'R_5 Kennzahlen'!E7,0) -> 0 | L7: =IF(L$3="Ja",'R_6 Kennzahlen'!E7,0) -> 0 | M7: =IF(M$3="Ja",'R_7 Kennzahlen'!E7,0) -> 0 | N7: =IF(N$3="Ja",'R_8 Kennzahlen'!E7,0) -> 0 | O7: =IF(O$3="Ja",'R_9 Kennzahlen'!E7,0) -> 0 | P7: =IF(P$3="Ja",'R_10 Kennzahlen'!E7,0) -> 0 | R7: STRUKTUR / LOGISTIKLEISTUNG
B8: S-2 | C8: Anzahl der Bereitstellorte (Quelle) | D8: [Stk] | E8: =F8/$F$7 -> 1 | F8: =SUM(G8:P8) -> 1 | G8: =IF(G$3="Ja",'R_1 Kennzahlen'!E8,0) -> 1 | H8: =IF(H$3="Ja",'R_2 Kennzahlen'!E8,0) -> 0 | I8: =IF(I$3="Ja",'R_3 Kennzahlen'!E8,0) -> 0 | J8: =IF(J$3="Ja",'R_4 Kennzahlen'!E8,0) -> 0 | K8: =IF(K$3="Ja",'R_5 Kennzahlen'!E8,0) -> 0 | L8: =IF(L$3="Ja",'R_6 Kennzahlen'!E8,0) -> 0 | M8: =IF(M$3="Ja",'R_7 Kennzahlen'!E8,0) -> 0 | N8: =IF(N$3="Ja",'R_8 Kennzahlen'!E8,0) -> 0 | O8: =IF(O$3="Ja",'R_9 Kennzahlen'!E8,0) -> 0 | P8: =IF(P$3="Ja",'R_10 Kennzahlen'!E8,0) -> 0
B9: S-3 | C9: Anzahl der Bereitstellorte (Senke) | D9: [Stk] | E9: 10 | F9: =SUM(G9:P9) -> 10 | G9: =IF(G$3="Ja",'R_1 Kennzahlen'!E9,0) -> 10 | H9: =IF(H$3="Ja",'R_2 Kennzahlen'!E9,0) -> 0 | I9: =IF(I$3="Ja",'R_3 Kennzahlen'!E9,0) -> 0 | J9: =IF(J$3="Ja",'R_4 Kennzahlen'!E9,0) -> 0 | K9: =IF(K$3="Ja",'R_5 Kennzahlen'!E9,0) -> 0 | L9: =IF(L$3="Ja",'R_6 Kennzahlen'!E9,0) -> 0 | M9: =IF(M$3="Ja",'R_7 Kennzahlen'!E9,0) -> 0 | N9: =IF(N$3="Ja",'R_8 Kennzahlen'!E9,0) -> 0 | O9: =IF(O$3="Ja",'R_9 Kennzahlen'!E9,0) -> 0 | P9: =IF(P$3="Ja",'R_10 Kennzahlen'!E9,0) -> 0
B10: S-4 | C10: Anzahl der Haltepunkte (Quelle und Senke) | D10: [Stk] | E10: 7 | F10: 7 | G10: =IF(G$3="Ja",'R_1 Kennzahlen'!E10,0) -> 7 | H10: =IF(H$3="Ja",'R_2 Kennzahlen'!E10,0) -> 0 | I10: =IF(I$3="Ja",'R_3 Kennzahlen'!E10,0) -> 0 | J10: =IF(J$3="Ja",'R_4 Kennzahlen'!E10,0) -> 0 | K10: =IF(K$3="Ja",'R_5 Kennzahlen'!E10,0) -> 0 | L10: =IF(L$3="Ja",'R_6 Kennzahlen'!E10,0) -> 0 | M10: =IF(M$3="Ja",'R_7 Kennzahlen'!E10,0) -> 0 | N10: =IF(N$3="Ja",'R_8 Kennzahlen'!E10,0) -> 0 | O10: =IF(O$3="Ja",'R_9 Kennzahlen'!E10,0) -> 0 | P10: =IF(P$3="Ja",'R_10 Kennzahlen'!E10,0) -> 0
B11: S-5 | C11: Routenlänge | D11: [m] | E11: 500 | F11: 500 | G11: =IF(G$3="Ja",'R_1 Kennzahlen'!E11,0) -> 500 | H11: =IF(H$3="Ja",'R_2 Kennzahlen'!E11,0) -> 0 | I11: =IF(I$3="Ja",'R_3 Kennzahlen'!E11,0) -> 0 | J11: =IF(J$3="Ja",'R_4 Kennzahlen'!E11,0) -> 0 | K11: =IF(K$3="Ja",'R_5 Kennzahlen'!E11,0) -> 0 | L11: =IF(L$3="Ja",'R_6 Kennzahlen'!E11,0) -> 0 | M11: =IF(M$3="Ja",'R_7 Kennzahlen'!E11,0) -> 0 | N11: =IF(N$3="Ja",'R_8 Kennzahlen'!E11,0) -> 0 | O11: =IF(O$3="Ja",'R_9 Kennzahlen'!E11,0) -> 0 | P11: =IF(P$3="Ja",'R_10 Kennzahlen'!E11,0) -> 0
C12: Logistikleistungskennzahlen
B14: L-Z-1 | C14: Maximal möglicher Tourenstartabstand | D14: [min] | E14: =F14/$F$7 -> 31.57894737 | F14: =SUM(G14:P14) -> 31.57894737 | G14: =IF(G$3="Ja",'R_1 Kennzahlen'!E14,0) -> 31.57894737 | H14: =IF(H$3="Ja",'R_2 Kennzahlen'!E14,0) -> 0 | I14: =IF(I$3="Ja",'R_3 Kennzahlen'!E14,0) -> 0 | J14: =IF(J$3="Ja",'R_4 Kennzahlen'!E14,0) -> 0 | K14: =IF(K$3="Ja",'R_5 Kennzahlen'!E14,0) -> 0 | L14: =IF(L$3="Ja",'R_6 Kennzahlen'!E14,0) -> 0 | M14: =IF(M$3="Ja",'R_7 Kennzahlen'!E14,0) -> 0 | N14: =IF(N$3="Ja",'R_8 Kennzahlen'!E14,0) -> 0 | O14: =IF(O$3="Ja",'R_9 Kennzahlen'!E14,0) -> 0 | P14: =IF(P$3="Ja",'R_10 Kennzahlen'!E14,0) -> 0
B15: L-Z-2 | C15: Mindestens erforderlicher Tourenstartabstand | D15: [min] | E15: =F15/$F$7 -> 14 | F15: =SUM(G15:P15) -> 14 | G15: =IF(G$3="Ja",'R_1 Kennzahlen'!E15,0) -> 14 | H15: =IF(H$3="Ja",'R_2 Kennzahlen'!E15,0) -> 0 | I15: =IF(I$3="Ja",'R_3 Kennzahlen'!E15,0) -> 0 | J15: =IF(J$3="Ja",'R_4 Kennzahlen'!E15,0) -> 0 | K15: =IF(K$3="Ja",'R_5 Kennzahlen'!E15,0) -> 0 | L15: =IF(L$3="Ja",'R_6 Kennzahlen'!E15,0) -> 0 | M15: =IF(M$3="Ja",'R_7 Kennzahlen'!E15,0) -> 0 | N15: =IF(N$3="Ja",'R_8 Kennzahlen'!E15,0) -> 0 | O15: =IF(O$3="Ja",'R_9 Kennzahlen'!E15,0) -> 0 | P15: =IF(P$3="Ja",'R_10 Kennzahlen'!E15,0) -> 0
B16: L-Z-3 | C16: Tatsächlicher Tourenstartabstand | D16: [min] | E16: 30 | F16: 30 | G16: =IF(G$3="Ja",'R_1 Kennzahlen'!E16,0) -> 30 | H16: =IF(H$3="Ja",'R_2 Kennzahlen'!E16,0) -> 0 | I16: =IF(I$3="Ja",'R_3 Kennzahlen'!E16,0) -> 0 | J16: =IF(J$3="Ja",'R_4 Kennzahlen'!E16,0) -> 0 | K16: =IF(K$3="Ja",'R_5 Kennzahlen'!E16,0) -> 0 | L16: =IF(L$3="Ja",'R_6 Kennzahlen'!E16,0) -> 0 | M16: =IF(M$3="Ja",'R_7 Kennzahlen'!E16,0) -> 0 | N16: =IF(N$3="Ja",'R_8 Kennzahlen'!E16,0) -> 0 | O16: =IF(O$3="Ja",'R_9 Kennzahlen'!E16,0) -> 0 | P16: =IF(P$3="Ja",'R_10 Kennzahlen'!E16,0) -> 0
B17: L-Z-4 | C17: Zykluszeit | D17: [min] | E17: 16.52083333 | F17: 16.52083333 | G17: =IF(G$3="Ja",'R_1 Kennzahlen'!E17,0) -> 16.52083333 | H17: =IF(H$3="Ja",'R_2 Kennzahlen'!E17,0) -> 0 | I17: =IF(I$3="Ja",'R_3 Kennzahlen'!E17,0) -> 0 | J17: =IF(J$3="Ja",'R_4 Kennzahlen'!E17,0) -> 0 | K17: =IF(K$3="Ja",'R_5 Kennzahlen'!E17,0) -> 0 | L17: =IF(L$3="Ja",'R_6 Kennzahlen'!E17,0) -> 0 | M17: =IF(M$3="Ja",'R_7 Kennzahlen'!E17,0) -> 0 | N17: =IF(N$3="Ja",'R_8 Kennzahlen'!E17,0) -> 0 | O17: =IF(O$3="Ja",'R_9 Kennzahlen'!E17,0) -> 0 | P17: =IF(P$3="Ja",'R_10 Kennzahlen'!E17,0) -> 0
B18: L-Z-5 | C18: Wartezeit | D18: [min] | E18: 13.47916667 | F18: 13.47916667 | G18: =IF(G$3="Ja",'R_1 Kennzahlen'!E18,0) -> 13.47916667 | H18: =IF(H$3="Ja",'R_2 Kennzahlen'!E18,0) -> 0 | I18: =IF(I$3="Ja",'R_3 Kennzahlen'!E18,0) -> 0 | J18: =IF(J$3="Ja",'R_4 Kennzahlen'!E18,0) -> 0 | K18: =IF(K$3="Ja",'R_5 Kennzahlen'!E18,0) -> 0 | L18: =IF(L$3="Ja",'R_6 Kennzahlen'!E18,0) -> 0 | M18: =IF(M$3="Ja",'R_7 Kennzahlen'!E18,0) -> 0 | N18: =IF(N$3="Ja",'R_8 Kennzahlen'!E18,0) -> 0 | O18: =IF(O$3="Ja",'R_9 Kennzahlen'!E18,0) -> 0 | P18: =IF(P$3="Ja",'R_10 Kennzahlen'!E18,0) -> 0
B19: L-Z-6 | C19: Anteil Zykluszeit | D19: [%] | E19: 55.06944444 | F19: 55.06944444 | G19: =IF(G$3="Ja",'R_1 Kennzahlen'!E19,0) -> 55.06944444 | H19: =IF(H$3="Ja",'R_2 Kennzahlen'!E19,0) -> 0 | I19: =IF(I$3="Ja",'R_3 Kennzahlen'!E19,0) -> 0 | J19: =IF(J$3="Ja",'R_4 Kennzahlen'!E19,0) -> 0 | K19: =IF(K$3="Ja",'R_5 Kennzahlen'!E19,0) -> 0 | L19: =IF(L$3="Ja",'R_6 Kennzahlen'!E19,0) -> 0 | M19: =IF(M$3="Ja",'R_7 Kennzahlen'!E19,0) -> 0 | N19: =IF(N$3="Ja",'R_8 Kennzahlen'!E19,0) -> 0 | O19: =IF(O$3="Ja",'R_9 Kennzahlen'!E19,0) -> 0 | P19: =IF(P$3="Ja",'R_10 Kennzahlen'!E19,0) -> 0
B20: L-Z-7 | C20: Anteil Wartezeit | D20: [%] | E20: 44.93055556 | F20: 44.93055556 | G20: =IF(G$3="Ja",'R_1 Kennzahlen'!E20,0) -> 44.93055556 | H20: =IF(H$3="Ja",'R_2 Kennzahlen'!E20,0) -> 0 | I20: =IF(I$3="Ja",'R_3 Kennzahlen'!E20,0) -> 0 | J20: =IF(J$3="Ja",'R_4 Kennzahlen'!E20,0) -> 0 | K20: =IF(K$3="Ja",'R_5 Kennzahlen'!E20,0) -> 0 | L20: =IF(L$3="Ja",'R_6 Kennzahlen'!E20,0) -> 0 | M20: =IF(M$3="Ja",'R_7 Kennzahlen'!E20,0) -> 0 | N20: =IF(N$3="Ja",'R_8 Kennzahlen'!E20,0) -> 0 | O20: =IF(O$3="Ja",'R_9 Kennzahlen'!E20,0) -> 0 | P20: =IF(P$3="Ja",'R_10 Kennzahlen'!E20,0) -> 0
B21: L-Z-8 | C21: Beladezeit | D21: [min] | E21: 6 | F21: 6 | G21: =IF(G$3="Ja",'R_1 Kennzahlen'!E21,0) -> 6 | H21: =IF(H$3="Ja",'R_2 Kennzahlen'!E21,0) -> 0 | I21: =IF(I$3="Ja",'R_3 Kennzahlen'!E21,0) -> 0 | J21: =IF(J$3="Ja",'R_4 Kennzahlen'!E21,0) -> 0 | K21: =IF(K$3="Ja",'R_5 Kennzahlen'!E21,0) -> 0 | L21: =IF(L$3="Ja",'R_6 Kennzahlen'!E21,0) -> 0 | M21: =IF(M$3="Ja",'R_7 Kennzahlen'!E21,0) -> 0 | N21: =IF(N$3="Ja",'R_8 Kennzahlen'!E21,0) -> 0 | O21: =IF(O$3="Ja",'R_9 Kennzahlen'!E21,0) -> 0 | P21: =IF(P$3="Ja",'R_10 Kennzahlen'!E21,0) -> 0
B22: L-Z-9 | C22: Fahrzeit | D22: [min] | E22: 5 | F22: 5 | G22: =IF(G$3="Ja",'R_1 Kennzahlen'!E22,0) -> 5 | H22: =IF(H$3="Ja",'R_2 Kennzahlen'!E22,0) -> 0 | I22: =IF(I$3="Ja",'R_3 Kennzahlen'!E22,0) -> 0 | J22: =IF(J$3="Ja",'R_4 Kennzahlen'!E22,0) -> 0 | K22: =IF(K$3="Ja",'R_5 Kennzahlen'!E22,0) -> 0 | L22: =IF(L$3="Ja",'R_6 Kennzahlen'!E22,0) -> 0 | M22: =IF(M$3="Ja",'R_7 Kennzahlen'!E22,0) -> 0 | N22: =IF(N$3="Ja",'R_8 Kennzahlen'!E22,0) -> 0 | O22: =IF(O$3="Ja",'R_9 Kennzahlen'!E22,0) -> 0 | P22: =IF(P$3="Ja",'R_10 Kennzahlen'!E22,0) -> 0
B23: L-Z-10 | C23: Haltepunktzeit | D23: [min] | E23: 0.7708333333 | F23: 0.7708333333 | G23: =IF(G$3="Ja",'R_1 Kennzahlen'!E23,0) -> 0.7708333333 | H23: =IF(H$3="Ja",'R_2 Kennzahlen'!E23,0) -> 0 | I23: =IF(I$3="Ja",'R_3 Kennzahlen'!E23,0) -> 0 | J23: =IF(J$3="Ja",'R_4 Kennzahlen'!E23,0) -> 0 | K23: =IF(K$3="Ja",'R_5 Kennzahlen'!E23,0) -> 0 | L23: =IF(L$3="Ja",'R_6 Kennzahlen'!E23,0) -> 0 | M23: =IF(M$3="Ja",'R_7 Kennzahlen'!E23,0) -> 0 | N23: =IF(N$3="Ja",'R_8 Kennzahlen'!E23,0) -> 0 | O23: =IF(O$3="Ja",'R_9 Kennzahlen'!E23,0) -> 0 | P23: =IF(P$3="Ja",'R_10 Kennzahlen'!E23,0) -> 0
B24: L-Z-11 | C24: Entladezeit | D24: [min] | E24: 4.75 | F24: 4.75 | G24: =IF(G$3="Ja",'R_1 Kennzahlen'!E24,0) -> 4.75 | H24: =IF(H$3="Ja",'R_2 Kennzahlen'!E24,0) -> 0 | I24: =IF(I$3="Ja",'R_3 Kennzahlen'!E24,0) -> 0 | J24: =IF(J$3="Ja",'R_4 Kennzahlen'!E24,0) -> 0 | K24: =IF(K$3="Ja",'R_5 Kennzahlen'!E24,0) -> 0 | L24: =IF(L$3="Ja",'R_6 Kennzahlen'!E24,0) -> 0 | M24: =IF(M$3="Ja",'R_7 Kennzahlen'!E24,0) -> 0 | N24: =IF(N$3="Ja",'R_8 Kennzahlen'!E24,0) -> 0 | O24: =IF(O$3="Ja",'R_9 Kennzahlen'!E24,0) -> 0 | P24: =IF(P$3="Ja",'R_10 Kennzahlen'!E24,0) -> 0
B25: L-Z-12 | C25: Anteil Beladezeit | D25: [%] | E25: 36.31778058 | F25: 36.31778058 | G25: =IF(G$3="Ja",'R_1 Kennzahlen'!E25,0) -> 36.31778058 | H25: =IF(H$3="Ja",'R_2 Kennzahlen'!E25,0) -> 0 | I25: =IF(I$3="Ja",'R_3 Kennzahlen'!E25,0) -> 0 | J25: =IF(J$3="Ja",'R_4 Kennzahlen'!E25,0) -> 0 | K25: =IF(K$3="Ja",'R_5 Kennzahlen'!E25,0) -> 0 | L25: =IF(L$3="Ja",'R_6 Kennzahlen'!E25,0) -> 0 | M25: =IF(M$3="Ja",'R_7 Kennzahlen'!E25,0) -> 0 | N25: =IF(N$3="Ja",'R_8 Kennzahlen'!E25,0) -> 0 | O25: =IF(O$3="Ja",'R_9 Kennzahlen'!E25,0) -> 0 | P25: =IF(P$3="Ja",'R_10 Kennzahlen'!E25,0) -> 0
B26: L-Z-13 | C26: Anteil Fahrzeit | D26: [%] | E26: 30.26481715 | F26: 30.26481715 | G26: =IF(G$3="Ja",'R_1 Kennzahlen'!E26,0) -> 30.26481715 | H26: =IF(H$3="Ja",'R_2 Kennzahlen'!E26,0) -> 0 | I26: =IF(I$3="Ja",'R_3 Kennzahlen'!E26,0) -> 0 | J26: =IF(J$3="Ja",'R_4 Kennzahlen'!E26,0) -> 0 | K26: =IF(K$3="Ja",'R_5 Kennzahlen'!E26,0) -> 0 | L26: =IF(L$3="Ja",'R_6 Kennzahlen'!E26,0) -> 0 | M26: =IF(M$3="Ja",'R_7 Kennzahlen'!E26,0) -> 0 | N26: =IF(N$3="Ja",'R_8 Kennzahlen'!E26,0) -> 0 | O26: =IF(O$3="Ja",'R_9 Kennzahlen'!E26,0) -> 0 | P26: =IF(P$3="Ja",'R_10 Kennzahlen'!E26,0) -> 0
B27: L-Z-14 | C27: Anteil Haltepunktzeit | D27: [%] | E27: 4.665825977 | F27: 4.665825977 | G27: =IF(G$3="Ja",'R_1 Kennzahlen'!E27,0) -> 4.665825977 | H27: =IF(H$3="Ja",'R_2 Kennzahlen'!E27,0) -> 0 | I27: =IF(I$3="Ja",'R_3 Kennzahlen'!E27,0) -> 0 | J27: =IF(J$3="Ja",'R_4 Kennzahlen'!E27,0) -> 0 | K27: =IF(K$3="Ja",'R_5 Kennzahlen'!E27,0) -> 0 | L27: =IF(L$3="Ja",'R_6 Kennzahlen'!E27,0) -> 0 | M27: =IF(M$3="Ja",'R_7 Kennzahlen'!E27,0) -> 0 | N27: =IF(N$3="Ja",'R_8 Kennzahlen'!E27,0) -> 0 | O27: =IF(O$3="Ja",'R_9 Kennzahlen'!E27,0) -> 0 | P27: =IF(P$3="Ja",'R_10 Kennzahlen'!E27,0) -> 0
B28: L-Z-15 | C28: Anteil Entladezeit | D28: [%] | E28: 28.75157629 | F28: 28.75157629 | G28: =IF(G$3="Ja",'R_1 Kennzahlen'!E28,0) -> 28.75157629 | H28: =IF(H$3="Ja",'R_2 Kennzahlen'!E28,0) -> 0 | I28: =IF(I$3="Ja",'R_3 Kennzahlen'!E28,0) -> 0 | J28: =IF(J$3="Ja",'R_4 Kennzahlen'!E28,0) -> 0 | K28: =IF(K$3="Ja",'R_5 Kennzahlen'!E28,0) -> 0 | L28: =IF(L$3="Ja",'R_6 Kennzahlen'!E28,0) -> 0 | M28: =IF(M$3="Ja",'R_7 Kennzahlen'!E28,0) -> 0 | N28: =IF(N$3="Ja",'R_8 Kennzahlen'!E28,0) -> 0 | O28: =IF(O$3="Ja",'R_9 Kennzahlen'!E28,0) -> 0 | P28: =IF(P$3="Ja",'R_10 Kennzahlen'!E28,0) -> 0
B29: L-Z-16 | C29: Zeitlicher Nutzungsgrad Routenzug | D29: [%] | E29: 55.06944444 | F29: 55.06944444 | G29: =IF(G$3="Ja",'R_1 Kennzahlen'!E29,0) -> 55.06944444 | H29: =IF(H$3="Ja",'R_2 Kennzahlen'!E29,0) -> 0 | I29: =IF(I$3="Ja",'R_3 Kennzahlen'!E29,0) -> 0 | J29: =IF(J$3="Ja",'R_4 Kennzahlen'!E29,0) -> 0 | K29: =IF(K$3="Ja",'R_5 Kennzahlen'!E29,0) -> 0 | L29: =IF(L$3="Ja",'R_6 Kennzahlen'!E29,0) -> 0 | M29: =IF(M$3="Ja",'R_7 Kennzahlen'!E29,0) -> 0 | N29: =IF(N$3="Ja",'R_8 Kennzahlen'!E29,0) -> 0 | O29: =IF(O$3="Ja",'R_9 Kennzahlen'!E29,0) -> 0 | P29: =IF(P$3="Ja",'R_10 Kennzahlen'!E29,0) -> 0
B30: L-Z-17 | C30: Zeitlicher Nutzungsgrad Mitarbeiter | D30: [%] | E30: 55.06944444 | F30: 55.06944444 | G30: =IF(G$3="Ja",'R_1 Kennzahlen'!E30,0) -> 55.06944444 | H30: =IF(H$3="Ja",'R_2 Kennzahlen'!E30,0) -> 0 | I30: =IF(I$3="Ja",'R_3 Kennzahlen'!E30,0) -> 0 | J30: =IF(J$3="Ja",'R_4 Kennzahlen'!E30,0) -> 0 | K30: =IF(K$3="Ja",'R_5 Kennzahlen'!E30,0) -> 0 | L30: =IF(L$3="Ja",'R_6 Kennzahlen'!E30,0) -> 0 | M30: =IF(M$3="Ja",'R_7 Kennzahlen'!E30,0) -> 0 | N30: =IF(N$3="Ja",'R_8 Kennzahlen'!E30,0) -> 0 | O30: =IF(O$3="Ja",'R_9 Kennzahlen'!E30,0) -> 0 | P30: =IF(P$3="Ja",'R_10 Kennzahlen'!E30,0) -> 0
B31: L-Z-18 | C31: Minimale Wiederbeschaffungszeit | D31: [min] | E31: 30 | F31: 30 | G31: =IF(G$3="Ja",'R_1 Kennzahlen'!E31,0) -> 30 | H31: =IF(H$3="Ja",'R_2 Kennzahlen'!E31,0) -> 0 | I31: =IF(I$3="Ja",'R_3 Kennzahlen'!E31,0) -> 0 | J31: =IF(J$3="Ja",'R_4 Kennzahlen'!E31,0) -> 0 | K31: =IF(K$3="Ja",'R_5 Kennzahlen'!E31,0) -> 0 | L31: =IF(L$3="Ja",'R_6 Kennzahlen'!E31,0) -> 0 | M31: =IF(M$3="Ja",'R_7 Kennzahlen'!E31,0) -> 0 | N31: =IF(N$3="Ja",'R_8 Kennzahlen'!E31,0) -> 0 | O31: =IF(O$3="Ja",'R_9 Kennzahlen'!E31,0) -> 0 | P31: =IF(P$3="Ja",'R_10 Kennzahlen'!E31,0) -> 0
B32: L-Z-19 | C32: Maximale Wiederbeschaffungszeit | D32: [min] | E32: 30 | F32: 30 | G32: =IF(G$3="Ja",'R_1 Kennzahlen'!E32,0) -> 30 | H32: =IF(H$3="Ja",'R_2 Kennzahlen'!E32,0) -> 0 | I32: =IF(I$3="Ja",'R_3 Kennzahlen'!E32,0) -> 0 | J32: =IF(J$3="Ja",'R_4 Kennzahlen'!E32,0) -> 0 | K32: =IF(K$3="Ja",'R_5 Kennzahlen'!E32,0) -> 0 | L32: =IF(L$3="Ja",'R_6 Kennzahlen'!E32,0) -> 0 | M32: =IF(M$3="Ja",'R_7 Kennzahlen'!E32,0) -> 0 | N32: =IF(N$3="Ja",'R_8 Kennzahlen'!E32,0) -> 0 | O32: =IF(O$3="Ja",'R_9 Kennzahlen'!E32,0) -> 0 | P32: =IF(P$3="Ja",'R_10 Kennzahlen'!E32,0) -> 0
B33: L-R-1 | C33: Anzahl Ladungsträger | D33: [Stk] | E33: 10 | F33: 10 | G33: =IF(G$3="Ja",'R_1 Kennzahlen'!E33,0) -> 10 | H33: =IF(H$3="Ja",'R_2 Kennzahlen'!E33,0) -> 0 | I33: =IF(I$3="Ja",'R_3 Kennzahlen'!E33,0) -> 0 | J33: =IF(J$3="Ja",'R_4 Kennzahlen'!E33,0) -> 0 | K33: =IF(K$3="Ja",'R_5 Kennzahlen'!E33,0) -> 0 | L33: =IF(L$3="Ja",'R_6 Kennzahlen'!E33,0) -> 0 | M33: =IF(M$3="Ja",'R_7 Kennzahlen'!E33,0) -> 0 | N33: =IF(N$3="Ja",'R_8 Kennzahlen'!E33,0) -> 0 | O33: =IF(O$3="Ja",'R_9 Kennzahlen'!E33,0) -> 0 | P33: =IF(P$3="Ja",'R_10 Kennzahlen'!E33,0) -> 0
B34: L-R-2a | C34: Anzahl Routenzüge (exakt) | D34: [Stk] | E34: 0.5506944444 | F34: 0.5506944444 | G34: =IF(G$3="Ja",'R_1 Kennzahlen'!E34,0) -> 0.5506944444 | H34: =IF(H$3="Ja",'R_2 Kennzahlen'!E34,0) -> 0 | I34: =IF(I$3="Ja",'R_3 Kennzahlen'!E34,0) -> 0 | J34: =IF(J$3="Ja",'R_4 Kennzahlen'!E34,0) -> 0 | K34: =IF(K$3="Ja",'R_5 Kennzahlen'!E34,0) -> 0 | L34: =IF(L$3="Ja",'R_6 Kennzahlen'!E34,0) -> 0 | M34: =IF(M$3="Ja",'R_7 Kennzahlen'!E34,0) -> 0 | N34: =IF(N$3="Ja",'R_8 Kennzahlen'!E34,0) -> 0 | O34: =IF(O$3="Ja",'R_9 Kennzahlen'!E34,0) -> 0 | P34: =IF(P$3="Ja",'R_10 Kennzahlen'!E34,0) -> 0
B35: L-R-2b | C35: Anzahl Routenzüge (gerundet) | D35: [Stk] | E35: 1 | F35: 1 | G35: =IF(G$3="Ja",'R_1 Kennzahlen'!E35,0) -> 1 | H35: =IF(H$3="Ja",'R_2 Kennzahlen'!E35,0) -> 0 | I35: =IF(I$3="Ja",'R_3 Kennzahlen'!E35,0) -> 0 | J35: =IF(J$3="Ja",'R_4 Kennzahlen'!E35,0) -> 0 | K35: =IF(K$3="Ja",'R_5 Kennzahlen'!E35,0) -> 0 | L35: =IF(L$3="Ja",'R_6 Kennzahlen'!E35,0) -> 0 | M35: =IF(M$3="Ja",'R_7 Kennzahlen'!E35,0) -> 0 | N35: =IF(N$3="Ja",'R_8 Kennzahlen'!E35,0) -> 0 | O35: =IF(O$3="Ja",'R_9 Kennzahlen'!E35,0) -> 0 | P35: =IF(P$3="Ja",'R_10 Kennzahlen'!E35,0) -> 0
B36: L-R-2c | C36: Anzahl Routenzüge (tatsächlich) | D36: [Stk] | E36: 1 | F36: 1 | G36: =IF(G$3="Ja",'R_1 Kennzahlen'!E36,0) -> 1 | H36: =IF(H$3="Ja",'R_2 Kennzahlen'!E36,0) -> 0 | I36: =IF(I$3="Ja",'R_3 Kennzahlen'!E36,0) -> 0 | J36: =IF(J$3="Ja",'R_4 Kennzahlen'!E36,0) -> 0 | K36: =IF(K$3="Ja",'R_5 Kennzahlen'!E36,0) -> 0 | L36: =IF(L$3="Ja",'R_6 Kennzahlen'!E36,0) -> 0 | M36: =IF(M$3="Ja",'R_7 Kennzahlen'!E36,0) -> 0 | N36: =IF(N$3="Ja",'R_8 Kennzahlen'!E36,0) -> 0 | O36: =IF(O$3="Ja",'R_9 Kennzahlen'!E36,0) -> 0 | P36: =IF(P$3="Ja",'R_10 Kennzahlen'!E36,0) -> 0
B37: L-R-2d | C37: Anzahl Anhänger | D37: [Stk] | E37: 10 | F37: 10 | G37: =IF(G$3="Ja",'R_1 Kennzahlen'!E37,0) -> 10 | H37: =IF(H$3="Ja",'R_2 Kennzahlen'!E37,0) -> 0 | I37: =IF(I$3="Ja",'R_3 Kennzahlen'!E37,0) -> 0 | J37: =IF(J$3="Ja",'R_4 Kennzahlen'!E37,0) -> 0 | K37: =IF(K$3="Ja",'R_5 Kennzahlen'!E37,0) -> 0 | L37: =IF(L$3="Ja",'R_6 Kennzahlen'!E37,0) -> 0 | M37: =IF(M$3="Ja",'R_7 Kennzahlen'!E37,0) -> 0 | N37: =IF(N$3="Ja",'R_8 Kennzahlen'!E37,0) -> 0 | O37: =IF(O$3="Ja",'R_9 Kennzahlen'!E37,0) -> 0 | P37: =IF(P$3="Ja",'R_10 Kennzahlen'!E37,0) -> 0
B38: L-R-2e | C38: Anzahl Trolleys/Rahmen | D38: [Stk] | E38: 0 | F38: 0 | G38: =IF(G$3="Ja",'R_1 Kennzahlen'!E38,0) -> 0 | H38: =IF(H$3="Ja",'R_2 Kennzahlen'!E38,0) -> 0 | I38: =IF(I$3="Ja",'R_3 Kennzahlen'!E38,0) -> 0 | J38: =IF(J$3="Ja",'R_4 Kennzahlen'!E38,0) -> 0 | K38: =IF(K$3="Ja",'R_5 Kennzahlen'!E38,0) -> 0 | L38: =IF(L$3="Ja",'R_6 Kennzahlen'!E38,0) -> 0 | M38: =IF(M$3="Ja",'R_7 Kennzahlen'!E38,0) -> 0 | N38: =IF(N$3="Ja",'R_8 Kennzahlen'!E38,0) -> 0 | O38: =IF(O$3="Ja",'R_9 Kennzahlen'!E38,0) -> 0 | P38: =IF(P$3="Ja",'R_10 Kennzahlen'!E38,0) -> 0
B39: L-R-3 | C39: Anzahl Be- und Entladetechnik | D39: [Stk] | E39: 1 | F39: 1 | G39: =IF(G$3="Ja",'R_1 Kennzahlen'!E39,0) -> 1 | H39: =IF(H$3="Ja",'R_2 Kennzahlen'!E39,0) -> 0 | I39: =IF(I$3="Ja",'R_3 Kennzahlen'!E39,0) -> 0 | J39: =IF(J$3="Ja",'R_4 Kennzahlen'!E39,0) -> 0 | K39: =IF(K$3="Ja",'R_5 Kennzahlen'!E39,0) -> 0 | L39: =IF(L$3="Ja",'R_6 Kennzahlen'!E39,0) -> 0 | M39: =IF(M$3="Ja",'R_7 Kennzahlen'!E39,0) -> 0 | N39: =IF(N$3="Ja",'R_8 Kennzahlen'!E39,0) -> 0 | O39: =IF(O$3="Ja",'R_9 Kennzahlen'!E39,0) -> 0 | P39: =IF(P$3="Ja",'R_10 Kennzahlen'!E39,0) -> 0
B40: L-R-4 | C40: Anzahl Bereitstelltechnik | D40: [Stk] | E40: 10 | F40: 10 | G40: =IF(G$3="Ja",'R_1 Kennzahlen'!E40,0) -> 10 | H40: =IF(H$3="Ja",'R_2 Kennzahlen'!E40,0) -> 0 | I40: =IF(I$3="Ja",'R_3 Kennzahlen'!E40,0) -> 0 | J40: =IF(J$3="Ja",'R_4 Kennzahlen'!E40,0) -> 0 | K40: =IF(K$3="Ja",'R_5 Kennzahlen'!E40,0) -> 0 | L40: =IF(L$3="Ja",'R_6 Kennzahlen'!E40,0) -> 0 | M40: =IF(M$3="Ja",'R_7 Kennzahlen'!E40,0) -> 0 | N40: =IF(N$3="Ja",'R_8 Kennzahlen'!E40,0) -> 0 | O40: =IF(O$3="Ja",'R_9 Kennzahlen'!E40,0) -> 0 | P40: =IF(P$3="Ja",'R_10 Kennzahlen'!E40,0) -> 0
B41: L-R-5 | C41: Anzahl Informationstechnik | D41: [Stk] | E41: 1 | F41: 1 | G41: =IF(G$3="Ja",'R_1 Kennzahlen'!E41,0) -> 1 | H41: =IF(H$3="Ja",'R_2 Kennzahlen'!E41,0) -> 0 | I41: =IF(I$3="Ja",'R_3 Kennzahlen'!E41,0) -> 0 | J41: =IF(J$3="Ja",'R_4 Kennzahlen'!E41,0) -> 0 | K41: =IF(K$3="Ja",'R_5 Kennzahlen'!E41,0) -> 0 | L41: =IF(L$3="Ja",'R_6 Kennzahlen'!E41,0) -> 0 | M41: =IF(M$3="Ja",'R_7 Kennzahlen'!E41,0) -> 0 | N41: =IF(N$3="Ja",'R_8 Kennzahlen'!E41,0) -> 0 | O41: =IF(O$3="Ja",'R_9 Kennzahlen'!E41,0) -> 0 | P41: =IF(P$3="Ja",'R_10 Kennzahlen'!E41,0) -> 0
B42: L-R-6 | C42: Anzahl Mitarbeiter | D42: [Stk] | E42: 1.908194444 | F42: 1.908194444 | G42: =IF(G$3="Ja",'R_1 Kennzahlen'!E42,0) -> 1.908194444 | H42: =IF(H$3="Ja",'R_2 Kennzahlen'!E42,0) -> 0 | I42: =IF(I$3="Ja",'R_3 Kennzahlen'!E42,0) -> 0 | J42: =IF(J$3="Ja",'R_4 Kennzahlen'!E42,0) -> 0 | K42: =IF(K$3="Ja",'R_5 Kennzahlen'!E42,0) -> 0 | L42: =IF(L$3="Ja",'R_6 Kennzahlen'!E42,0) -> 0 | M42: =IF(M$3="Ja",'R_7 Kennzahlen'!E42,0) -> 0 | N42: =IF(N$3="Ja",'R_8 Kennzahlen'!E42,0) -> 0 | O42: =IF(O$3="Ja",'R_9 Kennzahlen'!E42,0) -> 0 | P42: =IF(P$3="Ja",'R_10 Kennzahlen'!E42,0) -> 0
B43: L-R-7 | C43: Automatisierungsgrad | D43: [%] | E43: 0 | F43: 0 | G43: =IF(G$3="Ja",'R_1 Kennzahlen'!E43,0) -> 0 | H43: =IF(H$3="Ja",'R_2 Kennzahlen'!E43,0) -> 0 | I43: =IF(I$3="Ja",'R_3 Kennzahlen'!E43,0) -> 0 | J43: =IF(J$3="Ja",'R_4 Kennzahlen'!E43,0) -> 0 | K43: =IF(K$3="Ja",'R_5 Kennzahlen'!E43,0) -> 0 | L43: =IF(L$3="Ja",'R_6 Kennzahlen'!E43,0) -> 0 | M43: =IF(M$3="Ja",'R_7 Kennzahlen'!E43,0) -> 0 | N43: =IF(N$3="Ja",'R_8 Kennzahlen'!E43,0) -> 0 | O43: =IF(O$3="Ja",'R_9 Kennzahlen'!E43,0) -> 0 | P43: =IF(P$3="Ja",'R_10 Kennzahlen'!E43,0) -> 0
B44: L-R-8 | C44: Verfügbarkeit | D44: [%] | E44: 99.47916667 | F44: 99.47916667 | G44: =IF(G$3="Ja",'R_1 Kennzahlen'!E44,0) -> 99.47916667 | H44: =IF(H$3="Ja",'R_2 Kennzahlen'!E44,0) -> 0 | I44: =IF(I$3="Ja",'R_3 Kennzahlen'!E44,0) -> 0 | J44: =IF(J$3="Ja",'R_4 Kennzahlen'!E44,0) -> 0 | K44: =IF(K$3="Ja",'R_5 Kennzahlen'!E44,0) -> 0 | L44: =IF(L$3="Ja",'R_6 Kennzahlen'!E44,0) -> 0 | M44: =IF(M$3="Ja",'R_7 Kennzahlen'!E44,0) -> 0 | N44: =IF(N$3="Ja",'R_8 Kennzahlen'!E44,0) -> 0 | O44: =IF(O$3="Ja",'R_9 Kennzahlen'!E44,0) -> 0 | P44: =IF(P$3="Ja",'R_10 Kennzahlen'!E44,0) -> 0
B45: L-R-9 | C45: Routenzugkapazität | D45: ='R_1 Berechnung'!E12 -> [LT] | E45: 5 | F45: 5 | G45: =IF(G$3="Ja",'R_1 Kennzahlen'!E45,0) -> 5 | H45: =IF(H$3="Ja",'R_2 Kennzahlen'!E45,0) -> 0 | I45: =IF(I$3="Ja",'R_3 Kennzahlen'!E45,0) -> 0 | J45: =IF(J$3="Ja",'R_4 Kennzahlen'!E45,0) -> 0 | K45: =IF(K$3="Ja",'R_5 Kennzahlen'!E45,0) -> 0 | L45: =IF(L$3="Ja",'R_6 Kennzahlen'!E45,0) -> 0 | M45: =IF(M$3="Ja",'R_7 Kennzahlen'!E45,0) -> 0 | N45: =IF(N$3="Ja",'R_8 Kennzahlen'!E45,0) -> 0 | O45: =IF(O$3="Ja",'R_9 Kennzahlen'!E45,0) -> 0 | P45: =IF(P$3="Ja",'R_10 Kennzahlen'!E45,0) -> 0
B46: L-R-10 | C46: Mittlere Beladung Routenzug pro Tour | D46: ='R_1 Berechnung'!E31 -> [LT] | E46: 4.75 | F46: 4.75 | G46: =IF(G$3="Ja",'R_1 Kennzahlen'!E46,0) -> 4.75 | H46: =IF(H$3="Ja",'R_2 Kennzahlen'!E46,0) -> 0 | I46: =IF(I$3="Ja",'R_3 Kennzahlen'!E46,0) -> 0 | J46: =IF(J$3="Ja",'R_4 Kennzahlen'!E46,0) -> 0 | K46: =IF(K$3="Ja",'R_5 Kennzahlen'!E46,0) -> 0 | L46: =IF(L$3="Ja",'R_6 Kennzahlen'!E46,0) -> 0 | M46: =IF(M$3="Ja",'R_7 Kennzahlen'!E46,0) -> 0 | N46: =IF(N$3="Ja",'R_8 Kennzahlen'!E46,0) -> 0 | O46: =IF(O$3="Ja",'R_9 Kennzahlen'!E46,0) -> 0 | P46: =IF(P$3="Ja",'R_10 Kennzahlen'!E46,0) -> 0
B47: L-R-11 | C47: Kapazitiver Nutzungsgrad Routenzug | D47: [%] | E47: 95 | F47: 95 | G47: =IF(G$3="Ja",'R_1 Kennzahlen'!E47,0) -> 95 | H47: =IF(H$3="Ja",'R_2 Kennzahlen'!E47,0) -> 0 | I47: =IF(I$3="Ja",'R_3 Kennzahlen'!E47,0) -> 0 | J47: =IF(J$3="Ja",'R_4 Kennzahlen'!E47,0) -> 0 | K47: =IF(K$3="Ja",'R_5 Kennzahlen'!E47,0) -> 0 | L47: =IF(L$3="Ja",'R_6 Kennzahlen'!E47,0) -> 0 | M47: =IF(M$3="Ja",'R_7 Kennzahlen'!E47,0) -> 0 | N47: =IF(N$3="Ja",'R_8 Kennzahlen'!E47,0) -> 0 | O47: =IF(O$3="Ja",'R_9 Kennzahlen'!E47,0) -> 0 | P47: =IF(P$3="Ja",'R_10 Kennzahlen'!E47,0) -> 0
B48: L-R-12 | C48: Mittlere Pufferkapazität je Bereitstellort | D48: ='R_1 Eingabe'!D123 -> [LT] | E48: 3 | F48: 3 | G48: =IF(G$3="Ja",'R_1 Kennzahlen'!E48,0) -> 3 | H48: =IF(H$3="Ja",'R_2 Kennzahlen'!E48,0) -> 0 | I48: =IF(I$3="Ja",'R_3 Kennzahlen'!E48,0) -> 0 | J48: =IF(J$3="Ja",'R_4 Kennzahlen'!E48,0) -> 0 | K48: =IF(K$3="Ja",'R_5 Kennzahlen'!E48,0) -> 0 | L48: =IF(L$3="Ja",'R_6 Kennzahlen'!E48,0) -> 0 | M48: =IF(M$3="Ja",'R_7 Kennzahlen'!E48,0) -> 0 | N48: =IF(N$3="Ja",'R_8 Kennzahlen'!E48,0) -> 0 | O48: =IF(O$3="Ja",'R_9 Kennzahlen'!E48,0) -> 0 | P48: =IF(P$3="Ja",'R_10 Kennzahlen'!E48,0) -> 0
B49: L-R-13 | C49: Mittlere Belegung je Puffer | D49: ='R_1 Eingabe'!D124 -> [LT] | E49: 1.5 | F49: 1.5 | G49: =IF(G$3="Ja",'R_1 Kennzahlen'!E49,0) -> 1.5 | H49: =IF(H$3="Ja",'R_2 Kennzahlen'!E49,0) -> 0 | I49: =IF(I$3="Ja",'R_3 Kennzahlen'!E49,0) -> 0 | J49: =IF(J$3="Ja",'R_4 Kennzahlen'!E49,0) -> 0 | K49: =IF(K$3="Ja",'R_5 Kennzahlen'!E49,0) -> 0 | L49: =IF(L$3="Ja",'R_6 Kennzahlen'!E49,0) -> 0 | M49: =IF(M$3="Ja",'R_7 Kennzahlen'!E49,0) -> 0 | N49: =IF(N$3="Ja",'R_8 Kennzahlen'!E49,0) -> 0 | O49: =IF(O$3="Ja",'R_9 Kennzahlen'!E49,0) -> 0 | P49: =IF(P$3="Ja",'R_10 Kennzahlen'!E49,0) -> 0
B50: L-R-14 | C50: Kapazitiver Nutzungsgrad Puffer | D50: [%] | E50: 50 | F50: 50 | G50: =IF(G$3="Ja",'R_1 Kennzahlen'!E50,0) -> 50 | H50: =IF(H$3="Ja",'R_2 Kennzahlen'!E50,0) -> 0 | I50: =IF(I$3="Ja",'R_3 Kennzahlen'!E50,0) -> 0 | J50: =IF(J$3="Ja",'R_4 Kennzahlen'!E50,0) -> 0 | K50: =IF(K$3="Ja",'R_5 Kennzahlen'!E50,0) -> 0 | L50: =IF(L$3="Ja",'R_6 Kennzahlen'!E50,0) -> 0 | M50: =IF(M$3="Ja",'R_7 Kennzahlen'!E50,0) -> 0 | N50: =IF(N$3="Ja",'R_8 Kennzahlen'!E50,0) -> 0 | O50: =IF(O$3="Ja",'R_9 Kennzahlen'!E50,0) -> 0 | P50: =IF(P$3="Ja",'R_10 Kennzahlen'!E50,0) -> 0
B51: L-M-1a | C51: Durchsatz pro Stunde | D51: ='R_1 Eingabe'!D87 -> [LT] | E51: 9.5 | F51: 9.5 | G51: =IF(G$3="Ja",'R_1 Kennzahlen'!E51,0) -> 9.5 | H51: =IF(H$3="Ja",'R_2 Kennzahlen'!E51,0) -> 0 | I51: =IF(I$3="Ja",'R_3 Kennzahlen'!E51,0) -> 0 | J51: =IF(J$3="Ja",'R_4 Kennzahlen'!E51,0) -> 0 | K51: =IF(K$3="Ja",'R_5 Kennzahlen'!E51,0) -> 0 | L51: =IF(L$3="Ja",'R_6 Kennzahlen'!E51,0) -> 0 | M51: =IF(M$3="Ja",'R_7 Kennzahlen'!E51,0) -> 0 | N51: =IF(N$3="Ja",'R_8 Kennzahlen'!E51,0) -> 0 | O51: =IF(O$3="Ja",'R_9 Kennzahlen'!E51,0) -> 0 | P51: =IF(P$3="Ja",'R_10 Kennzahlen'!E51,0) -> 0
B52: L-M-1b | C52: Durchsatz pro Haltestelle | D52: ='R_1 Eingabe'!D87 -> [LT] | E52: 1.583333333 | F52: 1.583333333 | G52: =IF(G$3="Ja",'R_1 Kennzahlen'!E52,0) -> 1.583333333 | H52: =IF(H$3="Ja",'R_2 Kennzahlen'!E52,0) -> 0 | I52: =IF(I$3="Ja",'R_3 Kennzahlen'!E52,0) -> 0 | J52: =IF(J$3="Ja",'R_4 Kennzahlen'!E52,0) -> 0 | K52: =IF(K$3="Ja",'R_5 Kennzahlen'!E52,0) -> 0 | L52: =IF(L$3="Ja",'R_6 Kennzahlen'!E52,0) -> 0 | M52: =IF(M$3="Ja",'R_7 Kennzahlen'!E52,0) -> 0 | N52: =IF(N$3="Ja",'R_8 Kennzahlen'!E52,0) -> 0 | O52: =IF(O$3="Ja",'R_9 Kennzahlen'!E52,0) -> 0 | P52: =IF(P$3="Ja",'R_10 Kennzahlen'!E52,0) -> 0 | R52: WIRTSCHAFTLICHKEIT
B53: L-M-2 | C53: Länge Fahrweg pro Routenzug | D53: [km/Tag] | E53: 16 | F53: 16 | G53: =IF(G$3="Ja",'R_1 Kennzahlen'!E53,0) -> 16 | H53: =IF(H$3="Ja",'R_2 Kennzahlen'!E53,0) -> 0 | I53: =IF(I$3="Ja",'R_3 Kennzahlen'!E53,0) -> 0 | J53: =IF(J$3="Ja",'R_4 Kennzahlen'!E53,0) -> 0 | K53: =IF(K$3="Ja",'R_5 Kennzahlen'!E53,0) -> 0 | L53: =IF(L$3="Ja",'R_6 Kennzahlen'!E53,0) -> 0 | M53: =IF(M$3="Ja",'R_7 Kennzahlen'!E53,0) -> 0 | N53: =IF(N$3="Ja",'R_8 Kennzahlen'!E53,0) -> 0 | O53: =IF(O$3="Ja",'R_9 Kennzahlen'!E53,0) -> 0 | P53: =IF(P$3="Ja",'R_10 Kennzahlen'!E53,0) -> 0
B54: L-M-3 | C54: Länge Fahrweg pro Tag | D54: [km/Tag] | E54: 16 | F54: 16 | G54: =IF(G$3="Ja",'R_1 Kennzahlen'!E54,0) -> 16 | H54: =IF(H$3="Ja",'R_2 Kennzahlen'!E54,0) -> 0 | I54: =IF(I$3="Ja",'R_3 Kennzahlen'!E54,0) -> 0 | J54: =IF(J$3="Ja",'R_4 Kennzahlen'!E54,0) -> 0 | K54: =IF(K$3="Ja",'R_5 Kennzahlen'!E54,0) -> 0 | L54: =IF(L$3="Ja",'R_6 Kennzahlen'!E54,0) -> 0 | M54: =IF(M$3="Ja",'R_7 Kennzahlen'!E54,0) -> 0 | N54: =IF(N$3="Ja",'R_8 Kennzahlen'!E54,0) -> 0 | O54: =IF(O$3="Ja",'R_9 Kennzahlen'!E54,0) -> 0 | P54: =IF(P$3="Ja",'R_10 Kennzahlen'!E54,0) -> 0
B55: L-M-4 | C55: Länge Gehweg pro Mitarbeiter | D55: [km/Schicht] | E55: 1.62109366 | F55: 1.62109366 | G55: =IF(G$3="Ja",'R_1 Kennzahlen'!E55,0) -> 1.62109366 | H55: =IF(H$3="Ja",'R_2 Kennzahlen'!E55,0) -> 0 | I55: =IF(I$3="Ja",'R_3 Kennzahlen'!E55,0) -> 0 | J55: =IF(J$3="Ja",'R_4 Kennzahlen'!E55,0) -> 0 | K55: =IF(K$3="Ja",'R_5 Kennzahlen'!E55,0) -> 0 | L55: =IF(L$3="Ja",'R_6 Kennzahlen'!E55,0) -> 0 | M55: =IF(M$3="Ja",'R_7 Kennzahlen'!E55,0) -> 0 | N55: =IF(N$3="Ja",'R_8 Kennzahlen'!E55,0) -> 0 | O55: =IF(O$3="Ja",'R_9 Kennzahlen'!E55,0) -> 0 | P55: =IF(P$3="Ja",'R_10 Kennzahlen'!E55,0) -> 0
B56: L-M-5a | C56: Anzahl Touren pro Stunde | D56: [Stk] | E56: 2 | F56: 2 | G56: =IF(G$3="Ja",'R_1 Kennzahlen'!E56,0) -> 2 | H56: =IF(H$3="Ja",'R_2 Kennzahlen'!E56,0) -> 0 | I56: =IF(I$3="Ja",'R_3 Kennzahlen'!E56,0) -> 0 | J56: =IF(J$3="Ja",'R_4 Kennzahlen'!E56,0) -> 0 | K56: =IF(K$3="Ja",'R_5 Kennzahlen'!E56,0) -> 0 | L56: =IF(L$3="Ja",'R_6 Kennzahlen'!E56,0) -> 0 | M56: =IF(M$3="Ja",'R_7 Kennzahlen'!E56,0) -> 0 | N56: =IF(N$3="Ja",'R_8 Kennzahlen'!E56,0) -> 0 | O56: =IF(O$3="Ja",'R_9 Kennzahlen'!E56,0) -> 0 | P56: =IF(P$3="Ja",'R_10 Kennzahlen'!E56,0) -> 0
B57: L-M-5b | C57: Anzahl Touren pro Schicht | D57: [Stk] | E57: 16 | F57: 16 | G57: =IF(G$3="Ja",'R_1 Kennzahlen'!E57,0) -> 16 | H57: =IF(H$3="Ja",'R_2 Kennzahlen'!E57,0) -> 0 | I57: =IF(I$3="Ja",'R_3 Kennzahlen'!E57,0) -> 0 | J57: =IF(J$3="Ja",'R_4 Kennzahlen'!E57,0) -> 0 | K57: =IF(K$3="Ja",'R_5 Kennzahlen'!E57,0) -> 0 | L57: =IF(L$3="Ja",'R_6 Kennzahlen'!E57,0) -> 0 | M57: =IF(M$3="Ja",'R_7 Kennzahlen'!E57,0) -> 0 | N57: =IF(N$3="Ja",'R_8 Kennzahlen'!E57,0) -> 0 | O57: =IF(O$3="Ja",'R_9 Kennzahlen'!E57,0) -> 0 | P57: =IF(P$3="Ja",'R_10 Kennzahlen'!E57,0) -> 0
B58: L-M-5c | C58: Anzahl Touren pro Tag | D58: [Stk] | E58: 32 | F58: 32 | G58: =IF(G$3="Ja",'R_1 Kennzahlen'!E58,0) -> 32 | H58: =IF(H$3="Ja",'R_2 Kennzahlen'!E58,0) -> 0 | I58: =IF(I$3="Ja",'R_3 Kennzahlen'!E58,0) -> 0 | J58: =IF(J$3="Ja",'R_4 Kennzahlen'!E58,0) -> 0 | K58: =IF(K$3="Ja",'R_5 Kennzahlen'!E58,0) -> 0 | L58: =IF(L$3="Ja",'R_6 Kennzahlen'!E58,0) -> 0 | M58: =IF(M$3="Ja",'R_7 Kennzahlen'!E58,0) -> 0 | N58: =IF(N$3="Ja",'R_8 Kennzahlen'!E58,0) -> 0 | O58: =IF(O$3="Ja",'R_9 Kennzahlen'!E58,0) -> 0 | P58: =IF(P$3="Ja",'R_10 Kennzahlen'!E58,0) -> 0
B59: L-M-6 | C59: Anzahl Haltevorgänge pro Tour | D59: [Stk/Tour] | E59: 4.625 | F59: 4.625 | G59: =IF(G$3="Ja",'R_1 Kennzahlen'!E59,0) -> 4.625 | H59: =IF(H$3="Ja",'R_2 Kennzahlen'!E59,0) -> 0 | I59: =IF(I$3="Ja",'R_3 Kennzahlen'!E59,0) -> 0 | J59: =IF(J$3="Ja",'R_4 Kennzahlen'!E59,0) -> 0 | K59: =IF(K$3="Ja",'R_5 Kennzahlen'!E59,0) -> 0 | L59: =IF(L$3="Ja",'R_6 Kennzahlen'!E59,0) -> 0 | M59: =IF(M$3="Ja",'R_7 Kennzahlen'!E59,0) -> 0 | N59: =IF(N$3="Ja",'R_8 Kennzahlen'!E59,0) -> 0 | O59: =IF(O$3="Ja",'R_9 Kennzahlen'!E59,0) -> 0 | P59: =IF(P$3="Ja",'R_10 Kennzahlen'!E59,0) -> 0
B60: L-M-7 | C60: Verkehrsdichte | D60: [Stk/km] | E60: 0.0625 | F60: 0.0625 | G60: =IF(G$3="Ja",'R_1 Kennzahlen'!E60,0) -> 0.0625 | H60: =IF(H$3="Ja",'R_2 Kennzahlen'!E60,0) -> 0 | I60: =IF(I$3="Ja",'R_3 Kennzahlen'!E60,0) -> 0 | J60: =IF(J$3="Ja",'R_4 Kennzahlen'!E60,0) -> 0 | K60: =IF(K$3="Ja",'R_5 Kennzahlen'!E60,0) -> 0 | L60: =IF(L$3="Ja",'R_6 Kennzahlen'!E60,0) -> 0 | M60: =IF(M$3="Ja",'R_7 Kennzahlen'!E60,0) -> 0 | N60: =IF(N$3="Ja",'R_8 Kennzahlen'!E60,0) -> 0 | O60: =IF(O$3="Ja",'R_9 Kennzahlen'!E60,0) -> 0 | P60: =IF(P$3="Ja",'R_10 Kennzahlen'!E60,0) -> 0
B61: L-M-8 | C61: Gesamtnutzungsgrad | D61: [%] | E61: 75.03472222 | F61: 75.03472222 | G61: =IF(G$3="Ja",'R_1 Kennzahlen'!E61,0) -> 75.03472222 | H61: =IF(H$3="Ja",'R_2 Kennzahlen'!E61,0) -> 0 | I61: =IF(I$3="Ja",'R_3 Kennzahlen'!E61,0) -> 0 | J61: =IF(J$3="Ja",'R_4 Kennzahlen'!E61,0) -> 0 | K61: =IF(K$3="Ja",'R_5 Kennzahlen'!E61,0) -> 0 | L61: =IF(L$3="Ja",'R_6 Kennzahlen'!E61,0) -> 0 | M61: =IF(M$3="Ja",'R_7 Kennzahlen'!E61,0) -> 0 | N61: =IF(N$3="Ja",'R_8 Kennzahlen'!E61,0) -> 0 | O61: =IF(O$3="Ja",'R_9 Kennzahlen'!E61,0) -> 0 | P61: =IF(P$3="Ja",'R_10 Kennzahlen'!E61,0) -> 0
C62: Wirtschaftlichkeitskennzahlen
B64: W-I-1 | C64: Investitionskosten Gesamt | D64: [€] | E64: =F64/$F$7 -> 32500 | F64: =SUM(G64:P64) -> 32500 | G64: =IF(G$3="Ja",'R_1 Kennzahlen'!E64,0) -> 32500 | H64: =IF(H$3="Ja",'R_2 Kennzahlen'!E64,0) -> 0 | I64: =IF(I$3="Ja",'R_3 Kennzahlen'!E64,0) -> 0 | J64: =IF(J$3="Ja",'R_4 Kennzahlen'!E64,0) -> 0 | K64: =IF(K$3="Ja",'R_5 Kennzahlen'!E64,0) -> 0 | L64: =IF(L$3="Ja",'R_6 Kennzahlen'!E64,0) -> 0 | M64: =IF(M$3="Ja",'R_7 Kennzahlen'!E64,0) -> 0 | N64: =IF(N$3="Ja",'R_8 Kennzahlen'!E64,0) -> 0 | O64: =IF(O$3="Ja",'R_9 Kennzahlen'!E64,0) -> 0 | P64: =IF(P$3="Ja",'R_10 Kennzahlen'!E64,0) -> 0
B65: W-I-2 | C65: Investitionskosten Ladungsträger | D65: [€] | E65: =F65/$F$7 -> 500 | F65: =SUM(G65:P65) -> 500 | G65: =IF(G$3="Ja",'R_1 Kennzahlen'!E65,0) -> 500 | H65: =IF(H$3="Ja",'R_2 Kennzahlen'!E65,0) -> 0 | I65: =IF(I$3="Ja",'R_3 Kennzahlen'!E65,0) -> 0 | J65: =IF(J$3="Ja",'R_4 Kennzahlen'!E65,0) -> 0 | K65: =IF(K$3="Ja",'R_5 Kennzahlen'!E65,0) -> 0 | L65: =IF(L$3="Ja",'R_6 Kennzahlen'!E65,0) -> 0 | M65: =IF(M$3="Ja",'R_7 Kennzahlen'!E65,0) -> 0 | N65: =IF(N$3="Ja",'R_8 Kennzahlen'!E65,0) -> 0 | O65: =IF(O$3="Ja",'R_9 Kennzahlen'!E65,0) -> 0 | P65: =IF(P$3="Ja",'R_10 Kennzahlen'!E65,0) -> 0
B66: W-I-3 | C66: Investitionskosten Transportmittel | D66: [€] | E66: 17000 | F66: 17000 | G66: =IF(G$3="Ja",'R_1 Kennzahlen'!E66,0) -> 17000 | H66: =IF(H$3="Ja",'R_2 Kennzahlen'!E66,0) -> 0 | I66: =IF(I$3="Ja",'R_3 Kennzahlen'!E66,0) -> 0 | J66: =IF(J$3="Ja",'R_4 Kennzahlen'!E66,0) -> 0 | K66: =IF(K$3="Ja",'R_5 Kennzahlen'!E66,0) -> 0 | L66: =IF(L$3="Ja",'R_6 Kennzahlen'!E66,0) -> 0 | M66: =IF(M$3="Ja",'R_7 Kennzahlen'!E66,0) -> 0 | N66: =IF(N$3="Ja",'R_8 Kennzahlen'!E66,0) -> 0 | O66: =IF(O$3="Ja",'R_9 Kennzahlen'!E66,0) -> 0 | P66: =IF(P$3="Ja",'R_10 Kennzahlen'!E66,0) -> 0
B67: W-I-4 | C67: Investitionskosten Be- und Entladetechnik | D67: [€] | E67: 10000 | F67: 10000 | G67: =IF(G$3="Ja",'R_1 Kennzahlen'!E67,0) -> 10000 | H67: =IF(H$3="Ja",'R_2 Kennzahlen'!E67,0) -> 0 | I67: =IF(I$3="Ja",'R_3 Kennzahlen'!E67,0) -> 0 | J67: =IF(J$3="Ja",'R_4 Kennzahlen'!E67,0) -> 0 | K67: =IF(K$3="Ja",'R_5 Kennzahlen'!E67,0) -> 0 | L67: =IF(L$3="Ja",'R_6 Kennzahlen'!E67,0) -> 0 | M67: =IF(M$3="Ja",'R_7 Kennzahlen'!E67,0) -> 0 | N67: =IF(N$3="Ja",'R_8 Kennzahlen'!E67,0) -> 0 | O67: =IF(O$3="Ja",'R_9 Kennzahlen'!E67,0) -> 0 | P67: =IF(P$3="Ja",'R_10 Kennzahlen'!E67,0) -> 0
B68: W-I-5 | C68: Investitionskosten Bereitstelltechnik | D68: [€] | E68: 1000 | F68: 1000 | G68: =IF(G$3="Ja",'R_1 Kennzahlen'!E68,0) -> 1000 | H68: =IF(H$3="Ja",'R_2 Kennzahlen'!E68,0) -> 0 | I68: =IF(I$3="Ja",'R_3 Kennzahlen'!E68,0) -> 0 | J68: =IF(J$3="Ja",'R_4 Kennzahlen'!E68,0) -> 0 | K68: =IF(K$3="Ja",'R_5 Kennzahlen'!E68,0) -> 0 | L68: =IF(L$3="Ja",'R_6 Kennzahlen'!E68,0) -> 0 | M68: =IF(M$3="Ja",'R_7 Kennzahlen'!E68,0) -> 0 | N68: =IF(N$3="Ja",'R_8 Kennzahlen'!E68,0) -> 0 | O68: =IF(O$3="Ja",'R_9 Kennzahlen'!E68,0) -> 0 | P68: =IF(P$3="Ja",'R_10 Kennzahlen'!E68,0) -> 0
B69: W-I-6 | C69: Investitionskosten Informationstechnik | D69: [€] | E69: 2000 | F69: 2000 | G69: =IF(G$3="Ja",'R_1 Kennzahlen'!E69,0) -> 2000 | H69: =IF(H$3="Ja",'R_2 Kennzahlen'!E69,0) -> 0 | I69: =IF(I$3="Ja",'R_3 Kennzahlen'!E69,0) -> 0 | J69: =IF(J$3="Ja",'R_4 Kennzahlen'!E69,0) -> 0 | K69: =IF(K$3="Ja",'R_5 Kennzahlen'!E69,0) -> 0 | L69: =IF(L$3="Ja",'R_6 Kennzahlen'!E69,0) -> 0 | M69: =IF(M$3="Ja",'R_7 Kennzahlen'!E69,0) -> 0 | N69: =IF(N$3="Ja",'R_8 Kennzahlen'!E69,0) -> 0 | O69: =IF(O$3="Ja",'R_9 Kennzahlen'!E69,0) -> 0 | P69: =IF(P$3="Ja",'R_10 Kennzahlen'!E69,0) -> 0
B70: W-I-7 | C70: Sonstige Investitionskosten | D70: [€] | E70: 2000 | F70: 2000 | G70: =IF(G$3="Ja",'R_1 Kennzahlen'!E70,0) -> 2000 | H70: =IF(H$3="Ja",'R_2 Kennzahlen'!E70,0) -> 0 | I70: =IF(I$3="Ja",'R_3 Kennzahlen'!E70,0) -> 0 | J70: =IF(J$3="Ja",'R_4 Kennzahlen'!E70,0) -> 0 | K70: =IF(K$3="Ja",'R_5 Kennzahlen'!E70,0) -> 0 | L70: =IF(L$3="Ja",'R_6 Kennzahlen'!E70,0) -> 0 | M70: =IF(M$3="Ja",'R_7 Kennzahlen'!E70,0) -> 0 | N70: =IF(N$3="Ja",'R_8 Kennzahlen'!E70,0) -> 0 | O70: =IF(O$3="Ja",'R_9 Kennzahlen'!E70,0) -> 0 | P70: =IF(P$3="Ja",'R_10 Kennzahlen'!E70,0) -> 0
B71: W-I-8 | C71: Anteil Investitionskosten Ladungsträger | D71: [%] | E71: 1.538461538 | F71: 1.538461538 | G71: =IF(G$3="Ja",'R_1 Kennzahlen'!E71,0) -> 1.538461538 | H71: =IF(H$3="Ja",'R_2 Kennzahlen'!E71,0) -> 0 | I71: =IF(I$3="Ja",'R_3 Kennzahlen'!E71,0) -> 0 | J71: =IF(J$3="Ja",'R_4 Kennzahlen'!E71,0) -> 0 | K71: =IF(K$3="Ja",'R_5 Kennzahlen'!E71,0) -> 0 | L71: =IF(L$3="Ja",'R_6 Kennzahlen'!E71,0) -> 0 | M71: =IF(M$3="Ja",'R_7 Kennzahlen'!E71,0) -> 0 | N71: =IF(N$3="Ja",'R_8 Kennzahlen'!E71,0) -> 0 | O71: =IF(O$3="Ja",'R_9 Kennzahlen'!E71,0) -> 0 | P71: =IF(P$3="Ja",'R_10 Kennzahlen'!E71,0) -> 0
B72: W-I-9 | C72: Anteil Investitionskosten Transportmittel | D72: [%] | E72: 52.30769231 | F72: 52.30769231 | G72: =IF(G$3="Ja",'R_1 Kennzahlen'!E72,0) -> 52.30769231 | H72: =IF(H$3="Ja",'R_2 Kennzahlen'!E72,0) -> 0 | I72: =IF(I$3="Ja",'R_3 Kennzahlen'!E72,0) -> 0 | J72: =IF(J$3="Ja",'R_4 Kennzahlen'!E72,0) -> 0 | K72: =IF(K$3="Ja",'R_5 Kennzahlen'!E72,0) -> 0 | L72: =IF(L$3="Ja",'R_6 Kennzahlen'!E72,0) -> 0 | M72: =IF(M$3="Ja",'R_7 Kennzahlen'!E72,0) -> 0 | N72: =IF(N$3="Ja",'R_8 Kennzahlen'!E72,0) -> 0 | O72: =IF(O$3="Ja",'R_9 Kennzahlen'!E72,0) -> 0 | P72: =IF(P$3="Ja",'R_10 Kennzahlen'!E72,0) -> 0
B73: W-I-10 | C73: Anteil Investitionskosten Be- und Entladetechnik | D73: [%] | E73: 30.76923077 | F73: 30.76923077 | G73: =IF(G$3="Ja",'R_1 Kennzahlen'!E73,0) -> 30.76923077 | H73: =IF(H$3="Ja",'R_2 Kennzahlen'!E73,0) -> 0 | I73: =IF(I$3="Ja",'R_3 Kennzahlen'!E73,0) -> 0 | J73: =IF(J$3="Ja",'R_4 Kennzahlen'!E73,0) -> 0 | K73: =IF(K$3="Ja",'R_5 Kennzahlen'!E73,0) -> 0 | L73: =IF(L$3="Ja",'R_6 Kennzahlen'!E73,0) -> 0 | M73: =IF(M$3="Ja",'R_7 Kennzahlen'!E73,0) -> 0 | N73: =IF(N$3="Ja",'R_8 Kennzahlen'!E73,0) -> 0 | O73: =IF(O$3="Ja",'R_9 Kennzahlen'!E73,0) -> 0 | P73: =IF(P$3="Ja",'R_10 Kennzahlen'!E73,0) -> 0
B74: W-I-11 | C74: Anteil Investitionskosten Bereitstelltechnik | D74: [%] | E74: 3.076923077 | F74: 3.076923077 | G74: =IF(G$3="Ja",'R_1 Kennzahlen'!E74,0) -> 3.076923077 | H74: =IF(H$3="Ja",'R_2 Kennzahlen'!E74,0) -> 0 | I74: =IF(I$3="Ja",'R_3 Kennzahlen'!E74,0) -> 0 | J74: =IF(J$3="Ja",'R_4 Kennzahlen'!E74,0) -> 0 | K74: =IF(K$3="Ja",'R_5 Kennzahlen'!E74,0) -> 0 | L74: =IF(L$3="Ja",'R_6 Kennzahlen'!E74,0) -> 0 | M74: =IF(M$3="Ja",'R_7 Kennzahlen'!E74,0) -> 0 | N74: =IF(N$3="Ja",'R_8 Kennzahlen'!E74,0) -> 0 | O74: =IF(O$3="Ja",'R_9 Kennzahlen'!E74,0) -> 0 | P74: =IF(P$3="Ja",'R_10 Kennzahlen'!E74,0) -> 0
B75: W-I-12 | C75: Anteil Investitionskosten Informationstechnik | D75: [%] | E75: 6.153846154 | F75: 6.153846154 | G75: =IF(G$3="Ja",'R_1 Kennzahlen'!E75,0) -> 6.153846154 | H75: =IF(H$3="Ja",'R_2 Kennzahlen'!E75,0) -> 0 | I75: =IF(I$3="Ja",'R_3 Kennzahlen'!E75,0) -> 0 | J75: =IF(J$3="Ja",'R_4 Kennzahlen'!E75,0) -> 0 | K75: =IF(K$3="Ja",'R_5 Kennzahlen'!E75,0) -> 0 | L75: =IF(L$3="Ja",'R_6 Kennzahlen'!E75,0) -> 0 | M75: =IF(M$3="Ja",'R_7 Kennzahlen'!E75,0) -> 0 | N75: =IF(N$3="Ja",'R_8 Kennzahlen'!E75,0) -> 0 | O75: =IF(O$3="Ja",'R_9 Kennzahlen'!E75,0) -> 0 | P75: =IF(P$3="Ja",'R_10 Kennzahlen'!E75,0) -> 0
B76: W-I-13 | C76: Anteil sonstige Investitionskosten | D76: [%] | E76: 6.153846154 | F76: 6.153846154 | G76: =IF(G$3="Ja",'R_1 Kennzahlen'!E76,0) -> 6.153846154 | H76: =IF(H$3="Ja",'R_2 Kennzahlen'!E76,0) -> 0 | I76: =IF(I$3="Ja",'R_3 Kennzahlen'!E76,0) -> 0 | J76: =IF(J$3="Ja",'R_4 Kennzahlen'!E76,0) -> 0 | K76: =IF(K$3="Ja",'R_5 Kennzahlen'!E76,0) -> 0 | L76: =IF(L$3="Ja",'R_6 Kennzahlen'!E76,0) -> 0 | M76: =IF(M$3="Ja",'R_7 Kennzahlen'!E76,0) -> 0 | N76: =IF(N$3="Ja",'R_8 Kennzahlen'!E76,0) -> 0 | O76: =IF(O$3="Ja",'R_9 Kennzahlen'!E76,0) -> 0 | P76: =IF(P$3="Ja",'R_10 Kennzahlen'!E76,0) -> 0
B77: W-B-1 | C77: Betriebskosten | D77: [€/Jahr] | E77: 113078.2422 | F77: 113078.2422 | G77: =IF(G$3="Ja",'R_1 Kennzahlen'!E77,0) -> 113078.2422 | H77: =IF(H$3="Ja",'R_2 Kennzahlen'!E77,0) -> 0 | I77: =IF(I$3="Ja",'R_3 Kennzahlen'!E77,0) -> 0 | J77: =IF(J$3="Ja",'R_4 Kennzahlen'!E77,0) -> 0 | K77: =IF(K$3="Ja",'R_5 Kennzahlen'!E77,0) -> 0 | L77: =IF(L$3="Ja",'R_6 Kennzahlen'!E77,0) -> 0 | M77: =IF(M$3="Ja",'R_7 Kennzahlen'!E77,0) -> 0 | N77: =IF(N$3="Ja",'R_8 Kennzahlen'!E77,0) -> 0 | O77: =IF(O$3="Ja",'R_9 Kennzahlen'!E77,0) -> 0 | P77: =IF(P$3="Ja",'R_10 Kennzahlen'!E77,0) -> 0
B78: W-B-2 | C78: Kapitalkosten | D78: [€/Jahr] | E78: 975 | F78: 975 | G78: =IF(G$3="Ja",'R_1 Kennzahlen'!E78,0) -> 975 | H78: =IF(H$3="Ja",'R_2 Kennzahlen'!E78,0) -> 0 | I78: =IF(I$3="Ja",'R_3 Kennzahlen'!E78,0) -> 0 | J78: =IF(J$3="Ja",'R_4 Kennzahlen'!E78,0) -> 0 | K78: =IF(K$3="Ja",'R_5 Kennzahlen'!E78,0) -> 0 | L78: =IF(L$3="Ja",'R_6 Kennzahlen'!E78,0) -> 0 | M78: =IF(M$3="Ja",'R_7 Kennzahlen'!E78,0) -> 0 | N78: =IF(N$3="Ja",'R_8 Kennzahlen'!E78,0) -> 0 | O78: =IF(O$3="Ja",'R_9 Kennzahlen'!E78,0) -> 0 | P78: =IF(P$3="Ja",'R_10 Kennzahlen'!E78,0) -> 0
B79: W-B-3 | C79: Abschreibungen | D79: [€/Jahr] | E79: 4725 | F79: 4725 | G79: =IF(G$3="Ja",'R_1 Kennzahlen'!E79,0) -> 4725 | H79: =IF(H$3="Ja",'R_2 Kennzahlen'!E79,0) -> 0 | I79: =IF(I$3="Ja",'R_3 Kennzahlen'!E79,0) -> 0 | J79: =IF(J$3="Ja",'R_4 Kennzahlen'!E79,0) -> 0 | K79: =IF(K$3="Ja",'R_5 Kennzahlen'!E79,0) -> 0 | L79: =IF(L$3="Ja",'R_6 Kennzahlen'!E79,0) -> 0 | M79: =IF(M$3="Ja",'R_7 Kennzahlen'!E79,0) -> 0 | N79: =IF(N$3="Ja",'R_8 Kennzahlen'!E79,0) -> 0 | O79: =IF(O$3="Ja",'R_9 Kennzahlen'!E79,0) -> 0 | P79: =IF(P$3="Ja",'R_10 Kennzahlen'!E79,0) -> 0
B80: W-B-4 | C80: Wartungs- und Reparaturkosten | D80: [€/Jahr] | E80: 3375 | F80: 3375 | G80: =IF(G$3="Ja",'R_1 Kennzahlen'!E80,0) -> 3375 | H80: =IF(H$3="Ja",'R_2 Kennzahlen'!E80,0) -> 0 | I80: =IF(I$3="Ja",'R_3 Kennzahlen'!E80,0) -> 0 | J80: =IF(J$3="Ja",'R_4 Kennzahlen'!E80,0) -> 0 | K80: =IF(K$3="Ja",'R_5 Kennzahlen'!E80,0) -> 0 | L80: =IF(L$3="Ja",'R_6 Kennzahlen'!E80,0) -> 0 | M80: =IF(M$3="Ja",'R_7 Kennzahlen'!E80,0) -> 0 | N80: =IF(N$3="Ja",'R_8 Kennzahlen'!E80,0) -> 0 | O80: =IF(O$3="Ja",'R_9 Kennzahlen'!E80,0) -> 0 | P80: =IF(P$3="Ja",'R_10 Kennzahlen'!E80,0) -> 0
B81: W-B-5 | C81: Lizenzkosten | D81: [€/Jahr] | E81: 1000 | F81: 1000 | G81: =IF(G$3="Ja",'R_1 Kennzahlen'!E81,0) -> 1000 | H81: =IF(H$3="Ja",'R_2 Kennzahlen'!E81,0) -> 0 | I81: =IF(I$3="Ja",'R_3 Kennzahlen'!E81,0) -> 0 | J81: =IF(J$3="Ja",'R_4 Kennzahlen'!E81,0) -> 0 | K81: =IF(K$3="Ja",'R_5 Kennzahlen'!E81,0) -> 0 | L81: =IF(L$3="Ja",'R_6 Kennzahlen'!E81,0) -> 0 | M81: =IF(M$3="Ja",'R_7 Kennzahlen'!E81,0) -> 0 | N81: =IF(N$3="Ja",'R_8 Kennzahlen'!E81,0) -> 0 | O81: =IF(O$3="Ja",'R_9 Kennzahlen'!E81,0) -> 0 | P81: =IF(P$3="Ja",'R_10 Kennzahlen'!E81,0) -> 0
B82: W-B-6 | C82: Bestandskosten | D82: [€/Jahr] | E82: 3000 | F82: 3000 | G82: =IF(G$3="Ja",'R_1 Kennzahlen'!E82,0) -> 3000 | H82: =IF(H$3="Ja",'R_2 Kennzahlen'!E82,0) -> 0 | I82: =IF(I$3="Ja",'R_3 Kennzahlen'!E82,0) -> 0 | J82: =IF(J$3="Ja",'R_4 Kennzahlen'!E82,0) -> 0 | K82: =IF(K$3="Ja",'R_5 Kennzahlen'!E82,0) -> 0 | L82: =IF(L$3="Ja",'R_6 Kennzahlen'!E82,0) -> 0 | M82: =IF(M$3="Ja",'R_7 Kennzahlen'!E82,0) -> 0 | N82: =IF(N$3="Ja",'R_8 Kennzahlen'!E82,0) -> 0 | O82: =IF(O$3="Ja",'R_9 Kennzahlen'!E82,0) -> 0 | P82: =IF(P$3="Ja",'R_10 Kennzahlen'!E82,0) -> 0
B83: W-B-7 | C83: Flächenkosten | D83: [€/Jahr] | E83: 2000 | F83: 2000 | G83: =IF(G$3="Ja",'R_1 Kennzahlen'!E83,0) -> 2000 | H83: =IF(H$3="Ja",'R_2 Kennzahlen'!E83,0) -> 0 | I83: =IF(I$3="Ja",'R_3 Kennzahlen'!E83,0) -> 0 | J83: =IF(J$3="Ja",'R_4 Kennzahlen'!E83,0) -> 0 | K83: =IF(K$3="Ja",'R_5 Kennzahlen'!E83,0) -> 0 | L83: =IF(L$3="Ja",'R_6 Kennzahlen'!E83,0) -> 0 | M83: =IF(M$3="Ja",'R_7 Kennzahlen'!E83,0) -> 0 | N83: =IF(N$3="Ja",'R_8 Kennzahlen'!E83,0) -> 0 | O83: =IF(O$3="Ja",'R_9 Kennzahlen'!E83,0) -> 0 | P83: =IF(P$3="Ja",'R_10 Kennzahlen'!E83,0) -> 0
B84: W-B-8 | C84: Energiekosten | D84: [€/Jahr] | E84: 2593.52 | F84: 2593.52 | G84: =IF(G$3="Ja",'R_1 Kennzahlen'!E84,0) -> 2593.52 | H84: =IF(H$3="Ja",'R_2 Kennzahlen'!E84,0) -> 0 | I84: =IF(I$3="Ja",'R_3 Kennzahlen'!E84,0) -> 0 | J84: =IF(J$3="Ja",'R_4 Kennzahlen'!E84,0) -> 0 | K84: =IF(K$3="Ja",'R_5 Kennzahlen'!E84,0) -> 0 | L84: =IF(L$3="Ja",'R_6 Kennzahlen'!E84,0) -> 0 | M84: =IF(M$3="Ja",'R_7 Kennzahlen'!E84,0) -> 0 | N84: =IF(N$3="Ja",'R_8 Kennzahlen'!E84,0) -> 0 | O84: =IF(O$3="Ja",'R_9 Kennzahlen'!E84,0) -> 0 | P84: =IF(P$3="Ja",'R_10 Kennzahlen'!E84,0) -> 0
B85: W-B-9 | C85: Personalkosten | D85: [€/Jahr] | E85: 95409.72222 | F85: 95409.72222 | G85: =IF(G$3="Ja",'R_1 Kennzahlen'!E85,0) -> 95409.72222 | H85: =IF(H$3="Ja",'R_2 Kennzahlen'!E85,0) -> 0 | I85: =IF(I$3="Ja",'R_3 Kennzahlen'!E85,0) -> 0 | J85: =IF(J$3="Ja",'R_4 Kennzahlen'!E85,0) -> 0 | K85: =IF(K$3="Ja",'R_5 Kennzahlen'!E85,0) -> 0 | L85: =IF(L$3="Ja",'R_6 Kennzahlen'!E85,0) -> 0 | M85: =IF(M$3="Ja",'R_7 Kennzahlen'!E85,0) -> 0 | N85: =IF(N$3="Ja",'R_8 Kennzahlen'!E85,0) -> 0 | O85: =IF(O$3="Ja",'R_9 Kennzahlen'!E85,0) -> 0 | P85: =IF(P$3="Ja",'R_10 Kennzahlen'!E85,0) -> 0
B86: W-B-10 | C86: Anteil Kapitalkosten | D86: [%] | E86: 0.8622348392 | F86: 0.8622348392 | G86: =IF(G$3="Ja",'R_1 Kennzahlen'!E86,0) -> 0.8622348392 | H86: =IF(H$3="Ja",'R_2 Kennzahlen'!E86,0) -> 0 | I86: =IF(I$3="Ja",'R_3 Kennzahlen'!E86,0) -> 0 | J86: =IF(J$3="Ja",'R_4 Kennzahlen'!E86,0) -> 0 | K86: =IF(K$3="Ja",'R_5 Kennzahlen'!E86,0) -> 0 | L86: =IF(L$3="Ja",'R_6 Kennzahlen'!E86,0) -> 0 | M86: =IF(M$3="Ja",'R_7 Kennzahlen'!E86,0) -> 0 | N86: =IF(N$3="Ja",'R_8 Kennzahlen'!E86,0) -> 0 | O86: =IF(O$3="Ja",'R_9 Kennzahlen'!E86,0) -> 0 | P86: =IF(P$3="Ja",'R_10 Kennzahlen'!E86,0) -> 0
B87: W-B-11 | C87: Anteil Abschreibungen | D87: [%] | E87: 4.178522682 | F87: 4.178522682 | G87: =IF(G$3="Ja",'R_1 Kennzahlen'!E87,0) -> 4.178522682 | H87: =IF(H$3="Ja",'R_2 Kennzahlen'!E87,0) -> 0 | I87: =IF(I$3="Ja",'R_3 Kennzahlen'!E87,0) -> 0 | J87: =IF(J$3="Ja",'R_4 Kennzahlen'!E87,0) -> 0 | K87: =IF(K$3="Ja",'R_5 Kennzahlen'!E87,0) -> 0 | L87: =IF(L$3="Ja",'R_6 Kennzahlen'!E87,0) -> 0 | M87: =IF(M$3="Ja",'R_7 Kennzahlen'!E87,0) -> 0 | N87: =IF(N$3="Ja",'R_8 Kennzahlen'!E87,0) -> 0 | O87: =IF(O$3="Ja",'R_9 Kennzahlen'!E87,0) -> 0 | P87: =IF(P$3="Ja",'R_10 Kennzahlen'!E87,0) -> 0
B88: W-B-12 | C88: Anteil Wartungs- und Reparaturkosten | D88: [%] | E88: 2.984659059 | F88: 2.984659059 | G88: =IF(G$3="Ja",'R_1 Kennzahlen'!E88,0) -> 2.984659059 | H88: =IF(H$3="Ja",'R_2 Kennzahlen'!E88,0) -> 0 | I88: =IF(I$3="Ja",'R_3 Kennzahlen'!E88,0) -> 0 | J88: =IF(J$3="Ja",'R_4 Kennzahlen'!E88,0) -> 0 | K88: =IF(K$3="Ja",'R_5 Kennzahlen'!E88,0) -> 0 | L88: =IF(L$3="Ja",'R_6 Kennzahlen'!E88,0) -> 0 | M88: =IF(M$3="Ja",'R_7 Kennzahlen'!E88,0) -> 0 | N88: =IF(N$3="Ja",'R_8 Kennzahlen'!E88,0) -> 0 | O88: =IF(O$3="Ja",'R_9 Kennzahlen'!E88,0) -> 0 | P88: =IF(P$3="Ja",'R_10 Kennzahlen'!E88,0) -> 0
B89: W-B-13 | C89: Anteil Lizenzkosten | D89: [%] | E89: 0.8843434248 | F89: 0.8843434248 | G89: =IF(G$3="Ja",'R_1 Kennzahlen'!E89,0) -> 0.8843434248 | H89: =IF(H$3="Ja",'R_2 Kennzahlen'!E89,0) -> 0 | I89: =IF(I$3="Ja",'R_3 Kennzahlen'!E89,0) -> 0 | J89: =IF(J$3="Ja",'R_4 Kennzahlen'!E89,0) -> 0 | K89: =IF(K$3="Ja",'R_5 Kennzahlen'!E89,0) -> 0 | L89: =IF(L$3="Ja",'R_6 Kennzahlen'!E89,0) -> 0 | M89: =IF(M$3="Ja",'R_7 Kennzahlen'!E89,0) -> 0 | N89: =IF(N$3="Ja",'R_8 Kennzahlen'!E89,0) -> 0 | O89: =IF(O$3="Ja",'R_9 Kennzahlen'!E89,0) -> 0 | P89: =IF(P$3="Ja",'R_10 Kennzahlen'!E89,0) -> 0
B90: W-B-14 | C90: Anteil Bestandskosten | D90: [%] | E90: 2.653030274 | F90: 2.653030274 | G90: =IF(G$3="Ja",'R_1 Kennzahlen'!E90,0) -> 2.653030274 | H90: =IF(H$3="Ja",'R_2 Kennzahlen'!E90,0) -> 0 | I90: =IF(I$3="Ja",'R_3 Kennzahlen'!E90,0) -> 0 | J90: =IF(J$3="Ja",'R_4 Kennzahlen'!E90,0) -> 0 | K90: =IF(K$3="Ja",'R_5 Kennzahlen'!E90,0) -> 0 | L90: =IF(L$3="Ja",'R_6 Kennzahlen'!E90,0) -> 0 | M90: =IF(M$3="Ja",'R_7 Kennzahlen'!E90,0) -> 0 | N90: =IF(N$3="Ja",'R_8 Kennzahlen'!E90,0) -> 0 | O90: =IF(O$3="Ja",'R_9 Kennzahlen'!E90,0) -> 0 | P90: =IF(P$3="Ja",'R_10 Kennzahlen'!E90,0) -> 0
B91: W-B-15 | C91: Anteil Flächenkosten | D91: [%] | E91: 1.76868685 | F91: 1.76868685 | G91: =IF(G$3="Ja",'R_1 Kennzahlen'!E91,0) -> 1.76868685 | H91: =IF(H$3="Ja",'R_2 Kennzahlen'!E91,0) -> 0 | I91: =IF(I$3="Ja",'R_3 Kennzahlen'!E91,0) -> 0 | J91: =IF(J$3="Ja",'R_4 Kennzahlen'!E91,0) -> 0 | K91: =IF(K$3="Ja",'R_5 Kennzahlen'!E91,0) -> 0 | L91: =IF(L$3="Ja",'R_6 Kennzahlen'!E91,0) -> 0 | M91: =IF(M$3="Ja",'R_7 Kennzahlen'!E91,0) -> 0 | N91: =IF(N$3="Ja",'R_8 Kennzahlen'!E91,0) -> 0 | O91: =IF(O$3="Ja",'R_9 Kennzahlen'!E91,0) -> 0 | P91: =IF(P$3="Ja",'R_10 Kennzahlen'!E91,0) -> 0
B92: W-B-16 | C92: Anteil Energiekosten | D92: [%] | E92: 2.293562359 | F92: 2.293562359 | G92: =IF(G$3="Ja",'R_1 Kennzahlen'!E92,0) -> 2.293562359 | H92: =IF(H$3="Ja",'R_2 Kennzahlen'!E92,0) -> 0 | I92: =IF(I$3="Ja",'R_3 Kennzahlen'!E92,0) -> 0 | J92: =IF(J$3="Ja",'R_4 Kennzahlen'!E92,0) -> 0 | K92: =IF(K$3="Ja",'R_5 Kennzahlen'!E92,0) -> 0 | L92: =IF(L$3="Ja",'R_6 Kennzahlen'!E92,0) -> 0 | M92: =IF(M$3="Ja",'R_7 Kennzahlen'!E92,0) -> 0 | N92: =IF(N$3="Ja",'R_8 Kennzahlen'!E92,0) -> 0 | O92: =IF(O$3="Ja",'R_9 Kennzahlen'!E92,0) -> 0 | P92: =IF(P$3="Ja",'R_10 Kennzahlen'!E92,0) -> 0
B93: W-B-17 | C93: Anteil Personalkosten | D93: [%] | E93: 84.37496051 | F93: 84.37496051 | G93: =IF(G$3="Ja",'R_1 Kennzahlen'!E93,0) -> 84.37496051 | H93: =IF(H$3="Ja",'R_2 Kennzahlen'!E93,0) -> 0 | I93: =IF(I$3="Ja",'R_3 Kennzahlen'!E93,0) -> 0 | J93: =IF(J$3="Ja",'R_4 Kennzahlen'!E93,0) -> 0 | K93: =IF(K$3="Ja",'R_5 Kennzahlen'!E93,0) -> 0 | L93: =IF(L$3="Ja",'R_6 Kennzahlen'!E93,0) -> 0 | M93: =IF(M$3="Ja",'R_7 Kennzahlen'!E93,0) -> 0 | N93: =IF(N$3="Ja",'R_8 Kennzahlen'!E93,0) -> 0 | O93: =IF(O$3="Ja",'R_9 Kennzahlen'!E93,0) -> 0 | P93: =IF(P$3="Ja",'R_10 Kennzahlen'!E93,0) -> 0
B94: W-B-18 | C94: Fixe Kosten | D94: [€/Jahr] | E94: 15075 | F94: 15075 | G94: =IF(G$3="Ja",'R_1 Kennzahlen'!E94,0) -> 15075 | H94: =IF(H$3="Ja",'R_2 Kennzahlen'!E94,0) -> 0 | I94: =IF(I$3="Ja",'R_3 Kennzahlen'!E94,0) -> 0 | J94: =IF(J$3="Ja",'R_4 Kennzahlen'!E94,0) -> 0 | K94: =IF(K$3="Ja",'R_5 Kennzahlen'!E94,0) -> 0 | L94: =IF(L$3="Ja",'R_6 Kennzahlen'!E94,0) -> 0 | M94: =IF(M$3="Ja",'R_7 Kennzahlen'!E94,0) -> 0 | N94: =IF(N$3="Ja",'R_8 Kennzahlen'!E94,0) -> 0 | O94: =IF(O$3="Ja",'R_9 Kennzahlen'!E94,0) -> 0 | P94: =IF(P$3="Ja",'R_10 Kennzahlen'!E94,0) -> 0
B95: W-B-19 | C95: Variable Kosten | D95: [€/Jahr] | E95: 98003.24222 | F95: 98003.24222 | G95: =IF(G$3="Ja",'R_1 Kennzahlen'!E95,0) -> 98003.24222 | H95: =IF(H$3="Ja",'R_2 Kennzahlen'!E95,0) -> 0 | I95: =IF(I$3="Ja",'R_3 Kennzahlen'!E95,0) -> 0 | J95: =IF(J$3="Ja",'R_4 Kennzahlen'!E95,0) -> 0 | K95: =IF(K$3="Ja",'R_5 Kennzahlen'!E95,0) -> 0 | L95: =IF(L$3="Ja",'R_6 Kennzahlen'!E95,0) -> 0 | M95: =IF(M$3="Ja",'R_7 Kennzahlen'!E95,0) -> 0 | N95: =IF(N$3="Ja",'R_8 Kennzahlen'!E95,0) -> 0 | O95: =IF(O$3="Ja",'R_9 Kennzahlen'!E95,0) -> 0 | P95: =IF(P$3="Ja",'R_10 Kennzahlen'!E95,0) -> 0
B96: W-B-20 | C96: Anteil fixe Kosten | D96: [%] | E96: 13.33147713 | F96: 13.33147713 | G96: =IF(G$3="Ja",'R_1 Kennzahlen'!E96,0) -> 13.33147713 | H96: =IF(H$3="Ja",'R_2 Kennzahlen'!E96,0) -> 0 | I96: =IF(I$3="Ja",'R_3 Kennzahlen'!E96,0) -> 0 | J96: =IF(J$3="Ja",'R_4 Kennzahlen'!E96,0) -> 0 | K96: =IF(K$3="Ja",'R_5 Kennzahlen'!E96,0) -> 0 | L96: =IF(L$3="Ja",'R_6 Kennzahlen'!E96,0) -> 0 | M96: =IF(M$3="Ja",'R_7 Kennzahlen'!E96,0) -> 0 | N96: =IF(N$3="Ja",'R_8 Kennzahlen'!E96,0) -> 0 | O96: =IF(O$3="Ja",'R_9 Kennzahlen'!E96,0) -> 0 | P96: =IF(P$3="Ja",'R_10 Kennzahlen'!E96,0) -> 0
B97: W-B-21 | C97: Anteil variable Kosten | D97: [%] | E97: 86.66852287 | F97: 86.66852287 | G97: =IF(G$3="Ja",'R_1 Kennzahlen'!E97,0) -> 86.66852287 | H97: =IF(H$3="Ja",'R_2 Kennzahlen'!E97,0) -> 0 | I97: =IF(I$3="Ja",'R_3 Kennzahlen'!E97,0) -> 0 | J97: =IF(J$3="Ja",'R_4 Kennzahlen'!E97,0) -> 0 | K97: =IF(K$3="Ja",'R_5 Kennzahlen'!E97,0) -> 0 | L97: =IF(L$3="Ja",'R_6 Kennzahlen'!E97,0) -> 0 | M97: =IF(M$3="Ja",'R_7 Kennzahlen'!E97,0) -> 0 | N97: =IF(N$3="Ja",'R_8 Kennzahlen'!E97,0) -> 0 | O97: =IF(O$3="Ja",'R_9 Kennzahlen'!E97,0) -> 0 | P97: =IF(P$3="Ja",'R_10 Kennzahlen'!E97,0) -> 0 | R97: QUALITÄT
B98: W-B-22 | C98: Kosten pro Transporteinheit | D98: =IF('R_1 Eingabe'!E11="kein Ladungsträger","[€/LE]","[€/LT]") -> [€/LT] | E98: 3.099732517 | F98: 3.099732517 | G98: =IF(G$3="Ja",'R_1 Kennzahlen'!E98,0) -> 3.099732517 | H98: =IF(H$3="Ja",'R_2 Kennzahlen'!E98,0) -> 0 | I98: =IF(I$3="Ja",'R_3 Kennzahlen'!E98,0) -> 0 | J98: =IF(J$3="Ja",'R_4 Kennzahlen'!E98,0) -> 0 | K98: =IF(K$3="Ja",'R_5 Kennzahlen'!E98,0) -> 0 | L98: =IF(L$3="Ja",'R_6 Kennzahlen'!E98,0) -> 0 | M98: =IF(M$3="Ja",'R_7 Kennzahlen'!E98,0) -> 0 | N98: =IF(N$3="Ja",'R_8 Kennzahlen'!E98,0) -> 0 | O98: =IF(O$3="Ja",'R_9 Kennzahlen'!E98,0) -> 0 | P98: =IF(P$3="Ja",'R_10 Kennzahlen'!E98,0) -> 0
C99: Qualitätskennzahlen
B101: Q-L-1 | C101: Liefertermintreue | D101: [%] | E101: =F101/$F$7 -> 96.82017544 | F101: =SUM(G101:P101) -> 96.82017544 | G101: =IF(G$3="Ja",'R_1 Kennzahlen'!E101,0) -> 96.82017544 | H101: =IF(H$3="Ja",'R_2 Kennzahlen'!E101,0) -> 0 | I101: =IF(I$3="Ja",'R_3 Kennzahlen'!E101,0) -> 0 | J101: =IF(J$3="Ja",'R_4 Kennzahlen'!E101,0) -> 0 | K101: =IF(K$3="Ja",'R_5 Kennzahlen'!E101,0) -> 0 | L101: =IF(L$3="Ja",'R_6 Kennzahlen'!E101,0) -> 0 | M101: =IF(M$3="Ja",'R_7 Kennzahlen'!E101,0) -> 0 | N101: =IF(N$3="Ja",'R_8 Kennzahlen'!E101,0) -> 0 | O101: =IF(O$3="Ja",'R_9 Kennzahlen'!E101,0) -> 0 | P101: =IF(P$3="Ja",'R_10 Kennzahlen'!E101,0) -> 0
B102: Q-L-2 | C102: Lieferterminabweichung | D102: [min/Stk] | E102: =F102/$F$7 -> 0.1754385965 | F102: =SUM(G102:P102) -> 0.1754385965 | G102: =IF(G$3="Ja",'R_1 Kennzahlen'!E102,0) -> 0.1754385965 | H102: =IF(H$3="Ja",'R_2 Kennzahlen'!E102,0) -> 0 | I102: =IF(I$3="Ja",'R_3 Kennzahlen'!E102,0) -> 0 | J102: =IF(J$3="Ja",'R_4 Kennzahlen'!E102,0) -> 0 | K102: =IF(K$3="Ja",'R_5 Kennzahlen'!E102,0) -> 0 | L102: =IF(L$3="Ja",'R_6 Kennzahlen'!E102,0) -> 0 | M102: =IF(M$3="Ja",'R_7 Kennzahlen'!E102,0) -> 0 | N102: =IF(N$3="Ja",'R_8 Kennzahlen'!E102,0) -> 0 | O102: =IF(O$3="Ja",'R_9 Kennzahlen'!E102,0) -> 0 | P102: =IF(P$3="Ja",'R_10 Kennzahlen'!E102,0) -> 0
B103: Q-L-3 | C103: Liefermengentreue | D103: [%] | E103: 99.91776316 | F103: 99.91776316 | G103: =IF(G$3="Ja",'R_1 Kennzahlen'!E103,0) -> 99.91776316 | H103: =IF(H$3="Ja",'R_2 Kennzahlen'!E103,0) -> 0 | I103: =IF(I$3="Ja",'R_3 Kennzahlen'!E103,0) -> 0 | J103: =IF(J$3="Ja",'R_4 Kennzahlen'!E103,0) -> 0 | K103: =IF(K$3="Ja",'R_5 Kennzahlen'!E103,0) -> 0 | L103: =IF(L$3="Ja",'R_6 Kennzahlen'!E103,0) -> 0 | M103: =IF(M$3="Ja",'R_7 Kennzahlen'!E103,0) -> 0 | N103: =IF(N$3="Ja",'R_8 Kennzahlen'!E103,0) -> 0 | O103: =IF(O$3="Ja",'R_9 Kennzahlen'!E103,0) -> 0 | P103: =IF(P$3="Ja",'R_10 Kennzahlen'!E103,0) -> 0
B104: Q-L-4 | C104: Liefermengenabweichung | D104: [Stk] | E104: 0.0009594298246 | F104: 0.0009594298246 | G104: =IF(G$3="Ja",'R_1 Kennzahlen'!E104,0) -> 0.0009594298246 | H104: =IF(H$3="Ja",'R_2 Kennzahlen'!E104,0) -> 0 | I104: =IF(I$3="Ja",'R_3 Kennzahlen'!E104,0) -> 0 | J104: =IF(J$3="Ja",'R_4 Kennzahlen'!E104,0) -> 0 | K104: =IF(K$3="Ja",'R_5 Kennzahlen'!E104,0) -> 0 | L104: =IF(L$3="Ja",'R_6 Kennzahlen'!E104,0) -> 0 | M104: =IF(M$3="Ja",'R_7 Kennzahlen'!E104,0) -> 0 | N104: =IF(N$3="Ja",'R_8 Kennzahlen'!E104,0) -> 0 | O104: =IF(O$3="Ja",'R_9 Kennzahlen'!E104,0) -> 0 | P104: =IF(P$3="Ja",'R_10 Kennzahlen'!E104,0) -> 0
B105: Q-S-1 | C105: Unfallhäufigkeit (je 1 Mio. Arbeitsstunden) | D105: [Stk] | E105: 136.4728146 | F105: 136.4728146 | G105: =IF(G$3="Ja",'R_1 Kennzahlen'!E105,0) -> 136.4728146 | H105: =IF(H$3="Ja",'R_2 Kennzahlen'!E105,0) -> 0 | I105: =IF(I$3="Ja",'R_3 Kennzahlen'!E105,0) -> 0 | J105: =IF(J$3="Ja",'R_4 Kennzahlen'!E105,0) -> 0 | K105: =IF(K$3="Ja",'R_5 Kennzahlen'!E105,0) -> 0 | L105: =IF(L$3="Ja",'R_6 Kennzahlen'!E105,0) -> 0 | M105: =IF(M$3="Ja",'R_7 Kennzahlen'!E105,0) -> 0 | N105: =IF(N$3="Ja",'R_8 Kennzahlen'!E105,0) -> 0 | O105: =IF(O$3="Ja",'R_9 Kennzahlen'!E105,0) -> 0 | P105: =IF(P$3="Ja",'R_10 Kennzahlen'!E105,0) -> 0
B106: Q-S-2 | C106: Unfallschwere | D106: [Tage/Stk] | E106: 3 | F106: 3 | G106: =IF(G$3="Ja",'R_1 Kennzahlen'!E106,0) -> 3 | H106: =IF(H$3="Ja",'R_2 Kennzahlen'!E106,0) -> 0 | I106: =IF(I$3="Ja",'R_3 Kennzahlen'!E106,0) -> 0 | J106: =IF(J$3="Ja",'R_4 Kennzahlen'!E106,0) -> 0 | K106: =IF(K$3="Ja",'R_5 Kennzahlen'!E106,0) -> 0 | L106: =IF(L$3="Ja",'R_6 Kennzahlen'!E106,0) -> 0 | M106: =IF(M$3="Ja",'R_7 Kennzahlen'!E106,0) -> 0 | N106: =IF(N$3="Ja",'R_8 Kennzahlen'!E106,0) -> 0 | O106: =IF(O$3="Ja",'R_9 Kennzahlen'!E106,0) -> 0 | P106: =IF(P$3="Ja",'R_10 Kennzahlen'!E106,0) -> 0
B107: Q-E-1 | C107: Punktwert Multiple-Lasten-Tool | D107: [PW] | E107: 18.95384859 | F107: 18.95384859 | G107: =IF(G$3="Ja",'R_1 Kennzahlen'!E107,0) -> 18.95384859 | H107: =IF(H$3="Ja",'R_2 Kennzahlen'!E107,0) -> 0 | I107: =IF(I$3="Ja",'R_3 Kennzahlen'!E107,0) -> 0 | J107: =IF(J$3="Ja",'R_4 Kennzahlen'!E107,0) -> 0 | K107: =IF(K$3="Ja",'R_5 Kennzahlen'!E107,0) -> 0 | L107: =IF(L$3="Ja",'R_6 Kennzahlen'!E107,0) -> 0 | M107: =IF(M$3="Ja",'R_7 Kennzahlen'!E107,0) -> 0 | N107: =IF(N$3="Ja",'R_8 Kennzahlen'!E107,0) -> 0 | O107: =IF(O$3="Ja",'R_9 Kennzahlen'!E107,0) -> 0 | P107: =IF(P$3="Ja",'R_10 Kennzahlen'!E107,0) -> 0
B108: Q-F-1 | C108: Zeitliche Flexibilität Routenzug | D108: [%] | E108: 44.93055556 | F108: 44.93055556 | G108: =IF(G$3="Ja",'R_1 Kennzahlen'!E108,0) -> 44.93055556 | H108: =IF(H$3="Ja",'R_2 Kennzahlen'!E108,0) -> 0 | I108: =IF(I$3="Ja",'R_3 Kennzahlen'!E108,0) -> 0 | J108: =IF(J$3="Ja",'R_4 Kennzahlen'!E108,0) -> 0 | K108: =IF(K$3="Ja",'R_5 Kennzahlen'!E108,0) -> 0 | L108: =IF(L$3="Ja",'R_6 Kennzahlen'!E108,0) -> 0 | M108: =IF(M$3="Ja",'R_7 Kennzahlen'!E108,0) -> 0 | N108: =IF(N$3="Ja",'R_8 Kennzahlen'!E108,0) -> 0 | O108: =IF(O$3="Ja",'R_9 Kennzahlen'!E108,0) -> 0 | P108: =IF(P$3="Ja",'R_10 Kennzahlen'!E108,0) -> 0
B109: Q-F-2 | C109: Zeitliche Flexibilität Mitarbeiter | D109: [%] | E109: 44.93055556 | F109: 44.93055556 | G109: =IF(G$3="Ja",'R_1 Kennzahlen'!E109,0) -> 44.93055556 | H109: =IF(H$3="Ja",'R_2 Kennzahlen'!E109,0) -> 0 | I109: =IF(I$3="Ja",'R_3 Kennzahlen'!E109,0) -> 0 | J109: =IF(J$3="Ja",'R_4 Kennzahlen'!E109,0) -> 0 | K109: =IF(K$3="Ja",'R_5 Kennzahlen'!E109,0) -> 0 | L109: =IF(L$3="Ja",'R_6 Kennzahlen'!E109,0) -> 0 | M109: =IF(M$3="Ja",'R_7 Kennzahlen'!E109,0) -> 0 | N109: =IF(N$3="Ja",'R_8 Kennzahlen'!E109,0) -> 0 | O109: =IF(O$3="Ja",'R_9 Kennzahlen'!E109,0) -> 0 | P109: =IF(P$3="Ja",'R_10 Kennzahlen'!E109,0) -> 0
B110: Q-F-3 | C110: Kapazitive Flexibilität Routenzug | D110: [%] | E110: 5 | F110: 5 | G110: =IF(G$3="Ja",'R_1 Kennzahlen'!E110,0) -> 5 | H110: =IF(H$3="Ja",'R_2 Kennzahlen'!E110,0) -> 0 | I110: =IF(I$3="Ja",'R_3 Kennzahlen'!E110,0) -> 0 | J110: =IF(J$3="Ja",'R_4 Kennzahlen'!E110,0) -> 0 | K110: =IF(K$3="Ja",'R_5 Kennzahlen'!E110,0) -> 0 | L110: =IF(L$3="Ja",'R_6 Kennzahlen'!E110,0) -> 0 | M110: =IF(M$3="Ja",'R_7 Kennzahlen'!E110,0) -> 0 | N110: =IF(N$3="Ja",'R_8 Kennzahlen'!E110,0) -> 0 | O110: =IF(O$3="Ja",'R_9 Kennzahlen'!E110,0) -> 0 | P110: =IF(P$3="Ja",'R_10 Kennzahlen'!E110,0) -> 0
B111: Q-F-4 | C111: Gesamtflexibilität Routenzug | D111: [%] | E111: =F111/$F$7 -> 24.96527778 | F111: 24.96527778 | G111: =IF(G$3="Ja",'R_1 Kennzahlen'!E111,0) -> 24.96527778 | H111: =IF(H$3="Ja",'R_2 Kennzahlen'!E111,0) -> 0 | I111: =IF(I$3="Ja",'R_3 Kennzahlen'!E111,0) -> 0 | J111: =IF(J$3="Ja",'R_4 Kennzahlen'!E111,0) -> 0 | K111: =IF(K$3="Ja",'R_5 Kennzahlen'!E111,0) -> 0 | L111: =IF(L$3="Ja",'R_6 Kennzahlen'!E111,0) -> 0 | M111: =IF(M$3="Ja",'R_7 Kennzahlen'!E111,0) -> 0 | N111: =IF(N$3="Ja",'R_8 Kennzahlen'!E111,0) -> 0 | O111: =IF(O$3="Ja",'R_9 Kennzahlen'!E111,0) -> 0 | P111: =IF(P$3="Ja",'R_10 Kennzahlen'!E111,0) -> 0
F113: Grenzen Puntkwerte MLT
F114: 25
F115: 25
F116: 25

Sheet System-Kennzahlen mit Poolung
C2: KENNZAHLEN | E2: SYSTEM | G2: Route 1 | H2: Route 2 | I2: Route 3 | J2: Route 4 | K2: Route 5 | L2: Route 6 | M2: Route 7 | N2: Route 8 | O2: Route 9 | P2: Route 10
C3: Route berücksichtigen? | G3: ='R_1 Kennzahlen'!E3 -> Ja | H3: ='R_2 Kennzahlen'!E3 -> nein | I3: ='R_3 Kennzahlen'!E3 -> nein | J3: ='R_4 Kennzahlen'!E3 -> nein | K3: ='R_5 Kennzahlen'!E3 -> nein | L3: ='R_6 Kennzahlen'!E3 -> nein | M3: ='R_7 Kennzahlen'!E3 -> nein | N3: ='R_8 Kennzahlen'!E3 -> nein | O3: ='R_9 Kennzahlen'!E3 -> nein | P3: ='R_10 Kennzahlen'!E3 -> nein
B4: Abk. | C4: Bezeichnung | D4: Einheit | E4: Wert Ø | F4: Wert ∑ | G4: Wert | H4: Wert | I4: Wert | J4: Wert | K4: Wert | L4: Wert | M4: Wert | N4: Wert | O4: Wert | P4: Wert
C5: Strukturkennzahlen
B7: S-1 | C7: Anzahl der Routen | D7: [Stk] | E7: =F7/$F$7 -> 1 | F7: =SUM(G7:P7) -> 1 | G7: =IF(G$3="Ja",'R_1 Kennzahlen'!E7,0) -> 1 | H7: =IF(H$3="Ja",'R_2 Kennzahlen'!E7,0) -> 0 | I7: =IF(I$3="Ja",'R_3 Kennzahlen'!E7,0) -> 0 | J7: =IF(J$3="Ja",'R_4 Kennzahlen'!E7,0) -> 0 | K7: =IF(K$3="Ja",'R_5 Kennzahlen'!E7,0) -> 0 | L7: =IF(L$3="Ja",'R_6 Kennzahlen'!E7,0) -> 0 | M7: =IF(M$3="Ja",'R_7 Kennzahlen'!E7,0) -> 0 | N7: =IF(N$3="Ja",'R_8 Kennzahlen'!E7,0) -> 0 | O7: =IF(O$3="Ja",'R_9 Kennzahlen'!E7,0) -> 0 | P7: =IF(P$3="Ja",'R_10 Kennzahlen'!E7,0) -> 0 | R7: STRUKTUR / LOGISTIKLEISTUNG
B8: S-2 | C8: Anzahl der Bereitstellorte (Quelle) | D8: [Stk] | E8: =F8/$F$7 -> 1 | F8: =SUM(G8:P8) -> 1 | G8: =IF(G$3="Ja",'R_1 Kennzahlen'!E8,0) -> 1 | H8: =IF(H$3="Ja",'R_2 Kennzahlen'!E8,0) -> 0 | I8: =IF(I$3="Ja",'R_3 Kennzahlen'!E8,0) -> 0 | J8: =IF(J$3="Ja",'R_4 Kennzahlen'!E8,0) -> 0 | K8: =IF(K$3="Ja",'R_5 Kennzahlen'!E8,0) -> 0 | L8: =IF(L$3="Ja",'R_6 Kennzahlen'!E8,0) -> 0 | M8: =IF(M$3="Ja",'R_7 Kennzahlen'!E8,0) -> 0 | N8: =IF(N$3="Ja",'R_8 Kennzahlen'!E8,0) -> 0 | O8: =IF(O$3="Ja",'R_9 Kennzahlen'!E8,0) -> 0 | P8: =IF(P$3="Ja",'R_10 Kennzahlen'!E8,0) -> 0
B9: S-3 | C9: Anzahl der Bereitstellorte (Senke) | D9: [Stk] | E9: 10 | F9: =SUM(G9:P9) -> 10 | G9: =IF(G$3="Ja",'R_1 Kennzahlen'!E9,0) -> 10 | H9: =IF(H$3="Ja",'R_2 Kennzahlen'!E9,0) -> 0 | I9: =IF(I$3="Ja",'R_3 Kennzahlen'!E9,0) -> 0 | J9: =IF(J$3="Ja",'R_4 Kennzahlen'!E9,0) -> 0 | K9: =IF(K$3="Ja",'R_5 Kennzahlen'!E9,0) -> 0 | L9: =IF(L$3="Ja",'R_6 Kennzahlen'!E9,0) -> 0 | M9: =IF(M$3="Ja",'R_7 Kennzahlen'!E9,0) -> 0 | N9: =IF(N$3="Ja",'R_8 Kennzahlen'!E9,0) -> 0 | O9: =IF(O$3="Ja",'R_9 Kennzahlen'!E9,0) -> 0 | P9: =IF(P$3="Ja",'R_10 Kennzahlen'!E9,0) -> 0
B10: S-4 | C10: Anzahl der Haltepunkte (Quelle und Senke) | D10: [Stk] | E10: 7 | F10: 7 | G10: =IF(G$3="Ja",'R_1 Kennzahlen'!E10,0) -> 7 | H10: =IF(H$3="Ja",'R_2 Kennzahlen'!E10,0) -> 0 | I10: =IF(I$3="Ja",'R_3 Kennzahlen'!E10,0) -> 0 | J10: =IF(J$3="Ja",'R_4 Kennzahlen'!E10,0) -> 0 | K10: =IF(K$3="Ja",'R_5 Kennzahlen'!E10,0) -> 0 | L10: =IF(L$3="Ja",'R_6 Kennzahlen'!E10,0) -> 0 | M10: =IF(M$3="Ja",'R_7 Kennzahlen'!E10,0) -> 0 | N10: =IF(N$3="Ja",'R_8 Kennzahlen'!E10,0) -> 0 | O10: =IF(O$3="Ja",'R_9 Kennzahlen'!E10,0) -> 0 | P10: =IF(P$3="Ja",'R_10 Kennzahlen'!E10,0) -> 0
B11: S-5 | C11: Routenlänge | D11: [m] | E11: 500 | F11: 500 | G11: =IF(G$3="Ja",'R_1 Kennzahlen'!E11,0) -> 500 | H11: =IF(H$3="Ja",'R_2 Kennzahlen'!E11,0) -> 0 | I11: =IF(I$3="Ja",'R_3 Kennzahlen'!E11,0) -> 0 | J11: =IF(J$3="Ja",'R_4 Kennzahlen'!E11,0) -> 0 | K11: =IF(K$3="Ja",'R_5 Kennzahlen'!E11,0) -> 0 | L11: =IF(L$3="Ja",'R_6 Kennzahlen'!E11,0) -> 0 | M11: =IF(M$3="Ja",'R_7 Kennzahlen'!E11,0) -> 0 | N11: =IF(N$3="Ja",'R_8 Kennzahlen'!E11,0) -> 0 | O11: =IF(O$3="Ja",'R_9 Kennzahlen'!E11,0) -> 0 | P11: =IF(P$3="Ja",'R_10 Kennzahlen'!E11,0) -> 0
C12: Logistikleistungskennzahlen
B14: L-Z-1 | C14: Maximal möglicher Tourenstartabstand | D14: [min] | E14: =F14/$F$7 -> 31.57894737 | F14: =SUM(G14:P14) -> 31.57894737 | G14: =IF(G$3="Ja",'R_1 Kennzahlen'!E14,0) -> 31.57894737 | H14: =IF(H$3="Ja",'R_2 Kennzahlen'!E14,0) -> 0 | I14: =IF(I$3="Ja",'R_3 Kennzahlen'!E14,0) -> 0 | J14: =IF(J$3="Ja",'R_4 Kennzahlen'!E14,0) -> 0 | K14: =IF(K$3="Ja",'R_5 Kennzahlen'!E14,0) -> 0 | L14: =IF(L$3="Ja",'R_6 Kennzahlen'!E14,0) -> 0 | M14: =IF(M$3="Ja",'R_7 Kennzahlen'!E14,0) -> 0 | N14: =IF(N$3="Ja",'R_8 Kennzahlen'!E14,0) -> 0 | O14: =IF(O$3="Ja",'R_9 Kennzahlen'!E14,0) -> 0 | P14: =IF(P$3="Ja",'R_10 Kennzahlen'!E14,0) -> 0
B15: L-Z-2 | C15: Mindestens erforderlicher Tourenstartabstand | D15: [min] | E15: =F15/$F$7 -> 14 | F15: =SUM(G15:P15) -> 14 | G15: =IF(G$3="Ja",'R_1 Kennzahlen'!E15,0) -> 14 | H15: =IF(H$3="Ja",'R_2 Kennzahlen'!E15,0) -> 0 | I15: =IF(I$3="Ja",'R_3 Kennzahlen'!E15,0) -> 0 | J15: =IF(J$3="Ja",'R_4 Kennzahlen'!E15,0) -> 0 | K15: =IF(K$3="Ja",'R_5 Kennzahlen'!E15,0) -> 0 | L15: =IF(L$3="Ja",'R_6 Kennzahlen'!E15,0) -> 0 | M15: =IF(M$3="Ja",'R_7 Kennzahlen'!E15,0) -> 0 | N15: =IF(N$3="Ja",'R_8 Kennzahlen'!E15,0) -> 0 | O15: =IF(O$3="Ja",'R_9 Kennzahlen'!E15,0) -> 0 | P15: =IF(P$3="Ja",'R_10 Kennzahlen'!E15,0) -> 0
B16: L-Z-3 | C16: Tatsächlicher Tourenstartabstand | D16: [min] | E16: 30 | F16: 30 | G16: =IF(G$3="Ja",'R_1 Kennzahlen'!E16,0) -> 30 | H16: =IF(H$3="Ja",'R_2 Kennzahlen'!E16,0) -> 0 | I16: =IF(I$3="Ja",'R_3 Kennzahlen'!E16,0) -> 0 | J16: =IF(J$3="Ja",'R_4 Kennzahlen'!E16,0) -> 0 | K16: =IF(K$3="Ja",'R_5 Kennzahlen'!E16,0) -> 0 | L16: =IF(L$3="Ja",'R_6 Kennzahlen'!E16,0) -> 0 | M16: =IF(M$3="Ja",'R_7 Kennzahlen'!E16,0) -> 0 | N16: =IF(N$3="Ja",'R_8 Kennzahlen'!E16,0) -> 0 | O16: =IF(O$3="Ja",'R_9 Kennzahlen'!E16,0) -> 0 | P16: =IF(P$3="Ja",'R_10 Kennzahlen'!E16,0) -> 0
B17: L-Z-4 | C17: Zykluszeit | D17: [min] | E17: 16.52083333 | F17: 16.52083333 | G17: =IF(G$3="Ja",'R_1 Kennzahlen'!E17,0) -> 16.52083333 | H17: =IF(H$3="Ja",'R_2 Kennzahlen'!E17,0) -> 0 | I17: =IF(I$3="Ja",'R_3 Kennzahlen'!E17,0) -> 0 | J17: =IF(J$3="Ja",'R_4 Kennzahlen'!E17,0) -> 0 | K17: =IF(K$3="Ja",'R_5 Kennzahlen'!E17,0) -> 0 | L17: =IF(L$3="Ja",'R_6 Kennzahlen'!E17,0) -> 0 | M17: =IF(M$3="Ja",'R_7 Kennzahlen'!E17,0) -> 0 | N17: =IF(N$3="Ja",'R_8 Kennzahlen'!E17,0) -> 0 | O17: =IF(O$3="Ja",'R_9 Kennzahlen'!E17,0) -> 0 | P17: =IF(P$3="Ja",'R_10 Kennzahlen'!E17,0) -> 0
B18: L-Z-5 | C18: Wartezeit | D18: [min] | E18: =E17*E20/E19 -> 13.47916667 | F18: =E18*F7 -> 13.47916667
B19: L-Z-6 | C19: Anteil Zykluszeit | D19: [%] | E19: =E29 -> 55.06944444 | F19: =E19*F7 -> 55.06944444
B20: L-Z-7 | C20: Anteil Wartezeit | D20: [%] | E20: =100-E19 -> 44.93055556 | F20: =E20*F7 -> 44.93055556
B21: L-Z-8 | C21: Beladezeit | D21: [min] | E21: 6 | F21: 6 | G21: =IF(G$3="Ja",'R_1 Kennzahlen'!E21,0) -> 6 | H21: =IF(H$3="Ja",'R_2 Kennzahlen'!E21,0) -> 0 | I21: =IF(I$3="Ja",'R_3 Kennzahlen'!E21,0) -> 0 | J21: =IF(J$3="Ja",'R_4 Kennzahlen'!E21,0) -> 0 | K21: =IF(K$3="Ja",'R_5 Kennzahlen'!E21,0) -> 0 | L21: =IF(L$3="Ja",'R_6 Kennzahlen'!E21,0) -> 0 | M21: =IF(M$3="Ja",'R_7 Kennzahlen'!E21,0) -> 0 | N21: =IF(N$3="Ja",'R_8 Kennzahlen'!E21,0) -> 0 | O21: =IF(O$3="Ja",'R_9 Kennzahlen'!E21,0) -> 0 | P21: =IF(P$3="Ja",'R_10 Kennzahlen'!E21,0) -> 0
B22: L-Z-9 | C22: Fahrzeit | D22: [min] | E22: 5 | F22: 5 | G22: =IF(G$3="Ja",'R_1 Kennzahlen'!E22,0) -> 5 | H22: =IF(H$3="Ja",'R_2 Kennzahlen'!E22,0) -> 0 | I22: =IF(I$3="Ja",'R_3 Kennzahlen'!E22,0) -> 0 | J22: =IF(J$3="Ja",'R_4 Kennzahlen'!E22,0) -> 0 | K22: =IF(K$3="Ja",'R_5 Kennzahlen'!E22,0) -> 0 | L22: =IF(L$3="Ja",'R_6 Kennzahlen'!E22,0) -> 0 | M22: =IF(M$3="Ja",'R_7 Kennzahlen'!E22,0) -> 0 | N22: =IF(N$3="Ja",'R_8 Kennzahlen'!E22,0) -> 0 | O22: =IF(O$3="Ja",'R_9 Kennzahlen'!E22,0) -> 0 | P22: =IF(P$3="Ja",'R_10 Kennzahlen'!E22,0) -> 0
B23: L-Z-10 | C23: Haltepunktzeit | D23: [min] | E23: 0.7708333333 | F23: 0.7708333333 | G23: =IF(G$3="Ja",'R_1 Kennzahlen'!E23,0) -> 0.7708333333 | H23: =IF(H$3="Ja",'R_2 Kennzahlen'!E23,0) -> 0 | I23: =IF(I$3="Ja",'R_3 Kennzahlen'!E23,0) -> 0 | J23: =IF(J$3="Ja",'R_4 Kennzahlen'!E23,0) -> 0 | K23: =IF(K$3="Ja",'R_5 Kennzahlen'!E23,0) -> 0 | L23: =IF(L$3="Ja",'R_6 Kennzahlen'!E23,0) -> 0 | M23: =IF(M$3="Ja",'R_7 Kennzahlen'!E23,0) -> 0 | N23: =IF(N$3="Ja",'R_8 Kennzahlen'!E23,0) -> 0 | O23: =IF(O$3="Ja",'R_9 Kennzahlen'!E23,0) -> 0 | P23: =IF(P$3="Ja",'R_10 Kennzahlen'!E23,0) -> 0
B24: L-Z-11 | C24: Entladezeit | D24: [min] | E24: 4.75 | F24: 4.75 | G24: =IF(G$3="Ja",'R_1 Kennzahlen'!E24,0) -> 4.75 | H24: =IF(H$3="Ja",'R_2 Kennzahlen'!E24,0) -> 0 | I24: =IF(I$3="Ja",'R_3 Kennzahlen'!E24,0) -> 0 | J24: =IF(J$3="Ja",'R_4 Kennzahlen'!E24,0) -> 0 | K24: =IF(K$3="Ja",'R_5 Kennzahlen'!E24,0) -> 0 | L24: =IF(L$3="Ja",'R_6 Kennzahlen'!E24,0) -> 0 | M24: =IF(M$3="Ja",'R_7 Kennzahlen'!E24,0) -> 0 | N24: =IF(N$3="Ja",'R_8 Kennzahlen'!E24,0) -> 0 | O24: =IF(O$3="Ja",'R_9 Kennzahlen'!E24,0) -> 0 | P24: =IF(P$3="Ja",'R_10 Kennzahlen'!E24,0) -> 0
B25: L-Z-12 | C25: Anteil Beladezeit | D25: [%] | E25: 36.31778058 | F25: 36.31778058 | G25: =IF(G$3="Ja",'R_1 Kennzahlen'!E25,0) -> 36.31778058 | H25: =IF(H$3="Ja",'R_2 Kennzahlen'!E25,0) -> 0 | I25: =IF(I$3="Ja",'R_3 Kennzahlen'!E25,0) -> 0 | J25: =IF(J$3="Ja",'R_4 Kennzahlen'!E25,0) -> 0 | K25: =IF(K$3="Ja",'R_5 Kennzahlen'!E25,0) -> 0 | L25: =IF(L$3="Ja",'R_6 Kennzahlen'!E25,0) -> 0 | M25: =IF(M$3="Ja",'R_7 Kennzahlen'!E25,0) -> 0 | N25: =IF(N$3="Ja",'R_8 Kennzahlen'!E25,0) -> 0 | O25: =IF(O$3="Ja",'R_9 Kennzahlen'!E25,0) -> 0 | P25: =IF(P$3="Ja",'R_10 Kennzahlen'!E25,0) -> 0
B26: L-Z-13 | C26: Anteil Fahrzeit | D26: [%] | E26: 30.26481715 | F26: 30.26481715 | G26: =IF(G$3="Ja",'R_1 Kennzahlen'!E26,0) -> 30.26481715 | H26: =IF(H$3="Ja",'R_2 Kennzahlen'!E26,0) -> 0 | I26: =IF(I$3="Ja",'R_3 Kennzahlen'!E26,0) -> 0 | J26: =IF(J$3="Ja",'R_4 Kennzahlen'!E26,0) -> 0 | K26: =IF(K$3="Ja",'R_5 Kennzahlen'!E26,0) -> 0 | L26: =IF(L$3="Ja",'R_6 Kennzahlen'!E26,0) -> 0 | M26: =IF(M$3="Ja",'R_7 Kennzahlen'!E26,0) -> 0 | N26: =IF(N$3="Ja",'R_8 Kennzahlen'!E26,0) -> 0 | O26: =IF(O$3="Ja",'R_9 Kennzahlen'!E26,0) -> 0 | P26: =IF(P$3="Ja",'R_10 Kennzahlen'!E26,0) -> 0
B27: L-Z-14 | C27: Anteil Haltepunktzeit | D27: [%] | E27: 4.665825977 | F27: 4.665825977 | G27: =IF(G$3="Ja",'R_1 Kennzahlen'!E27,0) -> 4.665825977 | H27: =IF(H$3="Ja",'R_2 Kennzahlen'!E27,0) -> 0 | I27: =IF(I$3="Ja",'R_3 Kennzahlen'!E27,0) -> 0 | J27: =IF(J$3="Ja",'R_4 Kennzahlen'!E27,0) -> 0 | K27: =IF(K$3="Ja",'R_5 Kennzahlen'!E27,0) -> 0 | L27: =IF(L$3="Ja",'R_6 Kennzahlen'!E27,0) -> 0 | M27: =IF(M$3="Ja",'R_7 Kennzahlen'!E27,0) -> 0 | N27: =IF(N$3="Ja",'R_8 Kennzahlen'!E27,0) -> 0 | O27: =IF(O$3="Ja",'R_9 Kennzahlen'!E27,0) -> 0 | P27: =IF(P$3="Ja",'R_10 Kennzahlen'!E27,0) -> 0
B28: L-Z-15 | C28: Anteil Entladezeit | D28: [%] | E28: 28.75157629 | F28: 28.75157629 | G28: =IF(G$3="Ja",'R_1 Kennzahlen'!E28,0) -> 28.75157629 | H28: =IF(H$3="Ja",'R_2 Kennzahlen'!E28,0) -> 0 | I28: =IF(I$3="Ja",'R_3 Kennzahlen'!E28,0) -> 0 | J28: =IF(J$3="Ja",'R_4 Kennzahlen'!E28,0) -> 0 | K28: =IF(K$3="Ja",'R_5 Kennzahlen'!E28,0) -> 0 | L28: =IF(L$3="Ja",'R_6 Kennzahlen'!E28,0) -> 0 | M28: =IF(M$3="Ja",'R_7 Kennzahlen'!E28,0) -> 0 | N28: =IF(N$3="Ja",'R_8 Kennzahlen'!E28,0) -> 0 | O28: =IF(O$3="Ja",'R_9 Kennzahlen'!E28,0) -> 0 | P28: =IF(P$3="Ja",'R_10 Kennzahlen'!E28,0) -> 0
B29: L-Z-16 | C29: Zeitlicher Nutzungsgrad Routenzug | D29: [%] | E29: ='Berechnung mit Poolung'!F26 -> 55.06944444 | F29: =E29*F7 -> 55.06944444
B30: L-Z-17 | C30: Zeitlicher Nutzungsgrad Mitarbeiter | D30: [%] | E30: ='Berechnung mit Poolung'!F26 -> 55.06944444 | F30: =E30*F7 -> 55.06944444 | G30: =IF(G$3="Ja",'R_1 Kennzahlen'!E30,0) -> 55.06944444 | H30: =IF(H$3="Ja",'R_2 Kennzahlen'!E30,0) -> 0 | I30: =IF(I$3="Ja",'R_3 Kennzahlen'!E30,0) -> 0 | J30: =IF(J$3="Ja",'R_4 Kennzahlen'!E30,0) -> 0 | K30: =IF(K$3="Ja",'R_5 Kennzahlen'!E30,0) -> 0 | L30: =IF(L$3="Ja",'R_6 Kennzahlen'!E30,0) -> 0 | M30: =IF(M$3="Ja",'R_7 Kennzahlen'!E30,0) -> 0 | N30: =IF(N$3="Ja",'R_8 Kennzahlen'!E30,0) -> 0 | O30: =IF(O$3="Ja",'R_9 Kennzahlen'!E30,0) -> 0 | P30: =IF(P$3="Ja",'R_10 Kennzahlen'!E30,0) -> 0
B31: L-Z-18 | C31: Minimale Wiederbeschaffungszeit | D31: [min] | E31: 30 | F31: 30 | G31: =IF(G$3="Ja",'R_1 Kennzahlen'!E31,0) -> 30 | H31: =IF(H$3="Ja",'R_2 Kennzahlen'!E31,0) -> 0 | I31: =IF(I$3="Ja",'R_3 Kennzahlen'!E31,0) -> 0 | J31: =IF(J$3="Ja",'R_4 Kennzahlen'!E31,0) -> 0 | K31: =IF(K$3="Ja",'R_5 Kennzahlen'!E31,0) -> 0 | L31: =IF(L$3="Ja",'R_6 Kennzahlen'!E31,0) -> 0 | M31: =IF(M$3="Ja",'R_7 Kennzahlen'!E31,0) -> 0 | N31: =IF(N$3="Ja",'R_8 Kennzahlen'!E31,0) -> 0 | O31: =IF(O$3="Ja",'R_9 Kennzahlen'!E31,0) -> 0 | P31: =IF(P$3="Ja",'R_10 Kennzahlen'!E31,0) -> 0
B32: L-Z-19 | C32: Maximale Wiederbeschaffungszeit | D32: [min] | E32: 30 | F32: 30 | G32: =IF(G$3="Ja",'R_1 Kennzahlen'!E32,0) -> 30 | H32: =IF(H$3="Ja",'R_2 Kennzahlen'!E32,0) -> 0 | I32: =IF(I$3="Ja",'R_3 Kennzahlen'!E32,0) -> 0 | J32: =IF(J$3="Ja",'R_4 Kennzahlen'!E32,0) -> 0 | K32: =IF(K$3="Ja",'R_5 Kennzahlen'!E32,0) -> 0 | L32: =IF(L$3="Ja",'R_6 Kennzahlen'!E32,0) -> 0 | M32: =IF(M$3="Ja",'R_7 Kennzahlen'!E32,0) -> 0 | N32: =IF(N$3="Ja",'R_8 Kennzahlen'!E32,0) -> 0 | O32: =IF(O$3="Ja",'R_9 Kennzahlen'!E32,0) -> 0 | P32: =IF(P$3="Ja",'R_10 Kennzahlen'!E32,0) -> 0
B33: L-R-1 | C33: Anzahl Ladungsträger | D33: [Stk] | E33: 10 | F33: ='Berechnung mit Poolung'!F40 -> 10
B34: L-R-2a | C34: Anzahl Routenzüge (exakt) | D34: [Stk] | E34: 0.5506944444 | F34: =SUM(G34:P34) -> 0.5506944444 | G34: =IF(G$3="Ja",'R_1 Kennzahlen'!E34,0) -> 0.5506944444 | H34: =IF(H$3="Ja",'R_2 Kennzahlen'!E34,0) -> 0 | I34: =IF(I$3="Ja",'R_3 Kennzahlen'!E34,0) -> 0 | J34: =IF(J$3="Ja",'R_4 Kennzahlen'!E34,0) -> 0 | K34: =IF(K$3="Ja",'R_5 Kennzahlen'!E34,0) -> 0 | L34: =IF(L$3="Ja",'R_6 Kennzahlen'!E34,0) -> 0 | M34: =IF(M$3="Ja",'R_7 Kennzahlen'!E34,0) -> 0 | N34: =IF(N$3="Ja",'R_8 Kennzahlen'!E34,0) -> 0 | O34: =IF(O$3="Ja",'R_9 Kennzahlen'!E34,0) -> 0 | P34: =IF(P$3="Ja",'R_10 Kennzahlen'!E34,0) -> 0
B35: L-R-2b | C35: Anzahl Routenzüge (gerundet) | D35: [Stk] | E35: 1 | F35: ='Berechnung mit Poolung'!F20 -> 1
B36: L-R-2c | C36: Anzahl Routenzüge (tatsächlich) | D36: [Stk] | E36: 1 | F36: ='Berechnung mit Poolung'!F44 -> 1
B37: L-R-2d | C37: Anzahl Anhänger | D37: [Stk] | E37: 10 | F37: ='Berechnung mit Poolung'!F45 -> 10
B38: L-R-2e | C38: Anzahl Trolleys/Rahmen | D38: [Stk] | E38: 0 | F38: ='Berechnung mit Poolung'!F46 -> 0
B39: L-R-3 | C39: Anzahl Be- und Entladetechnik | D39: [Stk] | E39: 1 | F39: 1 | G39: =IF(G$3="Ja",'R_1 Kennzahlen'!E39,0) -> 1 | H39: =IF(H$3="Ja",'R_2 Kennzahlen'!E39,0) -> 0 | I39: =IF(I$3="Ja",'R_3 Kennzahlen'!E39,0) -> 0 | J39: =IF(J$3="Ja",'R_4 Kennzahlen'!E39,0) -> 0 | K39: =IF(K$3="Ja",'R_5 Kennzahlen'!E39,0) -> 0 | L39: =IF(L$3="Ja",'R_6 Kennzahlen'!E39,0) -> 0 | M39: =IF(M$3="Ja",'R_7 Kennzahlen'!E39,0) -> 0 | N39: =IF(N$3="Ja",'R_8 Kennzahlen'!E39,0) -> 0 | O39: =IF(O$3="Ja",'R_9 Kennzahlen'!E39,0) -> 0 | P39: =IF(P$3="Ja",'R_10 Kennzahlen'!E39,0) -> 0
B40: L-R-4 | C40: Anzahl Bereitstelltechnik | D40: [Stk] | E40: 10 | F40: 10 | G40: =IF(G$3="Ja",'R_1 Kennzahlen'!E40,0) -> 10 | H40: =IF(H$3="Ja",'R_2 Kennzahlen'!E40,0) -> 0 | I40: =IF(I$3="Ja",'R_3 Kennzahlen'!E40,0) -> 0 | J40: =IF(J$3="Ja",'R_4 Kennzahlen'!E40,0) -> 0 | K40: =IF(K$3="Ja",'R_5 Kennzahlen'!E40,0) -> 0 | L40: =IF(L$3="Ja",'R_6 Kennzahlen'!E40,0) -> 0 | M40: =IF(M$3="Ja",'R_7 Kennzahlen'!E40,0) -> 0 | N40: =IF(N$3="Ja",'R_8 Kennzahlen'!E40,0) -> 0 | O40: =IF(O$3="Ja",'R_9 Kennzahlen'!E40,0) -> 0 | P40: =IF(P$3="Ja",'R_10 Kennzahlen'!E40,0) -> 0
B41: L-R-5 | C41: Anzahl Informationstechnik | D41: [Stk] | E41: 1 | F41: 1 | G41: =IF(G$3="Ja",'R_1 Kennzahlen'!E41,0) -> 1 | H41: =IF(H$3="Ja",'R_2 Kennzahlen'!E41,0) -> 0 | I41: =IF(I$3="Ja",'R_3 Kennzahlen'!E41,0) -> 0 | J41: =IF(J$3="Ja",'R_4 Kennzahlen'!E41,0) -> 0 | K41: =IF(K$3="Ja",'R_5 Kennzahlen'!E41,0) -> 0 | L41: =IF(L$3="Ja",'R_6 Kennzahlen'!E41,0) -> 0 | M41: =IF(M$3="Ja",'R_7 Kennzahlen'!E41,0) -> 0 | N41: =IF(N$3="Ja",'R_8 Kennzahlen'!E41,0) -> 0 | O41: =IF(O$3="Ja",'R_9 Kennzahlen'!E41,0) -> 0 | P41: =IF(P$3="Ja",'R_10 Kennzahlen'!E41,0) -> 0
B42: L-R-6 | C42: Anzahl Mitarbeiter | D42: [Stk] | E42: 1.908194444 | F42: 1.908194444 | G42: =IF(G$3="Ja",'R_1 Kennzahlen'!E42,0) -> 1.908194444 | H42: =IF(H$3="Ja",'R_2 Kennzahlen'!E42,0) -> 0 | I42: =IF(I$3="Ja",'R_3 Kennzahlen'!E42,0) -> 0 | J42: =IF(J$3="Ja",'R_4 Kennzahlen'!E42,0) -> 0 | K42: =IF(K$3="Ja",'R_5 Kennzahlen'!E42,0) -> 0 | L42: =IF(L$3="Ja",'R_6 Kennzahlen'!E42,0) -> 0 | M42: =IF(M$3="Ja",'R_7 Kennzahlen'!E42,0) -> 0 | N42: =IF(N$3="Ja",'R_8 Kennzahlen'!E42,0) -> 0 | O42: =IF(O$3="Ja",'R_9 Kennzahlen'!E42,0) -> 0 | P42: =IF(P$3="Ja",'R_10 Kennzahlen'!E42,0) -> 0
B43: L-R-7 | C43: Automatisierungsgrad | D43: [%] | E43: 0 | F43: 0 | G43: =IF(G$3="Ja",'R_1 Kennzahlen'!E43,0) -> 0 | H43: =IF(H$3="Ja",'R_2 Kennzahlen'!E43,0) -> 0 | I43: =IF(I$3="Ja",'R_3 Kennzahlen'!E43,0) -> 0 | J43: =IF(J$3="Ja",'R_4 Kennzahlen'!E43,0) -> 0 | K43: =IF(K$3="Ja",'R_5 Kennzahlen'!E43,0) -> 0 | L43: =IF(L$3="Ja",'R_6 Kennzahlen'!E43,0) -> 0 | M43: =IF(M$3="Ja",'R_7 Kennzahlen'!E43,0) -> 0 | N43: =IF(N$3="Ja",'R_8 Kennzahlen'!E43,0) -> 0 | O43: =IF(O$3="Ja",'R_9 Kennzahlen'!E43,0) -> 0 | P43: =IF(P$3="Ja",'R_10 Kennzahlen'!E43,0) -> 0
B44: L-R-8 | C44: Verfügbarkeit | D44: [%] | E44: 99.47916667 | F44: 99.47916667 | G44: =IF(G$3="Ja",'R_1 Kennzahlen'!E44,0) -> 99.47916667 | H44: =IF(H$3="Ja",'R_2 Kennzahlen'!E44,0) -> 0 | I44: =IF(I$3="Ja",'R_3 Kennzahlen'!E44,0) -> 0 | J44: =IF(J$3="Ja",'R_4 Kennzahlen'!E44,0) -> 0 | K44: =IF(K$3="Ja",'R_5 Kennzahlen'!E44,0) -> 0 | L44: =IF(L$3="Ja",'R_6 Kennzahlen'!E44,0) -> 0 | M44: =IF(M$3="Ja",'R_7 Kennzahlen'!E44,0) -> 0 | N44: =IF(N$3="Ja",'R_8 Kennzahlen'!E44,0) -> 0 | O44: =IF(O$3="Ja",'R_9 Kennzahlen'!E44,0) -> 0 | P44: =IF(P$3="Ja",'R_10 Kennzahlen'!E44,0) -> 0
B45: L-R-9 | C45: Routenzugkapazität | D45: ='R_1 Berechnung'!E12 -> [LT] | E45: 5 | F45: 5 | G45: =IF(G$3="Ja",'R_1 Kennzahlen'!E45,0) -> 5 | H45: =IF(H$3="Ja",'R_2 Kennzahlen'!E45,0) -> 0 | I45: =IF(I$3="Ja",'R_3 Kennzahlen'!E45,0) -> 0 | J45: =IF(J$3="Ja",'R_4 Kennzahlen'!E45,0) -> 0 | K45: =IF(K$3="Ja",'R_5 Kennzahlen'!E45,0) -> 0 | L45: =IF(L$3="Ja",'R_6 Kennzahlen'!E45,0) -> 0 | M45: =IF(M$3="Ja",'R_7 Kennzahlen'!E45,0) -> 0 | N45: =IF(N$3="Ja",'R_8 Kennzahlen'!E45,0) -> 0 | O45: =IF(O$3="Ja",'R_9 Kennzahlen'!E45,0) -> 0 | P45: =IF(P$3="Ja",'R_10 Kennzahlen'!E45,0) -> 0
B46: L-R-10 | C46: Mittlere Beladung Routenzug pro Tour | D46: ='R_1 Berechnung'!E31 -> [LT] | E46: 4.75 | F46: 4.75 | G46: =IF(G$3="Ja",'R_1 Kennzahlen'!E46,0) -> 4.75 | H46: =IF(H$3="Ja",'R_2 Kennzahlen'!E46,0) -> 0 | I46: =IF(I$3="Ja",'R_3 Kennzahlen'!E46,0) -> 0 | J46: =IF(J$3="Ja",'R_4 Kennzahlen'!E46,0) -> 0 | K46: =IF(K$3="Ja",'R_5 Kennzahlen'!E46,0) -> 0 | L46: =IF(L$3="Ja",'R_6 Kennzahlen'!E46,0) -> 0 | M46: =IF(M$3="Ja",'R_7 Kennzahlen'!E46,0) -> 0 | N46: =IF(N$3="Ja",'R_8 Kennzahlen'!E46,0) -> 0 | O46: =IF(O$3="Ja",'R_9 Kennzahlen'!E46,0) -> 0 | P46: =IF(P$3="Ja",'R_10 Kennzahlen'!E46,0) -> 0
B47: L-R-11 | C47: Kapazitiver Nutzungsgrad Routenzug | D47: [%] | E47: 95 | F47: 95 | G47: =IF(G$3="Ja",'R_1 Kennzahlen'!E47,0) -> 95 | H47: =IF(H$3="Ja",'R_2 Kennzahlen'!E47,0) -> 0 | I47: =IF(I$3="Ja",'R_3 Kennzahlen'!E47,0) -> 0 | J47: =IF(J$3="Ja",'R_4 Kennzahlen'!E47,0) -> 0 | K47: =IF(K$3="Ja",'R_5 Kennzahlen'!E47,0) -> 0 | L47: =IF(L$3="Ja",'R_6 Kennzahlen'!E47,0) -> 0 | M47: =IF(M$3="Ja",'R_7 Kennzahlen'!E47,0) -> 0 | N47: =IF(N$3="Ja",'R_8 Kennzahlen'!E47,0) -> 0 | O47: =IF(O$3="Ja",'R_9 Kennzahlen'!E47,0) -> 0 | P47: =IF(P$3="Ja",'R_10 Kennzahlen'!E47,0) -> 0
B48: L-R-12 | C48: Mittlere Pufferkapazität je Bereitstellort | D48: ='R_1 Eingabe'!D123 -> [LT] | E48: 3 | F48: 3 | G48: =IF(G$3="Ja",'R_1 Kennzahlen'!E48,0) -> 3 | H48: =IF(H$3="Ja",'R_2 Kennzahlen'!E48,0) -> 0 | I48: =IF(I$3="Ja",'R_3 Kennzahlen'!E48,0) -> 0 | J48: =IF(J$3="Ja",'R_4 Kennzahlen'!E48,0) -> 0 | K48: =IF(K$3="Ja",'R_5 Kennzahlen'!E48,0) -> 0 | L48: =IF(L$3="Ja",'R_6 Kennzahlen'!E48,0) -> 0 | M48: =IF(M$3="Ja",'R_7 Kennzahlen'!E48,0) -> 0 | N48: =IF(N$3="Ja",'R_8 Kennzahlen'!E48,0) -> 0 | O48: =IF(O$3="Ja",'R_9 Kennzahlen'!E48,0) -> 0 | P48: =IF(P$3="Ja",'R_10 Kennzahlen'!E48,0) -> 0
B49: L-R-13 | C49: Mittlere Belegung je Puffer | D49: ='R_1 Eingabe'!D124 -> [LT] | E49: 1.5 | F49: 1.5 | G49: =IF(G$3="Ja",'R_1 Kennzahlen'!E49,0) -> 1.5 | H49: =IF(H$3="Ja",'R_2 Kennzahlen'!E49,0) -> 0 | I49: =IF(I$3="Ja",'R_3 Kennzahlen'!E49,0) -> 0 | J49: =IF(J$3="Ja",'R_4 Kennzahlen'!E49,0) -> 0 | K49: =IF(K$3="Ja",'R_5 Kennzahlen'!E49,0) -> 0 | L49: =IF(L$3="Ja",'R_6 Kennzahlen'!E49,0) -> 0 | M49: =IF(M$3="Ja",'R_7 Kennzahlen'!E49,0) -> 0 | N49: =IF(N$3="Ja",'R_8 Kennzahlen'!E49,0) -> 0 | O49: =IF(O$3="Ja",'R_9 Kennzahlen'!E49,0) -> 0 | P49: =IF(P$3="Ja",'R_10 Kennzahlen'!E49,0) -> 0
B50: L-R-14 | C50: Kapazitiver Nutzungsgrad Puffer | D50: [%] | E50: 50 | F50: 50 | G50: =IF(G$3="Ja",'R_1 Kennzahlen'!E50,0) -> 50 | H50: =IF(H$3="Ja",'R_2 Kennzahlen'!E50,0) -> 0 | I50: =IF(I$3="Ja",'R_3 Kennzahlen'!E50,0) -> 0 | J50: =IF(J$3="Ja",'R_4 Kennzahlen'!E50,0) -> 0 | K50: =IF(K$3="Ja",'R_5 Kennzahlen'!E50,0) -> 0 | L50: =IF(L$3="Ja",'R_6 Kennzahlen'!E50,0) -> 0 | M50: =IF(M$3="Ja",'R_7 Kennzahlen'!E50,0) -> 0 | N50: =IF(N$3="Ja",'R_8 Kennzahlen'!E50,0) -> 0 | O50: =IF(O$3="Ja",'R_9 Kennzahlen'!E50,0) -> 0 | P50: =IF(P$3="Ja",'R_10 Kennzahlen'!E50,0) -> 0
B51: L-M-1a | C51: Durchsatz pro Stunde | D51: ='R_1 Eingabe'!D87 -> [LT] | E51: 9.5 | F51: 9.5 | G51: =IF(G$3="Ja",'R_1 Kennzahlen'!E51,0) -> 9.5 | H51: =IF(H$3="Ja",'R_2 Kennzahlen'!E51,0) -> 0 | I51: =IF(I$3="Ja",'R_3 Kennzahlen'!E51,0) -> 0 | J51: =IF(J$3="Ja",'R_4 Kennzahlen'!E51,0) -> 0 | K51: =IF(K$3="Ja",'R_5 Kennzahlen'!E51,0) -> 0 | L51: =IF(L$3="Ja",'R_6 Kennzahlen'!E51,0) -> 0 | M51: =IF(M$3="Ja",'R_7 Kennzahlen'!E51,0) -> 0 | N51: =IF(N$3="Ja",'R_8 Kennzahlen'!E51,0) -> 0 | O51: =IF(O$3="Ja",'R_9 Kennzahlen'!E51,0) -> 0 | P51: =IF(P$3="Ja",'R_10 Kennzahlen'!E51,0) -> 0
B52: L-M-1b | C52: Durchsatz pro Haltestelle | D52: ='R_1 Eingabe'!D87 -> [LT] | E52: 1.583333333 | F52: 1.583333333 | G52: =IF(G$3="Ja",'R_1 Kennzahlen'!E52,0) -> 1.583333333 | H52: =IF(H$3="Ja",'R_2 Kennzahlen'!E52,0) -> 0 | I52: =IF(I$3="Ja",'R_3 Kennzahlen'!E52,0) -> 0 | J52: =IF(J$3="Ja",'R_4 Kennzahlen'!E52,0) -> 0 | K52: =IF(K$3="Ja",'R_5 Kennzahlen'!E52,0) -> 0 | L52: =IF(L$3="Ja",'R_6 Kennzahlen'!E52,0) -> 0 | M52: =IF(M$3="Ja",'R_7 Kennzahlen'!E52,0) -> 0 | N52: =IF(N$3="Ja",'R_8 Kennzahlen'!E52,0) -> 0 | O52: =IF(O$3="Ja",'R_9 Kennzahlen'!E52,0) -> 0 | P52: =IF(P$3="Ja",'R_10 Kennzahlen'!E52,0) -> 0 | R52: WIRTSCHAFTLICHKEIT
B53: L-M-2 | C53: Länge Fahrweg pro Routenzug | D53: [km/Tag] | E53: ='Berechnung mit Poolung'!F57 -> 16 | F53: =E53*F7 -> 16
B54: L-M-3 | C54: Länge Fahrweg pro Tag | D54: [km/Tag] | E54: 16 | F54: 16 | G54: =IF(G$3="Ja",'R_1 Kennzahlen'!E54,0) -> 16 | H54: =IF(H$3="Ja",'R_2 Kennzahlen'!E54,0) -> 0 | I54: =IF(I$3="Ja",'R_3 Kennzahlen'!E54,0) -> 0 | J54: =IF(J$3="Ja",'R_4 Kennzahlen'!E54,0) -> 0 | K54: =IF(K$3="Ja",'R_5 Kennzahlen'!E54,0) -> 0 | L54: =IF(L$3="Ja",'R_6 Kennzahlen'!E54,0) -> 0 | M54: =IF(M$3="Ja",'R_7 Kennzahlen'!E54,0) -> 0 | N54: =IF(N$3="Ja",'R_8 Kennzahlen'!E54,0) -> 0 | O54: =IF(O$3="Ja",'R_9 Kennzahlen'!E54,0) -> 0 | P54: =IF(P$3="Ja",'R_10 Kennzahlen'!E54,0) -> 0
B55: L-M-4 | C55: Länge Gehweg pro Mitarbeiter | D55: [km/Schicht] | E55: 1.62109366 | F55: 1.62109366 | G55: =IF(G$3="Ja",'R_1 Kennzahlen'!E55,0) -> 1.62109366 | H55: =IF(H$3="Ja",'R_2 Kennzahlen'!E55,0) -> 0 | I55: =IF(I$3="Ja",'R_3 Kennzahlen'!E55,0) -> 0 | J55: =IF(J$3="Ja",'R_4 Kennzahlen'!E55,0) -> 0 | K55: =IF(K$3="Ja",'R_5 Kennzahlen'!E55,0) -> 0 | L55: =IF(L$3="Ja",'R_6 Kennzahlen'!E55,0) -> 0 | M55: =IF(M$3="Ja",'R_7 Kennzahlen'!E55,0) -> 0 | N55: =IF(N$3="Ja",'R_8 Kennzahlen'!E55,0) -> 0 | O55: =IF(O$3="Ja",'R_9 Kennzahlen'!E55,0) -> 0 | P55: =IF(P$3="Ja",'R_10 Kennzahlen'!E55,0) -> 0
B56: L-M-5a | C56: Anzahl Touren pro Stunde | D56: [Stk] | E56: 2 | F56: 2 | G56: =IF(G$3="Ja",'R_1 Kennzahlen'!E56,0) -> 2 | H56: =IF(H$3="Ja",'R_2 Kennzahlen'!E56,0) -> 0 | I56: =IF(I$3="Ja",'R_3 Kennzahlen'!E56,0) -> 0 | J56: =IF(J$3="Ja",'R_4 Kennzahlen'!E56,0) -> 0 | K56: =IF(K$3="Ja",'R_5 Kennzahlen'!E56,0) -> 0 | L56: =IF(L$3="Ja",'R_6 Kennzahlen'!E56,0) -> 0 | M56: =IF(M$3="Ja",'R_7 Kennzahlen'!E56,0) -> 0 | N56: =IF(N$3="Ja",'R_8 Kennzahlen'!E56,0) -> 0 | O56: =IF(O$3="Ja",'R_9 Kennzahlen'!E56,0) -> 0 | P56: =IF(P$3="Ja",'R_10 Kennzahlen'!E56,0) -> 0
B57: L-M-5b | C57: Anzahl Touren pro Schicht | D57: [Stk] | E57: 16 | F57: 16 | G57: =IF(G$3="Ja",'R_1 Kennzahlen'!E57,0) -> 16 | H57: =IF(H$3="Ja",'R_2 Kennzahlen'!E57,0) -> 0 | I57: =IF(I$3="Ja",'R_3 Kennzahlen'!E57,0) -> 0 | J57: =IF(J$3="Ja",'R_4 Kennzahlen'!E57,0) -> 0 | K57: =IF(K$3="Ja",'R_5 Kennzahlen'!E57,0) -> 0 | L57: =IF(L$3="Ja",'R_6 Kennzahlen'!E57,0) -> 0 | M57: =IF(M$3="Ja",'R_7 Kennzahlen'!E57,0) -> 0 | N57: =IF(N$3="Ja",'R_8 Kennzahlen'!E57,0) -> 0 | O57: =IF(O$3="Ja",'R_9 Kennzahlen'!E57,0) -> 0 | P57: =IF(P$3="Ja",'R_10 Kennzahlen'!E57,0) -> 0
B58: L-M-5c | C58: Anzahl Touren pro Tag | D58: [Stk] | E58: 32 | F58: 32 | G58: =IF(G$3="Ja",'R_1 Kennzahlen'!E58,0) -> 32 | H58: =IF(H$3="Ja",'R_2 Kennzahlen'!E58,0) -> 0 | I58: =IF(I$3="Ja",'R_3 Kennzahlen'!E58,0) -> 0 | J58: =IF(J$3="Ja",'R_4 Kennzahlen'!E58,0) -> 0 | K58: =IF(K$3="Ja",'R_5 Kennzahlen'!E58,0) -> 0 | L58: =IF(L$3="Ja",'R_6 Kennzahlen'!E58,0) -> 0 | M58: =IF(M$3="Ja",'R_7 Kennzahlen'!E58,0) -> 0 | N58: =IF(N$3="Ja",'R_8 Kennzahlen'!E58,0) -> 0 | O58: =IF(O$3="Ja",'R_9 Kennzahlen'!E58,0) -> 0 | P58: =IF(P$3="Ja",'R_10 Kennzahlen'!E58,0) -> 0
B59: L-M-6 | C59: Anzahl Haltevorgänge pro Tour | D59: [Stk/Tour] | E59: 4.625 | F59: 4.625 | G59: =IF(G$3="Ja",'R_1 Kennzahlen'!E59,0) -> 4.625 | H59: =IF(H$3="Ja",'R_2 Kennzahlen'!E59,0) -> 0 | I59: =IF(I$3="Ja",'R_3 Kennzahlen'!E59,0) -> 0 | J59: =IF(J$3="Ja",'R_4 Kennzahlen'!E59,0) -> 0 | K59: =IF(K$3="Ja",'R_5 Kennzahlen'!E59,0) -> 0 | L59: =IF(L$3="Ja",'R_6 Kennzahlen'!E59,0) -> 0 | M59: =IF(M$3="Ja",'R_7 Kennzahlen'!E59,0) -> 0 | N59: =IF(N$3="Ja",'R_8 Kennzahlen'!E59,0) -> 0 | O59: =IF(O$3="Ja",'R_9 Kennzahlen'!E59,0) -> 0 | P59: =IF(P$3="Ja",'R_10 Kennzahlen'!E59,0) -> 0
B60: L-M-7 | C60: Verkehrsdichte | D60: [Stk/km] | E60: 0.0625 | F60: 0.0625 | G60: =IF(G$3="Ja",'R_1 Kennzahlen'!E60,0) -> 0.0625 | H60: =IF(H$3="Ja",'R_2 Kennzahlen'!E60,0) -> 0 | I60: =IF(I$3="Ja",'R_3 Kennzahlen'!E60,0) -> 0 | J60: =IF(J$3="Ja",'R_4 Kennzahlen'!E60,0) -> 0 | K60: =IF(K$3="Ja",'R_5 Kennzahlen'!E60,0) -> 0 | L60: =IF(L$3="Ja",'R_6 Kennzahlen'!E60,0) -> 0 | M60: =IF(M$3="Ja",'R_7 Kennzahlen'!E60,0) -> 0 | N60: =IF(N$3="Ja",'R_8 Kennzahlen'!E60,0) -> 0 | O60: =IF(O$3="Ja",'R_9 Kennzahlen'!E60,0) -> 0 | P60: =IF(P$3="Ja",'R_10 Kennzahlen'!E60,0) -> 0
B61: L-M-8 | C61: Gesamtnutzungsgrad | D61: [%] | E61: =(E29+E47)/2 -> 75.03472222 | F61: =E61*F7 -> 75.03472222
C62: Wirtschaftlichkeitskennzahlen
B64: W-I-1 | C64: Investitionskosten Gesamt | D64: [€] | E64: =F64/$F$7 -> 32500 | F64: ='Berechnung mit Poolung'!F71 -> 32500
B65: W-I-2 | C65: Investitionskosten Ladungsträger | D65: [€] | E65: =F65/$F$7 -> 500 | F65: ='Berechnung mit Poolung'!F65 -> 500
B66: W-I-3 | C66: Investitionskosten Transportmittel | D66: [€] | E66: 17000 | F66: ='Berechnung mit Poolung'!F66 -> 17000
B67: W-I-4 | C67: Investitionskosten Be- und Entladetechnik | D67: [€] | E67: 10000 | F67: =SUM(G67:P67) -> 10000 | G67: =IF(G$3="Ja",'R_1 Kennzahlen'!E67,0) -> 10000 | H67: =IF(H$3="Ja",'R_2 Kennzahlen'!E67,0) -> 0 | I67: =IF(I$3="Ja",'R_3 Kennzahlen'!E67,0) -> 0 | J67: =IF(J$3="Ja",'R_4 Kennzahlen'!E67,0) -> 0 | K67: =IF(K$3="Ja",'R_5 Kennzahlen'!E67,0) -> 0 | L67: =IF(L$3="Ja",'R_6 Kennzahlen'!E67,0) -> 0 | M67: =IF(M$3="Ja",'R_7 Kennzahlen'!E67,0) -> 0 | N67: =IF(N$3="Ja",'R_8 Kennzahlen'!E67,0) -> 0 | O67: =IF(O$3="Ja",'R_9 Kennzahlen'!E67,0) -> 0 | P67: =IF(P$3="Ja",'R_10 Kennzahlen'!E67,0) -> 0
B68: W-I-5 | C68: Investitionskosten Bereitstelltechnik | D68: [€] | E68: 1000 | F68: 1000 | G68: =IF(G$3="Ja",'R_1 Kennzahlen'!E68,0) -> 1000 | H68: =IF(H$3="Ja",'R_2 Kennzahlen'!E68,0) -> 0 | I68: =IF(I$3="Ja",'R_3 Kennzahlen'!E68,0) -> 0 | J68: =IF(J$3="Ja",'R_4 Kennzahlen'!E68,0) -> 0 | K68: =IF(K$3="Ja",'R_5 Kennzahlen'!E68,0) -> 0 | L68: =IF(L$3="Ja",'R_6 Kennzahlen'!E68,0) -> 0 | M68: =IF(M$3="Ja",'R_7 Kennzahlen'!E68,0) -> 0 | N68: =IF(N$3="Ja",'R_8 Kennzahlen'!E68,0) -> 0 | O68: =IF(O$3="Ja",'R_9 Kennzahlen'!E68,0) -> 0 | P68: =IF(P$3="Ja",'R_10 Kennzahlen'!E68,0) -> 0
B69: W-I-6 | C69: Investitionskosten Informationstechnik | D69: [€] | E69: 2000 | F69: 2000 | G69: =IF(G$3="Ja",'R_1 Kennzahlen'!E69,0) -> 2000 | H69: =IF(H$3="Ja",'R_2 Kennzahlen'!E69,0) -> 0 | I69: =IF(I$3="Ja",'R_3 Kennzahlen'!E69,0) -> 0 | J69: =IF(J$3="Ja",'R_4 Kennzahlen'!E69,0) -> 0 | K69: =IF(K$3="Ja",'R_5 Kennzahlen'!E69,0) -> 0 | L69: =IF(L$3="Ja",'R_6 Kennzahlen'!E69,0) -> 0 | M69: =IF(M$3="Ja",'R_7 Kennzahlen'!E69,0) -> 0 | N69: =IF(N$3="Ja",'R_8 Kennzahlen'!E69,0) -> 0 | O69: =IF(O$3="Ja",'R_9 Kennzahlen'!E69,0) -> 0 | P69: =IF(P$3="Ja",'R_10 Kennzahlen'!E69,0) -> 0
B70: W-I-7 | C70: Sonstige Investitionskosten | D70: [€] | E70: 2000 | F70: 2000 | G70: =IF(G$3="Ja",'R_1 Kennzahlen'!E70,0) -> 2000 | H70: =IF(H$3="Ja",'R_2 Kennzahlen'!E70,0) -> 0 | I70: =IF(I$3="Ja",'R_3 Kennzahlen'!E70,0) -> 0 | J70: =IF(J$3="Ja",'R_4 Kennzahlen'!E70,0) -> 0 | K70: =IF(K$3="Ja",'R_5 Kennzahlen'!E70,0) -> 0 | L70: =IF(L$3="Ja",'R_6 Kennzahlen'!E70,0) -> 0 | M70: =IF(M$3="Ja",'R_7 Kennzahlen'!E70,0) -> 0 | N70: =IF(N$3="Ja",'R_8 Kennzahlen'!E70,0) -> 0 | O70: =IF(O$3="Ja",'R_9 Kennzahlen'!E70,0) -> 0 | P70: =IF(P$3="Ja",'R_10 Kennzahlen'!E70,0) -> 0
B71: W-I-8 | C71: Anteil Investitionskosten Ladungsträger | D71: [%] | E71: =E65/E64*100 -> 1.538461538 | F71: =E71*F$7 -> 1.538461538
B72: W-I-9 | C72: Anteil Investitionskosten Transportmittel | D72: [%] | E72: =E66/E64*100 -> 52.30769231 | F72: =E72*F$7 -> 52.30769231
B73: W-I-10 | C73: Anteil Investitionskosten Be- und Entladetechnik | D73: [%] | E73: =E67/E64*100 -> 30.76923077 | F73: 30.76923077
B74: W-I-11 | C74: Anteil Investitionskosten Bereitstelltechnik | D74: [%] | E74: =E68/E64*100 -> 3.076923077 | F74: 3.076923077
B75: W-I-12 | C75: Anteil Investitionskosten Informationstechnik | D75: [%] | E75: =E69/E64*100 -> 6.153846154 | F75: 6.153846154
B76: W-I-13 | C76: Anteil sonstige Investitionskosten | D76: [%] | E76: =E70/E64*100 -> 6.153846154 | F76: 6.153846154
B77: W-B-1 | C77: Betriebskosten | D77: [€/Jahr] | E77: 113078.2422 | F77: ='Berechnung mit Poolung'!F91 -> 113078.2422
B78: W-B-2 | C78: Kapitalkosten | D78: [€/Jahr] | E78: 975 | F78: ='Berechnung mit Poolung'!F83 -> 975
B79: W-B-3 | C79: Abschreibungen | D79: [€/Jahr] | E79: 4725 | F79: ='Berechnung mit Poolung'!F84 -> 4725
B80: W-B-4 | C80: Wartungs- und Reparaturkosten | D80: [€/Jahr] | E80: 3375 | F80: ='Berechnung mit Poolung'!F85 -> 3375
B81: W-B-5 | C81: Lizenzkosten | D81: [€/Jahr] | E81: 1000 | F81: 1000 | G81: =IF(G$3="Ja",'R_1 Kennzahlen'!E81,0) -> 1000 | H81: =IF(H$3="Ja",'R_2 Kennzahlen'!E81,0) -> 0 | I81: =IF(I$3="Ja",'R_3 Kennzahlen'!E81,0) -> 0 | J81: =IF(J$3="Ja",'R_4 Kennzahlen'!E81,0) -> 0 | K81: =IF(K$3="Ja",'R_5 Kennzahlen'!E81,0) -> 0 | L81: =IF(L$3="Ja",'R_6 Kennzahlen'!E81,0) -> 0 | M81: =IF(M$3="Ja",'R_7 Kennzahlen'!E81,0) -> 0 | N81: =IF(N$3="Ja",'R_8 Kennzahlen'!E81,0) -> 0 | O81: =IF(O$3="Ja",'R_9 Kennzahlen'!E81,0) -> 0 | P81: =IF(P$3="Ja",'R_10 Kennzahlen'!E81,0) -> 0
B82: W-B-6 | C82: Bestandskosten | D82: [€/Jahr] | E82: 3000 | F82: 3000 | G82: =IF(G$3="Ja",'R_1 Kennzahlen'!E82,0) -> 3000 | H82: =IF(H$3="Ja",'R_2 Kennzahlen'!E82,0) -> 0 | I82: =IF(I$3="Ja",'R_3 Kennzahlen'!E82,0) -> 0 | J82: =IF(J$3="Ja",'R_4 Kennzahlen'!E82,0) -> 0 | K82: =IF(K$3="Ja",'R_5 Kennzahlen'!E82,0) -> 0 | L82: =IF(L$3="Ja",'R_6 Kennzahlen'!E82,0) -> 0 | M82: =IF(M$3="Ja",'R_7 Kennzahlen'!E82,0) -> 0 | N82: =IF(N$3="Ja",'R_8 Kennzahlen'!E82,0) -> 0 | O82: =IF(O$3="Ja",'R_9 Kennzahlen'!E82,0) -> 0 | P82: =IF(P$3="Ja",'R_10 Kennzahlen'!E82,0) -> 0
B83: W-B-7 | C83: Flächenkosten | D83: [€/Jahr] | E83: 2000 | F83: 2000 | G83: =IF(G$3="Ja",'R_1 Kennzahlen'!E83,0) -> 2000 | H83: =IF(H$3="Ja",'R_2 Kennzahlen'!E83,0) -> 0 | I83: =IF(I$3="Ja",'R_3 Kennzahlen'!E83,0) -> 0 | J83: =IF(J$3="Ja",'R_4 Kennzahlen'!E83,0) -> 0 | K83: =IF(K$3="Ja",'R_5 Kennzahlen'!E83,0) -> 0 | L83: =IF(L$3="Ja",'R_6 Kennzahlen'!E83,0) -> 0 | M83: =IF(M$3="Ja",'R_7 Kennzahlen'!E83,0) -> 0 | N83: =IF(N$3="Ja",'R_8 Kennzahlen'!E83,0) -> 0 | O83: =IF(O$3="Ja",'R_9 Kennzahlen'!E83,0) -> 0 | P83: =IF(P$3="Ja",'R_10 Kennzahlen'!E83,0) -> 0
B84: W-B-8 | C84: Energiekosten | D84: [€/Jahr] | E84: 2593.52 | F84: 2593.52 | G84: =IF(G$3="Ja",'R_1 Kennzahlen'!E84,0) -> 2593.52 | H84: =IF(H$3="Ja",'R_2 Kennzahlen'!E84,0) -> 0 | I84: =IF(I$3="Ja",'R_3 Kennzahlen'!E84,0) -> 0 | J84: =IF(J$3="Ja",'R_4 Kennzahlen'!E84,0) -> 0 | K84: =IF(K$3="Ja",'R_5 Kennzahlen'!E84,0) -> 0 | L84: =IF(L$3="Ja",'R_6 Kennzahlen'!E84,0) -> 0 | M84: =IF(M$3="Ja",'R_7 Kennzahlen'!E84,0) -> 0 | N84: =IF(N$3="Ja",'R_8 Kennzahlen'!E84,0) -> 0 | O84: =IF(O$3="Ja",'R_9 Kennzahlen'!E84,0) -> 0 | P84: =IF(P$3="Ja",'R_10 Kennzahlen'!E84,0) -> 0
B85: W-B-9 | C85: Personalkosten | D85: [€/Jahr] | E85: 95409.72222 | F85: 95409.72222 | G85: =IF(G$3="Ja",'R_1 Kennzahlen'!E85,0) -> 95409.72222 | H85: =IF(H$3="Ja",'R_2 Kennzahlen'!E85,0) -> 0 | I85: =IF(I$3="Ja",'R_3 Kennzahlen'!E85,0) -> 0 | J85: =IF(J$3="Ja",'R_4 Kennzahlen'!E85,0) -> 0 | K85: =IF(K$3="Ja",'R_5 Kennzahlen'!E85,0) -> 0 | L85: =IF(L$3="Ja",'R_6 Kennzahlen'!E85,0) -> 0 | M85: =IF(M$3="Ja",'R_7 Kennzahlen'!E85,0) -> 0 | N85: =IF(N$3="Ja",'R_8 Kennzahlen'!E85,0) -> 0 | O85: =IF(O$3="Ja",'R_9 Kennzahlen'!E85,0) -> 0 | P85: =IF(P$3="Ja",'R_10 Kennzahlen'!E85,0) -> 0
B86: W-B-10 | C86: Anteil Kapitalkosten | D86: [%] | E86: =E78/E$77*100 -> 0.8622348392 | F86: =E86*F$7 -> 0.8622348392
B87: W-B-11 | C87: Anteil Abschreibungen | D87: [%] | E87: =E79/E$77*100 -> 4.178522682 | F87: =E87*F$7 -> 4.178522682
B88: W-B-12 | C88: Anteil Wartungs- und Reparaturkosten | D88: [%] | E88: 2.984659059 | F88: 2.984659059
B89: W-B-13 | C89: Anteil Lizenzkosten | D89: [%] | E89: 0.8843434248 | F89: 0.8843434248
B90: W-B-14 | C90: Anteil Bestandskosten | D90: [%] | E90: 2.653030274 | F90: 2.653030274
B91: W-B-15 | C91: Anteil Flächenkosten | D91: [%] | E91: 1.76868685 | F91: 1.76868685
B92: W-B-16 | C92: Anteil Energiekosten | D92: [%] | E92: 2.293562359 | F92: 2.293562359
B93: W-B-17 | C93: Anteil Personalkosten | D93: [%] | E93: 84.37496051 | F93: 84.37496051
B94: W-B-18 | C94: Fixe Kosten | D94: [€/Jahr] | E94: =E78+E79+E80+E81+E82+E83 -> 15075 | F94: =E94*F$7 -> 15075
B95: W-B-19 | C95: Variable Kosten | D95: [€/Jahr] | E95: =E84+E85 -> 98003.24222 | F95: =E95*F$7 -> 98003.24222
B96: W-B-20 | C96: Anteil fixe Kosten | D96: [%] | E96: =E94/E77*100 -> 13.33147713 | F96: =E96*F$7 -> 13.33147713
B97: W-B-21 | C97: Anteil variable Kosten | D97: [%] | E97: =E95/E77*100 -> 86.66852287 | F97: 86.66852287 | R97: QUALITÄT
B98: W-B-22 | C98: Kosten pro Transporteinheit | D98: =IF('R_1 Eingabe'!E11="kein Ladungsträger","[€/LE]","[€/LT]") -> [€/LT] | E98: ='Berechnung mit Poolung'!F114 -> 3.099732517 | F98: =E98*F$7 -> 3.099732517
C99: Qualitätskennzahlen
B101: Q-L-1 | C101: Liefertermintreue | D101: [%] | E101: =F101/$F$7 -> 96.82017544 | F101: =SUM(G101:P101) -> 96.82017544 | G101: =IF(G$3="Ja",'R_1 Kennzahlen'!E101,0) -> 96.82017544 | H101: =IF(H$3="Ja",'R_2 Kennzahlen'!E101,0) -> 0 | I101: =IF(I$3="Ja",'R_3 Kennzahlen'!E101,0) -> 0 | J101: =IF(J$3="Ja",'R_4 Kennzahlen'!E101,0) -> 0 | K101: =IF(K$3="Ja",'R_5 Kennzahlen'!E101,0) -> 0 | L101: =IF(L$3="Ja",'R_6 Kennzahlen'!E101,0) -> 0 | M101: =IF(M$3="Ja",'R_7 Kennzahlen'!E101,0) -> 0 | N101: =IF(N$3="Ja",'R_8 Kennzahlen'!E101,0) -> 0 | O101: =IF(O$3="Ja",'R_9 Kennzahlen'!E101,0) -> 0 | P101: =IF(P$3="Ja",'R_10 Kennzahlen'!E101,0) -> 0
B102: Q-L-2 | C102: Lieferterminabweichung | D102: [min/Stk] | E102: =F102/$F$7 -> 0.1754385965 | F102: =SUM(G102:P102) -> 0.1754385965 | G102: =IF(G$3="Ja",'R_1 Kennzahlen'!E102,0) -> 0.1754385965 | H102: =IF(H$3="Ja",'R_2 Kennzahlen'!E102,0) -> 0 | I102: =IF(I$3="Ja",'R_3 Kennzahlen'!E102,0) -> 0 | J102: =IF(J$3="Ja",'R_4 Kennzahlen'!E102,0) -> 0 | K102: =IF(K$3="Ja",'R_5 Kennzahlen'!E102,0) -> 0 | L102: =IF(L$3="Ja",'R_6 Kennzahlen'!E102,0) -> 0 | M102: =IF(M$3="Ja",'R_7 Kennzahlen'!E102,0) -> 0 | N102: =IF(N$3="Ja",'R_8 Kennzahlen'!E102,0) -> 0 | O102: =IF(O$3="Ja",'R_9 Kennzahlen'!E102,0) -> 0 | P102: =IF(P$3="Ja",'R_10 Kennzahlen'!E102,0) -> 0
B103: Q-L-3 | C103: Liefermengentreue | D103: [%] | E103: 99.91776316 | F103: 99.91776316 | G103: =IF(G$3="Ja",'R_1 Kennzahlen'!E103,0) -> 99.91776316 | H103: =IF(H$3="Ja",'R_2 Kennzahlen'!E103,0) -> 0 | I103: =IF(I$3="Ja",'R_3 Kennzahlen'!E103,0) -> 0 | J103: =IF(J$3="Ja",'R_4 Kennzahlen'!E103,0) -> 0 | K103: =IF(K$3="Ja",'R_5 Kennzahlen'!E103,0) -> 0 | L103: =IF(L$3="Ja",'R_6 Kennzahlen'!E103,0) -> 0 | M103: =IF(M$3="Ja",'R_7 Kennzahlen'!E103,0) -> 0 | N103: =IF(N$3="Ja",'R_8 Kennzahlen'!E103,0) -> 0 | O103: =IF(O$3="Ja",'R_9 Kennzahlen'!E103,0) -> 0 | P103: =IF(P$3="Ja",'R_10 Kennzahlen'!E103,0) -> 0
B104: Q-L-4 | C104: Liefermengenabweichung | D104: [Stk] | E104: 0.0009594298246 | F104: 0.0009594298246 | G104: =IF(G$3="Ja",'R_1 Kennzahlen'!E104,0) -> 0.0009594298246 | H104: =IF(H$3="Ja",'R_2 Kennzahlen'!E104,0) -> 0 | I104: =IF(I$3="Ja",'R_3 Kennzahlen'!E104,0) -> 0 | J104: =IF(J$3="Ja",'R_4 Kennzahlen'!E104,0) -> 0 | K104: =IF(K$3="Ja",'R_5 Kennzahlen'!E104,0) -> 0 | L104: =IF(L$3="Ja",'R_6 Kennzahlen'!E104,0) -> 0 | M104: =IF(M$3="Ja",'R_7 Kennzahlen'!E104,0) -> 0 | N104: =IF(N$3="Ja",'R_8 Kennzahlen'!E104,0) -> 0 | O104: =IF(O$3="Ja",'R_9 Kennzahlen'!E104,0) -> 0 | P104: =IF(P$3="Ja",'R_10 Kennzahlen'!E104,0) -> 0
B105: Q-S-1 | C105: Unfallhäufigkeit (je 1 Mio. Arbeitsstunden) | D105: [Stk] | E105: 136.4728146 | F105: 136.4728146 | G105: =IF(G$3="Ja",'R_1 Kennzahlen'!E105,0) -> 136.4728146 | H105: =IF(H$3="Ja",'R_2 Kennzahlen'!E105,0) -> 0 | I105: =IF(I$3="Ja",'R_3 Kennzahlen'!E105,0) -> 0 | J105: =IF(J$3="Ja",'R_4 Kennzahlen'!E105,0) -> 0 | K105: =IF(K$3="Ja",'R_5 Kennzahlen'!E105,0) -> 0 | L105: =IF(L$3="Ja",'R_6 Kennzahlen'!E105,0) -> 0 | M105: =IF(M$3="Ja",'R_7 Kennzahlen'!E105,0) -> 0 | N105: =IF(N$3="Ja",'R_8 Kennzahlen'!E105,0) -> 0 | O105: =IF(O$3="Ja",'R_9 Kennzahlen'!E105,0) -> 0 | P105: =IF(P$3="Ja",'R_10 Kennzahlen'!E105,0) -> 0
B106: Q-S-2 | C106: Unfallschwere | D106: [Tage/Stk] | E106: 3 | F106: 3 | G106: =IF(G$3="Ja",'R_1 Kennzahlen'!E106,0) -> 3 | H106: =IF(H$3="Ja",'R_2 Kennzahlen'!E106,0) -> 0 | I106: =IF(I$3="Ja",'R_3 Kennzahlen'!E106,0) -> 0 | J106: =IF(J$3="Ja",'R_4 Kennzahlen'!E106,0) -> 0 | K106: =IF(K$3="Ja",'R_5 Kennzahlen'!E106,0) -> 0 | L106: =IF(L$3="Ja",'R_6 Kennzahlen'!E106,0) -> 0 | M106: =IF(M$3="Ja",'R_7 Kennzahlen'!E106,0) -> 0 | N106: =IF(N$3="Ja",'R_8 Kennzahlen'!E106,0) -> 0 | O106: =IF(O$3="Ja",'R_9 Kennzahlen'!E106,0) -> 0 | P106: =IF(P$3="Ja",'R_10 Kennzahlen'!E106,0) -> 0
B107: Q-E-1 | C107: Punktwert Multiple-Lasten-Tool | D107: [PW] | E107: 18.95384859 | F107: 18.95384859 | G107: =IF(G$3="Ja",'R_1 Kennzahlen'!E107,0) -> 18.95384859 | H107: =IF(H$3="Ja",'R_2 Kennzahlen'!E107,0) -> 0 | I107: =IF(I$3="Ja",'R_3 Kennzahlen'!E107,0) -> 0 | J107: =IF(J$3="Ja",'R_4 Kennzahlen'!E107,0) -> 0 | K107: =IF(K$3="Ja",'R_5 Kennzahlen'!E107,0) -> 0 | L107: =IF(L$3="Ja",'R_6 Kennzahlen'!E107,0) -> 0 | M107: =IF(M$3="Ja",'R_7 Kennzahlen'!E107,0) -> 0 | N107: =IF(N$3="Ja",'R_8 Kennzahlen'!E107,0) -> 0 | O107: =IF(O$3="Ja",'R_9 Kennzahlen'!E107,0) -> 0 | P107: =IF(P$3="Ja",'R_10 Kennzahlen'!E107,0) -> 0
B108: Q-F-1 | C108: Zeitliche Flexibilität Routenzug | D108: [%] | E108: =IF(F7>=1,100-E29,0) -> 44.93055556 | F108: =E108*F7 -> 44.93055556
B109: Q-F-2 | C109: Zeitliche Flexibilität Mitarbeiter | D109: [%] | E109: =IF(F7>=1,100-E30,0) -> 44.93055556 | F109: =E109*F8 -> 44.93055556
B110: Q-F-3 | C110: Kapazitive Flexibilität Routenzug | D110: [%] | E110: =IF(F7>=1,100-E47,0) -> 5 | F110: 50
B111: Q-F-4 | C111: Gesamtflexibilität Routenzug | D111: [%] | E111: =(E108+E110)/2 -> 24.96527778 | F111: =(F108+F110)/2 -> 47.46527778
F113: Grenzen Puntkwerte MLT
F114: 25
F115: 25
F116: 25

Sheet System-Analyse
C2: WIRKUNGSANALYSE | E2: SYSTEM | T2: =IF(T4="Ja",1,0) -> 1 | X2: =IF(X4="Ja",1,0) -> 0 | AB2: =IF(AB4="Ja",1,0) -> 0 | AF2: =IF(AF4="Ja",1,0) -> 0 | AJ2: =IF(AJ4="Ja",1,0) -> 0 | AN2: =IF(AN4="Ja",1,0) -> 0 | AR2: =IF(AR4="Ja",1,0) -> 0 | AV2: =IF(AV4="Ja",1,0) -> 0 | AZ2: =IF(AZ4="Ja",1,0) -> 0 | BD2: =IF(BD4="Ja",1,0) -> 0
G3: Wirkintensität aggregiert [%] | M3: Anzahl berücksichtigter Routen = | P3: =T2+X2+AB2+AF2+AJ2+AN2+AR2+AV2+AZ2+BD2 -> 1 | Q3: Route 1 | U3: Route 2 | Y3: Route 3 | AC3: Route 4 | AG3: Route 5 | AK3: Route 6 | AO3: Route 7 | AS3: Route 8 | AW3: Route 9 | BA3: Route 10
C4: Kennzahlenaggregation | Q4: Route berücksichtigen? | T4: =IF('R_1 Analyse'!E5="Ja","Ja","Nein") -> Ja | U4: Route berücksichtigen? | X4: =IF('R_2 Analyse'!E5="Ja","Ja","Nein") -> Nein | Y4: Route berücksichtigen? | AB4: =IF('R_3 Analyse'!E5="Ja","Ja","Nein") -> Nein | AC4: Route berücksichtigen? | AF4: =IF('R_4 Analyse'!E5="Ja","Ja","Nein") -> Nein | AG4: Route berücksichtigen? | AJ4: =IF('R_5 Analyse'!E5="Ja","Ja","Nein") -> Nein | AK4: Route berücksichtigen? | AN4: =IF('R_6 Analyse'!E5="Ja","Ja","Nein") -> Nein | AO4: Route berücksichtigen? | AR4: =IF('R_7 Analyse'!E5="Ja","Ja","Nein") -> Nein | AS4: Route berücksichtigen? | AV4: =IF('R_8 Analyse'!E5="Ja","Ja","Nein") -> Nein | AW4: Route berücksichtigen? | AZ4: =IF('R_9 Analyse'!E5="Ja","Ja","Nein") -> Nein | BA4: Route berücksichtigen? | BD4: =IF('R_10 Analyse'!E5="Ja","Ja","Nein") -> Nein
M5: Summe Gewichtung (ƩgR) = | P5: =T5+X5+AB5+AF5+AJ5+AN5+AR5+AV5+AZ5+BD5 -> 1 | Q5: Gewichtung (0 % ≤ gR ≤ 100 %) | T5: =IF(T4="Ja",1/$P$3,0) -> 1 | U5: Gewichtung (0 % ≤ gR ≤ 100 %) | X5: =IF(X4="Ja",1/$P$3,0) -> 0 | Y5: Gewichtung (0 % ≤ gR ≤ 100 %) | AB5: =IF(AB4="Ja",1/$P$3,0) -> 0 | AC5: Gewichtung (0 % ≤ gR ≤ 100 %) | AF5: =IF(AF4="Ja",1/$P$3,0) -> 0 | AG5: Gewichtung (0 % ≤ gR ≤ 100 %) | AJ5: =IF(AJ4="Ja",1/$P$3,0) -> 0 | AK5: Gewichtung (0 % ≤ gR ≤ 100 %) | AN5: =IF(AN4="Ja",1/$P$3,0) -> 0 | AO5: Gewichtung (0 % ≤ gR ≤ 100 %) | AR5: =IF(AR4="Ja",1/$P$3,0) -> 0 | AS5: Gewichtung (0 % ≤ gR ≤ 100 %) | AV5: =IF(AV4="Ja",1/$P$3,0) -> 0 | AW5: Gewichtung (0 % ≤ gR ≤ 100 %) | AZ5: =IF(AZ4="Ja",1/$P$3,0) -> 0 | BA5: Gewichtung (0 % ≤ gR ≤ 100 %) | BD5: =IF(BD4="Ja",1/$P$3,0) -> 0 | BE5: positiv / | BF5: synchron | BG5: positiv / | BH5: asychron | BI5: negativ / | BJ5: synchron | BK5: negativ / | BL5: asychron | BM5: kein / | BN5: synchron | BO5: kein / | BP5: asynchron | BR5: Trend
G6: Nr. | H6: Eingabeparameter | M6: Minimium | N6: Maximum | O6: Trend | P6: Spannweite | Q6: Minimium | R6: Maximum | S6: Trend | T6: Spannweite | U6: Minimium | V6: Maximum | W6: Trend | X6: Spannweite | Y6: Minimium | Z6: Maximum | AA6: Trend | AB6: Spannweite | AC6: Minimium | AD6: Maximum | AE6: Trend | AF6: Spannweite | AG6: Minimium | AH6: Maximum | AI6: Trend | AJ6: Spannweite | AK6: Minimium | AL6: Maximum | AM6: Trend | AN6: Spannweite | AO6: Minimium | AP6: Maximum | AQ6: Trend | AR6: Spannweite | AS6: Minimium | AT6: Maximum | AU6: Trend | AV6: Spannweite | AW6: Minimium | AX6: Maximum | AY6: Trend | AZ6: Spannweite | BA6: Minimium | BB6: Maximum | BC6: Trend | BD6: Spannweite | BE6: Min | BF6: Max | BG6: Min | BH6: Max | BI6: Min | BJ6: Max | BK6: Min | BL6: Max | BM6: Min | BN6: Max | BO6: Min | BP6: Max | BQ6: kein | BR6: positiv | BS6: negativ
G7: 1 | H7: Gewicht Zuladung pro Ladungsträger | M7: =IFERROR(T$5*Q7+X$5*U7+AB$5*Y7+AF$5*AC7+AJ$5*AG7+AN$5*AK7+AR$5*AO7+AV$5*AS7+AZ$5*AW7+BD$5*BA7,0) -> 0 | N7: =IFERROR(T$5*R7+X$5*V7+AB$5*Z7+AF$5*AD7+AJ$5*AH7+AN$5*AL7+AR$5*AP7+AV$5*AT7+AZ$5*AX7+BD$5*BB7,0) -> 0 | O7: =IF(AND(BR7=1,BS7=0),"positiv",IF(AND(BR7=0,BS7=1),"negativ","kein")) -> kein | P7: =IFERROR(IF(ABS(ABS(M7)/ABS(N7)-1)<0.01,"synchron","asynchron"),IF(M7<>0,"asynchron","synchron")) -> synchron | Q7: =IF(T$4="Ja",'R_1 Analyse'!AV903,0) -> 0 | R7: =IF(T$4="Ja",'R_1 Analyse'!AW903,0) -> 0 | S7: =IF(T$4="Ja",'R_1 Analyse'!AX903,"") -> kein | T7: =IF(T$4="Ja",'R_1 Analyse'!AY903,"") -> synchron | U7: =IF(X$4="Ja",'R_2 Analyse'!AV903,0) -> 0 | V7: =IF(X$4="Ja",'R_2 Analyse'!AW903,0) -> 0 | W7: =IF(X$4="Ja",'R_2 Analyse'!AX903,"") ->  | X7: =IF(X$4="Ja",'R_2 Analyse'!AY903,"") ->  | Y7: =IF(AB$4="Ja",'R_3 Analyse'!AV903,0) -> 0 | Z7: =IF(AB$4="Ja",'R_3 Analyse'!AW903,0) -> 0 | AA7: =IF(AB$4="Ja",'R_3 Analyse'!AX903,"") ->  | AB7: =IF(AB$4="Ja",'R_3 Analyse'!AY903,"") ->  | AC7: =IF(AF$4="Ja",'R_4 Analyse'!AV903,0) -> 0 | AD7: =IF(AF$4="Ja",'R_4 Analyse'!AW903,0) -> 0 | AE7: =IF(AF$4="Ja",'R_4 Analyse'!AX903,"") ->  | AF7: =IF(AF$4="Ja",'R_4 Analyse'!AY903,"") ->  | AG7: =IF(AJ$4="Ja",'R_5 Analyse'!AV903,0) -> 0 | AH7: =IF(AJ$4="Ja",'R_5 Analyse'!AW903,0) -> 0 | AI7: =IF(AJ$4="Ja",'R_5 Analyse'!AX903,"") ->  | AJ7: =IF(AJ$4="Ja",'R_5 Analyse'!AY903,"") ->  | AK7: =IF(AN$4="Ja",'R_6 Analyse'!AV903,0) -> 0 | AL7: =IF(AN$4="Ja",'R_6 Analyse'!AW903,0) -> 0 | AM7: =IF(AN$4="Ja",'R_6 Analyse'!AX903,"") ->  | AN7: =IF(AN$4="Ja",'R_6 Analyse'!AY903,"") ->  | AO7: =IF(AR$4="Ja",'R_7 Analyse'!AV903,0) -> 0 | AP7: =IF(AR$4="Ja",'R_7 Analyse'!AW903,0) -> 0 | AQ7: =IF(AR$4="Ja",'R_7 Analyse'!AX903,"") ->  | AR7: =IF(AR$4="Ja",'R_7 Analyse'!AY903,"") ->  | AS7: =IF(AV$4="Ja",'R_8 Analyse'!AV903,0) -> 0 | AT7: =IF(AV$4="Ja",'R_8 Analyse'!AW903,0) -> 0 | AU7: =IF(AV$4="Ja",'R_8 Analyse'!AX903,"") ->  | AV7: =IF(AV$4="Ja",'R_8 Analyse'!AY903,"") ->  | AW7: =IF(AZ$4="Ja",'R_9 Analyse'!AV903,0) -> 0 | AX7: =IF(AZ$4="Ja",'R_9 Analyse'!AW903,0) -> 0 | AY7: =IF(AZ$4="Ja",'R_9 Analyse'!AX903,"") ->  | AZ7: =IF(AZ$4="Ja",'R_9 Analyse'!AY903,"") ->  | BA7: =IF(BD$4="Ja",'R_10 Analyse'!AV903,0) -> 0 | BB7: =IF(BD$4="Ja",'R_10 Analyse'!AW903,0) -> 0 | BC7: =IF(BD$4="Ja",'R_10 Analyse'!AX903,"") ->  | BD7: =IF(BD$4="Ja",'R_10 Analyse'!AY903,"") ->  | BE7: =IF(AND(O7="positiv",P7="synchron"),M7,0) -> 0 | BF7: =IF(AND(O7="positiv",P7="synchron"),N7,0) -> 0 | BG7: =IF(AND(O7="positiv",P7="asynchron"),M7,0) -> 0 | BH7: =IF(AND(O7="positiv",P7="asynchron"),N7,0) -> 0 | BI7: =IF(AND(O7="negativ",P7="synchron"),M7,0) -> 0 | BJ7: =IF(AND(O7="negativ",P7="synchron"),N7,0) -> 0 | BK7: =IF(AND(O7="negativ",P7="asynchron"),M7,0) -> 0 | BL7: =IF(AND(O7="negativ",P7="asynchron"),N7,0) -> 0 | BM7: =IF(AND(O7="kein",P7="synchron"),M7,0) -> 0 | BN7: =IF(AND(O7="kein",P7="synchron"),N7,0) -> 0 | BO7: =IF(AND(O7="kein",P7="asynchron"),M7,0) -> 0 | BP7: =IF(AND(O7="kein",P7="asynchron"),N7,0) -> 0 | BQ7: =IF(OR(S7="kein",W7="kein",AA7="kein",AE7="kein",AI7="kein",AM7="kein",AQ7="kein",AU7="kein",AY7="kein",BC7="kein"),1,0) -> 1 | BR7: =IF(OR(S7="positiv",W7="positiv",AA7="positiv",AE7="positiv",AI7="positiv",AM7="positiv",AQ7="positiv",AU7="positiv",AY7="positiv",BC7="positiv"),1,0) -> 0 | BS7: =IF(OR(S7="negativ",W7="negativ",AA7="negativ",AE7="negativ",AI7="negativ",AM7="negativ",AQ7="negativ",AU7="negativ",AY7="negativ",BC7="negativ"),1,0) -> 0
G8: 2 | H8: Mittlere Entfernung Haltepunkt - Quelle | M8: =IFERROR(T$5*Q8+X$5*U8+AB$5*Y8+AF$5*AC8+AJ$5*AG8+AN$5*AK8+AR$5*AO8+AV$5*AS8+AZ$5*AW8+BD$5*BA8,0) -> 0 | N8: =IFERROR(T$5*R8+X$5*V8+AB$5*Z8+AF$5*AD8+AJ$5*AH8+AN$5*AL8+AR$5*AP8+AV$5*AT8+AZ$5*AX8+BD$5*BB8,0) -> 0 | O8: kein | P8: =IFERROR(IF(ABS(ABS(M8)/ABS(N8)-1)<0.01,"synchron","asynchron"),IF(M8<>0,"asynchron","synchron")) -> synchron | Q8: =IF(T$4="Ja",'R_1 Analyse'!AV904,0) -> 0 | R8: =IF(T$4="Ja",'R_1 Analyse'!AW904,0) -> 0 | S8: =IF(T$4="Ja",'R_1 Analyse'!AX904,"") -> kein | T8: =IF(T$4="Ja",'R_1 Analyse'!AY904,"") -> synchron | U8: =IF(X$4="Ja",'R_2 Analyse'!AV904,0) -> 0 | V8: =IF(X$4="Ja",'R_2 Analyse'!AW904,0) -> 0 | W8: =IF(X$4="Ja",'R_2 Analyse'!AX904,"") ->  | X8: =IF(X$4="Ja",'R_2 Analyse'!AY904,"") ->  | Y8: =IF(AB$4="Ja",'R_3 Analyse'!AV904,0) -> 0 | Z8: =IF(AB$4="Ja",'R_3 Analyse'!AW904,0) -> 0 | AA8: =IF(AB$4="Ja",'R_3 Analyse'!AX904,"") ->  | AB8: =IF(AB$4="Ja",'R_3 Analyse'!AY904,"") ->  | AC8: =IF(AF$4="Ja",'R_4 Analyse'!AV904,0) -> 0 | AD8: =IF(AF$4="Ja",'R_4 Analyse'!AW904,0) -> 0 | AE8: =IF(AF$4="Ja",'R_4 Analyse'!AX904,"") ->  | AF8: =IF(AF$4="Ja",'R_4 Analyse'!AY904,"") ->  | AG8: =IF(AJ$4="Ja",'R_5 Analyse'!AV904,0) -> 0 | AH8: =IF(AJ$4="Ja",'R_5 Analyse'!AW904,0) -> 0 | AI8: =IF(AJ$4="Ja",'R_5 Analyse'!AX904,"") ->  | AJ8: =IF(AJ$4="Ja",'R_5 Analyse'!AY904,"") ->  | AK8: =IF(AN$4="Ja",'R_6 Analyse'!AV904,0) -> 0 | AL8: =IF(AN$4="Ja",'R_6 Analyse'!AW904,0) -> 0 | AM8: =IF(AN$4="Ja",'R_6 Analyse'!AX904,"") ->  | AN8: =IF(AN$4="Ja",'R_6 Analyse'!AY904,"") ->  | AO8: =IF(AR$4="Ja",'R_7 Analyse'!AV904,0) -> 0 | AP8: =IF(AR$4="Ja",'R_7 Analyse'!AW904,0) -> 0 | AQ8: =IF(AR$4="Ja",'R_7 Analyse'!AX904,"") ->  | AR8: =IF(AR$4="Ja",'R_7 Analyse'!AY904,"") ->  | AS8: =IF(AV$4="Ja",'R_8 Analyse'!AV904,0) -> 0 | AT8: =IF(AV$4="Ja",'R_8 Analyse'!AW904,0) -> 0 | AU8: =IF(AV$4="Ja",'R_8 Analyse'!AX904,"") ->  | AV8: =IF(AV$4="Ja",'R_8 Analyse'!AY904,"") ->  | AW8: =IF(AZ$4="Ja",'R_9 Analyse'!AV904,0) -> 0 | AX8: =IF(AZ$4="Ja",'R_9 Analyse'!AW904,0) -> 0 | AY8: =IF(AZ$4="Ja",'R_9 Analyse'!AX904,"") ->  | AZ8: =IF(AZ$4="Ja",'R_9 Analyse'!AY904,"") ->  | BA8: =IF(BD$4="Ja",'R_10 Analyse'!AV904,0) -> 0 | BB8: =IF(BD$4="Ja",'R_10 Analyse'!AW904,0) -> 0 | BC8: =IF(BD$4="Ja",'R_10 Analyse'!AX904,"") ->  | BD8: =IF(BD$4="Ja",'R_10 Analyse'!AY904,"") ->  | BE8: =IF(AND(O8="positiv",P8="synchron"),M8,0) -> 0 | BF8: =IF(AND(O8="positiv",P8="synchron"),N8,0) -> 0 | BG8: =IF(AND(O8="positiv",P8="asynchron"),M8,0) -> 0 | BH8: =IF(AND(O8="positiv",P8="asynchron"),N8,0) -> 0 | BI8: =IF(AND(O8="negativ",P8="synchron"),M8,0) -> 0 | BJ8: =IF(AND(O8="negativ",P8="synchron"),N8,0) -> 0 | BK8: =IF(AND(O8="negativ",P8="asynchron"),M8,0) -> 0 | BL8: =IF(AND(O8="negativ",P8="asynchron"),N8,0) -> 0 | BM8: =IF(AND(O8="kein",P8="synchron"),M8,0) -> 0 | BN8: =IF(AND(O8="kein",P8="synchron"),N8,0) -> 0 | BO8: =IF(AND(O8="kein",P8="asynchron"),M8,0) -> 0 | BP8: =IF(AND(O8="kein",P8="asynchron"),N8,0) -> 0 | BQ8: =IF(OR(S8="kein",W8="kein",AA8="kein",AE8="kein",AI8="kein",AM8="kein",AQ8="kein",AU8="kein",AY8="kein",BC8="kein"),1,0) -> 1 | BR8: =IF(OR(S8="positiv",W8="positiv",AA8="positiv",AE8="positiv",AI8="positiv",AM8="positiv",AQ8="positiv",AU8="positiv",AY8="positiv",BC8="positiv"),1,0) -> 0 | BS8: =IF(OR(S8="negativ",W8="negativ",AA8="negativ",AE8="negativ",AI8="negativ",AM8="negativ",AQ8="negativ",AU8="negativ",AY8="negativ",BC8="negativ"),1,0) -> 0
G9: 3 | H9: Mittlere Entfernung Haltepunkt - Senke | M9: 0 | N9: 0 | O9: kein | P9: synchron | Q9: =IF(T$4="Ja",'R_1 Analyse'!AV905,0) -> 0 | R9: =IF(T$4="Ja",'R_1 Analyse'!AW905,0) -> 0 | S9: =IF(T$4="Ja",'R_1 Analyse'!AX905,"") -> kein | T9: =IF(T$4="Ja",'R_1 Analyse'!AY905,"") -> synchron | U9: =IF(X$4="Ja",'R_2 Analyse'!AV905,0) -> 0 | V9: =IF(X$4="Ja",'R_2 Analyse'!AW905,0) -> 0 | W9: =IF(X$4="Ja",'R_2 Analyse'!AX905,"") ->  | X9: =IF(X$4="Ja",'R_2 Analyse'!AY905,"") ->  | Y9: =IF(AB$4="Ja",'R_3 Analyse'!AV905,0) -> 0 | Z9: =IF(AB$4="Ja",'R_3 Analyse'!AW905,0) -> 0 | AA9: =IF(AB$4="Ja",'R_3 Analyse'!AX905,"") ->  | AB9: =IF(AB$4="Ja",'R_3 Analyse'!AY905,"") ->  | AC9: =IF(AF$4="Ja",'R_4 Analyse'!AV905,0) -> 0 | AD9: =IF(AF$4="Ja",'R_4 Analyse'!AW905,0) -> 0 | AE9: =IF(AF$4="Ja",'R_4 Analyse'!AX905,"") ->  | AF9: =IF(AF$4="Ja",'R_4 Analyse'!AY905,"") ->  | AG9: =IF(AJ$4="Ja",'R_5 Analyse'!AV905,0) -> 0 | AH9: =IF(AJ$4="Ja",'R_5 Analyse'!AW905,0) -> 0 | AI9: =IF(AJ$4="Ja",'R_5 Analyse'!AX905,"") ->  | AJ9: =IF(AJ$4="Ja",'R_5 Analyse'!AY905,"") ->  | AK9: =IF(AN$4="Ja",'R_6 Analyse'!AV905,0) -> 0 | AL9: =IF(AN$4="Ja",'R_6 Analyse'!AW905,0) -> 0 | AM9: =IF(AN$4="Ja",'R_6 Analyse'!AX905,"") ->  | AN9: =IF(AN$4="Ja",'R_6 Analyse'!AY905,"") ->  | AO9: =IF(AR$4="Ja",'R_7 Analyse'!AV905,0) -> 0 | AP9: =IF(AR$4="Ja",'R_7 Analyse'!AW905,0) -> 0 | AQ9: =IF(AR$4="Ja",'R_7 Analyse'!AX905,"") ->  | AR9: =IF(AR$4="Ja",'R_7 Analyse'!AY905,"") ->  | AS9: =IF(AV$4="Ja",'R_8 Analyse'!AV905,0) -> 0 | AT9: =IF(AV$4="Ja",'R_8 Analyse'!AW905,0) -> 0 | AU9: =IF(AV$4="Ja",'R_8 Analyse'!AX905,"") ->  | AV9: =IF(AV$4="Ja",'R_8 Analyse'!AY905,"") ->  | AW9: =IF(AZ$4="Ja",'R_9 Analyse'!AV905,0) -> 0 | AX9: =IF(AZ$4="Ja",'R_9 Analyse'!AW905,0) -> 0 | AY9: =IF(AZ$4="Ja",'R_9 Analyse'!AX905,"") ->  | AZ9: =IF(AZ$4="Ja",'R_9 Analyse'!AY905,"") ->  | BA9: =IF(BD$4="Ja",'R_10 Analyse'!AV905,0) -> 0 | BB9: =IF(BD$4="Ja",'R_10 Analyse'!AW905,0) -> 0 | BC9: =IF(BD$4="Ja",'R_10 Analyse'!AX905,"") ->  | BD9: =IF(BD$4="Ja",'R_10 Analyse'!AY905,"") ->  | BE9: 0 | BF9: 0 | BG9: 0 | BH9: 0 | BI9: 0 | BJ9: 0 | BK9: 0 | BL9: 0 | BM9: 0 | BN9: 0 | BO9: 0 | BP9: 0 | BQ9: 1 | BR9: 0 | BS9: 0
G10: 4 | H10: Minimale Routenfrequenz (Vorgabe) | M10: 0 | N10: 0.4314669135 | O10: positiv | P10: asynchron | Q10: =IF(T$4="Ja",'R_1 Analyse'!AV906,0) -> 0 | R10: =IF(T$4="Ja",'R_1 Analyse'!AW906,0) -> 0.4314669135 | S10: =IF(T$4="Ja",'R_1 Analyse'!AX906,"") -> positiv | T10: =IF(T$4="Ja",'R_1 Analyse'!AY906,"") -> asynchron | U10: =IF(X$4="Ja",'R_2 Analyse'!AV906,0) -> 0 | V10: =IF(X$4="Ja",'R_2 Analyse'!AW906,0) -> 0 | W10: =IF(X$4="Ja",'R_2 Analyse'!AX906,"") ->  | X10: =IF(X$4="Ja",'R_2 Analyse'!AY906,"") ->  | Y10: =IF(AB$4="Ja",'R_3 Analyse'!AV906,0) -> 0 | Z10: =IF(AB$4="Ja",'R_3 Analyse'!AW906,0) -> 0 | AA10: =IF(AB$4="Ja",'R_3 Analyse'!AX906,"") ->  | AB10: =IF(AB$4="Ja",'R_3 Analyse'!AY906,"") ->  | AC10: =IF(AF$4="Ja",'R_4 Analyse'!AV906,0) -> 0 | AD10: =IF(AF$4="Ja",'R_4 Analyse'!AW906,0) -> 0 | AE10: =IF(AF$4="Ja",'R_4 Analyse'!AX906,"") ->  | AF10: =IF(AF$4="Ja",'R_4 Analyse'!AY906,"") ->  | AG10: =IF(AJ$4="Ja",'R_5 Analyse'!AV906,0) -> 0 | AH10: =IF(AJ$4="Ja",'R_5 Analyse'!AW906,0) -> 0 | AI10: =IF(AJ$4="Ja",'R_5 Analyse'!AX906,"") ->  | AJ10: =IF(AJ$4="Ja",'R_5 Analyse'!AY906,"") ->  | AK10: =IF(AN$4="Ja",'R_6 Analyse'!AV906,0) -> 0 | AL10: =IF(AN$4="Ja",'R_6 Analyse'!AW906,0) -> 0 | AM10: =IF(AN$4="Ja",'R_6 Analyse'!AX906,"") ->  | AN10: =IF(AN$4="Ja",'R_6 Analyse'!AY906,"") ->  | AO10: =IF(AR$4="Ja",'R_7 Analyse'!AV906,0) -> 0 | AP10: =IF(AR$4="Ja",'R_7 Analyse'!AW906,0) -> 0 | AQ10: =IF(AR$4="Ja",'R_7 Analyse'!AX906,"") ->  | AR10: =IF(AR$4="Ja",'R_7 Analyse'!AY906,"") ->  | AS10: =IF(AV$4="Ja",'R_8 Analyse'!AV906,0) -> 0 | AT10: =IF(AV$4="Ja",'R_8 Analyse'!AW906,0) -> 0 | AU10: =IF(AV$4="Ja",'R_8 Analyse'!AX906,"") ->  | AV10: =IF(AV$4="Ja",'R_8 Analyse'!AY906,"") ->  | AW10: =IF(AZ$4="Ja",'R_9 Analyse'!AV906,0) -> 0 | AX10: =IF(AZ$4="Ja",'R_9 Analyse'!AW906,0) -> 0 | AY10: =IF(AZ$4="Ja",'R_9 Analyse'!AX906,"") ->  | AZ10: =IF(AZ$4="Ja",'R_9 Analyse'!AY906,"") ->  | BA10: =IF(BD$4="Ja",'R_10 Analyse'!AV906,0) -> 0 | BB10: =IF(BD$4="Ja",'R_10 Analyse'!AW906,0) -> 0 | BC10: =IF(BD$4="Ja",'R_10 Analyse'!AX906,"") ->  | BD10: =IF(BD$4="Ja",'R_10 Analyse'!AY906,"") ->  | BE10: 0 | BF10: 0 | BG10: 0 | BH10: 0.4314669135 | BI10: 0 | BJ10: 0 | BK10: 0 | BL10: 0 | BM10: 0 | BN10: 0 | BO10: 0 | BP10: 0 | BQ10: 0 | BR10: 1 | BS10: 0
G11: 5 | H11: Routenlänge | M11: -7.527549222 | N11: 7.843001139 | O11: kein | P11: asynchron | Q11: =IF(T$4="Ja",'R_1 Analyse'!AV907,0) -> -7.527549222 | R11: =IF(T$4="Ja",'R_1 Analyse'!AW907,0) -> 7.843001139 | S11: =IF(T$4="Ja",'R_1 Analyse'!AX907,"") -> kein | T11: =IF(T$4="Ja",'R_1 Analyse'!AY907,"") -> asynchron | U11: =IF(X$4="Ja",'R_2 Analyse'!AV907,0) -> 0 | V11: =IF(X$4="Ja",'R_2 Analyse'!AW907,0) -> 0 | W11: =IF(X$4="Ja",'R_2 Analyse'!AX907,"") ->  | X11: =IF(X$4="Ja",'R_2 Analyse'!AY907,"") ->  | Y11: =IF(AB$4="Ja",'R_3 Analyse'!AV907,0) -> 0 | Z11: =IF(AB$4="Ja",'R_3 Analyse'!AW907,0) -> 0 | AA11: =IF(AB$4="Ja",'R_3 Analyse'!AX907,"") ->  | AB11: =IF(AB$4="Ja",'R_3 Analyse'!AY907,"") ->  | AC11: =IF(AF$4="Ja",'R_4 Analyse'!AV907,0) -> 0 | AD11: =IF(AF$4="Ja",'R_4 Analyse'!AW907,0) -> 0 | AE11: =IF(AF$4="Ja",'R_4 Analyse'!AX907,"") ->  | AF11: =IF(AF$4="Ja",'R_4 Analyse'!AY907,"") ->  | AG11: =IF(AJ$4="Ja",'R_5 Analyse'!AV907,0) -> 0 | AH11: =IF(AJ$4="Ja",'R_5 Analyse'!AW907,0) -> 0 | AI11: =IF(AJ$4="Ja",'R_5 Analyse'!AX907,"") ->  | AJ11: =IF(AJ$4="Ja",'R_5 Analyse'!AY907,"") ->  | AK11: =IF(AN$4="Ja",'R_6 Analyse'!AV907,0) -> 0 | AL11: =IF(AN$4="Ja",'R_6 Analyse'!AW907,0) -> 0 | AM11: =IF(AN$4="Ja",'R_6 Analyse'!AX907,"") ->  | AN11: =IF(AN$4="Ja",'R_6 Analyse'!AY907,"") ->  | AO11: =IF(AR$4="Ja",'R_7 Analyse'!AV907,0) -> 0 | AP11: =IF(AR$4="Ja",'R_7 Analyse'!AW907,0) -> 0 | AQ11: =IF(AR$4="Ja",'R_7 Analyse'!AX907,"") ->  | AR11: =IF(AR$4="Ja",'R_7 Analyse'!AY907,"") ->  | AS11: =IF(AV$4="Ja",'R_8 Analyse'!AV907,0) -> 0 | AT11: =IF(AV$4="Ja",'R_8 Analyse'!AW907,0) -> 0 | AU11: =IF(AV$4="Ja",'R_8 Analyse'!AX907,"") ->  | AV11: =IF(AV$4="Ja",'R_8 Analyse'!AY907,"") ->  | AW11: =IF(AZ$4="Ja",'R_9 Analyse'!AV907,0) -> 0 | AX11: =IF(AZ$4="Ja",'R_9 Analyse'!AW907,0) -> 0 | AY11: =IF(AZ$4="Ja",'R_9 Analyse'!AX907,"") ->  | AZ11: =IF(AZ$4="Ja",'R_9 Analyse'!AY907,"") ->  | BA11: =IF(BD$4="Ja",'R_10 Analyse'!AV907,0) -> 0 | BB11: =IF(BD$4="Ja",'R_10 Analyse'!AW907,0) -> 0 | BC11: =IF(BD$4="Ja",'R_10 Analyse'!AX907,"") ->  | BD11: =IF(BD$4="Ja",'R_10 Analyse'!AY907,"") ->  | BE11: 0 | BF11: 0 | BG11: 0 | BH11: 0 | BI11: 0 | BJ11: 0 | BK11: 0 | BL11: 0 | BM11: 0 | BN11: 0 | BO11: -7.527549222 | BP11: 7.843001139 | BQ11: 1 | BR11: 0 | BS11: 0
B12: Wert | C12: = Wirkintensität ≠ 0 | G12: 6 | H12: Durchsatz | M12: -19.70199269 | N12: 18.39672895 | O12: positiv | P12: asynchron | Q12: =IF(T$4="Ja",'R_1 Analyse'!AV908,0) -> -19.70199269 | R12: =IF(T$4="Ja",'R_1 Analyse'!AW908,0) -> 18.39672895 | S12: =IF(T$4="Ja",'R_1 Analyse'!AX908,"") -> positiv | T12: =IF(T$4="Ja",'R_1 Analyse'!AY908,"") -> asynchron | U12: =IF(X$4="Ja",'R_2 Analyse'!AV908,0) -> 0 | V12: =IF(X$4="Ja",'R_2 Analyse'!AW908,0) -> 0 | W12: =IF(X$4="Ja",'R_2 Analyse'!AX908,"") ->  | X12: =IF(X$4="Ja",'R_2 Analyse'!AY908,"") ->  | Y12: =IF(AB$4="Ja",'R_3 Analyse'!AV908,0) -> 0 | Z12: =IF(AB$4="Ja",'R_3 Analyse'!AW908,0) -> 0 | AA12: =IF(AB$4="Ja",'R_3 Analyse'!AX908,"") ->  | AB12: =IF(AB$4="Ja",'R_3 Analyse'!AY908,"") ->  | AC12: =IF(AF$4="Ja",'R_4 Analyse'!AV908,0) -> 0 | AD12: =IF(AF$4="Ja",'R_4 Analyse'!AW908,0) -> 0 | AE12: =IF(AF$4="Ja",'R_4 Analyse'!AX908,"") ->  | AF12: =IF(AF$4="Ja",'R_4 Analyse'!AY908,"") ->  | AG12: =IF(AJ$4="Ja",'R_5 Analyse'!AV908,0) -> 0 | AH12: =IF(AJ$4="Ja",'R_5 Analyse'!AW908,0) -> 0 | AI12: =IF(AJ$4="Ja",'R_5 Analyse'!AX908,"") ->  | AJ12: =IF(AJ$4="Ja",'R_5 Analyse'!AY908,"") ->  | AK12: =IF(AN$4="Ja",'R_6 Analyse'!AV908,0) -> 0 | AL12: =IF(AN$4="Ja",'R_6 Analyse'!AW908,0) -> 0 | AM12: =IF(AN$4="Ja",'R_6 Analyse'!AX908,"") ->  | AN12: =IF(AN$4="Ja",'R_6 Analyse'!AY908,"") ->  | AO12: =IF(AR$4="Ja",'R_7 Analyse'!AV908,0) -> 0 | AP12: =IF(AR$4="Ja",'R_7 Analyse'!AW908,0) -> 0 | AQ12: =IF(AR$4="Ja",'R_7 Analyse'!AX908,"") ->  | AR12: =IF(AR$4="Ja",'R_7 Analyse'!AY908,"") ->  | AS12: =IF(AV$4="Ja",'R_8 Analyse'!AV908,0) -> 0 | AT12: =IF(AV$4="Ja",'R_8 Analyse'!AW908,0) -> 0 | AU12: =IF(AV$4="Ja",'R_8 Analyse'!AX908,"") ->  | AV12: =IF(AV$4="Ja",'R_8 Analyse'!AY908,"") ->  | AW12: =IF(AZ$4="Ja",'R_9 Analyse'!AV908,0) -> 0 | AX12: =IF(AZ$4="Ja",'R_9 Analyse'!AW908,0) -> 0 | AY12: =IF(AZ$4="Ja",'R_9 Analyse'!AX908,"") ->  | AZ12: =IF(AZ$4="Ja",'R_9 Analyse'!AY908,"") ->  | BA12: =IF(BD$4="Ja",'R_10 Analyse'!AV908,0) -> 0 | BB12: =IF(BD$4="Ja",'R_10 Analyse'!AW908,0) -> 0 | BC12: =IF(BD$4="Ja",'R_10 Analyse'!AX908,"") ->  | BD12: =IF(BD$4="Ja",'R_10 Analyse'!AY908,"") ->  | BE12: 0 | BF12: 0 | BG12: -19.70199269 | BH12: 18.39672895 | BI12: 0 | BJ12: 0 | BK12: 0 | BL12: 0 | BM12: 0 | BN12: 0 | BO12: 0 | BP12: 0 | BQ12: 0 | BR12: 1 | BS12: 0
B13: positiv | C13: = positiver Wirkungstrend (Erhöhung/Senkung Eingabewert → Erhöhung/Senkung Kennzahlwert) | G13: 7 | H13: Investitionskosten pro Ladungsträger | M13: -0.1410198443 | N13: 0.1410198443 | O13: positiv | P13: synchron | Q13: =IF(T$4="Ja",'R_1 Analyse'!AV909,0) -> -0.1410198443 | R13: =IF(T$4="Ja",'R_1 Analyse'!AW909,0) -> 0.1410198443 | S13: =IF(T$4="Ja",'R_1 Analyse'!AX909,"") -> positiv | T13: =IF(T$4="Ja",'R_1 Analyse'!AY909,"") -> synchron | U13: =IF(X$4="Ja",'R_2 Analyse'!AV909,0) -> 0 | V13: =IF(X$4="Ja",'R_2 Analyse'!AW909,0) -> 0 | W13: =IF(X$4="Ja",'R_2 Analyse'!AX909,"") ->  | X13: =IF(X$4="Ja",'R_2 Analyse'!AY909,"") ->  | Y13: =IF(AB$4="Ja",'R_3 Analyse'!AV909,0) -> 0 | Z13: =IF(AB$4="Ja",'R_3 Analyse'!AW909,0) -> 0 | AA13: =IF(AB$4="Ja",'R_3 Analyse'!AX909,"") ->  | AB13: =IF(AB$4="Ja",'R_3 Analyse'!AY909,"") ->  | AC13: =IF(AF$4="Ja",'R_4 Analyse'!AV909,0) -> 0 | AD13: =IF(AF$4="Ja",'R_4 Analyse'!AW909,0) -> 0 | AE13: =IF(AF$4="Ja",'R_4 Analyse'!AX909,"") ->  | AF13: =IF(AF$4="Ja",'R_4 Analyse'!AY909,"") ->  | AG13: =IF(AJ$4="Ja",'R_5 Analyse'!AV909,0) -> 0 | AH13: =IF(AJ$4="Ja",'R_5 Analyse'!AW909,0) -> 0 | AI13: =IF(AJ$4="Ja",'R_5 Analyse'!AX909,"") ->  | AJ13: =IF(AJ$4="Ja",'R_5 Analyse'!AY909,"") ->  | AK13: =IF(AN$4="Ja",'R_6 Analyse'!AV909,0) -> 0 | AL13: =IF(AN$4="Ja",'R_6 Analyse'!AW909,0) -> 0 | AM13: =IF(AN$4="Ja",'R_6 Analyse'!AX909,"") ->  | AN13: =IF(AN$4="Ja",'R_6 Analyse'!AY909,"") ->  | AO13: =IF(AR$4="Ja",'R_7 Analyse'!AV909,0) -> 0 | AP13: =IF(AR$4="Ja",'R_7 Analyse'!AW909,0) -> 0 | AQ13: =IF(AR$4="Ja",'R_7 Analyse'!AX909,"") ->  | AR13: =IF(AR$4="Ja",'R_7 Analyse'!AY909,"") ->  | AS13: =IF(AV$4="Ja",'R_8 Analyse'!AV909,0) -> 0 | AT13: =IF(AV$4="Ja",'R_8 Analyse'!AW909,0) -> 0 | AU13: =IF(AV$4="Ja",'R_8 Analyse'!AX909,"") ->  | AV13: =IF(AV$4="Ja",'R_8 Analyse'!AY909,"") ->  | AW13: =IF(AZ$4="Ja",'R_9 Analyse'!AV909,0) -> 0 | AX13: =IF(AZ$4="Ja",'R_9 Analyse'!AW909,0) -> 0 | AY13: =IF(AZ$4="Ja",'R_9 Analyse'!AX909,"") ->  | AZ13: =IF(AZ$4="Ja",'R_9 Analyse'!AY909,"") ->  | BA13: =IF(BD$4="Ja",'R_10 Analyse'!AV909,0) -> 0 | BB13: =IF(BD$4="Ja",'R_10 Analyse'!AW909,0) -> 0 | BC13: =IF(BD$4="Ja",'R_10 Analyse'!AX909,"") ->  | BD13: =IF(BD$4="Ja",'R_10 Analyse'!AY909,"") ->  | BE13: -0.1410198443 | BF13: 0.1410198443 | BG13: 0 | BH13: 0 | BI13: 0 | BJ13: 0 | BK13: 0 | BL13: 0 | BM13: 0 | BN13: 0 | BO13: 0 | BP13: 0 | BQ13: 0 | BR13: 1 | BS13: 0
B14: negativ | C14: = negativer Wirkungstrend (Erhöhung/senkung Eingabewert → Senkung/Erhöhung Kennzahlwert) | G14: 8 | H14: Transportkapazität pro Fahrzeug | M14: 0 | N14: 0 | O14: kein | P14: synchron | Q14: =IF(T$4="Ja",'R_1 Analyse'!AV910,0) -> 0 | R14: =IF(T$4="Ja",'R_1 Analyse'!AW910,0) -> 0 | S14: =IF(T$4="Ja",'R_1 Analyse'!AX910,"") -> kein | T14: =IF(T$4="Ja",'R_1 Analyse'!AY910,"") -> synchron | U14: =IF(X$4="Ja",'R_2 Analyse'!AV910,0) -> 0 | V14: =IF(X$4="Ja",'R_2 Analyse'!AW910,0) -> 0 | W14: =IF(X$4="Ja",'R_2 Analyse'!AX910,"") ->  | X14: =IF(X$4="Ja",'R_2 Analyse'!AY910,"") ->  | Y14: =IF(AB$4="Ja",'R_3 Analyse'!AV910,0) -> 0 | Z14: =IF(AB$4="Ja",'R_3 Analyse'!AW910,0) -> 0 | AA14: =IF(AB$4="Ja",'R_3 Analyse'!AX910,"") ->  | AB14: =IF(AB$4="Ja",'R_3 Analyse'!AY910,"") ->  | AC14: =IF(AF$4="Ja",'R_4 Analyse'!AV910,0) -> 0 | AD14: =IF(AF$4="Ja",'R_4 Analyse'!AW910,0) -> 0 | AE14: =IF(AF$4="Ja",'R_4 Analyse'!AX910,"") ->  | AF14: =IF(AF$4="Ja",'R_4 Analyse'!AY910,"") ->  | AG14: =IF(AJ$4="Ja",'R_5 Analyse'!AV910,0) -> 0 | AH14: =IF(AJ$4="Ja",'R_5 Analyse'!AW910,0) -> 0 | AI14: =IF(AJ$4="Ja",'R_5 Analyse'!AX910,"") ->  | AJ14: =IF(AJ$4="Ja",'R_5 Analyse'!AY910,"") ->  | AK14: =IF(AN$4="Ja",'R_6 Analyse'!AV910,0) -> 0 | AL14: =IF(AN$4="Ja",'R_6 Analyse'!AW910,0) -> 0 | AM14: =IF(AN$4="Ja",'R_6 Analyse'!AX910,"") ->  | AN14: =IF(AN$4="Ja",'R_6 Analyse'!AY910,"") ->  | AO14: =IF(AR$4="Ja",'R_7 Analyse'!AV910,0) -> 0 | AP14: =IF(AR$4="Ja",'R_7 Analyse'!AW910,0) -> 0 | AQ14: =IF(AR$4="Ja",'R_7 Analyse'!AX910,"") ->  | AR14: =IF(AR$4="Ja",'R_7 Analyse'!AY910,"") ->  | AS14: =IF(AV$4="Ja",'R_8 Analyse'!AV910,0) -> 0 | AT14: =IF(AV$4="Ja",'R_8 Analyse'!AW910,0) -> 0 | AU14: =IF(AV$4="Ja",'R_8 Analyse'!AX910,"") ->  | AV14: =IF(AV$4="Ja",'R_8 Analyse'!AY910,"") ->  | AW14: =IF(AZ$4="Ja",'R_9 Analyse'!AV910,0) -> 0 | AX14: =IF(AZ$4="Ja",'R_9 Analyse'!AW910,0) -> 0 | AY14: =IF(AZ$4="Ja",'R_9 Analyse'!AX910,"") ->  | AZ14: =IF(AZ$4="Ja",'R_9 Analyse'!AY910,"") ->  | BA14: =IF(BD$4="Ja",'R_10 Analyse'!AV910,0) -> 0 | BB14: =IF(BD$4="Ja",'R_10 Analyse'!AW910,0) -> 0 | BC14: =IF(BD$4="Ja",'R_10 Analyse'!AX910,"") ->  | BD14: =IF(BD$4="Ja",'R_10 Analyse'!AY910,"") ->  | BE14: 0 | BF14: 0 | BG14: 0 | BH14: 0 | BI14: 0 | BJ14: 0 | BK14: 0 | BL14: 0 | BM14: 0 | BN14: 0 | BO14: 0 | BP14: 0 | BQ14: 1 | BR14: 0 | BS14: 0
B15: kein | C15: = kein Wirkungstrend identifizierbar | G15: 9 | H15: Länge Fahrzeug | M15: 0 | N15: 0 | O15: kein | P15: synchron | Q15: =IF(T$4="Ja",'R_1 Analyse'!AV911,0) -> 0 | R15: =IF(T$4="Ja",'R_1 Analyse'!AW911,0) -> 0 | S15: =IF(T$4="Ja",'R_1 Analyse'!AX911,"") -> kein | T15: =IF(T$4="Ja",'R_1 Analyse'!AY911,"") -> synchron | U15: =IF(X$4="Ja",'R_2 Analyse'!AV911,0) -> 0 | V15: =IF(X$4="Ja",'R_2 Analyse'!AW911,0) -> 0 | W15: =IF(X$4="Ja",'R_2 Analyse'!AX911,"") ->  | X15: =IF(X$4="Ja",'R_2 Analyse'!AY911,"") ->  | Y15: =IF(AB$4="Ja",'R_3 Analyse'!AV911,0) -> 0 | Z15: =IF(AB$4="Ja",'R_3 Analyse'!AW911,0) -> 0 | AA15: =IF(AB$4="Ja",'R_3 Analyse'!AX911,"") ->  | AB15: =IF(AB$4="Ja",'R_3 Analyse'!AY911,"") ->  | AC15: =IF(AF$4="Ja",'R_4 Analyse'!AV911,0) -> 0 | AD15: =IF(AF$4="Ja",'R_4 Analyse'!AW911,0) -> 0 | AE15: =IF(AF$4="Ja",'R_4 Analyse'!AX911,"") ->  | AF15: =IF(AF$4="Ja",'R_4 Analyse'!AY911,"") ->  | AG15: =IF(AJ$4="Ja",'R_5 Analyse'!AV911,0) -> 0 | AH15: =IF(AJ$4="Ja",'R_5 Analyse'!AW911,0) -> 0 | AI15: =IF(AJ$4="Ja",'R_5 Analyse'!AX911,"") ->  | AJ15: =IF(AJ$4="Ja",'R_5 Analyse'!AY911,"") ->  | AK15: =IF(AN$4="Ja",'R_6 Analyse'!AV911,0) -> 0 | AL15: =IF(AN$4="Ja",'R_6 Analyse'!AW911,0) -> 0 | AM15: =IF(AN$4="Ja",'R_6 Analyse'!AX911,"") ->  | AN15: =IF(AN$4="Ja",'R_6 Analyse'!AY911,"") ->  | AO15: =IF(AR$4="Ja",'R_7 Analyse'!AV911,0) -> 0 | AP15: =IF(AR$4="Ja",'R_7 Analyse'!AW911,0) -> 0 | AQ15: =IF(AR$4="Ja",'R_7 Analyse'!AX911,"") ->  | AR15: =IF(AR$4="Ja",'R_7 Analyse'!AY911,"") ->  | AS15: =IF(AV$4="Ja",'R_8 Analyse'!AV911,0) -> 0 | AT15: =IF(AV$4="Ja",'R_8 Analyse'!AW911,0) -> 0 | AU15: =IF(AV$4="Ja",'R_8 Analyse'!AX911,"") ->  | AV15: =IF(AV$4="Ja",'R_8 Analyse'!AY911,"") ->  | AW15: =IF(AZ$4="Ja",'R_9 Analyse'!AV911,0) -> 0 | AX15: =IF(AZ$4="Ja",'R_9 Analyse'!AW911,0) -> 0 | AY15: =IF(AZ$4="Ja",'R_9 Analyse'!AX911,"") ->  | AZ15: =IF(AZ$4="Ja",'R_9 Analyse'!AY911,"") ->  | BA15: =IF(BD$4="Ja",'R_10 Analyse'!AV911,0) -> 0 | BB15: =IF(BD$4="Ja",'R_10 Analyse'!AW911,0) -> 0 | BC15: =IF(BD$4="Ja",'R_10 Analyse'!AX911,"") ->  | BD15: =IF(BD$4="Ja",'R_10 Analyse'!AY911,"") ->  | BE15: 0 | BF15: 0 | BG15: 0 | BH15: 0 | BI15: 0 | BJ15: 0 | BK15: 0 | BL15: 0 | BM15: 0 | BN15: 0 | BO15: 0 | BP15: 0 | BQ15: 1 | BR15: 0 | BS15: 0
B16: synchron | C16: = betragsmäßige Abweichung zwischen Min- und Max-Wert der Wirkintensitäten < 1% | G16: 10 | H16: Fahrgeschwindigkeit | M16: -6.563576913 | N16: 13.45333247 | O16: kein | P16: asynchron | Q16: =IF(T$4="Ja",'R_1 Analyse'!AV912,0) -> -6.563576913 | R16: =IF(T$4="Ja",'R_1 Analyse'!AW912,0) -> 13.45333247 | S16: =IF(T$4="Ja",'R_1 Analyse'!AX912,"") -> kein | T16: =IF(T$4="Ja",'R_1 Analyse'!AY912,"") -> asynchron | U16: =IF(X$4="Ja",'R_2 Analyse'!AV912,0) -> 0 | V16: =IF(X$4="Ja",'R_2 Analyse'!AW912,0) -> 0 | W16: =IF(X$4="Ja",'R_2 Analyse'!AX912,"") ->  | X16: =IF(X$4="Ja",'R_2 Analyse'!AY912,"") ->  | Y16: =IF(AB$4="Ja",'R_3 Analyse'!AV912,0) -> 0 | Z16: =IF(AB$4="Ja",'R_3 Analyse'!AW912,0) -> 0 | AA16: =IF(AB$4="Ja",'R_3 Analyse'!AX912,"") ->  | AB16: =IF(AB$4="Ja",'R_3 Analyse'!AY912,"") ->  | AC16: =IF(AF$4="Ja",'R_4 Analyse'!AV912,0) -> 0 | AD16: =IF(AF$4="Ja",'R_4 Analyse'!AW912,0) -> 0 | AE16: =IF(AF$4="Ja",'R_4 Analyse'!AX912,"") ->  | AF16: =IF(AF$4="Ja",'R_4 Analyse'!AY912,"") ->  | AG16: =IF(AJ$4="Ja",'R_5 Analyse'!AV912,0) -> 0 | AH16: =IF(AJ$4="Ja",'R_5 Analyse'!AW912,0) -> 0 | AI16: =IF(AJ$4="Ja",'R_5 Analyse'!AX912,"") ->  | AJ16: =IF(AJ$4="Ja",'R_5 Analyse'!AY912,"") ->  | AK16: =IF(AN$4="Ja",'R_6 Analyse'!AV912,0) -> 0 | AL16: =IF(AN$4="Ja",'R_6 Analyse'!AW912,0) -> 0 | AM16: =IF(AN$4="Ja",'R_6 Analyse'!AX912,"") ->  | AN16: =IF(AN$4="Ja",'R_6 Analyse'!AY912,"") ->  | AO16: =IF(AR$4="Ja",'R_7 Analyse'!AV912,0) -> 0 | AP16: =IF(AR$4="Ja",'R_7 Analyse'!AW912,0) -> 0 | AQ16: =IF(AR$4="Ja",'R_7 Analyse'!AX912,"") ->  | AR16: =IF(AR$4="Ja",'R_7 Analyse'!AY912,"") ->  | AS16: =IF(AV$4="Ja",'R_8 Analyse'!AV912,0) -> 0 | AT16: =IF(AV$4="Ja",'R_8 Analyse'!AW912,0) -> 0 | AU16: =IF(AV$4="Ja",'R_8 Analyse'!AX912,"") ->  | AV16: =IF(AV$4="Ja",'R_8 Analyse'!AY912,"") ->  | AW16: =IF(AZ$4="Ja",'R_9 Analyse'!AV912,0) -> 0 | AX16: =IF(AZ$4="Ja",'R_9 Analyse'!AW912,0) -> 0 | AY16: =IF(AZ$4="Ja",'R_9 Analyse'!AX912,"") ->  | AZ16: =IF(AZ$4="Ja",'R_9 Analyse'!AY912,"") ->  | BA16: =IF(BD$4="Ja",'R_10 Analyse'!AV912,0) -> 0 | BB16: =IF(BD$4="Ja",'R_10 Analyse'!AW912,0) -> 0 | BC16: =IF(BD$4="Ja",'R_10 Analyse'!AX912,"") ->  | BD16: =IF(BD$4="Ja",'R_10 Analyse'!AY912,"") ->  | BE16: 0 | BF16: 0 | BG16: 0 | BH16: 0 | BI16: 0 | BJ16: 0 | BK16: 0 | BL16: 0 | BM16: 0 | BN16: 0 | BO16: -6.563576913 | BP16: 13.45333247 | BQ16: 1 | BR16: 0 | BS16: 0
B17: asynchron | C17: = betragsmäßige Abweichung zwischen Min- und Max-Wert der Wirkintensitäten > 1% | G17: 11 | H17: Investitionskosten pro Fahrzeug | M17: -2.457640137 | N17: 2.457640137 | O17: positiv | P17: synchron | Q17: =IF(T$4="Ja",'R_1 Analyse'!AV913,0) -> -2.457640137 | R17: =IF(T$4="Ja",'R_1 Analyse'!AW913,0) -> 2.457640137 | S17: =IF(T$4="Ja",'R_1 Analyse'!AX913,"") -> positiv | T17: =IF(T$4="Ja",'R_1 Analyse'!AY913,"") -> synchron | U17: =IF(X$4="Ja",'R_2 Analyse'!AV913,0) -> 0 | V17: =IF(X$4="Ja",'R_2 Analyse'!AW913,0) -> 0 | W17: =IF(X$4="Ja",'R_2 Analyse'!AX913,"") ->  | X17: =IF(X$4="Ja",'R_2 Analyse'!AY913,"") ->  | Y17: =IF(AB$4="Ja",'R_3 Analyse'!AV913,0) -> 0 | Z17: =IF(AB$4="Ja",'R_3 Analyse'!AW913,0) -> 0 | AA17: =IF(AB$4="Ja",'R_3 Analyse'!AX913,"") ->  | AB17: =IF(AB$4="Ja",'R_3 Analyse'!AY913,"") ->  | AC17: =IF(AF$4="Ja",'R_4 Analyse'!AV913,0) -> 0 | AD17: =IF(AF$4="Ja",'R_4 Analyse'!AW913,0) -> 0 | AE17: =IF(AF$4="Ja",'R_4 Analyse'!AX913,"") ->  | AF17: =IF(AF$4="Ja",'R_4 Analyse'!AY913,"") ->  | AG17: =IF(AJ$4="Ja",'R_5 Analyse'!AV913,0) -> 0 | AH17: =IF(AJ$4="Ja",'R_5 Analyse'!AW913,0) -> 0 | AI17: =IF(AJ$4="Ja",'R_5 Analyse'!AX913,"") ->  | AJ17: =IF(AJ$4="Ja",'R_5 Analyse'!AY913,"") ->  | AK17: =IF(AN$4="Ja",'R_6 Analyse'!AV913,0) -> 0 | AL17: =IF(AN$4="Ja",'R_6 Analyse'!AW913,0) -> 0 | AM17: =IF(AN$4="Ja",'R_6 Analyse'!AX913,"") ->  | AN17: =IF(AN$4="Ja",'R_6 Analyse'!AY913,"") ->  | AO17: =IF(AR$4="Ja",'R_7 Analyse'!AV913,0) -> 0 | AP17: =IF(AR$4="Ja",'R_7 Analyse'!AW913,0) -> 0 | AQ17: =IF(AR$4="Ja",'R_7 Analyse'!AX913,"") ->  | AR17: =IF(AR$4="Ja",'R_7 Analyse'!AY913,"") ->  | AS17: =IF(AV$4="Ja",'R_8 Analyse'!AV913,0) -> 0 | AT17: =IF(AV$4="Ja",'R_8 Analyse'!AW913,0) -> 0 | AU17: =IF(AV$4="Ja",'R_8 Analyse'!AX913,"") ->  | AV17: =IF(AV$4="Ja",'R_8 Analyse'!AY913,"") ->  | AW17: =IF(AZ$4="Ja",'R_9 Analyse'!AV913,0) -> 0 | AX17: =IF(AZ$4="Ja",'R_9 Analyse'!AW913,0) -> 0 | AY17: =IF(AZ$4="Ja",'R_9 Analyse'!AX913,"") ->  | AZ17: =IF(AZ$4="Ja",'R_9 Analyse'!AY913,"") ->  | BA17: =IF(BD$4="Ja",'R_10 Analyse'!AV913,0) -> 0 | BB17: =IF(BD$4="Ja",'R_10 Analyse'!AW913,0) -> 0 | BC17: =IF(BD$4="Ja",'R_10 Analyse'!AX913,"") ->  | BD17: =IF(BD$4="Ja",'R_10 Analyse'!AY913,"") ->  | BE17: -2.457640137 | BF17: 2.457640137 | BG17: 0 | BH17: 0 | BI17: 0 | BJ17: 0 | BK17: 0 | BL17: 0 | BM17: 0 | BN17: 0 | BO17: 0 | BP17: 0 | BQ17: 0 | BR17: 1 | BS17: 0
B18: ...% | C18: = Summe Gewichtung ≠ 100 % | G18: 12 | H18: Energieverbrauch Fahrzeug | M18: -0.3804607779 | N18: 0.3804607779 | O18: positiv | P18: synchron | Q18: =IF(T$4="Ja",'R_1 Analyse'!AV914,0) -> -0.3804607779 | R18: =IF(T$4="Ja",'R_1 Analyse'!AW914,0) -> 0.3804607779 | S18: =IF(T$4="Ja",'R_1 Analyse'!AX914,"") -> positiv | T18: =IF(T$4="Ja",'R_1 Analyse'!AY914,"") -> synchron | U18: =IF(X$4="Ja",'R_2 Analyse'!AV914,0) -> 0 | V18: =IF(X$4="Ja",'R_2 Analyse'!AW914,0) -> 0 | W18: =IF(X$4="Ja",'R_2 Analyse'!AX914,"") ->  | X18: =IF(X$4="Ja",'R_2 Analyse'!AY914,"") ->  | Y18: =IF(AB$4="Ja",'R_3 Analyse'!AV914,0) -> 0 | Z18: =IF(AB$4="Ja",'R_3 Analyse'!AW914,0) -> 0 | AA18: =IF(AB$4="Ja",'R_3 Analyse'!AX914,"") ->  | AB18: =IF(AB$4="Ja",'R_3 Analyse'!AY914,"") ->  | AC18: =IF(AF$4="Ja",'R_4 Analyse'!AV914,0) -> 0 | AD18: =IF(AF$4="Ja",'R_4 Analyse'!AW914,0) -> 0 | AE18: =IF(AF$4="Ja",'R_4 Analyse'!AX914,"") ->  | AF18: =IF(AF$4="Ja",'R_4 Analyse'!AY914,"") ->  | AG18: =IF(AJ$4="Ja",'R_5 Analyse'!AV914,0) -> 0 | AH18: =IF(AJ$4="Ja",'R_5 Analyse'!AW914,0) -> 0 | AI18: =IF(AJ$4="Ja",'R_5 Analyse'!AX914,"") ->  | AJ18: =IF(AJ$4="Ja",'R_5 Analyse'!AY914,"") ->  | AK18: =IF(AN$4="Ja",'R_6 Analyse'!AV914,0) -> 0 | AL18: =IF(AN$4="Ja",'R_6 Analyse'!AW914,0) -> 0 | AM18: =IF(AN$4="Ja",'R_6 Analyse'!AX914,"") ->  | AN18: =IF(AN$4="Ja",'R_6 Analyse'!AY914,"") ->  | AO18: =IF(AR$4="Ja",'R_7 Analyse'!AV914,0) -> 0 | AP18: =IF(AR$4="Ja",'R_7 Analyse'!AW914,0) -> 0 | AQ18: =IF(AR$4="Ja",'R_7 Analyse'!AX914,"") ->  | AR18: =IF(AR$4="Ja",'R_7 Analyse'!AY914,"") ->  | AS18: =IF(AV$4="Ja",'R_8 Analyse'!AV914,0) -> 0 | AT18: =IF(AV$4="Ja",'R_8 Analyse'!AW914,0) -> 0 | AU18: =IF(AV$4="Ja",'R_8 Analyse'!AX914,"") ->  | AV18: =IF(AV$4="Ja",'R_8 Analyse'!AY914,"") ->  | AW18: =IF(AZ$4="Ja",'R_9 Analyse'!AV914,0) -> 0 | AX18: =IF(AZ$4="Ja",'R_9 Analyse'!AW914,0) -> 0 | AY18: =IF(AZ$4="Ja",'R_9 Analyse'!AX914,"") ->  | AZ18: =IF(AZ$4="Ja",'R_9 Analyse'!AY914,"") ->  | BA18: =IF(BD$4="Ja",'R_10 Analyse'!AV914,0) -> 0 | BB18: =IF(BD$4="Ja",'R_10 Analyse'!AW914,0) -> 0 | BC18: =IF(BD$4="Ja",'R_10 Analyse'!AX914,"") ->  | BD18: =IF(BD$4="Ja",'R_10 Analyse'!AY914,"") ->  | BE18: -0.3804607779 | BF18: 0.3804607779 | BG18: 0 | BH18: 0 | BI18: 0 | BJ18: 0 | BK18: 0 | BL18: 0 | BM18: 0 | BN18: 0 | BO18: 0 | BP18: 0 | BQ18: 0 | BR18: 1 | BS18: 0
G19: 13 | H19: Anzahl Anhänger je Fahrzeug | M19: -1.658141612 | N19: 3.507285527 | O19: kein | P19: asynchron | Q19: =IF(T$4="Ja",'R_1 Analyse'!AV915,0) -> -1.658141612 | R19: =IF(T$4="Ja",'R_1 Analyse'!AW915,0) -> 3.507285527 | S19: =IF(T$4="Ja",'R_1 Analyse'!AX915,"") -> kein | T19: =IF(T$4="Ja",'R_1 Analyse'!AY915,"") -> asynchron | U19: =IF(X$4="Ja",'R_2 Analyse'!AV915,0) -> 0 | V19: =IF(X$4="Ja",'R_2 Analyse'!AW915,0) -> 0 | W19: =IF(X$4="Ja",'R_2 Analyse'!AX915,"") ->  | X19: =IF(X$4="Ja",'R_2 Analyse'!AY915,"") ->  | Y19: =IF(AB$4="Ja",'R_3 Analyse'!AV915,0) -> 0 | Z19: =IF(AB$4="Ja",'R_3 Analyse'!AW915,0) -> 0 | AA19: =IF(AB$4="Ja",'R_3 Analyse'!AX915,"") ->  | AB19: =IF(AB$4="Ja",'R_3 Analyse'!AY915,"") ->  | AC19: =IF(AF$4="Ja",'R_4 Analyse'!AV915,0) -> 0 | AD19: =IF(AF$4="Ja",'R_4 Analyse'!AW915,0) -> 0 | AE19: =IF(AF$4="Ja",'R_4 Analyse'!AX915,"") ->  | AF19: =IF(AF$4="Ja",'R_4 Analyse'!AY915,"") ->  | AG19: =IF(AJ$4="Ja",'R_5 Analyse'!AV915,0) -> 0 | AH19: =IF(AJ$4="Ja",'R_5 Analyse'!AW915,0) -> 0 | AI19: =IF(AJ$4="Ja",'R_5 Analyse'!AX915,"") ->  | AJ19: =IF(AJ$4="Ja",'R_5 Analyse'!AY915,"") ->  | AK19: =IF(AN$4="Ja",'R_6 Analyse'!AV915,0) -> 0 | AL19: =IF(AN$4="Ja",'R_6 Analyse'!AW915,0) -> 0 | AM19: =IF(AN$4="Ja",'R_6 Analyse'!AX915,"") ->  | AN19: =IF(AN$4="Ja",'R_6 Analyse'!AY915,"") ->  | AO19: =IF(AR$4="Ja",'R_7 Analyse'!AV915,0) -> 0 | AP19: =IF(AR$4="Ja",'R_7 Analyse'!AW915,0) -> 0 | AQ19: =IF(AR$4="Ja",'R_7 Analyse'!AX915,"") ->  | AR19: =IF(AR$4="Ja",'R_7 Analyse'!AY915,"") ->  | AS19: =IF(AV$4="Ja",'R_8 Analyse'!AV915,0) -> 0 | AT19: =IF(AV$4="Ja",'R_8 Analyse'!AW915,0) -> 0 | AU19: =IF(AV$4="Ja",'R_8 Analyse'!AX915,"") ->  | AV19: =IF(AV$4="Ja",'R_8 Analyse'!AY915,"") ->  | AW19: =IF(AZ$4="Ja",'R_9 Analyse'!AV915,0) -> 0 | AX19: =IF(AZ$4="Ja",'R_9 Analyse'!AW915,0) -> 0 | AY19: =IF(AZ$4="Ja",'R_9 Analyse'!AX915,"") ->  | AZ19: =IF(AZ$4="Ja",'R_9 Analyse'!AY915,"") ->  | BA19: =IF(BD$4="Ja",'R_10 Analyse'!AV915,0) -> 0 | BB19: =IF(BD$4="Ja",'R_10 Analyse'!AW915,0) -> 0 | BC19: =IF(BD$4="Ja",'R_10 Analyse'!AX915,"") ->  | BD19: =IF(BD$4="Ja",'R_10 Analyse'!AY915,"") ->  | BE19: 0 | BF19: 0 | BG19: 0 | BH19: 0 | BI19: 0 | BJ19: 0 | BK19: 0 | BL19: 0 | BM19: 0 | BN19: 0 | BO19: -1.658141612 | BP19: 3.507285527 | BQ19: 1 | BR19: 0 | BS19: 0
G20: 14 | H20: Länge Anhänger (inkl. Deichsel) | M20: 0 | N20: 0 | O20: kein | P20: synchron | Q20: =IF(T$4="Ja",'R_1 Analyse'!AV916,0) -> 0 | R20: =IF(T$4="Ja",'R_1 Analyse'!AW916,0) -> 0 | S20: =IF(T$4="Ja",'R_1 Analyse'!AX916,"") -> kein | T20: =IF(T$4="Ja",'R_1 Analyse'!AY916,"") -> synchron | U20: =IF(X$4="Ja",'R_2 Analyse'!AV916,0) -> 0 | V20: =IF(X$4="Ja",'R_2 Analyse'!AW916,0) -> 0 | W20: =IF(X$4="Ja",'R_2 Analyse'!AX916,"") ->  | X20: =IF(X$4="Ja",'R_2 Analyse'!AY916,"") ->  | Y20: =IF(AB$4="Ja",'R_3 Analyse'!AV916,0) -> 0 | Z20: =IF(AB$4="Ja",'R_3 Analyse'!AW916,0) -> 0 | AA20: =IF(AB$4="Ja",'R_3 Analyse'!AX916,"") ->  | AB20: =IF(AB$4="Ja",'R_3 Analyse'!AY916,"") ->  | AC20: =IF(AF$4="Ja",'R_4 Analyse'!AV916,0) -> 0 | AD20: =IF(AF$4="Ja",'R_4 Analyse'!AW916,0) -> 0 | AE20: =IF(AF$4="Ja",'R_4 Analyse'!AX916,"") ->  | AF20: =IF(AF$4="Ja",'R_4 Analyse'!AY916,"") ->  | AG20: =IF(AJ$4="Ja",'R_5 Analyse'!AV916,0) -> 0 | AH20: =IF(AJ$4="Ja",'R_5 Analyse'!AW916,0) -> 0 | AI20: =IF(AJ$4="Ja",'R_5 Analyse'!AX916,"") ->  | AJ20: =IF(AJ$4="Ja",'R_5 Analyse'!AY916,"") ->  | AK20: =IF(AN$4="Ja",'R_6 Analyse'!AV916,0) -> 0 | AL20: =IF(AN$4="Ja",'R_6 Analyse'!AW916,0) -> 0 | AM20: =IF(AN$4="Ja",'R_6 Analyse'!AX916,"") ->  | AN20: =IF(AN$4="Ja",'R_6 Analyse'!AY916,"") ->  | AO20: =IF(AR$4="Ja",'R_7 Analyse'!AV916,0) -> 0 | AP20: =IF(AR$4="Ja",'R_7 Analyse'!AW916,0) -> 0 | AQ20: =IF(AR$4="Ja",'R_7 Analyse'!AX916,"") ->  | AR20: =IF(AR$4="Ja",'R_7 Analyse'!AY916,"") ->  | AS20: =IF(AV$4="Ja",'R_8 Analyse'!AV916,0) -> 0 | AT20: =IF(AV$4="Ja",'R_8 Analyse'!AW916,0) -> 0 | AU20: =IF(AV$4="Ja",'R_8 Analyse'!AX916,"") ->  | AV20: =IF(AV$4="Ja",'R_8 Analyse'!AY916,"") ->  | AW20: =IF(AZ$4="Ja",'R_9 Analyse'!AV916,0) -> 0 | AX20: =IF(AZ$4="Ja",'R_9 Analyse'!AW916,0) -> 0 | AY20: =IF(AZ$4="Ja",'R_9 Analyse'!AX916,"") ->  | AZ20: =IF(AZ$4="Ja",'R_9 Analyse'!AY916,"") ->  | BA20: =IF(BD$4="Ja",'R_10 Analyse'!AV916,0) -> 0 | BB20: =IF(BD$4="Ja",'R_10 Analyse'!AW916,0) -> 0 | BC20: =IF(BD$4="Ja",'R_10 Analyse'!AX916,"") ->  | BD20: =IF(BD$4="Ja",'R_10 Analyse'!AY916,"") ->  | BE20: 0 | BF20: 0 | BG20: 0 | BH20: 0 | BI20: 0 | BJ20: 0 | BK20: 0 | BL20: 0 | BM20: 0 | BN20: 0 | BO20: 0 | BP20: 0 | BQ20: 1 | BR20: 0 | BS20: 0
G21: 15 | H21: Transportkapazität pro Anhänger | M21: -0.6341248883 | N21: 2.483268803 | O21: kein | P21: asynchron | Q21: =IF(T$4="Ja",'R_1 Analyse'!AV917,0) -> -0.6341248883 | R21: =IF(T$4="Ja",'R_1 Analyse'!AW917,0) -> 2.483268803 | S21: =IF(T$4="Ja",'R_1 Analyse'!AX917,"") -> kein | T21: =IF(T$4="Ja",'R_1 Analyse'!AY917,"") -> asynchron | U21: =IF(X$4="Ja",'R_2 Analyse'!AV917,0) -> 0 | V21: =IF(X$4="Ja",'R_2 Analyse'!AW917,0) -> 0 | W21: =IF(X$4="Ja",'R_2 Analyse'!AX917,"") ->  | X21: =IF(X$4="Ja",'R_2 Analyse'!AY917,"") ->  | Y21: =IF(AB$4="Ja",'R_3 Analyse'!AV917,0) -> 0 | Z21: =IF(AB$4="Ja",'R_3 Analyse'!AW917,0) -> 0 | AA21: =IF(AB$4="Ja",'R_3 Analyse'!AX917,"") ->  | AB21: =IF(AB$4="Ja",'R_3 Analyse'!AY917,"") ->  | AC21: =IF(AF$4="Ja",'R_4 Analyse'!AV917,0) -> 0 | AD21: =IF(AF$4="Ja",'R_4 Analyse'!AW917,0) -> 0 | AE21: =IF(AF$4="Ja",'R_4 Analyse'!AX917,"") ->  | AF21: =IF(AF$4="Ja",'R_4 Analyse'!AY917,"") ->  | AG21: =IF(AJ$4="Ja",'R_5 Analyse'!AV917,0) -> 0 | AH21: =IF(AJ$4="Ja",'R_5 Analyse'!AW917,0) -> 0 | AI21: =IF(AJ$4="Ja",'R_5 Analyse'!AX917,"") ->  | AJ21: =IF(AJ$4="Ja",'R_5 Analyse'!AY917,"") ->  | AK21: =IF(AN$4="Ja",'R_6 Analyse'!AV917,0) -> 0 | AL21: =IF(AN$4="Ja",'R_6 Analyse'!AW917,0) -> 0 | AM21: =IF(AN$4="Ja",'R_6 Analyse'!AX917,"") ->  | AN21: =IF(AN$4="Ja",'R_6 Analyse'!AY917,"") ->  | AO21: =IF(AR$4="Ja",'R_7 Analyse'!AV917,0) -> 0 | AP21: =IF(AR$4="Ja",'R_7 Analyse'!AW917,0) -> 0 | AQ21: =IF(AR$4="Ja",'R_7 Analyse'!AX917,"") ->  | AR21: =IF(AR$4="Ja",'R_7 Analyse'!AY917,"") ->  | AS21: =IF(AV$4="Ja",'R_8 Analyse'!AV917,0) -> 0 | AT21: =IF(AV$4="Ja",'R_8 Analyse'!AW917,0) -> 0 | AU21: =IF(AV$4="Ja",'R_8 Analyse'!AX917,"") ->  | AV21: =IF(AV$4="Ja",'R_8 Analyse'!AY917,"") ->  | AW21: =IF(AZ$4="Ja",'R_9 Analyse'!AV917,0) -> 0 | AX21: =IF(AZ$4="Ja",'R_9 Analyse'!AW917,0) -> 0 | AY21: =IF(AZ$4="Ja",'R_9 Analyse'!AX917,"") ->  | AZ21: =IF(AZ$4="Ja",'R_9 Analyse'!AY917,"") ->  | BA21: =IF(BD$4="Ja",'R_10 Analyse'!AV917,0) -> 0 | BB21: =IF(BD$4="Ja",'R_10 Analyse'!AW917,0) -> 0 | BC21: =IF(BD$4="Ja",'R_10 Analyse'!AX917,"") ->  | BD21: =IF(BD$4="Ja",'R_10 Analyse'!AY917,"") ->  | BE21: 0 | BF21: 0 | BG21: 0 | BH21: 0 | BI21: 0 | BJ21: 0 | BK21: 0 | BL21: 0 | BM21: 0 | BN21: 0 | BO21: -0.6341248883 | BP21: 2.483268803 | BQ21: 1 | BR21: 0 | BS21: 0
G22: 16 | H22: Investitionskosten je Anhänger | M22: -1.024016724 | N22: 1.024016724 | O22: positiv | P22: synchron | Q22: =IF(T$4="Ja",'R_1 Analyse'!AV918,0) -> -1.024016724 | R22: =IF(T$4="Ja",'R_1 Analyse'!AW918,0) -> 1.024016724 | S22: =IF(T$4="Ja",'R_1 Analyse'!AX918,"") -> positiv | T22: =IF(T$4="Ja",'R_1 Analyse'!AY918,"") -> synchron | U22: =IF(X$4="Ja",'R_2 Analyse'!AV918,0) -> 0 | V22: =IF(X$4="Ja",'R_2 Analyse'!AW918,0) -> 0 | W22: =IF(X$4="Ja",'R_2 Analyse'!AX918,"") ->  | X22: =IF(X$4="Ja",'R_2 Analyse'!AY918,"") ->  | Y22: =IF(AB$4="Ja",'R_3 Analyse'!AV918,0) -> 0 | Z22: =IF(AB$4="Ja",'R_3 Analyse'!AW918,0) -> 0 | AA22: =IF(AB$4="Ja",'R_3 Analyse'!AX918,"") ->  | AB22: =IF(AB$4="Ja",'R_3 Analyse'!AY918,"") ->  | AC22: =IF(AF$4="Ja",'R_4 Analyse'!AV918,0) -> 0 | AD22: =IF(AF$4="Ja",'R_4 Analyse'!AW918,0) -> 0 | AE22: =IF(AF$4="Ja",'R_4 Analyse'!AX918,"") ->  | AF22: =IF(AF$4="Ja",'R_4 Analyse'!AY918,"") ->  | AG22: =IF(AJ$4="Ja",'R_5 Analyse'!AV918,0) -> 0 | AH22: =IF(AJ$4="Ja",'R_5 Analyse'!AW918,0) -> 0 | AI22: =IF(AJ$4="Ja",'R_5 Analyse'!AX918,"") ->  | AJ22: =IF(AJ$4="Ja",'R_5 Analyse'!AY918,"") ->  | AK22: =IF(AN$4="Ja",'R_6 Analyse'!AV918,0) -> 0 | AL22: =IF(AN$4="Ja",'R_6 Analyse'!AW918,0) -> 0 | AM22: =IF(AN$4="Ja",'R_6 Analyse'!AX918,"") ->  | AN22: =IF(AN$4="Ja",'R_6 Analyse'!AY918,"") ->  | AO22: =IF(AR$4="Ja",'R_7 Analyse'!AV918,0) -> 0 | AP22: =IF(AR$4="Ja",'R_7 Analyse'!AW918,0) -> 0 | AQ22: =IF(AR$4="Ja",'R_7 Analyse'!AX918,"") ->  | AR22: =IF(AR$4="Ja",'R_7 Analyse'!AY918,"") ->  | AS22: =IF(AV$4="Ja",'R_8 Analyse'!AV918,0) -> 0 | AT22: =IF(AV$4="Ja",'R_8 Analyse'!AW918,0) -> 0 | AU22: =IF(AV$4="Ja",'R_8 Analyse'!AX918,"") ->  | AV22: =IF(AV$4="Ja",'R_8 Analyse'!AY918,"") ->  | AW22: =IF(AZ$4="Ja",'R_9 Analyse'!AV918,0) -> 0 | AX22: =IF(AZ$4="Ja",'R_9 Analyse'!AW918,0) -> 0 | AY22: =IF(AZ$4="Ja",'R_9 Analyse'!AX918,"") ->  | AZ22: =IF(AZ$4="Ja",'R_9 Analyse'!AY918,"") ->  | BA22: =IF(BD$4="Ja",'R_10 Analyse'!AV918,0) -> 0 | BB22: =IF(BD$4="Ja",'R_10 Analyse'!AW918,0) -> 0 | BC22: =IF(BD$4="Ja",'R_10 Analyse'!AX918,"") ->  | BD22: =IF(BD$4="Ja",'R_10 Analyse'!AY918,"") ->  | BE22: -1.024016724 | BF22: 1.024016724 | BG22: 0 | BH22: 0 | BI22: 0 | BJ22: 0 | BK22: 0 | BL22: 0 | BM22: 0 | BN22: 0 | BO22: 0 | BP22: 0 | BQ22: 0 | BR22: 1 | BS22: 0
G23: 17 | H23: Anzahl Rahmen oder Trolleys je Anhänger | M23: 0 | N23: 0 | O23: kein | P23: synchron | Q23: =IF(T$4="Ja",'R_1 Analyse'!AV919,0) -> 0 | R23: =IF(T$4="Ja",'R_1 Analyse'!AW919,0) -> 0 | S23: =IF(T$4="Ja",'R_1 Analyse'!AX919,"") -> kein | T23: =IF(T$4="Ja",'R_1 Analyse'!AY919,"") -> synchron | U23: =IF(X$4="Ja",'R_2 Analyse'!AV919,0) -> 0 | V23: =IF(X$4="Ja",'R_2 Analyse'!AW919,0) -> 0 | W23: =IF(X$4="Ja",'R_2 Analyse'!AX919,"") ->  | X23: =IF(X$4="Ja",'R_2 Analyse'!AY919,"") ->  | Y23: =IF(AB$4="Ja",'R_3 Analyse'!AV919,0) -> 0 | Z23: =IF(AB$4="Ja",'R_3 Analyse'!AW919,0) -> 0 | AA23: =IF(AB$4="Ja",'R_3 Analyse'!AX919,"") ->  | AB23: =IF(AB$4="Ja",'R_3 Analyse'!AY919,"") ->  | AC23: =IF(AF$4="Ja",'R_4 Analyse'!AV919,0) -> 0 | AD23: =IF(AF$4="Ja",'R_4 Analyse'!AW919,0) -> 0 | AE23: =IF(AF$4="Ja",'R_4 Analyse'!AX919,"") ->  | AF23: =IF(AF$4="Ja",'R_4 Analyse'!AY919,"") ->  | AG23: =IF(AJ$4="Ja",'R_5 Analyse'!AV919,0) -> 0 | AH23: =IF(AJ$4="Ja",'R_5 Analyse'!AW919,0) -> 0 | AI23: =IF(AJ$4="Ja",'R_5 Analyse'!AX919,"") ->  | AJ23: =IF(AJ$4="Ja",'R_5 Analyse'!AY919,"") ->  | AK23: =IF(AN$4="Ja",'R_6 Analyse'!AV919,0) -> 0 | AL23: =IF(AN$4="Ja",'R_6 Analyse'!AW919,0) -> 0 | AM23: =IF(AN$4="Ja",'R_6 Analyse'!AX919,"") ->  | AN23: =IF(AN$4="Ja",'R_6 Analyse'!AY919,"") ->  | AO23: =IF(AR$4="Ja",'R_7 Analyse'!AV919,0) -> 0 | AP23: =IF(AR$4="Ja",'R_7 Analyse'!AW919,0) -> 0 | AQ23: =IF(AR$4="Ja",'R_7 Analyse'!AX919,"") ->  | AR23: =IF(AR$4="Ja",'R_7 Analyse'!AY919,"") ->  | AS23: =IF(AV$4="Ja",'R_8 Analyse'!AV919,0) -> 0 | AT23: =IF(AV$4="Ja",'R_8 Analyse'!AW919,0) -> 0 | AU23: =IF(AV$4="Ja",'R_8 Analyse'!AX919,"") ->  | AV23: =IF(AV$4="Ja",'R_8 Analyse'!AY919,"") ->  | AW23: =IF(AZ$4="Ja",'R_9 Analyse'!AV919,0) -> 0 | AX23: =IF(AZ$4="Ja",'R_9 Analyse'!AW919,0) -> 0 | AY23: =IF(AZ$4="Ja",'R_9 Analyse'!AX919,"") ->  | AZ23: =IF(AZ$4="Ja",'R_9 Analyse'!AY919,"") ->  | BA23: =IF(BD$4="Ja",'R_10 Analyse'!AV919,0) -> 0 | BB23: =IF(BD$4="Ja",'R_10 Analyse'!AW919,0) -> 0 | BC23: =IF(BD$4="Ja",'R_10 Analyse'!AX919,"") ->  | BD23: =IF(BD$4="Ja",'R_10 Analyse'!AY919,"") ->  | BE23: 0 | BF23: 0 | BG23: 0 | BH23: 0 | BI23: 0 | BJ23: 0 | BK23: 0 | BL23: 0 | BM23: 0 | BN23: 0 | BO23: 0 | BP23: 0 | BQ23: 1 | BR23: 0 | BS23: 0
G24: 18 | H24: Transportkapazität pro Rahmen oder Trolley | M24: 0 | N24: 0 | O24: kein | P24: synchron | Q24: =IF(T$4="Ja",'R_1 Analyse'!AV920,0) -> 0 | R24: =IF(T$4="Ja",'R_1 Analyse'!AW920,0) -> 0 | S24: =IF(T$4="Ja",'R_1 Analyse'!AX920,"") -> kein | T24: =IF(T$4="Ja",'R_1 Analyse'!AY920,"") -> synchron | U24: =IF(X$4="Ja",'R_2 Analyse'!AV920,0) -> 0 | V24: =IF(X$4="Ja",'R_2 Analyse'!AW920,0) -> 0 | W24: =IF(X$4="Ja",'R_2 Analyse'!AX920,"") ->  | X24: =IF(X$4="Ja",'R_2 Analyse'!AY920,"") ->  | Y24: =IF(AB$4="Ja",'R_3 Analyse'!AV920,0) -> 0 | Z24: =IF(AB$4="Ja",'R_3 Analyse'!AW920,0) -> 0 | AA24: =IF(AB$4="Ja",'R_3 Analyse'!AX920,"") ->  | AB24: =IF(AB$4="Ja",'R_3 Analyse'!AY920,"") ->  | AC24: =IF(AF$4="Ja",'R_4 Analyse'!AV920,0) -> 0 | AD24: =IF(AF$4="Ja",'R_4 Analyse'!AW920,0) -> 0 | AE24: =IF(AF$4="Ja",'R_4 Analyse'!AX920,"") ->  | AF24: =IF(AF$4="Ja",'R_4 Analyse'!AY920,"") ->  | AG24: =IF(AJ$4="Ja",'R_5 Analyse'!AV920,0) -> 0 | AH24: =IF(AJ$4="Ja",'R_5 Analyse'!AW920,0) -> 0 | AI24: =IF(AJ$4="Ja",'R_5 Analyse'!AX920,"") ->  | AJ24: =IF(AJ$4="Ja",'R_5 Analyse'!AY920,"") ->  | AK24: =IF(AN$4="Ja",'R_6 Analyse'!AV920,0) -> 0 | AL24: =IF(AN$4="Ja",'R_6 Analyse'!AW920,0) -> 0 | AM24: =IF(AN$4="Ja",'R_6 Analyse'!AX920,"") ->  | AN24: =IF(AN$4="Ja",'R_6 Analyse'!AY920,"") ->  | AO24: =IF(AR$4="Ja",'R_7 Analyse'!AV920,0) -> 0 | AP24: =IF(AR$4="Ja",'R_7 Analyse'!AW920,0) -> 0 | AQ24: =IF(AR$4="Ja",'R_7 Analyse'!AX920,"") ->  | AR24: =IF(AR$4="Ja",'R_7 Analyse'!AY920,"") ->  | AS24: =IF(AV$4="Ja",'R_8 Analyse'!AV920,0) -> 0 | AT24: =IF(AV$4="Ja",'R_8 Analyse'!AW920,0) -> 0 | AU24: =IF(AV$4="Ja",'R_8 Analyse'!AX920,"") ->  | AV24: =IF(AV$4="Ja",'R_8 Analyse'!AY920,"") ->  | AW24: =IF(AZ$4="Ja",'R_9 Analyse'!AV920,0) -> 0 | AX24: =IF(AZ$4="Ja",'R_9 Analyse'!AW920,0) -> 0 | AY24: =IF(AZ$4="Ja",'R_9 Analyse'!AX920,"") ->  | AZ24: =IF(AZ$4="Ja",'R_9 Analyse'!AY920,"") ->  | BA24: =IF(BD$4="Ja",'R_10 Analyse'!AV920,0) -> 0 | BB24: =IF(BD$4="Ja",'R_10 Analyse'!AW920,0) -> 0 | BC24: =IF(BD$4="Ja",'R_10 Analyse'!AX920,"") ->  | BD24: =IF(BD$4="Ja",'R_10 Analyse'!AY920,"") ->  | BE24: 0 | BF24: 0 | BG24: 0 | BH24: 0 | BI24: 0 | BJ24: 0 | BK24: 0 | BL24: 0 | BM24: 0 | BN24: 0 | BO24: 0 | BP24: 0 | BQ24: 1 | BR24: 0 | BS24: 0
G25: 19 | H25: Investitionskosten pro Rahmen oder Trolley | M25: 0 | N25: 0 | O25: kein | P25: synchron | Q25: =IF(T$4="Ja",'R_1 Analyse'!AV921,0) -> 0 | R25: =IF(T$4="Ja",'R_1 Analyse'!AW921,0) -> 0 | S25: =IF(T$4="Ja",'R_1 Analyse'!AX921,"") -> kein | T25: =IF(T$4="Ja",'R_1 Analyse'!AY921,"") -> synchron | U25: =IF(X$4="Ja",'R_2 Analyse'!AV921,0) -> 0 | V25: =IF(X$4="Ja",'R_2 Analyse'!AW921,0) -> 0 | W25: =IF(X$4="Ja",'R_2 Analyse'!AX921,"") ->  | X25: =IF(X$4="Ja",'R_2 Analyse'!AY921,"") ->  | Y25: =IF(AB$4="Ja",'R_3 Analyse'!AV921,0) -> 0 | Z25: =IF(AB$4="Ja",'R_3 Analyse'!AW921,0) -> 0 | AA25: =IF(AB$4="Ja",'R_3 Analyse'!AX921,"") ->  | AB25: =IF(AB$4="Ja",'R_3 Analyse'!AY921,"") ->  | AC25: =IF(AF$4="Ja",'R_4 Analyse'!AV921,0) -> 0 | AD25: =IF(AF$4="Ja",'R_4 Analyse'!AW921,0) -> 0 | AE25: =IF(AF$4="Ja",'R_4 Analyse'!AX921,"") ->  | AF25: =IF(AF$4="Ja",'R_4 Analyse'!AY921,"") ->  | AG25: =IF(AJ$4="Ja",'R_5 Analyse'!AV921,0) -> 0 | AH25: =IF(AJ$4="Ja",'R_5 Analyse'!AW921,0) -> 0 | AI25: =IF(AJ$4="Ja",'R_5 Analyse'!AX921,"") ->  | AJ25: =IF(AJ$4="Ja",'R_5 Analyse'!AY921,"") ->  | AK25: =IF(AN$4="Ja",'R_6 Analyse'!AV921,0) -> 0 | AL25: =IF(AN$4="Ja",'R_6 Analyse'!AW921,0) -> 0 | AM25: =IF(AN$4="Ja",'R_6 Analyse'!AX921,"") ->  | AN25: =IF(AN$4="Ja",'R_6 Analyse'!AY921,"") ->  | AO25: =IF(AR$4="Ja",'R_7 Analyse'!AV921,0) -> 0 | AP25: =IF(AR$4="Ja",'R_7 Analyse'!AW921,0) -> 0 | AQ25: =IF(AR$4="Ja",'R_7 Analyse'!AX921,"") ->  | AR25: =IF(AR$4="Ja",'R_7 Analyse'!AY921,"") ->  | AS25: =IF(AV$4="Ja",'R_8 Analyse'!AV921,0) -> 0 | AT25: =IF(AV$4="Ja",'R_8 Analyse'!AW921,0) -> 0 | AU25: =IF(AV$4="Ja",'R_8 Analyse'!AX921,"") ->  | AV25: =IF(AV$4="Ja",'R_8 Analyse'!AY921,"") ->  | AW25: =IF(AZ$4="Ja",'R_9 Analyse'!AV921,0) -> 0 | AX25: =IF(AZ$4="Ja",'R_9 Analyse'!AW921,0) -> 0 | AY25: =IF(AZ$4="Ja",'R_9 Analyse'!AX921,"") ->  | AZ25: =IF(AZ$4="Ja",'R_9 Analyse'!AY921,"") ->  | BA25: =IF(BD$4="Ja",'R_10 Analyse'!AV921,0) -> 0 | BB25: =IF(BD$4="Ja",'R_10 Analyse'!AW921,0) -> 0 | BC25: =IF(BD$4="Ja",'R_10 Analyse'!AX921,"") ->  | BD25: =IF(BD$4="Ja",'R_10 Analyse'!AY921,"") ->  | BE25: 0 | BF25: 0 | BG25: 0 | BH25: 0 | BI25: 0 | BJ25: 0 | BK25: 0 | BL25: 0 | BM25: 0 | BN25: 0 | BO25: 0 | BP25: 0 | BQ25: 1 | BR25: 0 | BS25: 0
G26: 20 | H26: Investitionskosten pro Zug-/Schiebehilfe | M26: 0 | N26: 0 | O26: kein | P26: synchron | Q26: =IF(T$4="Ja",'R_1 Analyse'!AV922,0) -> 0 | R26: =IF(T$4="Ja",'R_1 Analyse'!AW922,0) -> 0 | S26: =IF(T$4="Ja",'R_1 Analyse'!AX922,"") -> kein | T26: =IF(T$4="Ja",'R_1 Analyse'!AY922,"") -> synchron | U26: =IF(X$4="Ja",'R_2 Analyse'!AV922,0) -> 0 | V26: =IF(X$4="Ja",'R_2 Analyse'!AW922,0) -> 0 | W26: =IF(X$4="Ja",'R_2 Analyse'!AX922,"") ->  | X26: =IF(X$4="Ja",'R_2 Analyse'!AY922,"") ->  | Y26: =IF(AB$4="Ja",'R_3 Analyse'!AV922,0) -> 0 | Z26: =IF(AB$4="Ja",'R_3 Analyse'!AW922,0) -> 0 | AA26: =IF(AB$4="Ja",'R_3 Analyse'!AX922,"") ->  | AB26: =IF(AB$4="Ja",'R_3 Analyse'!AY922,"") ->  | AC26: =IF(AF$4="Ja",'R_4 Analyse'!AV922,0) -> 0 | AD26: =IF(AF$4="Ja",'R_4 Analyse'!AW922,0) -> 0 | AE26: =IF(AF$4="Ja",'R_4 Analyse'!AX922,"") ->  | AF26: =IF(AF$4="Ja",'R_4 Analyse'!AY922,"") ->  | AG26: =IF(AJ$4="Ja",'R_5 Analyse'!AV922,0) -> 0 | AH26: =IF(AJ$4="Ja",'R_5 Analyse'!AW922,0) -> 0 | AI26: =IF(AJ$4="Ja",'R_5 Analyse'!AX922,"") ->  | AJ26: =IF(AJ$4="Ja",'R_5 Analyse'!AY922,"") ->  | AK26: =IF(AN$4="Ja",'R_6 Analyse'!AV922,0) -> 0 | AL26: =IF(AN$4="Ja",'R_6 Analyse'!AW922,0) -> 0 | AM26: =IF(AN$4="Ja",'R_6 Analyse'!AX922,"") ->  | AN26: =IF(AN$4="Ja",'R_6 Analyse'!AY922,"") ->  | AO26: =IF(AR$4="Ja",'R_7 Analyse'!AV922,0) -> 0 | AP26: =IF(AR$4="Ja",'R_7 Analyse'!AW922,0) -> 0 | AQ26: =IF(AR$4="Ja",'R_7 Analyse'!AX922,"") ->  | AR26: =IF(AR$4="Ja",'R_7 Analyse'!AY922,"") ->  | AS26: =IF(AV$4="Ja",'R_8 Analyse'!AV922,0) -> 0 | AT26: =IF(AV$4="Ja",'R_8 Analyse'!AW922,0) -> 0 | AU26: =IF(AV$4="Ja",'R_8 Analyse'!AX922,"") ->  | AV26: =IF(AV$4="Ja",'R_8 Analyse'!AY922,"") ->  | AW26: =IF(AZ$4="Ja",'R_9 Analyse'!AV922,0) -> 0 | AX26: =IF(AZ$4="Ja",'R_9 Analyse'!AW922,0) -> 0 | AY26: =IF(AZ$4="Ja",'R_9 Analyse'!AX922,"") ->  | AZ26: =IF(AZ$4="Ja",'R_9 Analyse'!AY922,"") ->  | BA26: =IF(BD$4="Ja",'R_10 Analyse'!AV922,0) -> 0 | BB26: =IF(BD$4="Ja",'R_10 Analyse'!AW922,0) -> 0 | BC26: =IF(BD$4="Ja",'R_10 Analyse'!AX922,"") ->  | BD26: =IF(BD$4="Ja",'R_10 Analyse'!AY922,"") ->  | BE26: 0 | BF26: 0 | BG26: 0 | BH26: 0 | BI26: 0 | BJ26: 0 | BK26: 0 | BL26: 0 | BM26: 0 | BN26: 0 | BO26: 0 | BP26: 0 | BQ26: 1 | BR26: 0 | BS26: 0
G27: 21 | H27: Anzahl Beladetechnik | M27: -2.048033448 | N27: 2.048033448 | O27: positiv | P27: synchron | Q27: =IF(T$4="Ja",'R_1 Analyse'!AV923,0) -> -2.048033448 | R27: =IF(T$4="Ja",'R_1 Analyse'!AW923,0) -> 2.048033448 | S27: =IF(T$4="Ja",'R_1 Analyse'!AX923,"") -> positiv | T27: =IF(T$4="Ja",'R_1 Analyse'!AY923,"") -> synchron | U27: =IF(X$4="Ja",'R_2 Analyse'!AV923,0) -> 0 | V27: =IF(X$4="Ja",'R_2 Analyse'!AW923,0) -> 0 | W27: =IF(X$4="Ja",'R_2 Analyse'!AX923,"") ->  | X27: =IF(X$4="Ja",'R_2 Analyse'!AY923,"") ->  | Y27: =IF(AB$4="Ja",'R_3 Analyse'!AV923,0) -> 0 | Z27: =IF(AB$4="Ja",'R_3 Analyse'!AW923,0) -> 0 | AA27: =IF(AB$4="Ja",'R_3 Analyse'!AX923,"") ->  | AB27: =IF(AB$4="Ja",'R_3 Analyse'!AY923,"") ->  | AC27: =IF(AF$4="Ja",'R_4 Analyse'!AV923,0) -> 0 | AD27: =IF(AF$4="Ja",'R_4 Analyse'!AW923,0) -> 0 | AE27: =IF(AF$4="Ja",'R_4 Analyse'!AX923,"") ->  | AF27: =IF(AF$4="Ja",'R_4 Analyse'!AY923,"") ->  | AG27: =IF(AJ$4="Ja",'R_5 Analyse'!AV923,0) -> 0 | AH27: =IF(AJ$4="Ja",'R_5 Analyse'!AW923,0) -> 0 | AI27: =IF(AJ$4="Ja",'R_5 Analyse'!AX923,"") ->  | AJ27: =IF(AJ$4="Ja",'R_5 Analyse'!AY923,"") ->  | AK27: =IF(AN$4="Ja",'R_6 Analyse'!AV923,0) -> 0 | AL27: =IF(AN$4="Ja",'R_6 Analyse'!AW923,0) -> 0 | AM27: =IF(AN$4="Ja",'R_6 Analyse'!AX923,"") ->  | AN27: =IF(AN$4="Ja",'R_6 Analyse'!AY923,"") ->  | AO27: =IF(AR$4="Ja",'R_7 Analyse'!AV923,0) -> 0 | AP27: =IF(AR$4="Ja",'R_7 Analyse'!AW923,0) -> 0 | AQ27: =IF(AR$4="Ja",'R_7 Analyse'!AX923,"") ->  | AR27: =IF(AR$4="Ja",'R_7 Analyse'!AY923,"") ->  | AS27: =IF(AV$4="Ja",'R_8 Analyse'!AV923,0) -> 0 | AT27: =IF(AV$4="Ja",'R_8 Analyse'!AW923,0) -> 0 | AU27: =IF(AV$4="Ja",'R_8 Analyse'!AX923,"") ->  | AV27: =IF(AV$4="Ja",'R_8 Analyse'!AY923,"") ->  | AW27: =IF(AZ$4="Ja",'R_9 Analyse'!AV923,0) -> 0 | AX27: =IF(AZ$4="Ja",'R_9 Analyse'!AW923,0) -> 0 | AY27: =IF(AZ$4="Ja",'R_9 Analyse'!AX923,"") ->  | AZ27: =IF(AZ$4="Ja",'R_9 Analyse'!AY923,"") ->  | BA27: =IF(BD$4="Ja",'R_10 Analyse'!AV923,0) -> 0 | BB27: =IF(BD$4="Ja",'R_10 Analyse'!AW923,0) -> 0 | BC27: =IF(BD$4="Ja",'R_10 Analyse'!AX923,"") ->  | BD27: =IF(BD$4="Ja",'R_10 Analyse'!AY923,"") ->  | BE27: -2.048033448 | BF27: 2.048033448 | BG27: 0 | BH27: 0 | BI27: 0 | BJ27: 0 | BK27: 0 | BL27: 0 | BM27: 0 | BN27: 0 | BO27: 0 | BP27: 0 | BQ27: 0 | BR27: 1 | BS27: 0
G28: 22 | H28: Investitionskosten pro Beladetechnik | M28: -2.048033448 | N28: 2.048033448 | O28: positiv | P28: synchron | Q28: =IF(T$4="Ja",'R_1 Analyse'!AV924,0) -> -2.048033448 | R28: =IF(T$4="Ja",'R_1 Analyse'!AW924,0) -> 2.048033448 | S28: =IF(T$4="Ja",'R_1 Analyse'!AX924,"") -> positiv | T28: =IF(T$4="Ja",'R_1 Analyse'!AY924,"") -> synchron | U28: =IF(X$4="Ja",'R_2 Analyse'!AV924,0) -> 0 | V28: =IF(X$4="Ja",'R_2 Analyse'!AW924,0) -> 0 | W28: =IF(X$4="Ja",'R_2 Analyse'!AX924,"") ->  | X28: =IF(X$4="Ja",'R_2 Analyse'!AY924,"") ->  | Y28: =IF(AB$4="Ja",'R_3 Analyse'!AV924,0) -> 0 | Z28: =IF(AB$4="Ja",'R_3 Analyse'!AW924,0) -> 0 | AA28: =IF(AB$4="Ja",'R_3 Analyse'!AX924,"") ->  | AB28: =IF(AB$4="Ja",'R_3 Analyse'!AY924,"") ->  | AC28: =IF(AF$4="Ja",'R_4 Analyse'!AV924,0) -> 0 | AD28: =IF(AF$4="Ja",'R_4 Analyse'!AW924,0) -> 0 | AE28: =IF(AF$4="Ja",'R_4 Analyse'!AX924,"") ->  | AF28: =IF(AF$4="Ja",'R_4 Analyse'!AY924,"") ->  | AG28: =IF(AJ$4="Ja",'R_5 Analyse'!AV924,0) -> 0 | AH28: =IF(AJ$4="Ja",'R_5 Analyse'!AW924,0) -> 0 | AI28: =IF(AJ$4="Ja",'R_5 Analyse'!AX924,"") ->  | AJ28: =IF(AJ$4="Ja",'R_5 Analyse'!AY924,"") ->  | AK28: =IF(AN$4="Ja",'R_6 Analyse'!AV924,0) -> 0 | AL28: =IF(AN$4="Ja",'R_6 Analyse'!AW924,0) -> 0 | AM28: =IF(AN$4="Ja",'R_6 Analyse'!AX924,"") ->  | AN28: =IF(AN$4="Ja",'R_6 Analyse'!AY924,"") ->  | AO28: =IF(AR$4="Ja",'R_7 Analyse'!AV924,0) -> 0 | AP28: =IF(AR$4="Ja",'R_7 Analyse'!AW924,0) -> 0 | AQ28: =IF(AR$4="Ja",'R_7 Analyse'!AX924,"") ->  | AR28: =IF(AR$4="Ja",'R_7 Analyse'!AY924,"") ->  | AS28: =IF(AV$4="Ja",'R_8 Analyse'!AV924,0) -> 0 | AT28: =IF(AV$4="Ja",'R_8 Analyse'!AW924,0) -> 0 | AU28: =IF(AV$4="Ja",'R_8 Analyse'!AX924,"") ->  | AV28: =IF(AV$4="Ja",'R_8 Analyse'!AY924,"") ->  | AW28: =IF(AZ$4="Ja",'R_9 Analyse'!AV924,0) -> 0 | AX28: =IF(AZ$4="Ja",'R_9 Analyse'!AW924,0) -> 0 | AY28: =IF(AZ$4="Ja",'R_9 Analyse'!AX924,"") ->  | AZ28: =IF(AZ$4="Ja",'R_9 Analyse'!AY924,"") ->  | BA28: =IF(BD$4="Ja",'R_10 Analyse'!AV924,0) -> 0 | BB28: =IF(BD$4="Ja",'R_10 Analyse'!AW924,0) -> 0 | BC28: =IF(BD$4="Ja",'R_10 Analyse'!AX924,"") ->  | BD28: =IF(BD$4="Ja",'R_10 Analyse'!AY924,"") ->  | BE28: -2.048033448 | BF28: 2.048033448 | BG28: 0 | BH28: 0 | BI28: 0 | BJ28: 0 | BK28: 0 | BL28: 0 | BM28: 0 | BN28: 0 | BO28: 0 | BP28: 0 | BQ28: 0 | BR28: 1 | BS28: 0
G29: 23 | H29: Anzahl Entladetechnik | M29: 0 | N29: 0 | O29: kein | P29: synchron | Q29: =IF(T$4="Ja",'R_1 Analyse'!AV925,0) -> 0 | R29: =IF(T$4="Ja",'R_1 Analyse'!AW925,0) -> 0 | S29: =IF(T$4="Ja",'R_1 Analyse'!AX925,"") -> kein | T29: =IF(T$4="Ja",'R_1 Analyse'!AY925,"") -> synchron | U29: =IF(X$4="Ja",'R_2 Analyse'!AV925,0) -> 0 | V29: =IF(X$4="Ja",'R_2 Analyse'!AW925,0) -> 0 | W29: =IF(X$4="Ja",'R_2 Analyse'!AX925,"") ->  | X29: =IF(X$4="Ja",'R_2 Analyse'!AY925,"") ->  | Y29: =IF(AB$4="Ja",'R_3 Analyse'!AV925,0) -> 0 | Z29: =IF(AB$4="Ja",'R_3 Analyse'!AW925,0) -> 0 | AA29: =IF(AB$4="Ja",'R_3 Analyse'!AX925,"") ->  | AB29: =IF(AB$4="Ja",'R_3 Analyse'!AY925,"") ->  | AC29: =IF(AF$4="Ja",'R_4 Analyse'!AV925,0) -> 0 | AD29: =IF(AF$4="Ja",'R_4 Analyse'!AW925,0) -> 0 | AE29: =IF(AF$4="Ja",'R_4 Analyse'!AX925,"") ->  | AF29: =IF(AF$4="Ja",'R_4 Analyse'!AY925,"") ->  | AG29: =IF(AJ$4="Ja",'R_5 Analyse'!AV925,0) -> 0 | AH29: =IF(AJ$4="Ja",'R_5 Analyse'!AW925,0) -> 0 | AI29: =IF(AJ$4="Ja",'R_5 Analyse'!AX925,"") ->  | AJ29: =IF(AJ$4="Ja",'R_5 Analyse'!AY925,"") ->  | AK29: =IF(AN$4="Ja",'R_6 Analyse'!AV925,0) -> 0 | AL29: =IF(AN$4="Ja",'R_6 Analyse'!AW925,0) -> 0 | AM29: =IF(AN$4="Ja",'R_6 Analyse'!AX925,"") ->  | AN29: =IF(AN$4="Ja",'R_6 Analyse'!AY925,"") ->  | AO29: =IF(AR$4="Ja",'R_7 Analyse'!AV925,0) -> 0 | AP29: =IF(AR$4="Ja",'R_7 Analyse'!AW925,0) -> 0 | AQ29: =IF(AR$4="Ja",'R_7 Analyse'!AX925,"") ->  | AR29: =IF(AR$4="Ja",'R_7 Analyse'!AY925,"") ->  | AS29: =IF(AV$4="Ja",'R_8 Analyse'!AV925,0) -> 0 | AT29: =IF(AV$4="Ja",'R_8 Analyse'!AW925,0) -> 0 | AU29: =IF(AV$4="Ja",'R_8 Analyse'!AX925,"") ->  | AV29: =IF(AV$4="Ja",'R_8 Analyse'!AY925,"") ->  | AW29: =IF(AZ$4="Ja",'R_9 Analyse'!AV925,0) -> 0 | AX29: =IF(AZ$4="Ja",'R_9 Analyse'!AW925,0) -> 0 | AY29: =IF(AZ$4="Ja",'R_9 Analyse'!AX925,"") ->  | AZ29: =IF(AZ$4="Ja",'R_9 Analyse'!AY925,"") ->  | BA29: =IF(BD$4="Ja",'R_10 Analyse'!AV925,0) -> 0 | BB29: =IF(BD$4="Ja",'R_10 Analyse'!AW925,0) -> 0 | BC29: =IF(BD$4="Ja",'R_10 Analyse'!AX925,"") ->  | BD29: =IF(BD$4="Ja",'R_10 Analyse'!AY925,"") ->  | BE29: 0 | BF29: 0 | BG29: 0 | BH29: 0 | BI29: 0 | BJ29: 0 | BK29: 0 | BL29: 0 | BM29: 0 | BN29: 0 | BO29: 0 | BP29: 0 | BQ29: 1 | BR29: 0 | BS29: 0
G30: 24 | H30: Investitionskosten pro Entladetechnik | M30: 0 | N30: 0 | O30: kein | P30: synchron | Q30: =IF(T$4="Ja",'R_1 Analyse'!AV926,0) -> 0 | R30: =IF(T$4="Ja",'R_1 Analyse'!AW926,0) -> 0 | S30: =IF(T$4="Ja",'R_1 Analyse'!AX926,"") -> kein | T30: =IF(T$4="Ja",'R_1 Analyse'!AY926,"") -> synchron | U30: =IF(X$4="Ja",'R_2 Analyse'!AV926,0) -> 0 | V30: =IF(X$4="Ja",'R_2 Analyse'!AW926,0) -> 0 | W30: =IF(X$4="Ja",'R_2 Analyse'!AX926,"") ->  | X30: =IF(X$4="Ja",'R_2 Analyse'!AY926,"") ->  | Y30: =IF(AB$4="Ja",'R_3 Analyse'!AV926,0) -> 0 | Z30: =IF(AB$4="Ja",'R_3 Analyse'!AW926,0) -> 0 | AA30: =IF(AB$4="Ja",'R_3 Analyse'!AX926,"") ->  | AB30: =IF(AB$4="Ja",'R_3 Analyse'!AY926,"") ->  | AC30: =IF(AF$4="Ja",'R_4 Analyse'!AV926,0) -> 0 | AD30: =IF(AF$4="Ja",'R_4 Analyse'!AW926,0) -> 0 | AE30: =IF(AF$4="Ja",'R_4 Analyse'!AX926,"") ->  | AF30: =IF(AF$4="Ja",'R_4 Analyse'!AY926,"") ->  | AG30: =IF(AJ$4="Ja",'R_5 Analyse'!AV926,0) -> 0 | AH30: =IF(AJ$4="Ja",'R_5 Analyse'!AW926,0) -> 0 | AI30: =IF(AJ$4="Ja",'R_5 Analyse'!AX926,"") ->  | AJ30: =IF(AJ$4="Ja",'R_5 Analyse'!AY926,"") ->  | AK30: =IF(AN$4="Ja",'R_6 Analyse'!AV926,0) -> 0 | AL30: =IF(AN$4="Ja",'R_6 Analyse'!AW926,0) -> 0 | AM30: =IF(AN$4="Ja",'R_6 Analyse'!AX926,"") ->  | AN30: =IF(AN$4="Ja",'R_6 Analyse'!AY926,"") ->  | AO30: =IF(AR$4="Ja",'R_7 Analyse'!AV926,0) -> 0 | AP30: =IF(AR$4="Ja",'R_7 Analyse'!AW926,0) -> 0 | AQ30: =IF(AR$4="Ja",'R_7 Analyse'!AX926,"") ->  | AR30: =IF(AR$4="Ja",'R_7 Analyse'!AY926,"") ->  | AS30: =IF(AV$4="Ja",'R_8 Analyse'!AV926,0) -> 0 | AT30: =IF(AV$4="Ja",'R_8 Analyse'!AW926,0) -> 0 | AU30: =IF(AV$4="Ja",'R_8 Analyse'!AX926,"") ->  | AV30: =IF(AV$4="Ja",'R_8 Analyse'!AY926,"") ->  | AW30: =IF(AZ$4="Ja",'R_9 Analyse'!AV926,0) -> 0 | AX30: =IF(AZ$4="Ja",'R_9 Analyse'!AW926,0) -> 0 | AY30: =IF(AZ$4="Ja",'R_9 Analyse'!AX926,"") ->  | AZ30: =IF(AZ$4="Ja",'R_9 Analyse'!AY926,"") ->  | BA30: =IF(BD$4="Ja",'R_10 Analyse'!AV926,0) -> 0 | BB30: =IF(BD$4="Ja",'R_10 Analyse'!AW926,0) -> 0 | BC30: =IF(BD$4="Ja",'R_10 Analyse'!AX926,"") ->  | BD30: =IF(BD$4="Ja",'R_10 Analyse'!AY926,"") ->  | BE30: 0 | BF30: 0 | BG30: 0 | BH30: 0 | BI30: 0 | BJ30: 0 | BK30: 0 | BL30: 0 | BM30: 0 | BN30: 0 | BO30: 0 | BP30: 0 | BQ30: 1 | BR30: 0 | BS30: 0
G31: 25 | H31: Anzahl Bereitstelltechnik | M31: -0.2184332878 | N31: 0.2184332878 | O31: positiv | P31: synchron | Q31: =IF(T$4="Ja",'R_1 Analyse'!AV927,0) -> -0.2184332878 | R31: =IF(T$4="Ja",'R_1 Analyse'!AW927,0) -> 0.2184332878 | S31: =IF(T$4="Ja",'R_1 Analyse'!AX927,"") -> positiv | T31: =IF(T$4="Ja",'R_1 Analyse'!AY927,"") -> synchron | U31: =IF(X$4="Ja",'R_2 Analyse'!AV927,0) -> 0 | V31: =IF(X$4="Ja",'R_2 Analyse'!AW927,0) -> 0 | W31: =IF(X$4="Ja",'R_2 Analyse'!AX927,"") ->  | X31: =IF(X$4="Ja",'R_2 Analyse'!AY927,"") ->  | Y31: =IF(AB$4="Ja",'R_3 Analyse'!AV927,0) -> 0 | Z31: =IF(AB$4="Ja",'R_3 Analyse'!AW927,0) -> 0 | AA31: =IF(AB$4="Ja",'R_3 Analyse'!AX927,"") ->  | AB31: =IF(AB$4="Ja",'R_3 Analyse'!AY927,"") ->  | AC31: =IF(AF$4="Ja",'R_4 Analyse'!AV927,0) -> 0 | AD31: =IF(AF$4="Ja",'R_4 Analyse'!AW927,0) -> 0 | AE31: =IF(AF$4="Ja",'R_4 Analyse'!AX927,"") ->  | AF31: =IF(AF$4="Ja",'R_4 Analyse'!AY927,"") ->  | AG31: =IF(AJ$4="Ja",'R_5 Analyse'!AV927,0) -> 0 | AH31: =IF(AJ$4="Ja",'R_5 Analyse'!AW927,0) -> 0 | AI31: =IF(AJ$4="Ja",'R_5 Analyse'!AX927,"") ->  | AJ31: =IF(AJ$4="Ja",'R_5 Analyse'!AY927,"") ->  | AK31: =IF(AN$4="Ja",'R_6 Analyse'!AV927,0) -> 0 | AL31: =IF(AN$4="Ja",'R_6 Analyse'!AW927,0) -> 0 | AM31: =IF(AN$4="Ja",'R_6 Analyse'!AX927,"") ->  | AN31: =IF(AN$4="Ja",'R_6 Analyse'!AY927,"") ->  | AO31: =IF(AR$4="Ja",'R_7 Analyse'!AV927,0) -> 0 | AP31: =IF(AR$4="Ja",'R_7 Analyse'!AW927,0) -> 0 | AQ31: =IF(AR$4="Ja",'R_7 Analyse'!AX927,"") ->  | AR31: =IF(AR$4="Ja",'R_7 Analyse'!AY927,"") ->  | AS31: =IF(AV$4="Ja",'R_8 Analyse'!AV927,0) -> 0 | AT31: =IF(AV$4="Ja",'R_8 Analyse'!AW927,0) -> 0 | AU31: =IF(AV$4="Ja",'R_8 Analyse'!AX927,"") ->  | AV31: =IF(AV$4="Ja",'R_8 Analyse'!AY927,"") ->  | AW31: =IF(AZ$4="Ja",'R_9 Analyse'!AV927,0) -> 0 | AX31: =IF(AZ$4="Ja",'R_9 Analyse'!AW927,0) -> 0 | AY31: =IF(AZ$4="Ja",'R_9 Analyse'!AX927,"") ->  | AZ31: =IF(AZ$4="Ja",'R_9 Analyse'!AY927,"") ->  | BA31: =IF(BD$4="Ja",'R_10 Analyse'!AV927,0) -> 0 | BB31: =IF(BD$4="Ja",'R_10 Analyse'!AW927,0) -> 0 | BC31: =IF(BD$4="Ja",'R_10 Analyse'!AX927,"") ->  | BD31: =IF(BD$4="Ja",'R_10 Analyse'!AY927,"") ->  | BE31: -0.2184332878 | BF31: 0.2184332878 | BG31: 0 | BH31: 0 | BI31: 0 | BJ31: 0 | BK31: 0 | BL31: 0 | BM31: 0 | BN31: 0 | BO31: 0 | BP31: 0 | BQ31: 0 | BR31: 1 | BS31: 0
G32: 26 | H32: Investitionskosten pro Bereitstelltechnik | M32: -0.2184332878 | N32: 0.2184332878 | O32: positiv | P32: synchron | Q32: =IF(T$4="Ja",'R_1 Analyse'!AV928,0) -> -0.2184332878 | R32: =IF(T$4="Ja",'R_1 Analyse'!AW928,0) -> 0.2184332878 | S32: =IF(T$4="Ja",'R_1 Analyse'!AX928,"") -> positiv | T32: =IF(T$4="Ja",'R_1 Analyse'!AY928,"") -> synchron | U32: =IF(X$4="Ja",'R_2 Analyse'!AV928,0) -> 0 | V32: =IF(X$4="Ja",'R_2 Analyse'!AW928,0) -> 0 | W32: =IF(X$4="Ja",'R_2 Analyse'!AX928,"") ->  | X32: =IF(X$4="Ja",'R_2 Analyse'!AY928,"") ->  | Y32: =IF(AB$4="Ja",'R_3 Analyse'!AV928,0) -> 0 | Z32: =IF(AB$4="Ja",'R_3 Analyse'!AW928,0) -> 0 | AA32: =IF(AB$4="Ja",'R_3 Analyse'!AX928,"") ->  | AB32: =IF(AB$4="Ja",'R_3 Analyse'!AY928,"") ->  | AC32: =IF(AF$4="Ja",'R_4 Analyse'!AV928,0) -> 0 | AD32: =IF(AF$4="Ja",'R_4 Analyse'!AW928,0) -> 0 | AE32: =IF(AF$4="Ja",'R_4 Analyse'!AX928,"") ->  | AF32: =IF(AF$4="Ja",'R_4 Analyse'!AY928,"") ->  | AG32: =IF(AJ$4="Ja",'R_5 Analyse'!AV928,0) -> 0 | AH32: =IF(AJ$4="Ja",'R_5 Analyse'!AW928,0) -> 0 | AI32: =IF(AJ$4="Ja",'R_5 Analyse'!AX928,"") ->  | AJ32: =IF(AJ$4="Ja",'R_5 Analyse'!AY928,"") ->  | AK32: =IF(AN$4="Ja",'R_6 Analyse'!AV928,0) -> 0 | AL32: =IF(AN$4="Ja",'R_6 Analyse'!AW928,0) -> 0 | AM32: =IF(AN$4="Ja",'R_6 Analyse'!AX928,"") ->  | AN32: =IF(AN$4="Ja",'R_6 Analyse'!AY928,"") ->  | AO32: =IF(AR$4="Ja",'R_7 Analyse'!AV928,0) -> 0 | AP32: =IF(AR$4="Ja",'R_7 Analyse'!AW928,0) -> 0 | AQ32: =IF(AR$4="Ja",'R_7 Analyse'!AX928,"") ->  | AR32: =IF(AR$4="Ja",'R_7 Analyse'!AY928,"") ->  | AS32: =IF(AV$4="Ja",'R_8 Analyse'!AV928,0) -> 0 | AT32: =IF(AV$4="Ja",'R_8 Analyse'!AW928,0) -> 0 | AU32: =IF(AV$4="Ja",'R_8 Analyse'!AX928,"") ->  | AV32: =IF(AV$4="Ja",'R_8 Analyse'!AY928,"") ->  | AW32: =IF(AZ$4="Ja",'R_9 Analyse'!AV928,0) -> 0 | AX32: =IF(AZ$4="Ja",'R_9 Analyse'!AW928,0) -> 0 | AY32: =IF(AZ$4="Ja",'R_9 Analyse'!AX928,"") ->  | AZ32: =IF(AZ$4="Ja",'R_9 Analyse'!AY928,"") ->  | BA32: =IF(BD$4="Ja",'R_10 Analyse'!AV928,0) -> 0 | BB32: =IF(BD$4="Ja",'R_10 Analyse'!AW928,0) -> 0 | BC32: =IF(BD$4="Ja",'R_10 Analyse'!AX928,"") ->  | BD32: =IF(BD$4="Ja",'R_10 Analyse'!AY928,"") ->  | BE32: -0.2184332878 | BF32: 0.2184332878 | BG32: 0 | BH32: 0 | BI32: 0 | BJ32: 0 | BK32: 0 | BL32: 0 | BM32: 0 | BN32: 0 | BO32: 0 | BP32: 0 | BQ32: 0 | BR32: 1 | BS32: 0
G33: 27 | H33: Anzahl Informationstechnik | M33: -0.455039833 | N33: 0.455039833 | O33: positiv | P33: synchron | Q33: =IF(T$4="Ja",'R_1 Analyse'!AV929,0) -> -0.455039833 | R33: =IF(T$4="Ja",'R_1 Analyse'!AW929,0) -> 0.455039833 | S33: =IF(T$4="Ja",'R_1 Analyse'!AX929,"") -> positiv | T33: =IF(T$4="Ja",'R_1 Analyse'!AY929,"") -> synchron | U33: =IF(X$4="Ja",'R_2 Analyse'!AV929,0) -> 0 | V33: =IF(X$4="Ja",'R_2 Analyse'!AW929,0) -> 0 | W33: =IF(X$4="Ja",'R_2 Analyse'!AX929,"") ->  | X33: =IF(X$4="Ja",'R_2 Analyse'!AY929,"") ->  | Y33: =IF(AB$4="Ja",'R_3 Analyse'!AV929,0) -> 0 | Z33: =IF(AB$4="Ja",'R_3 Analyse'!AW929,0) -> 0 | AA33: =IF(AB$4="Ja",'R_3 Analyse'!AX929,"") ->  | AB33: =IF(AB$4="Ja",'R_3 Analyse'!AY929,"") ->  | AC33: =IF(AF$4="Ja",'R_4 Analyse'!AV929,0) -> 0 | AD33: =IF(AF$4="Ja",'R_4 Analyse'!AW929,0) -> 0 | AE33: =IF(AF$4="Ja",'R_4 Analyse'!AX929,"") ->  | AF33: =IF(AF$4="Ja",'R_4 Analyse'!AY929,"") ->  | AG33: =IF(AJ$4="Ja",'R_5 Analyse'!AV929,0) -> 0 | AH33: =IF(AJ$4="Ja",'R_5 Analyse'!AW929,0) -> 0 | AI33: =IF(AJ$4="Ja",'R_5 Analyse'!AX929,"") ->  | AJ33: =IF(AJ$4="Ja",'R_5 Analyse'!AY929,"") ->  | AK33: =IF(AN$4="Ja",'R_6 Analyse'!AV929,0) -> 0 | AL33: =IF(AN$4="Ja",'R_6 Analyse'!AW929,0) -> 0 | AM33: =IF(AN$4="Ja",'R_6 Analyse'!AX929,"") ->  | AN33: =IF(AN$4="Ja",'R_6 Analyse'!AY929,"") ->  | AO33: =IF(AR$4="Ja",'R_7 Analyse'!AV929,0) -> 0 | AP33: =IF(AR$4="Ja",'R_7 Analyse'!AW929,0) -> 0 | AQ33: =IF(AR$4="Ja",'R_7 Analyse'!AX929,"") ->  | AR33: =IF(AR$4="Ja",'R_7 Analyse'!AY929,"") ->  | AS33: =IF(AV$4="Ja",'R_8 Analyse'!AV929,0) -> 0 | AT33: =IF(AV$4="Ja",'R_8 Analyse'!AW929,0) -> 0 | AU33: =IF(AV$4="Ja",'R_8 Analyse'!AX929,"") ->  | AV33: =IF(AV$4="Ja",'R_8 Analyse'!AY929,"") ->  | AW33: =IF(AZ$4="Ja",'R_9 Analyse'!AV929,0) -> 0 | AX33: =IF(AZ$4="Ja",'R_9 Analyse'!AW929,0) -> 0 | AY33: =IF(AZ$4="Ja",'R_9 Analyse'!AX929,"") ->  | AZ33: =IF(AZ$4="Ja",'R_9 Analyse'!AY929,"") ->  | BA33: =IF(BD$4="Ja",'R_10 Analyse'!AV929,0) -> 0 | BB33: =IF(BD$4="Ja",'R_10 Analyse'!AW929,0) -> 0 | BC33: =IF(BD$4="Ja",'R_10 Analyse'!AX929,"") ->  | BD33: =IF(BD$4="Ja",'R_10 Analyse'!AY929,"") ->  | BE33: -0.455039833 | BF33: 0.455039833 | BG33: 0 | BH33: 0 | BI33: 0 | BJ33: 0 | BK33: 0 | BL33: 0 | BM33: 0 | BN33: 0 | BO33: 0 | BP33: 0 | BQ33: 0 | BR33: 1 | BS33: 0
G34: 28 | H34: Investitionskosten pro Informationstechnik | M34: -0.455039833 | N34: 0.455039833 | O34: positiv | P34: synchron | Q34: =IF(T$4="Ja",'R_1 Analyse'!AV930,0) -> -0.455039833 | R34: =IF(T$4="Ja",'R_1 Analyse'!AW930,0) -> 0.455039833 | S34: =IF(T$4="Ja",'R_1 Analyse'!AX930,"") -> positiv | T34: =IF(T$4="Ja",'R_1 Analyse'!AY930,"") -> synchron | U34: =IF(X$4="Ja",'R_2 Analyse'!AV930,0) -> 0 | V34: =IF(X$4="Ja",'R_2 Analyse'!AW930,0) -> 0 | W34: =IF(X$4="Ja",'R_2 Analyse'!AX930,"") ->  | X34: =IF(X$4="Ja",'R_2 Analyse'!AY930,"") ->  | Y34: =IF(AB$4="Ja",'R_3 Analyse'!AV930,0) -> 0 | Z34: =IF(AB$4="Ja",'R_3 Analyse'!AW930,0) -> 0 | AA34: =IF(AB$4="Ja",'R_3 Analyse'!AX930,"") ->  | AB34: =IF(AB$4="Ja",'R_3 Analyse'!AY930,"") ->  | AC34: =IF(AF$4="Ja",'R_4 Analyse'!AV930,0) -> 0 | AD34: =IF(AF$4="Ja",'R_4 Analyse'!AW930,0) -> 0 | AE34: =IF(AF$4="Ja",'R_4 Analyse'!AX930,"") ->  | AF34: =IF(AF$4="Ja",'R_4 Analyse'!AY930,"") ->  | AG34: =IF(AJ$4="Ja",'R_5 Analyse'!AV930,0) -> 0 | AH34: =IF(AJ$4="Ja",'R_5 Analyse'!AW930,0) -> 0 | AI34: =IF(AJ$4="Ja",'R_5 Analyse'!AX930,"") ->  | AJ34: =IF(AJ$4="Ja",'R_5 Analyse'!AY930,"") ->  | AK34: =IF(AN$4="Ja",'R_6 Analyse'!AV930,0) -> 0 | AL34: =IF(AN$4="Ja",'R_6 Analyse'!AW930,0) -> 0 | AM34: =IF(AN$4="Ja",'R_6 Analyse'!AX930,"") ->  | AN34: =IF(AN$4="Ja",'R_6 Analyse'!AY930,"") ->  | AO34: =IF(AR$4="Ja",'R_7 Analyse'!AV930,0) -> 0 | AP34: =IF(AR$4="Ja",'R_7 Analyse'!AW930,0) -> 0 | AQ34: =IF(AR$4="Ja",'R_7 Analyse'!AX930,"") ->  | AR34: =IF(AR$4="Ja",'R_7 Analyse'!AY930,"") ->  | AS34: =IF(AV$4="Ja",'R_8 Analyse'!AV930,0) -> 0 | AT34: =IF(AV$4="Ja",'R_8 Analyse'!AW930,0) -> 0 | AU34: =IF(AV$4="Ja",'R_8 Analyse'!AX930,"") ->  | AV34: =IF(AV$4="Ja",'R_8 Analyse'!AY930,"") ->  | AW34: =IF(AZ$4="Ja",'R_9 Analyse'!AV930,0) -> 0 | AX34: =IF(AZ$4="Ja",'R_9 Analyse'!AW930,0) -> 0 | AY34: =IF(AZ$4="Ja",'R_9 Analyse'!AX930,"") ->  | AZ34: =IF(AZ$4="Ja",'R_9 Analyse'!AY930,"") ->  | BA34: =IF(BD$4="Ja",'R_10 Analyse'!AV930,0) -> 0 | BB34: =IF(BD$4="Ja",'R_10 Analyse'!AW930,0) -> 0 | BC34: =IF(BD$4="Ja",'R_10 Analyse'!AX930,"") ->  | BD34: =IF(BD$4="Ja",'R_10 Analyse'!AY930,"") ->  | BE34: -0.455039833 | BF34: 0.455039833 | BG34: 0 | BH34: 0 | BI34: 0 | BJ34: 0 | BK34: 0 | BL34: 0 | BM34: 0 | BN34: 0 | BO34: 0 | BP34: 0 | BQ34: 0 | BR34: 1 | BS34: 0
G35: 29 | H35: Lohnkosten Mitarbeiter pro Jahr | M35: -17.33905439 | N35: 17.33905439 | O35: positiv | P35: synchron | Q35: =IF(T$4="Ja",'R_1 Analyse'!AV931,0) -> -17.33905439 | R35: =IF(T$4="Ja",'R_1 Analyse'!AW931,0) -> 17.33905439 | S35: =IF(T$4="Ja",'R_1 Analyse'!AX931,"") -> positiv | T35: =IF(T$4="Ja",'R_1 Analyse'!AY931,"") -> synchron | U35: =IF(X$4="Ja",'R_2 Analyse'!AV931,0) -> 0 | V35: =IF(X$4="Ja",'R_2 Analyse'!AW931,0) -> 0 | W35: =IF(X$4="Ja",'R_2 Analyse'!AX931,"") ->  | X35: =IF(X$4="Ja",'R_2 Analyse'!AY931,"") ->  | Y35: =IF(AB$4="Ja",'R_3 Analyse'!AV931,0) -> 0 | Z35: =IF(AB$4="Ja",'R_3 Analyse'!AW931,0) -> 0 | AA35: =IF(AB$4="Ja",'R_3 Analyse'!AX931,"") ->  | AB35: =IF(AB$4="Ja",'R_3 Analyse'!AY931,"") ->  | AC35: =IF(AF$4="Ja",'R_4 Analyse'!AV931,0) -> 0 | AD35: =IF(AF$4="Ja",'R_4 Analyse'!AW931,0) -> 0 | AE35: =IF(AF$4="Ja",'R_4 Analyse'!AX931,"") ->  | AF35: =IF(AF$4="Ja",'R_4 Analyse'!AY931,"") ->  | AG35: =IF(AJ$4="Ja",'R_5 Analyse'!AV931,0) -> 0 | AH35: =IF(AJ$4="Ja",'R_5 Analyse'!AW931,0) -> 0 | AI35: =IF(AJ$4="Ja",'R_5 Analyse'!AX931,"") ->  | AJ35: =IF(AJ$4="Ja",'R_5 Analyse'!AY931,"") ->  | AK35: =IF(AN$4="Ja",'R_6 Analyse'!AV931,0) -> 0 | AL35: =IF(AN$4="Ja",'R_6 Analyse'!AW931,0) -> 0 | AM35: =IF(AN$4="Ja",'R_6 Analyse'!AX931,"") ->  | AN35: =IF(AN$4="Ja",'R_6 Analyse'!AY931,"") ->  | AO35: =IF(AR$4="Ja",'R_7 Analyse'!AV931,0) -> 0 | AP35: =IF(AR$4="Ja",'R_7 Analyse'!AW931,0) -> 0 | AQ35: =IF(AR$4="Ja",'R_7 Analyse'!AX931,"") ->  | AR35: =IF(AR$4="Ja",'R_7 Analyse'!AY931,"") ->  | AS35: =IF(AV$4="Ja",'R_8 Analyse'!AV931,0) -> 0 | AT35: =IF(AV$4="Ja",'R_8 Analyse'!AW931,0) -> 0 | AU35: =IF(AV$4="Ja",'R_8 Analyse'!AX931,"") ->  | AV35: =IF(AV$4="Ja",'R_8 Analyse'!AY931,"") ->  | AW35: =IF(AZ$4="Ja",'R_9 Analyse'!AV931,0) -> 0 | AX35: =IF(AZ$4="Ja",'R_9 Analyse'!AW931,0) -> 0 | AY35: =IF(AZ$4="Ja",'R_9 Analyse'!AX931,"") ->  | AZ35: =IF(AZ$4="Ja",'R_9 Analyse'!AY931,"") ->  | BA35: =IF(BD$4="Ja",'R_10 Analyse'!AV931,0) -> 0 | BB35: =IF(BD$4="Ja",'R_10 Analyse'!AW931,0) -> 0 | BC35: =IF(BD$4="Ja",'R_10 Analyse'!AX931,"") ->  | BD35: =IF(BD$4="Ja",'R_10 Analyse'!AY931,"") ->  | BE35: -17.33905439 | BF35: 17.33905439 | BG35: 0 | BH35: 0 | BI35: 0 | BJ35: 0 | BK35: 0 | BL35: 0 | BM35: 0 | BN35: 0 | BO35: 0 | BP35: 0 | BQ35: 0 | BR35: 1 | BS35: 0
G36: 30 | H36: Dauer eines Beladevorgangs (integriert) | M36: -9.003957424 | N36: 9.372282537 | O36: kein | P36: asynchron | Q36: =IF(T$4="Ja",'R_1 Analyse'!AV932,0) -> -9.003957424 | R36: =IF(T$4="Ja",'R_1 Analyse'!AW932,0) -> 9.372282537 | S36: =IF(T$4="Ja",'R_1 Analyse'!AX932,"") -> kein | T36: =IF(T$4="Ja",'R_1 Analyse'!AY932,"") -> asynchron | U36: =IF(X$4="Ja",'R_2 Analyse'!AV932,0) -> 0 | V36: =IF(X$4="Ja",'R_2 Analyse'!AW932,0) -> 0 | W36: =IF(X$4="Ja",'R_2 Analyse'!AX932,"") ->  | X36: =IF(X$4="Ja",'R_2 Analyse'!AY932,"") ->  | Y36: =IF(AB$4="Ja",'R_3 Analyse'!AV932,0) -> 0 | Z36: =IF(AB$4="Ja",'R_3 Analyse'!AW932,0) -> 0 | AA36: =IF(AB$4="Ja",'R_3 Analyse'!AX932,"") ->  | AB36: =IF(AB$4="Ja",'R_3 Analyse'!AY932,"") ->  | AC36: =IF(AF$4="Ja",'R_4 Analyse'!AV932,0) -> 0 | AD36: =IF(AF$4="Ja",'R_4 Analyse'!AW932,0) -> 0 | AE36: =IF(AF$4="Ja",'R_4 Analyse'!AX932,"") ->  | AF36: =IF(AF$4="Ja",'R_4 Analyse'!AY932,"") ->  | AG36: =IF(AJ$4="Ja",'R_5 Analyse'!AV932,0) -> 0 | AH36: =IF(AJ$4="Ja",'R_5 Analyse'!AW932,0) -> 0 | AI36: =IF(AJ$4="Ja",'R_5 Analyse'!AX932,"") ->  | AJ36: =IF(AJ$4="Ja",'R_5 Analyse'!AY932,"") ->  | AK36: =IF(AN$4="Ja",'R_6 Analyse'!AV932,0) -> 0 | AL36: =IF(AN$4="Ja",'R_6 Analyse'!AW932,0) -> 0 | AM36: =IF(AN$4="Ja",'R_6 Analyse'!AX932,"") ->  | AN36: =IF(AN$4="Ja",'R_6 Analyse'!AY932,"") ->  | AO36: =IF(AR$4="Ja",'R_7 Analyse'!AV932,0) -> 0 | AP36: =IF(AR$4="Ja",'R_7 Analyse'!AW932,0) -> 0 | AQ36: =IF(AR$4="Ja",'R_7 Analyse'!AX932,"") ->  | AR36: =IF(AR$4="Ja",'R_7 Analyse'!AY932,"") ->  | AS36: =IF(AV$4="Ja",'R_8 Analyse'!AV932,0) -> 0 | AT36: =IF(AV$4="Ja",'R_8 Analyse'!AW932,0) -> 0 | AU36: =IF(AV$4="Ja",'R_8 Analyse'!AX932,"") ->  | AV36: =IF(AV$4="Ja",'R_8 Analyse'!AY932,"") ->  | AW36: =IF(AZ$4="Ja",'R_9 Analyse'!AV932,0) -> 0 | AX36: =IF(AZ$4="Ja",'R_9 Analyse'!AW932,0) -> 0 | AY36: =IF(AZ$4="Ja",'R_9 Analyse'!AX932,"") ->  | AZ36: =IF(AZ$4="Ja",'R_9 Analyse'!AY932,"") ->  | BA36: =IF(BD$4="Ja",'R_10 Analyse'!AV932,0) -> 0 | BB36: =IF(BD$4="Ja",'R_10 Analyse'!AW932,0) -> 0 | BC36: =IF(BD$4="Ja",'R_10 Analyse'!AX932,"") ->  | BD36: =IF(BD$4="Ja",'R_10 Analyse'!AY932,"") ->  | BE36: 0 | BF36: 0 | BG36: 0 | BH36: 0 | BI36: 0 | BJ36: 0 | BK36: 0 | BL36: 0 | BM36: 0 | BN36: 0 | BO36: -9.003957424 | BP36: 9.372282537 | BQ36: 1 | BR36: 0 | BS36: 0
G37: 31 | H37: Dauer eines Beladevorgangs (entkoppelt) | M37: -8.2105755 | N37: 8.2105755 | O37: positiv | P37: synchron | Q37: =IF(T$4="Ja",'R_1 Analyse'!AV933,0) -> -8.2105755 | R37: =IF(T$4="Ja",'R_1 Analyse'!AW933,0) -> 8.2105755 | S37: =IF(T$4="Ja",'R_1 Analyse'!AX933,"") -> positiv | T37: =IF(T$4="Ja",'R_1 Analyse'!AY933,"") -> synchron | U37: =IF(X$4="Ja",'R_2 Analyse'!AV933,0) -> 0 | V37: =IF(X$4="Ja",'R_2 Analyse'!AW933,0) -> 0 | W37: =IF(X$4="Ja",'R_2 Analyse'!AX933,"") ->  | X37: =IF(X$4="Ja",'R_2 Analyse'!AY933,"") ->  | Y37: =IF(AB$4="Ja",'R_3 Analyse'!AV933,0) -> 0 | Z37: =IF(AB$4="Ja",'R_3 Analyse'!AW933,0) -> 0 | AA37: =IF(AB$4="Ja",'R_3 Analyse'!AX933,"") ->  | AB37: =IF(AB$4="Ja",'R_3 Analyse'!AY933,"") ->  | AC37: =IF(AF$4="Ja",'R_4 Analyse'!AV933,0) -> 0 | AD37: =IF(AF$4="Ja",'R_4 Analyse'!AW933,0) -> 0 | AE37: =IF(AF$4="Ja",'R_4 Analyse'!AX933,"") ->  | AF37: =IF(AF$4="Ja",'R_4 Analyse'!AY933,"") ->  | AG37: =IF(AJ$4="Ja",'R_5 Analyse'!AV933,0) -> 0 | AH37: =IF(AJ$4="Ja",'R_5 Analyse'!AW933,0) -> 0 | AI37: =IF(AJ$4="Ja",'R_5 Analyse'!AX933,"") ->  | AJ37: =IF(AJ$4="Ja",'R_5 Analyse'!AY933,"") ->  | AK37: =IF(AN$4="Ja",'R_6 Analyse'!AV933,0) -> 0 | AL37: =IF(AN$4="Ja",'R_6 Analyse'!AW933,0) -> 0 | AM37: =IF(AN$4="Ja",'R_6 Analyse'!AX933,"") ->  | AN37: =IF(AN$4="Ja",'R_6 Analyse'!AY933,"") ->  | AO37: =IF(AR$4="Ja",'R_7 Analyse'!AV933,0) -> 0 | AP37: =IF(AR$4="Ja",'R_7 Analyse'!AW933,0) -> 0 | AQ37: =IF(AR$4="Ja",'R_7 Analyse'!AX933,"") ->  | AR37: =IF(AR$4="Ja",'R_7 Analyse'!AY933,"") ->  | AS37: =IF(AV$4="Ja",'R_8 Analyse'!AV933,0) -> 0 | AT37: =IF(AV$4="Ja",'R_8 Analyse'!AW933,0) -> 0 | AU37: =IF(AV$4="Ja",'R_8 Analyse'!AX933,"") ->  | AV37: =IF(AV$4="Ja",'R_8 Analyse'!AY933,"") ->  | AW37: =IF(AZ$4="Ja",'R_9 Analyse'!AV933,0) -> 0 | AX37: =IF(AZ$4="Ja",'R_9 Analyse'!AW933,0) -> 0 | AY37: =IF(AZ$4="Ja",'R_9 Analyse'!AX933,"") ->  | AZ37: =IF(AZ$4="Ja",'R_9 Analyse'!AY933,"") ->  | BA37: =IF(BD$4="Ja",'R_10 Analyse'!AV933,0) -> 0 | BB37: =IF(BD$4="Ja",'R_10 Analyse'!AW933,0) -> 0 | BC37: =IF(BD$4="Ja",'R_10 Analyse'!AX933,"") ->  | BD37: =IF(BD$4="Ja",'R_10 Analyse'!AY933,"") ->  | BE37: -8.2105755 | BF37: 8.2105755 | BG37: 0 | BH37: 0 | BI37: 0 | BJ37: 0 | BK37: 0 | BL37: 0 | BM37: 0 | BN37: 0 | BO37: 0 | BP37: 0 | BQ37: 0 | BR37: 1 | BS37: 0
G38: 32 | H38: Zeitzuschlag | M38: 0 | N38: 0 | O38: kein | P38: synchron | Q38: =IF(T$4="Ja",'R_1 Analyse'!AV934,0) -> 0 | R38: =IF(T$4="Ja",'R_1 Analyse'!AW934,0) -> 0 | S38: =IF(T$4="Ja",'R_1 Analyse'!AX934,"") -> kein | T38: =IF(T$4="Ja",'R_1 Analyse'!AY934,"") -> synchron | U38: =IF(X$4="Ja",'R_2 Analyse'!AV934,0) -> 0 | V38: =IF(X$4="Ja",'R_2 Analyse'!AW934,0) -> 0 | W38: =IF(X$4="Ja",'R_2 Analyse'!AX934,"") ->  | X38: =IF(X$4="Ja",'R_2 Analyse'!AY934,"") ->  | Y38: =IF(AB$4="Ja",'R_3 Analyse'!AV934,0) -> 0 | Z38: =IF(AB$4="Ja",'R_3 Analyse'!AW934,0) -> 0 | AA38: =IF(AB$4="Ja",'R_3 Analyse'!AX934,"") ->  | AB38: =IF(AB$4="Ja",'R_3 Analyse'!AY934,"") ->  | AC38: =IF(AF$4="Ja",'R_4 Analyse'!AV934,0) -> 0 | AD38: =IF(AF$4="Ja",'R_4 Analyse'!AW934,0) -> 0 | AE38: =IF(AF$4="Ja",'R_4 Analyse'!AX934,"") ->  | AF38: =IF(AF$4="Ja",'R_4 Analyse'!AY934,"") ->  | AG38: =IF(AJ$4="Ja",'R_5 Analyse'!AV934,0) -> 0 | AH38: =IF(AJ$4="Ja",'R_5 Analyse'!AW934,0) -> 0 | AI38: =IF(AJ$4="Ja",'R_5 Analyse'!AX934,"") ->  | AJ38: =IF(AJ$4="Ja",'R_5 Analyse'!AY934,"") ->  | AK38: =IF(AN$4="Ja",'R_6 Analyse'!AV934,0) -> 0 | AL38: =IF(AN$4="Ja",'R_6 Analyse'!AW934,0) -> 0 | AM38: =IF(AN$4="Ja",'R_6 Analyse'!AX934,"") ->  | AN38: =IF(AN$4="Ja",'R_6 Analyse'!AY934,"") ->  | AO38: =IF(AR$4="Ja",'R_7 Analyse'!AV934,0) -> 0 | AP38: =IF(AR$4="Ja",'R_7 Analyse'!AW934,0) -> 0 | AQ38: =IF(AR$4="Ja",'R_7 Analyse'!AX934,"") ->  | AR38: =IF(AR$4="Ja",'R_7 Analyse'!AY934,"") ->  | AS38: =IF(AV$4="Ja",'R_8 Analyse'!AV934,0) -> 0 | AT38: =IF(AV$4="Ja",'R_8 Analyse'!AW934,0) -> 0 | AU38: =IF(AV$4="Ja",'R_8 Analyse'!AX934,"") ->  | AV38: =IF(AV$4="Ja",'R_8 Analyse'!AY934,"") ->  | AW38: =IF(AZ$4="Ja",'R_9 Analyse'!AV934,0) -> 0 | AX38: =IF(AZ$4="Ja",'R_9 Analyse'!AW934,0) -> 0 | AY38: =IF(AZ$4="Ja",'R_9 Analyse'!AX934,"") ->  | AZ38: =IF(AZ$4="Ja",'R_9 Analyse'!AY934,"") ->  | BA38: =IF(BD$4="Ja",'R_10 Analyse'!AV934,0) -> 0 | BB38: =IF(BD$4="Ja",'R_10 Analyse'!AW934,0) -> 0 | BC38: =IF(BD$4="Ja",'R_10 Analyse'!AX934,"") ->  | BD38: =IF(BD$4="Ja",'R_10 Analyse'!AY934,"") ->  | BE38: 0 | BF38: 0 | BG38: 0 | BH38: 0 | BI38: 0 | BJ38: 0 | BK38: 0 | BL38: 0 | BM38: 0 | BN38: 0 | BO38: 0 | BP38: 0 | BQ38: 1 | BR38: 0 | BS38: 0
G39: 33 | H39: Dauer eines Haltevorgangs | M39: -1.178242034 | N39: 1.185625162 | O39: kein | P39: synchron | Q39: =IF(T$4="Ja",'R_1 Analyse'!AV935,0) -> -1.178242034 | R39: =IF(T$4="Ja",'R_1 Analyse'!AW935,0) -> 1.185625162 | S39: =IF(T$4="Ja",'R_1 Analyse'!AX935,"") -> kein | T39: =IF(T$4="Ja",'R_1 Analyse'!AY935,"") -> synchron | U39: =IF(X$4="Ja",'R_2 Analyse'!AV935,0) -> 0 | V39: =IF(X$4="Ja",'R_2 Analyse'!AW935,0) -> 0 | W39: =IF(X$4="Ja",'R_2 Analyse'!AX935,"") ->  | X39: =IF(X$4="Ja",'R_2 Analyse'!AY935,"") ->  | Y39: =IF(AB$4="Ja",'R_3 Analyse'!AV935,0) -> 0 | Z39: =IF(AB$4="Ja",'R_3 Analyse'!AW935,0) -> 0 | AA39: =IF(AB$4="Ja",'R_3 Analyse'!AX935,"") ->  | AB39: =IF(AB$4="Ja",'R_3 Analyse'!AY935,"") ->  | AC39: =IF(AF$4="Ja",'R_4 Analyse'!AV935,0) -> 0 | AD39: =IF(AF$4="Ja",'R_4 Analyse'!AW935,0) -> 0 | AE39: =IF(AF$4="Ja",'R_4 Analyse'!AX935,"") ->  | AF39: =IF(AF$4="Ja",'R_4 Analyse'!AY935,"") ->  | AG39: =IF(AJ$4="Ja",'R_5 Analyse'!AV935,0) -> 0 | AH39: =IF(AJ$4="Ja",'R_5 Analyse'!AW935,0) -> 0 | AI39: =IF(AJ$4="Ja",'R_5 Analyse'!AX935,"") ->  | AJ39: =IF(AJ$4="Ja",'R_5 Analyse'!AY935,"") ->  | AK39: =IF(AN$4="Ja",'R_6 Analyse'!AV935,0) -> 0 | AL39: =IF(AN$4="Ja",'R_6 Analyse'!AW935,0) -> 0 | AM39: =IF(AN$4="Ja",'R_6 Analyse'!AX935,"") ->  | AN39: =IF(AN$4="Ja",'R_6 Analyse'!AY935,"") ->  | AO39: =IF(AR$4="Ja",'R_7 Analyse'!AV935,0) -> 0 | AP39: =IF(AR$4="Ja",'R_7 Analyse'!AW935,0) -> 0 | AQ39: =IF(AR$4="Ja",'R_7 Analyse'!AX935,"") ->  | AR39: =IF(AR$4="Ja",'R_7 Analyse'!AY935,"") ->  | AS39: =IF(AV$4="Ja",'R_8 Analyse'!AV935,0) -> 0 | AT39: =IF(AV$4="Ja",'R_8 Analyse'!AW935,0) -> 0 | AU39: =IF(AV$4="Ja",'R_8 Analyse'!AX935,"") ->  | AV39: =IF(AV$4="Ja",'R_8 Analyse'!AY935,"") ->  | AW39: =IF(AZ$4="Ja",'R_9 Analyse'!AV935,0) -> 0 | AX39: =IF(AZ$4="Ja",'R_9 Analyse'!AW935,0) -> 0 | AY39: =IF(AZ$4="Ja",'R_9 Analyse'!AX935,"") ->  | AZ39: =IF(AZ$4="Ja",'R_9 Analyse'!AY935,"") ->  | BA39: =IF(BD$4="Ja",'R_10 Analyse'!AV935,0) -> 0 | BB39: =IF(BD$4="Ja",'R_10 Analyse'!AW935,0) -> 0 | BC39: =IF(BD$4="Ja",'R_10 Analyse'!AX935,"") ->  | BD39: =IF(BD$4="Ja",'R_10 Analyse'!AY935,"") ->  | BE39: 0 | BF39: 0 | BG39: 0 | BH39: 0 | BI39: 0 | BJ39: 0 | BK39: 0 | BL39: 0 | BM39: -1.178242034 | BN39: 1.185625162 | BO39: 0 | BP39: 0 | BQ39: 1 | BR39: 0 | BS39: 0
G40: 34 | H40: Dauer eines Entladevorgangs (integriert) | M40: -7.157084623 | N40: 7.44133934 | O40: kein | P40: asynchron | Q40: =IF(T$4="Ja",'R_1 Analyse'!AV936,0) -> -7.157084623 | R40: =IF(T$4="Ja",'R_1 Analyse'!AW936,0) -> 7.44133934 | S40: =IF(T$4="Ja",'R_1 Analyse'!AX936,"") -> kein | T40: =IF(T$4="Ja",'R_1 Analyse'!AY936,"") -> asynchron | U40: =IF(X$4="Ja",'R_2 Analyse'!AV936,0) -> 0 | V40: =IF(X$4="Ja",'R_2 Analyse'!AW936,0) -> 0 | W40: =IF(X$4="Ja",'R_2 Analyse'!AX936,"") ->  | X40: =IF(X$4="Ja",'R_2 Analyse'!AY936,"") ->  | Y40: =IF(AB$4="Ja",'R_3 Analyse'!AV936,0) -> 0 | Z40: =IF(AB$4="Ja",'R_3 Analyse'!AW936,0) -> 0 | AA40: =IF(AB$4="Ja",'R_3 Analyse'!AX936,"") ->  | AB40: =IF(AB$4="Ja",'R_3 Analyse'!AY936,"") ->  | AC40: =IF(AF$4="Ja",'R_4 Analyse'!AV936,0) -> 0 | AD40: =IF(AF$4="Ja",'R_4 Analyse'!AW936,0) -> 0 | AE40: =IF(AF$4="Ja",'R_4 Analyse'!AX936,"") ->  | AF40: =IF(AF$4="Ja",'R_4 Analyse'!AY936,"") ->  | AG40: =IF(AJ$4="Ja",'R_5 Analyse'!AV936,0) -> 0 | AH40: =IF(AJ$4="Ja",'R_5 Analyse'!AW936,0) -> 0 | AI40: =IF(AJ$4="Ja",'R_5 Analyse'!AX936,"") ->  | AJ40: =IF(AJ$4="Ja",'R_5 Analyse'!AY936,"") ->  | AK40: =IF(AN$4="Ja",'R_6 Analyse'!AV936,0) -> 0 | AL40: =IF(AN$4="Ja",'R_6 Analyse'!AW936,0) -> 0 | AM40: =IF(AN$4="Ja",'R_6 Analyse'!AX936,"") ->  | AN40: =IF(AN$4="Ja",'R_6 Analyse'!AY936,"") ->  | AO40: =IF(AR$4="Ja",'R_7 Analyse'!AV936,0) -> 0 | AP40: =IF(AR$4="Ja",'R_7 Analyse'!AW936,0) -> 0 | AQ40: =IF(AR$4="Ja",'R_7 Analyse'!AX936,"") ->  | AR40: =IF(AR$4="Ja",'R_7 Analyse'!AY936,"") ->  | AS40: =IF(AV$4="Ja",'R_8 Analyse'!AV936,0) -> 0 | AT40: =IF(AV$4="Ja",'R_8 Analyse'!AW936,0) -> 0 | AU40: =IF(AV$4="Ja",'R_8 Analyse'!AX936,"") ->  | AV40: =IF(AV$4="Ja",'R_8 Analyse'!AY936,"") ->  | AW40: =IF(AZ$4="Ja",'R_9 Analyse'!AV936,0) -> 0 | AX40: =IF(AZ$4="Ja",'R_9 Analyse'!AW936,0) -> 0 | AY40: =IF(AZ$4="Ja",'R_9 Analyse'!AX936,"") ->  | AZ40: =IF(AZ$4="Ja",'R_9 Analyse'!AY936,"") ->  | BA40: =IF(BD$4="Ja",'R_10 Analyse'!AV936,0) -> 0 | BB40: =IF(BD$4="Ja",'R_10 Analyse'!AW936,0) -> 0 | BC40: =IF(BD$4="Ja",'R_10 Analyse'!AX936,"") ->  | BD40: =IF(BD$4="Ja",'R_10 Analyse'!AY936,"") ->  | BE40: 0 | BF40: 0 | BG40: 0 | BH40: 0 | BI40: 0 | BJ40: 0 | BK40: 0 | BL40: 0 | BM40: 0 | BN40: 0 | BO40: -7.157084623 | BP40: 7.44133934 | BQ40: 1 | BR40: 0 | BS40: 0
G41: 35 | H41: Dauer eines Entladevorgangs (entkoppelt) | M41: 0 | N41: 0 | O41: kein | P41: synchron | Q41: =IF(T$4="Ja",'R_1 Analyse'!AV937,0) -> 0 | R41: =IF(T$4="Ja",'R_1 Analyse'!AW937,0) -> 0 | S41: =IF(T$4="Ja",'R_1 Analyse'!AX937,"") -> kein | T41: =IF(T$4="Ja",'R_1 Analyse'!AY937,"") -> synchron | U41: =IF(X$4="Ja",'R_2 Analyse'!AV937,0) -> 0 | V41: =IF(X$4="Ja",'R_2 Analyse'!AW937,0) -> 0 | W41: =IF(X$4="Ja",'R_2 Analyse'!AX937,"") ->  | X41: =IF(X$4="Ja",'R_2 Analyse'!AY937,"") ->  | Y41: =IF(AB$4="Ja",'R_3 Analyse'!AV937,0) -> 0 | Z41: =IF(AB$4="Ja",'R_3 Analyse'!AW937,0) -> 0 | AA41: =IF(AB$4="Ja",'R_3 Analyse'!AX937,"") ->  | AB41: =IF(AB$4="Ja",'R_3 Analyse'!AY937,"") ->  | AC41: =IF(AF$4="Ja",'R_4 Analyse'!AV937,0) -> 0 | AD41: =IF(AF$4="Ja",'R_4 Analyse'!AW937,0) -> 0 | AE41: =IF(AF$4="Ja",'R_4 Analyse'!AX937,"") ->  | AF41: =IF(AF$4="Ja",'R_4 Analyse'!AY937,"") ->  | AG41: =IF(AJ$4="Ja",'R_5 Analyse'!AV937,0) -> 0 | AH41: =IF(AJ$4="Ja",'R_5 Analyse'!AW937,0) -> 0 | AI41: =IF(AJ$4="Ja",'R_5 Analyse'!AX937,"") ->  | AJ41: =IF(AJ$4="Ja",'R_5 Analyse'!AY937,"") ->  | AK41: =IF(AN$4="Ja",'R_6 Analyse'!AV937,0) -> 0 | AL41: =IF(AN$4="Ja",'R_6 Analyse'!AW937,0) -> 0 | AM41: =IF(AN$4="Ja",'R_6 Analyse'!AX937,"") ->  | AN41: =IF(AN$4="Ja",'R_6 Analyse'!AY937,"") ->  | AO41: =IF(AR$4="Ja",'R_7 Analyse'!AV937,0) -> 0 | AP41: =IF(AR$4="Ja",'R_7 Analyse'!AW937,0) -> 0 | AQ41: =IF(AR$4="Ja",'R_7 Analyse'!AX937,"") ->  | AR41: =IF(AR$4="Ja",'R_7 Analyse'!AY937,"") ->  | AS41: =IF(AV$4="Ja",'R_8 Analyse'!AV937,0) -> 0 | AT41: =IF(AV$4="Ja",'R_8 Analyse'!AW937,0) -> 0 | AU41: =IF(AV$4="Ja",'R_8 Analyse'!AX937,"") ->  | AV41: =IF(AV$4="Ja",'R_8 Analyse'!AY937,"") ->  | AW41: =IF(AZ$4="Ja",'R_9 Analyse'!AV937,0) -> 0 | AX41: =IF(AZ$4="Ja",'R_9 Analyse'!AW937,0) -> 0 | AY41: =IF(AZ$4="Ja",'R_9 Analyse'!AX937,"") ->  | AZ41: =IF(AZ$4="Ja",'R_9 Analyse'!AY937,"") ->  | BA41: =IF(BD$4="Ja",'R_10 Analyse'!AV937,0) -> 0 | BB41: =IF(BD$4="Ja",'R_10 Analyse'!AW937,0) -> 0 | BC41: =IF(BD$4="Ja",'R_10 Analyse'!AX937,"") ->  | BD41: =IF(BD$4="Ja",'R_10 Analyse'!AY937,"") ->  | BE41: 0 | BF41: 0 | BG41: 0 | BH41: 0 | BI41: 0 | BJ41: 0 | BK41: 0 | BL41: 0 | BM41: 0 | BN41: 0 | BO41: 0 | BP41: 0 | BQ41: 1 | BR41: 0 | BS41: 0
G42: 36 | H42: Realisierter bzw. festgelegter Tourenstartabstand | M42: -13.24417603 | N42: 24.49741871 | O42: kein | P42: asynchron | Q42: =IF(T$4="Ja",'R_1 Analyse'!AV938,0) -> -13.24417603 | R42: =IF(T$4="Ja",'R_1 Analyse'!AW938,0) -> 24.49741871 | S42: =IF(T$4="Ja",'R_1 Analyse'!AX938,"") -> kein | T42: =IF(T$4="Ja",'R_1 Analyse'!AY938,"") -> asynchron | U42: =IF(X$4="Ja",'R_2 Analyse'!AV938,0) -> 0 | V42: =IF(X$4="Ja",'R_2 Analyse'!AW938,0) -> 0 | W42: =IF(X$4="Ja",'R_2 Analyse'!AX938,"") ->  | X42: =IF(X$4="Ja",'R_2 Analyse'!AY938,"") ->  | Y42: =IF(AB$4="Ja",'R_3 Analyse'!AV938,0) -> 0 | Z42: =IF(AB$4="Ja",'R_3 Analyse'!AW938,0) -> 0 | AA42: =IF(AB$4="Ja",'R_3 Analyse'!AX938,"") ->  | AB42: =IF(AB$4="Ja",'R_3 Analyse'!AY938,"") ->  | AC42: =IF(AF$4="Ja",'R_4 Analyse'!AV938,0) -> 0 | AD42: =IF(AF$4="Ja",'R_4 Analyse'!AW938,0) -> 0 | AE42: =IF(AF$4="Ja",'R_4 Analyse'!AX938,"") ->  | AF42: =IF(AF$4="Ja",'R_4 Analyse'!AY938,"") ->  | AG42: =IF(AJ$4="Ja",'R_5 Analyse'!AV938,0) -> 0 | AH42: =IF(AJ$4="Ja",'R_5 Analyse'!AW938,0) -> 0 | AI42: =IF(AJ$4="Ja",'R_5 Analyse'!AX938,"") ->  | AJ42: =IF(AJ$4="Ja",'R_5 Analyse'!AY938,"") ->  | AK42: =IF(AN$4="Ja",'R_6 Analyse'!AV938,0) -> 0 | AL42: =IF(AN$4="Ja",'R_6 Analyse'!AW938,0) -> 0 | AM42: =IF(AN$4="Ja",'R_6 Analyse'!AX938,"") ->  | AN42: =IF(AN$4="Ja",'R_6 Analyse'!AY938,"") ->  | AO42: =IF(AR$4="Ja",'R_7 Analyse'!AV938,0) -> 0 | AP42: =IF(AR$4="Ja",'R_7 Analyse'!AW938,0) -> 0 | AQ42: =IF(AR$4="Ja",'R_7 Analyse'!AX938,"") ->  | AR42: =IF(AR$4="Ja",'R_7 Analyse'!AY938,"") ->  | AS42: =IF(AV$4="Ja",'R_8 Analyse'!AV938,0) -> 0 | AT42: =IF(AV$4="Ja",'R_8 Analyse'!AW938,0) -> 0 | AU42: =IF(AV$4="Ja",'R_8 Analyse'!AX938,"") ->  | AV42: =IF(AV$4="Ja",'R_8 Analyse'!AY938,"") ->  | AW42: =IF(AZ$4="Ja",'R_9 Analyse'!AV938,0) -> 0 | AX42: =IF(AZ$4="Ja",'R_9 Analyse'!AW938,0) -> 0 | AY42: =IF(AZ$4="Ja",'R_9 Analyse'!AX938,"") ->  | AZ42: =IF(AZ$4="Ja",'R_9 Analyse'!AY938,"") ->  | BA42: =IF(BD$4="Ja",'R_10 Analyse'!AV938,0) -> 0 | BB42: =IF(BD$4="Ja",'R_10 Analyse'!AW938,0) -> 0 | BC42: =IF(BD$4="Ja",'R_10 Analyse'!AX938,"") ->  | BD42: =IF(BD$4="Ja",'R_10 Analyse'!AY938,"") ->  | BE42: 0 | BF42: 0 | BG42: 0 | BH42: 0 | BI42: 0 | BJ42: 0 | BK42: 0 | BL42: 0 | BM42: 0 | BN42: 0 | BO42: -13.24417603 | BP42: 24.49741871 | BQ42: 1 | BR42: 0 | BS42: 0
G43: 37 | H43: Zeitbedarf für vorgelagerte Prozesse | M43: 0 | N43: 0 | O43: kein | P43: synchron | Q43: =IF(T$4="Ja",'R_1 Analyse'!AV939,0) -> 0 | R43: =IF(T$4="Ja",'R_1 Analyse'!AW939,0) -> 0 | S43: =IF(T$4="Ja",'R_1 Analyse'!AX939,"") -> kein | T43: =IF(T$4="Ja",'R_1 Analyse'!AY939,"") -> synchron | U43: =IF(X$4="Ja",'R_2 Analyse'!AV939,0) -> 0 | V43: =IF(X$4="Ja",'R_2 Analyse'!AW939,0) -> 0 | W43: =IF(X$4="Ja",'R_2 Analyse'!AX939,"") ->  | X43: =IF(X$4="Ja",'R_2 Analyse'!AY939,"") ->  | Y43: =IF(AB$4="Ja",'R_3 Analyse'!AV939,0) -> 0 | Z43: =IF(AB$4="Ja",'R_3 Analyse'!AW939,0) -> 0 | AA43: =IF(AB$4="Ja",'R_3 Analyse'!AX939,"") ->  | AB43: =IF(AB$4="Ja",'R_3 Analyse'!AY939,"") ->  | AC43: =IF(AF$4="Ja",'R_4 Analyse'!AV939,0) -> 0 | AD43: =IF(AF$4="Ja",'R_4 Analyse'!AW939,0) -> 0 | AE43: =IF(AF$4="Ja",'R_4 Analyse'!AX939,"") ->  | AF43: =IF(AF$4="Ja",'R_4 Analyse'!AY939,"") ->  | AG43: =IF(AJ$4="Ja",'R_5 Analyse'!AV939,0) -> 0 | AH43: =IF(AJ$4="Ja",'R_5 Analyse'!AW939,0) -> 0 | AI43: =IF(AJ$4="Ja",'R_5 Analyse'!AX939,"") ->  | AJ43: =IF(AJ$4="Ja",'R_5 Analyse'!AY939,"") ->  | AK43: =IF(AN$4="Ja",'R_6 Analyse'!AV939,0) -> 0 | AL43: =IF(AN$4="Ja",'R_6 Analyse'!AW939,0) -> 0 | AM43: =IF(AN$4="Ja",'R_6 Analyse'!AX939,"") ->  | AN43: =IF(AN$4="Ja",'R_6 Analyse'!AY939,"") ->  | AO43: =IF(AR$4="Ja",'R_7 Analyse'!AV939,0) -> 0 | AP43: =IF(AR$4="Ja",'R_7 Analyse'!AW939,0) -> 0 | AQ43: =IF(AR$4="Ja",'R_7 Analyse'!AX939,"") ->  | AR43: =IF(AR$4="Ja",'R_7 Analyse'!AY939,"") ->  | AS43: =IF(AV$4="Ja",'R_8 Analyse'!AV939,0) -> 0 | AT43: =IF(AV$4="Ja",'R_8 Analyse'!AW939,0) -> 0 | AU43: =IF(AV$4="Ja",'R_8 Analyse'!AX939,"") ->  | AV43: =IF(AV$4="Ja",'R_8 Analyse'!AY939,"") ->  | AW43: =IF(AZ$4="Ja",'R_9 Analyse'!AV939,0) -> 0 | AX43: =IF(AZ$4="Ja",'R_9 Analyse'!AW939,0) -> 0 | AY43: =IF(AZ$4="Ja",'R_9 Analyse'!AX939,"") ->  | AZ43: =IF(AZ$4="Ja",'R_9 Analyse'!AY939,"") ->  | BA43: =IF(BD$4="Ja",'R_10 Analyse'!AV939,0) -> 0 | BB43: =IF(BD$4="Ja",'R_10 Analyse'!AW939,0) -> 0 | BC43: =IF(BD$4="Ja",'R_10 Analyse'!AX939,"") ->  | BD43: =IF(BD$4="Ja",'R_10 Analyse'!AY939,"") ->  | BE43: 0 | BF43: 0 | BG43: 0 | BH43: 0 | BI43: 0 | BJ43: 0 | BK43: 0 | BL43: 0 | BM43: 0 | BN43: 0 | BO43: 0 | BP43: 0 | BQ43: 1 | BR43: 0 | BS43: 0
G44: 38 | H44: Kalkulatorischer Zinssatz pro Jahr | M44: -0.1771892595 | N44: 0.1771892595 | O44: positiv | P44: synchron | Q44: =IF(T$4="Ja",'R_1 Analyse'!AV940,0) -> -0.1771892595 | R44: =IF(T$4="Ja",'R_1 Analyse'!AW940,0) -> 0.1771892595 | S44: =IF(T$4="Ja",'R_1 Analyse'!AX940,"") -> positiv | T44: =IF(T$4="Ja",'R_1 Analyse'!AY940,"") -> synchron | U44: =IF(X$4="Ja",'R_2 Analyse'!AV940,0) -> 0 | V44: =IF(X$4="Ja",'R_2 Analyse'!AW940,0) -> 0 | W44: =IF(X$4="Ja",'R_2 Analyse'!AX940,"") ->  | X44: =IF(X$4="Ja",'R_2 Analyse'!AY940,"") ->  | Y44: =IF(AB$4="Ja",'R_3 Analyse'!AV940,0) -> 0 | Z44: =IF(AB$4="Ja",'R_3 Analyse'!AW940,0) -> 0 | AA44: =IF(AB$4="Ja",'R_3 Analyse'!AX940,"") ->  | AB44: =IF(AB$4="Ja",'R_3 Analyse'!AY940,"") ->  | AC44: =IF(AF$4="Ja",'R_4 Analyse'!AV940,0) -> 0 | AD44: =IF(AF$4="Ja",'R_4 Analyse'!AW940,0) -> 0 | AE44: =IF(AF$4="Ja",'R_4 Analyse'!AX940,"") ->  | AF44: =IF(AF$4="Ja",'R_4 Analyse'!AY940,"") ->  | AG44: =IF(AJ$4="Ja",'R_5 Analyse'!AV940,0) -> 0 | AH44: =IF(AJ$4="Ja",'R_5 Analyse'!AW940,0) -> 0 | AI44: =IF(AJ$4="Ja",'R_5 Analyse'!AX940,"") ->  | AJ44: =IF(AJ$4="Ja",'R_5 Analyse'!AY940,"") ->  | AK44: =IF(AN$4="Ja",'R_6 Analyse'!AV940,0) -> 0 | AL44: =IF(AN$4="Ja",'R_6 Analyse'!AW940,0) -> 0 | AM44: =IF(AN$4="Ja",'R_6 Analyse'!AX940,"") ->  | AN44: =IF(AN$4="Ja",'R_6 Analyse'!AY940,"") ->  | AO44: =IF(AR$4="Ja",'R_7 Analyse'!AV940,0) -> 0 | AP44: =IF(AR$4="Ja",'R_7 Analyse'!AW940,0) -> 0 | AQ44: =IF(AR$4="Ja",'R_7 Analyse'!AX940,"") ->  | AR44: =IF(AR$4="Ja",'R_7 Analyse'!AY940,"") ->  | AS44: =IF(AV$4="Ja",'R_8 Analyse'!AV940,0) -> 0 | AT44: =IF(AV$4="Ja",'R_8 Analyse'!AW940,0) -> 0 | AU44: =IF(AV$4="Ja",'R_8 Analyse'!AX940,"") ->  | AV44: =IF(AV$4="Ja",'R_8 Analyse'!AY940,"") ->  | AW44: =IF(AZ$4="Ja",'R_9 Analyse'!AV940,0) -> 0 | AX44: =IF(AZ$4="Ja",'R_9 Analyse'!AW940,0) -> 0 | AY44: =IF(AZ$4="Ja",'R_9 Analyse'!AX940,"") ->  | AZ44: =IF(AZ$4="Ja",'R_9 Analyse'!AY940,"") ->  | BA44: =IF(BD$4="Ja",'R_10 Analyse'!AV940,0) -> 0 | BB44: =IF(BD$4="Ja",'R_10 Analyse'!AW940,0) -> 0 | BC44: =IF(BD$4="Ja",'R_10 Analyse'!AX940,"") ->  | BD44: =IF(BD$4="Ja",'R_10 Analyse'!AY940,"") ->  | BE44: -0.1771892595 | BF44: 0.1771892595 | BG44: 0 | BH44: 0 | BI44: 0 | BJ44: 0 | BK44: 0 | BL44: 0 | BM44: 0 | BN44: 0 | BO44: 0 | BP44: 0 | BQ44: 0 | BR44: 1 | BS44: 0
G45: 39 | H45: Summe sonstiger Investitionen | M45: -0.3278270314 | N45: 0.3278270314 | O45: positiv | P45: synchron | Q45: =IF(T$4="Ja",'R_1 Analyse'!AV941,0) -> -0.3278270314 | R45: =IF(T$4="Ja",'R_1 Analyse'!AW941,0) -> 0.3278270314 | S45: =IF(T$4="Ja",'R_1 Analyse'!AX941,"") -> positiv | T45: =IF(T$4="Ja",'R_1 Analyse'!AY941,"") -> synchron | U45: =IF(X$4="Ja",'R_2 Analyse'!AV941,0) -> 0 | V45: =IF(X$4="Ja",'R_2 Analyse'!AW941,0) -> 0 | W45: =IF(X$4="Ja",'R_2 Analyse'!AX941,"") ->  | X45: =IF(X$4="Ja",'R_2 Analyse'!AY941,"") ->  | Y45: =IF(AB$4="Ja",'R_3 Analyse'!AV941,0) -> 0 | Z45: =IF(AB$4="Ja",'R_3 Analyse'!AW941,0) -> 0 | AA45: =IF(AB$4="Ja",'R_3 Analyse'!AX941,"") ->  | AB45: =IF(AB$4="Ja",'R_3 Analyse'!AY941,"") ->  | AC45: =IF(AF$4="Ja",'R_4 Analyse'!AV941,0) -> 0 | AD45: =IF(AF$4="Ja",'R_4 Analyse'!AW941,0) -> 0 | AE45: =IF(AF$4="Ja",'R_4 Analyse'!AX941,"") ->  | AF45: =IF(AF$4="Ja",'R_4 Analyse'!AY941,"") ->  | AG45: =IF(AJ$4="Ja",'R_5 Analyse'!AV941,0) -> 0 | AH45: =IF(AJ$4="Ja",'R_5 Analyse'!AW941,0) -> 0 | AI45: =IF(AJ$4="Ja",'R_5 Analyse'!AX941,"") ->  | AJ45: =IF(AJ$4="Ja",'R_5 Analyse'!AY941,"") ->  | AK45: =IF(AN$4="Ja",'R_6 Analyse'!AV941,0) -> 0 | AL45: =IF(AN$4="Ja",'R_6 Analyse'!AW941,0) -> 0 | AM45: =IF(AN$4="Ja",'R_6 Analyse'!AX941,"") ->  | AN45: =IF(AN$4="Ja",'R_6 Analyse'!AY941,"") ->  | AO45: =IF(AR$4="Ja",'R_7 Analyse'!AV941,0) -> 0 | AP45: =IF(AR$4="Ja",'R_7 Analyse'!AW941,0) -> 0 | AQ45: =IF(AR$4="Ja",'R_7 Analyse'!AX941,"") ->  | AR45: =IF(AR$4="Ja",'R_7 Analyse'!AY941,"") ->  | AS45: =IF(AV$4="Ja",'R_8 Analyse'!AV941,0) -> 0 | AT45: =IF(AV$4="Ja",'R_8 Analyse'!AW941,0) -> 0 | AU45: =IF(AV$4="Ja",'R_8 Analyse'!AX941,"") ->  | AV45: =IF(AV$4="Ja",'R_8 Analyse'!AY941,"") ->  | AW45: =IF(AZ$4="Ja",'R_9 Analyse'!AV941,0) -> 0 | AX45: =IF(AZ$4="Ja",'R_9 Analyse'!AW941,0) -> 0 | AY45: =IF(AZ$4="Ja",'R_9 Analyse'!AX941,"") ->  | AZ45: =IF(AZ$4="Ja",'R_9 Analyse'!AY941,"") ->  | BA45: =IF(BD$4="Ja",'R_10 Analyse'!AV941,0) -> 0 | BB45: =IF(BD$4="Ja",'R_10 Analyse'!AW941,0) -> 0 | BC45: =IF(BD$4="Ja",'R_10 Analyse'!AX941,"") ->  | BD45: =IF(BD$4="Ja",'R_10 Analyse'!AY941,"") ->  | BE45: -0.3278270314 | BF45: 0.3278270314 | BG45: 0 | BH45: 0 | BI45: 0 | BJ45: 0 | BK45: 0 | BL45: 0 | BM45: 0 | BN45: 0 | BO45: 0 | BP45: 0 | BQ45: 0 | BR45: 1 | BS45: 0
G46: 40 | H46: Summe sonstiger Abschreibungen | M46: -0.0908662869 | N46: 0.0908662869 | O46: positiv | P46: synchron | Q46: =IF(T$4="Ja",'R_1 Analyse'!AV942,0) -> -0.0908662869 | R46: =IF(T$4="Ja",'R_1 Analyse'!AW942,0) -> 0.0908662869 | S46: =IF(T$4="Ja",'R_1 Analyse'!AX942,"") -> positiv | T46: =IF(T$4="Ja",'R_1 Analyse'!AY942,"") -> synchron | U46: =IF(X$4="Ja",'R_2 Analyse'!AV942,0) -> 0 | V46: =IF(X$4="Ja",'R_2 Analyse'!AW942,0) -> 0 | W46: =IF(X$4="Ja",'R_2 Analyse'!AX942,"") ->  | X46: =IF(X$4="Ja",'R_2 Analyse'!AY942,"") ->  | Y46: =IF(AB$4="Ja",'R_3 Analyse'!AV942,0) -> 0 | Z46: =IF(AB$4="Ja",'R_3 Analyse'!AW942,0) -> 0 | AA46: =IF(AB$4="Ja",'R_3 Analyse'!AX942,"") ->  | AB46: =IF(AB$4="Ja",'R_3 Analyse'!AY942,"") ->  | AC46: =IF(AF$4="Ja",'R_4 Analyse'!AV942,0) -> 0 | AD46: =IF(AF$4="Ja",'R_4 Analyse'!AW942,0) -> 0 | AE46: =IF(AF$4="Ja",'R_4 Analyse'!AX942,"") ->  | AF46: =IF(AF$4="Ja",'R_4 Analyse'!AY942,"") ->  | AG46: =IF(AJ$4="Ja",'R_5 Analyse'!AV942,0) -> 0 | AH46: =IF(AJ$4="Ja",'R_5 Analyse'!AW942,0) -> 0 | AI46: =IF(AJ$4="Ja",'R_5 Analyse'!AX942,"") ->  | AJ46: =IF(AJ$4="Ja",'R_5 Analyse'!AY942,"") ->  | AK46: =IF(AN$4="Ja",'R_6 Analyse'!AV942,0) -> 0 | AL46: =IF(AN$4="Ja",'R_6 Analyse'!AW942,0) -> 0 | AM46: =IF(AN$4="Ja",'R_6 Analyse'!AX942,"") ->  | AN46: =IF(AN$4="Ja",'R_6 Analyse'!AY942,"") ->  | AO46: =IF(AR$4="Ja",'R_7 Analyse'!AV942,0) -> 0 | AP46: =IF(AR$4="Ja",'R_7 Analyse'!AW942,0) -> 0 | AQ46: =IF(AR$4="Ja",'R_7 Analyse'!AX942,"") ->  | AR46: =IF(AR$4="Ja",'R_7 Analyse'!AY942,"") ->  | AS46: =IF(AV$4="Ja",'R_8 Analyse'!AV942,0) -> 0 | AT46: =IF(AV$4="Ja",'R_8 Analyse'!AW942,0) -> 0 | AU46: =IF(AV$4="Ja",'R_8 Analyse'!AX942,"") ->  | AV46: =IF(AV$4="Ja",'R_8 Analyse'!AY942,"") ->  | AW46: =IF(AZ$4="Ja",'R_9 Analyse'!AV942,0) -> 0 | AX46: =IF(AZ$4="Ja",'R_9 Analyse'!AW942,0) -> 0 | AY46: =IF(AZ$4="Ja",'R_9 Analyse'!AX942,"") ->  | AZ46: =IF(AZ$4="Ja",'R_9 Analyse'!AY942,"") ->  | BA46: =IF(BD$4="Ja",'R_10 Analyse'!AV942,0) -> 0 | BB46: =IF(BD$4="Ja",'R_10 Analyse'!AW942,0) -> 0 | BC46: =IF(BD$4="Ja",'R_10 Analyse'!AX942,"") ->  | BD46: =IF(BD$4="Ja",'R_10 Analyse'!AY942,"") ->  | BE46: -0.0908662869 | BF46: 0.0908662869 | BG46: 0 | BH46: 0 | BI46: 0 | BJ46: 0 | BK46: 0 | BL46: 0 | BM46: 0 | BN46: 0 | BO46: 0 | BP46: 0 | BQ46: 0 | BR46: 1 | BS46: 0
G47: 41 | H47: Summe sonstiger Wartungs- und Reparaturkosten | M47: -0.03634651476 | N47: 0.03634651476 | O47: positiv | P47: synchron | Q47: =IF(T$4="Ja",'R_1 Analyse'!AV943,0) -> -0.03634651476 | R47: =IF(T$4="Ja",'R_1 Analyse'!AW943,0) -> 0.03634651476 | S47: =IF(T$4="Ja",'R_1 Analyse'!AX943,"") -> positiv | T47: =IF(T$4="Ja",'R_1 Analyse'!AY943,"") -> synchron | U47: =IF(X$4="Ja",'R_2 Analyse'!AV943,0) -> 0 | V47: =IF(X$4="Ja",'R_2 Analyse'!AW943,0) -> 0 | W47: =IF(X$4="Ja",'R_2 Analyse'!AX943,"") ->  | X47: =IF(X$4="Ja",'R_2 Analyse'!AY943,"") ->  | Y47: =IF(AB$4="Ja",'R_3 Analyse'!AV943,0) -> 0 | Z47: =IF(AB$4="Ja",'R_3 Analyse'!AW943,0) -> 0 | AA47: =IF(AB$4="Ja",'R_3 Analyse'!AX943,"") ->  | AB47: =IF(AB$4="Ja",'R_3 Analyse'!AY943,"") ->  | AC47: =IF(AF$4="Ja",'R_4 Analyse'!AV943,0) -> 0 | AD47: =IF(AF$4="Ja",'R_4 Analyse'!AW943,0) -> 0 | AE47: =IF(AF$4="Ja",'R_4 Analyse'!AX943,"") ->  | AF47: =IF(AF$4="Ja",'R_4 Analyse'!AY943,"") ->  | AG47: =IF(AJ$4="Ja",'R_5 Analyse'!AV943,0) -> 0 | AH47: =IF(AJ$4="Ja",'R_5 Analyse'!AW943,0) -> 0 | AI47: =IF(AJ$4="Ja",'R_5 Analyse'!AX943,"") ->  | AJ47: =IF(AJ$4="Ja",'R_5 Analyse'!AY943,"") ->  | AK47: =IF(AN$4="Ja",'R_6 Analyse'!AV943,0) -> 0 | AL47: =IF(AN$4="Ja",'R_6 Analyse'!AW943,0) -> 0 | AM47: =IF(AN$4="Ja",'R_6 Analyse'!AX943,"") ->  | AN47: =IF(AN$4="Ja",'R_6 Analyse'!AY943,"") ->  | AO47: =IF(AR$4="Ja",'R_7 Analyse'!AV943,0) -> 0 | AP47: =IF(AR$4="Ja",'R_7 Analyse'!AW943,0) -> 0 | AQ47: =IF(AR$4="Ja",'R_7 Analyse'!AX943,"") ->  | AR47: =IF(AR$4="Ja",'R_7 Analyse'!AY943,"") ->  | AS47: =IF(AV$4="Ja",'R_8 Analyse'!AV943,0) -> 0 | AT47: =IF(AV$4="Ja",'R_8 Analyse'!AW943,0) -> 0 | AU47: =IF(AV$4="Ja",'R_8 Analyse'!AX943,"") ->  | AV47: =IF(AV$4="Ja",'R_8 Analyse'!AY943,"") ->  | AW47: =IF(AZ$4="Ja",'R_9 Analyse'!AV943,0) -> 0 | AX47: =IF(AZ$4="Ja",'R_9 Analyse'!AW943,0) -> 0 | AY47: =IF(AZ$4="Ja",'R_9 Analyse'!AX943,"") ->  | AZ47: =IF(AZ$4="Ja",'R_9 Analyse'!AY943,"") ->  | BA47: =IF(BD$4="Ja",'R_10 Analyse'!AV943,0) -> 0 | BB47: =IF(BD$4="Ja",'R_10 Analyse'!AW943,0) -> 0 | BC47: =IF(BD$4="Ja",'R_10 Analyse'!AX943,"") ->  | BD47: =IF(BD$4="Ja",'R_10 Analyse'!AY943,"") ->  | BE47: -0.03634651476 | BF47: 0.03634651476 | BG47: 0 | BH47: 0 | BI47: 0 | BJ47: 0 | BK47: 0 | BL47: 0 | BM47: 0 | BN47: 0 | BO47: 0 | BP47: 0 | BQ47: 0 | BR47: 1 | BS47: 0
G48: 42 | H48: Summe Lizenzkosten | M48: -0.1817325738 | N48: 0.1817325738 | O48: positiv | P48: synchron | Q48: =IF(T$4="Ja",'R_1 Analyse'!AV944,0) -> -0.1817325738 | R48: =IF(T$4="Ja",'R_1 Analyse'!AW944,0) -> 0.1817325738 | S48: =IF(T$4="Ja",'R_1 Analyse'!AX944,"") -> positiv | T48: =IF(T$4="Ja",'R_1 Analyse'!AY944,"") -> synchron | U48: =IF(X$4="Ja",'R_2 Analyse'!AV944,0) -> 0 | V48: =IF(X$4="Ja",'R_2 Analyse'!AW944,0) -> 0 | W48: =IF(X$4="Ja",'R_2 Analyse'!AX944,"") ->  | X48: =IF(X$4="Ja",'R_2 Analyse'!AY944,"") ->  | Y48: =IF(AB$4="Ja",'R_3 Analyse'!AV944,0) -> 0 | Z48: =IF(AB$4="Ja",'R_3 Analyse'!AW944,0) -> 0 | AA48: =IF(AB$4="Ja",'R_3 Analyse'!AX944,"") ->  | AB48: =IF(AB$4="Ja",'R_3 Analyse'!AY944,"") ->  | AC48: =IF(AF$4="Ja",'R_4 Analyse'!AV944,0) -> 0 | AD48: =IF(AF$4="Ja",'R_4 Analyse'!AW944,0) -> 0 | AE48: =IF(AF$4="Ja",'R_4 Analyse'!AX944,"") ->  | AF48: =IF(AF$4="Ja",'R_4 Analyse'!AY944,"") ->  | AG48: =IF(AJ$4="Ja",'R_5 Analyse'!AV944,0) -> 0 | AH48: =IF(AJ$4="Ja",'R_5 Analyse'!AW944,0) -> 0 | AI48: =IF(AJ$4="Ja",'R_5 Analyse'!AX944,"") ->  | AJ48: =IF(AJ$4="Ja",'R_5 Analyse'!AY944,"") ->  | AK48: =IF(AN$4="Ja",'R_6 Analyse'!AV944,0) -> 0 | AL48: =IF(AN$4="Ja",'R_6 Analyse'!AW944,0) -> 0 | AM48: =IF(AN$4="Ja",'R_6 Analyse'!AX944,"") ->  | AN48: =IF(AN$4="Ja",'R_6 Analyse'!AY944,"") ->  | AO48: =IF(AR$4="Ja",'R_7 Analyse'!AV944,0) -> 0 | AP48: =IF(AR$4="Ja",'R_7 Analyse'!AW944,0) -> 0 | AQ48: =IF(AR$4="Ja",'R_7 Analyse'!AX944,"") ->  | AR48: =IF(AR$4="Ja",'R_7 Analyse'!AY944,"") ->  | AS48: =IF(AV$4="Ja",'R_8 Analyse'!AV944,0) -> 0 | AT48: =IF(AV$4="Ja",'R_8 Analyse'!AW944,0) -> 0 | AU48: =IF(AV$4="Ja",'R_8 Analyse'!AX944,"") ->  | AV48: =IF(AV$4="Ja",'R_8 Analyse'!AY944,"") ->  | AW48: =IF(AZ$4="Ja",'R_9 Analyse'!AV944,0) -> 0 | AX48: =IF(AZ$4="Ja",'R_9 Analyse'!AW944,0) -> 0 | AY48: =IF(AZ$4="Ja",'R_9 Analyse'!AX944,"") ->  | AZ48: =IF(AZ$4="Ja",'R_9 Analyse'!AY944,"") ->  | BA48: =IF(BD$4="Ja",'R_10 Analyse'!AV944,0) -> 0 | BB48: =IF(BD$4="Ja",'R_10 Analyse'!AW944,0) -> 0 | BC48: =IF(BD$4="Ja",'R_10 Analyse'!AX944,"") ->  | BD48: =IF(BD$4="Ja",'R_10 Analyse'!AY944,"") ->  | BE48: -0.1817325738 | BF48: 0.1817325738 | BG48: 0 | BH48: 0 | BI48: 0 | BJ48: 0 | BK48: 0 | BL48: 0 | BM48: 0 | BN48: 0 | BO48: 0 | BP48: 0 | BQ48: 0 | BR48: 1 | BS48: 0
G49: 43 | H49: Summe Bestandskosten | M49: -0.5451977214 | N49: 0.5451977214 | O49: positiv | P49: synchron | Q49: =IF(T$4="Ja",'R_1 Analyse'!AV945,0) -> -0.5451977214 | R49: =IF(T$4="Ja",'R_1 Analyse'!AW945,0) -> 0.5451977214 | S49: =IF(T$4="Ja",'R_1 Analyse'!AX945,"") -> positiv | T49: =IF(T$4="Ja",'R_1 Analyse'!AY945,"") -> synchron | U49: =IF(X$4="Ja",'R_2 Analyse'!AV945,0) -> 0 | V49: =IF(X$4="Ja",'R_2 Analyse'!AW945,0) -> 0 | W49: =IF(X$4="Ja",'R_2 Analyse'!AX945,"") ->  | X49: =IF(X$4="Ja",'R_2 Analyse'!AY945,"") ->  | Y49: =IF(AB$4="Ja",'R_3 Analyse'!AV945,0) -> 0 | Z49: =IF(AB$4="Ja",'R_3 Analyse'!AW945,0) -> 0 | AA49: =IF(AB$4="Ja",'R_3 Analyse'!AX945,"") ->  | AB49: =IF(AB$4="Ja",'R_3 Analyse'!AY945,"") ->  | AC49: =IF(AF$4="Ja",'R_4 Analyse'!AV945,0) -> 0 | AD49: =IF(AF$4="Ja",'R_4 Analyse'!AW945,0) -> 0 | AE49: =IF(AF$4="Ja",'R_4 Analyse'!AX945,"") ->  | AF49: =IF(AF$4="Ja",'R_4 Analyse'!AY945,"") ->  | AG49: =IF(AJ$4="Ja",'R_5 Analyse'!AV945,0) -> 0 | AH49: =IF(AJ$4="Ja",'R_5 Analyse'!AW945,0) -> 0 | AI49: =IF(AJ$4="Ja",'R_5 Analyse'!AX945,"") ->  | AJ49: =IF(AJ$4="Ja",'R_5 Analyse'!AY945,"") ->  | AK49: =IF(AN$4="Ja",'R_6 Analyse'!AV945,0) -> 0 | AL49: =IF(AN$4="Ja",'R_6 Analyse'!AW945,0) -> 0 | AM49: =IF(AN$4="Ja",'R_6 Analyse'!AX945,"") ->  | AN49: =IF(AN$4="Ja",'R_6 Analyse'!AY945,"") ->  | AO49: =IF(AR$4="Ja",'R_7 Analyse'!AV945,0) -> 0 | AP49: =IF(AR$4="Ja",'R_7 Analyse'!AW945,0) -> 0 | AQ49: =IF(AR$4="Ja",'R_7 Analyse'!AX945,"") ->  | AR49: =IF(AR$4="Ja",'R_7 Analyse'!AY945,"") ->  | AS49: =IF(AV$4="Ja",'R_8 Analyse'!AV945,0) -> 0 | AT49: =IF(AV$4="Ja",'R_8 Analyse'!AW945,0) -> 0 | AU49: =IF(AV$4="Ja",'R_8 Analyse'!AX945,"") ->  | AV49: =IF(AV$4="Ja",'R_8 Analyse'!AY945,"") ->  | AW49: =IF(AZ$4="Ja",'R_9 Analyse'!AV945,0) -> 0 | AX49: =IF(AZ$4="Ja",'R_9 Analyse'!AW945,0) -> 0 | AY49: =IF(AZ$4="Ja",'R_9 Analyse'!AX945,"") ->  | AZ49: =IF(AZ$4="Ja",'R_9 Analyse'!AY945,"") ->  | BA49: =IF(BD$4="Ja",'R_10 Analyse'!AV945,0) -> 0 | BB49: =IF(BD$4="Ja",'R_10 Analyse'!AW945,0) -> 0 | BC49: =IF(BD$4="Ja",'R_10 Analyse'!AX945,"") ->  | BD49: =IF(BD$4="Ja",'R_10 Analyse'!AY945,"") ->  | BE49: -0.5451977214 | BF49: 0.5451977214 | BG49: 0 | BH49: 0 | BI49: 0 | BJ49: 0 | BK49: 0 | BL49: 0 | BM49: 0 | BN49: 0 | BO49: 0 | BP49: 0 | BQ49: 0 | BR49: 1 | BS49: 0
G50: 44 | H50: Summe Flächenkosten | M50: -0.3634651476 | N50: 0.3634651476 | O50: positiv | P50: synchron | Q50: =IF(T$4="Ja",'R_1 Analyse'!AV946,0) -> -0.3634651476 | R50: =IF(T$4="Ja",'R_1 Analyse'!AW946,0) -> 0.3634651476 | S50: =IF(T$4="Ja",'R_1 Analyse'!AX946,"") -> positiv | T50: =IF(T$4="Ja",'R_1 Analyse'!AY946,"") -> synchron | U50: =IF(X$4="Ja",'R_2 Analyse'!AV946,0) -> 0 | V50: =IF(X$4="Ja",'R_2 Analyse'!AW946,0) -> 0 | W50: =IF(X$4="Ja",'R_2 Analyse'!AX946,"") ->  | X50: =IF(X$4="Ja",'R_2 Analyse'!AY946,"") ->  | Y50: =IF(AB$4="Ja",'R_3 Analyse'!AV946,0) -> 0 | Z50: =IF(AB$4="Ja",'R_3 Analyse'!AW946,0) -> 0 | AA50: =IF(AB$4="Ja",'R_3 Analyse'!AX946,"") ->  | AB50: =IF(AB$4="Ja",'R_3 Analyse'!AY946,"") ->  | AC50: =IF(AF$4="Ja",'R_4 Analyse'!AV946,0) -> 0 | AD50: =IF(AF$4="Ja",'R_4 Analyse'!AW946,0) -> 0 | AE50: =IF(AF$4="Ja",'R_4 Analyse'!AX946,"") ->  | AF50: =IF(AF$4="Ja",'R_4 Analyse'!AY946,"") ->  | AG50: =IF(AJ$4="Ja",'R_5 Analyse'!AV946,0) -> 0 | AH50: =IF(AJ$4="Ja",'R_5 Analyse'!AW946,0) -> 0 | AI50: =IF(AJ$4="Ja",'R_5 Analyse'!AX946,"") ->  | AJ50: =IF(AJ$4="Ja",'R_5 Analyse'!AY946,"") ->  | AK50: =IF(AN$4="Ja",'R_6 Analyse'!AV946,0) -> 0 | AL50: =IF(AN$4="Ja",'R_6 Analyse'!AW946,0) -> 0 | AM50: =IF(AN$4="Ja",'R_6 Analyse'!AX946,"") ->  | AN50: =IF(AN$4="Ja",'R_6 Analyse'!AY946,"") ->  | AO50: =IF(AR$4="Ja",'R_7 Analyse'!AV946,0) -> 0 | AP50: =IF(AR$4="Ja",'R_7 Analyse'!AW946,0) -> 0 | AQ50: =IF(AR$4="Ja",'R_7 Analyse'!AX946,"") ->  | AR50: =IF(AR$4="Ja",'R_7 Analyse'!AY946,"") ->  | AS50: =IF(AV$4="Ja",'R_8 Analyse'!AV946,0) -> 0 | AT50: =IF(AV$4="Ja",'R_8 Analyse'!AW946,0) -> 0 | AU50: =IF(AV$4="Ja",'R_8 Analyse'!AX946,"") ->  | AV50: =IF(AV$4="Ja",'R_8 Analyse'!AY946,"") ->  | AW50: =IF(AZ$4="Ja",'R_9 Analyse'!AV946,0) -> 0 | AX50: =IF(AZ$4="Ja",'R_9 Analyse'!AW946,0) -> 0 | AY50: =IF(AZ$4="Ja",'R_9 Analyse'!AX946,"") ->  | AZ50: =IF(AZ$4="Ja",'R_9 Analyse'!AY946,"") ->  | BA50: =IF(BD$4="Ja",'R_10 Analyse'!AV946,0) -> 0 | BB50: =IF(BD$4="Ja",'R_10 Analyse'!AW946,0) -> 0 | BC50: =IF(BD$4="Ja",'R_10 Analyse'!AX946,"") ->  | BD50: =IF(BD$4="Ja",'R_10 Analyse'!AY946,"") ->  | BE50: -0.3634651476 | BF50: 0.3634651476 | BG50: 0 | BH50: 0 | BI50: 0 | BJ50: 0 | BK50: 0 | BL50: 0 | BM50: 0 | BN50: 0 | BO50: 0 | BP50: 0 | BQ50: 0 | BR50: 1 | BS50: 0
G51: 45 | H51: Summe sonstiger Energiekosten | M51: -0.0908662869 | N51: 0.0908662869 | O51: positiv | P51: synchron | Q51: =IF(T$4="Ja",'R_1 Analyse'!AV947,0) -> -0.0908662869 | R51: =IF(T$4="Ja",'R_1 Analyse'!AW947,0) -> 0.0908662869 | S51: =IF(T$4="Ja",'R_1 Analyse'!AX947,"") -> positiv | T51: =IF(T$4="Ja",'R_1 Analyse'!AY947,"") -> synchron | U51: =IF(X$4="Ja",'R_2 Analyse'!AV947,0) -> 0 | V51: =IF(X$4="Ja",'R_2 Analyse'!AW947,0) -> 0 | W51: =IF(X$4="Ja",'R_2 Analyse'!AX947,"") ->  | X51: =IF(X$4="Ja",'R_2 Analyse'!AY947,"") ->  | Y51: =IF(AB$4="Ja",'R_3 Analyse'!AV947,0) -> 0 | Z51: =IF(AB$4="Ja",'R_3 Analyse'!AW947,0) -> 0 | AA51: =IF(AB$4="Ja",'R_3 Analyse'!AX947,"") ->  | AB51: =IF(AB$4="Ja",'R_3 Analyse'!AY947,"") ->  | AC51: =IF(AF$4="Ja",'R_4 Analyse'!AV947,0) -> 0 | AD51: =IF(AF$4="Ja",'R_4 Analyse'!AW947,0) -> 0 | AE51: =IF(AF$4="Ja",'R_4 Analyse'!AX947,"") ->  | AF51: =IF(AF$4="Ja",'R_4 Analyse'!AY947,"") ->  | AG51: =IF(AJ$4="Ja",'R_5 Analyse'!AV947,0) -> 0 | AH51: =IF(AJ$4="Ja",'R_5 Analyse'!AW947,0) -> 0 | AI51: =IF(AJ$4="Ja",'R_5 Analyse'!AX947,"") ->  | AJ51: =IF(AJ$4="Ja",'R_5 Analyse'!AY947,"") ->  | AK51: =IF(AN$4="Ja",'R_6 Analyse'!AV947,0) -> 0 | AL51: =IF(AN$4="Ja",'R_6 Analyse'!AW947,0) -> 0 | AM51: =IF(AN$4="Ja",'R_6 Analyse'!AX947,"") ->  | AN51: =IF(AN$4="Ja",'R_6 Analyse'!AY947,"") ->  | AO51: =IF(AR$4="Ja",'R_7 Analyse'!AV947,0) -> 0 | AP51: =IF(AR$4="Ja",'R_7 Analyse'!AW947,0) -> 0 | AQ51: =IF(AR$4="Ja",'R_7 Analyse'!AX947,"") ->  | AR51: =IF(AR$4="Ja",'R_7 Analyse'!AY947,"") ->  | AS51: =IF(AV$4="Ja",'R_8 Analyse'!AV947,0) -> 0 | AT51: =IF(AV$4="Ja",'R_8 Analyse'!AW947,0) -> 0 | AU51: =IF(AV$4="Ja",'R_8 Analyse'!AX947,"") ->  | AV51: =IF(AV$4="Ja",'R_8 Analyse'!AY947,"") ->  | AW51: =IF(AZ$4="Ja",'R_9 Analyse'!AV947,0) -> 0 | AX51: =IF(AZ$4="Ja",'R_9 Analyse'!AW947,0) -> 0 | AY51: =IF(AZ$4="Ja",'R_9 Analyse'!AX947,"") ->  | AZ51: =IF(AZ$4="Ja",'R_9 Analyse'!AY947,"") ->  | BA51: =IF(BD$4="Ja",'R_10 Analyse'!AV947,0) -> 0 | BB51: =IF(BD$4="Ja",'R_10 Analyse'!AW947,0) -> 0 | BC51: =IF(BD$4="Ja",'R_10 Analyse'!AX947,"") ->  | BD51: =IF(BD$4="Ja",'R_10 Analyse'!AY947,"") ->  | BE51: -0.0908662869 | BF51: 0.0908662869 | BG51: 0 | BH51: 0 | BI51: 0 | BJ51: 0 | BK51: 0 | BL51: 0 | BM51: 0 | BN51: 0 | BO51: 0 | BP51: 0 | BQ51: 0 | BR51: 1 | BS51: 0
G52: 46 | H52: Ergonomie Beladevorgänge | M52: 0 | N52: 0 | O52: kein | P52: synchron | Q52: =IF(T$4="Ja",'R_1 Analyse'!AV948,0) -> 0 | R52: =IF(T$4="Ja",'R_1 Analyse'!AW948,0) -> 0 | S52: =IF(T$4="Ja",'R_1 Analyse'!AX948,"") -> kein | T52: =IF(T$4="Ja",'R_1 Analyse'!AY948,"") -> synchron | U52: =IF(X$4="Ja",'R_2 Analyse'!AV948,0) -> 0 | V52: =IF(X$4="Ja",'R_2 Analyse'!AW948,0) -> 0 | W52: =IF(X$4="Ja",'R_2 Analyse'!AX948,"") ->  | X52: =IF(X$4="Ja",'R_2 Analyse'!AY948,"") ->  | Y52: =IF(AB$4="Ja",'R_3 Analyse'!AV948,0) -> 0 | Z52: =IF(AB$4="Ja",'R_3 Analyse'!AW948,0) -> 0 | AA52: =IF(AB$4="Ja",'R_3 Analyse'!AX948,"") ->  | AB52: =IF(AB$4="Ja",'R_3 Analyse'!AY948,"") ->  | AC52: =IF(AF$4="Ja",'R_4 Analyse'!AV948,0) -> 0 | AD52: =IF(AF$4="Ja",'R_4 Analyse'!AW948,0) -> 0 | AE52: =IF(AF$4="Ja",'R_4 Analyse'!AX948,"") ->  | AF52: =IF(AF$4="Ja",'R_4 Analyse'!AY948,"") ->  | AG52: =IF(AJ$4="Ja",'R_5 Analyse'!AV948,0) -> 0 | AH52: =IF(AJ$4="Ja",'R_5 Analyse'!AW948,0) -> 0 | AI52: =IF(AJ$4="Ja",'R_5 Analyse'!AX948,"") ->  | AJ52: =IF(AJ$4="Ja",'R_5 Analyse'!AY948,"") ->  | AK52: =IF(AN$4="Ja",'R_6 Analyse'!AV948,0) -> 0 | AL52: =IF(AN$4="Ja",'R_6 Analyse'!AW948,0) -> 0 | AM52: =IF(AN$4="Ja",'R_6 Analyse'!AX948,"") ->  | AN52: =IF(AN$4="Ja",'R_6 Analyse'!AY948,"") ->  | AO52: =IF(AR$4="Ja",'R_7 Analyse'!AV948,0) -> 0 | AP52: =IF(AR$4="Ja",'R_7 Analyse'!AW948,0) -> 0 | AQ52: =IF(AR$4="Ja",'R_7 Analyse'!AX948,"") ->  | AR52: =IF(AR$4="Ja",'R_7 Analyse'!AY948,"") ->  | AS52: =IF(AV$4="Ja",'R_8 Analyse'!AV948,0) -> 0 | AT52: =IF(AV$4="Ja",'R_8 Analyse'!AW948,0) -> 0 | AU52: =IF(AV$4="Ja",'R_8 Analyse'!AX948,"") ->  | AV52: =IF(AV$4="Ja",'R_8 Analyse'!AY948,"") ->  | AW52: =IF(AZ$4="Ja",'R_9 Analyse'!AV948,0) -> 0 | AX52: =IF(AZ$4="Ja",'R_9 Analyse'!AW948,0) -> 0 | AY52: =IF(AZ$4="Ja",'R_9 Analyse'!AX948,"") ->  | AZ52: =IF(AZ$4="Ja",'R_9 Analyse'!AY948,"") ->  | BA52: =IF(BD$4="Ja",'R_10 Analyse'!AV948,0) -> 0 | BB52: =IF(BD$4="Ja",'R_10 Analyse'!AW948,0) -> 0 | BC52: =IF(BD$4="Ja",'R_10 Analyse'!AX948,"") ->  | BD52: =IF(BD$4="Ja",'R_10 Analyse'!AY948,"") ->  | BE52: 0 | BF52: 0 | BG52: 0 | BH52: 0 | BI52: 0 | BJ52: 0 | BK52: 0 | BL52: 0 | BM52: 0 | BN52: 0 | BO52: 0 | BP52: 0 | BQ52: 1 | BR52: 0 | BS52: 0
G53: 47 | H53: Ergonomie Entladevorgänge | M53: -11.48688706 | N53: 11.48688706 | O53: positiv | P53: synchron | Q53: =IF(T$4="Ja",'R_1 Analyse'!AV949,0) -> -11.48688706 | R53: =IF(T$4="Ja",'R_1 Analyse'!AW949,0) -> 11.48688706 | S53: =IF(T$4="Ja",'R_1 Analyse'!AX949,"") -> positiv | T53: =IF(T$4="Ja",'R_1 Analyse'!AY949,"") -> synchron | U53: =IF(X$4="Ja",'R_2 Analyse'!AV949,0) -> 0 | V53: =IF(X$4="Ja",'R_2 Analyse'!AW949,0) -> 0 | W53: =IF(X$4="Ja",'R_2 Analyse'!AX949,"") ->  | X53: =IF(X$4="Ja",'R_2 Analyse'!AY949,"") ->  | Y53: =IF(AB$4="Ja",'R_3 Analyse'!AV949,0) -> 0 | Z53: =IF(AB$4="Ja",'R_3 Analyse'!AW949,0) -> 0 | AA53: =IF(AB$4="Ja",'R_3 Analyse'!AX949,"") ->  | AB53: =IF(AB$4="Ja",'R_3 Analyse'!AY949,"") ->  | AC53: =IF(AF$4="Ja",'R_4 Analyse'!AV949,0) -> 0 | AD53: =IF(AF$4="Ja",'R_4 Analyse'!AW949,0) -> 0 | AE53: =IF(AF$4="Ja",'R_4 Analyse'!AX949,"") ->  | AF53: =IF(AF$4="Ja",'R_4 Analyse'!AY949,"") ->  | AG53: =IF(AJ$4="Ja",'R_5 Analyse'!AV949,0) -> 0 | AH53: =IF(AJ$4="Ja",'R_5 Analyse'!AW949,0) -> 0 | AI53: =IF(AJ$4="Ja",'R_5 Analyse'!AX949,"") ->  | AJ53: =IF(AJ$4="Ja",'R_5 Analyse'!AY949,"") ->  | AK53: =IF(AN$4="Ja",'R_6 Analyse'!AV949,0) -> 0 | AL53: =IF(AN$4="Ja",'R_6 Analyse'!AW949,0) -> 0 | AM53: =IF(AN$4="Ja",'R_6 Analyse'!AX949,"") ->  | AN53: =IF(AN$4="Ja",'R_6 Analyse'!AY949,"") ->  | AO53: =IF(AR$4="Ja",'R_7 Analyse'!AV949,0) -> 0 | AP53: =IF(AR$4="Ja",'R_7 Analyse'!AW949,0) -> 0 | AQ53: =IF(AR$4="Ja",'R_7 Analyse'!AX949,"") ->  | AR53: =IF(AR$4="Ja",'R_7 Analyse'!AY949,"") ->  | AS53: =IF(AV$4="Ja",'R_8 Analyse'!AV949,0) -> 0 | AT53: =IF(AV$4="Ja",'R_8 Analyse'!AW949,0) -> 0 | AU53: =IF(AV$4="Ja",'R_8 Analyse'!AX949,"") ->  | AV53: =IF(AV$4="Ja",'R_8 Analyse'!AY949,"") ->  | AW53: =IF(AZ$4="Ja",'R_9 Analyse'!AV949,0) -> 0 | AX53: =IF(AZ$4="Ja",'R_9 Analyse'!AW949,0) -> 0 | AY53: =IF(AZ$4="Ja",'R_9 Analyse'!AX949,"") ->  | AZ53: =IF(AZ$4="Ja",'R_9 Analyse'!AY949,"") ->  | BA53: =IF(BD$4="Ja",'R_10 Analyse'!AV949,0) -> 0 | BB53: =IF(BD$4="Ja",'R_10 Analyse'!AW949,0) -> 0 | BC53: =IF(BD$4="Ja",'R_10 Analyse'!AX949,"") ->  | BD53: =IF(BD$4="Ja",'R_10 Analyse'!AY949,"") ->  | BE53: -11.48688706 | BF53: 11.48688706 | BG53: 0 | BH53: 0 | BI53: 0 | BJ53: 0 | BK53: 0 | BL53: 0 | BM53: 0 | BN53: 0 | BO53: 0 | BP53: 0 | BQ53: 0 | BR53: 1 | BS53: 0
G107: Wirkintensität aggregiert [%] | M107: Anzahl berücksichtigter Routen = | Q107: =P3 -> 1
M109: Summe Gewichtung (ƩgR) = | Q109: =P5 -> 1 | R109: positiv / | S109: synchron | T109: positiv / | U109: asychron | V109: negativ / | W109: synchron | X109: negativ / | Y109: asychron | Z109: kein / | AA109: synchron | AB109: kein / | AC109: asynchron
G110: Nr. | H110: Eingabeparameter | M110: Minimium | N110: Maximum | O110: Absolut | P110: Trend | Q110: Spannweite | R110: Min | S110: Max | T110: Min | U110: Max | V110: Min | W110: Max | X110: Min | Y110: Max | Z110: Min | AA110: Max | AB110: Min | AC110: Max
G111: 36 | H111: Realisierter bzw. festgelegter Tourenstartabstand | M111: -13.24417603 | N111: 24.49741871 | O111: =MAX(ABS(M111),ABS(N111)) -> 24.49741871 | P111: kein | Q111: asynchron | R111: 0 | S111: 0 | T111: 0 | U111: 0 | V111: 0 | W111: 0 | X111: 0 | Y111: 0 | Z111: 0 | AA111: 0 | AB111: -13.24417603 | AC111: 24.49741871 | AD111: 1 | AE111: 0 | AF111: 0
G112: 6 | H112: Durchsatz | M112: -19.70199269 | N112: 18.39672895 | O112: 19.70199269 | P112: positiv | Q112: asynchron | R112: 0 | S112: 0 | T112: -19.70199269 | U112: 18.39672895 | V112: 0 | W112: 0 | X112: 0 | Y112: 0 | Z112: 0 | AA112: 0 | AB112: 0 | AC112: 0 | AD112: 1 | AE112: 0 | AF112: 0
G113: 29 | H113: Lohnkosten Mitarbeiter pro Jahr | M113: -17.33905439 | N113: 17.33905439 | O113: 17.33905439 | P113: positiv | Q113: synchron | R113: -17.33905439 | S113: 17.33905439 | T113: 0 | U113: 0 | V113: 0 | W113: 0 | X113: 0 | Y113: 0 | Z113: 0 | AA113: 0 | AB113: 0 | AC113: 0 | AD113: 1 | AE113: 0 | AF113: 0
G114: 10 | H114: Fahrgeschwindigkeit | M114: -6.563576913 | N114: 13.45333247 | O114: 13.45333247 | P114: kein | Q114: asynchron | R114: 0 | S114: 0 | T114: 0 | U114: 0 | V114: 0 | W114: 0 | X114: 0 | Y114: 0 | Z114: 0 | AA114: 0 | AB114: -6.563576913 | AC114: 13.45333247 | AD114: 0 | AE114: 1 | AF114: 0
G115: 47 | H115: Ergonomie Entladevorgänge | M115: -11.48688706 | N115: 11.48688706 | O115: 11.48688706 | P115: positiv | Q115: synchron | R115: -11.48688706 | S115: 11.48688706 | T115: 0 | U115: 0 | V115: 0 | W115: 0 | X115: 0 | Y115: 0 | Z115: 0 | AA115: 0 | AB115: 0 | AC115: 0 | AD115: 1 | AE115: 0 | AF115: 0
G116: 30 | H116: Dauer eines Beladevorgangs (integriert) | M116: -9.003957424 | N116: 9.372282537 | O116: 9.372282537 | P116: kein | Q116: asynchron | R116: 0 | S116: 0 | T116: 0 | U116: 0 | V116: 0 | W116: 0 | X116: 0 | Y116: 0 | Z116: 0 | AA116: 0 | AB116: -9.003957424 | AC116: 9.372282537 | AD116: 0 | AE116: 1 | AF116: 0
G117: 31 | H117: Dauer eines Beladevorgangs (entkoppelt) | M117: -8.2105755 | N117: 8.2105755 | O117: 8.2105755 | P117: positiv | Q117: synchron | R117: -8.2105755 | S117: 8.2105755 | T117: 0 | U117: 0 | V117: 0 | W117: 0 | X117: 0 | Y117: 0 | Z117: 0 | AA117: 0 | AB117: 0 | AC117: 0 | AD117: 0 | AE117: 1 | AF117: 0
G118: 5 | H118: Routenlänge | M118: -7.527549222 | N118: 7.843001139 | O118: 7.843001139 | P118: kein | Q118: asynchron | R118: 0 | S118: 0 | T118: 0 | U118: 0 | V118: 0 | W118: 0 | X118: 0 | Y118: 0 | Z118: 0 | AA118: 0 | AB118: -7.527549222 | AC118: 7.843001139 | AD118: 1 | AE118: 0 | AF118: 0
G119: 34 | H119: Dauer eines Entladevorgangs (integriert) | M119: -7.157084623 | N119: 7.44133934 | O119: 7.44133934 | P119: kein | Q119: asynchron | R119: 0 | S119: 0 | T119: 0 | U119: 0 | V119: 0 | W119: 0 | X119: 0 | Y119: 0 | Z119: 0 | AA119: 0 | AB119: -7.157084623 | AC119: 7.44133934 | AD119: 1 | AE119: 0 | AF119: 0
G120: 13 | H120: Anzahl Anhänger je Fahrzeug | M120: -1.658141612 | N120: 3.507285527 | O120: 3.507285527 | P120: kein | Q120: asynchron | R120: 0 | S120: 0 | T120: 0 | U120: 0 | V120: 0 | W120: 0 | X120: 0 | Y120: 0 | Z120: 0 | AA120: 0 | AB120: -1.658141612 | AC120: 3.507285527 | AD120: 1 | AE120: 0 | AF120: 0
G121: 15 | H121: Transportkapazität pro Anhänger | M121: -0.6341248883 | N121: 2.483268803 | O121: 2.483268803 | P121: kein | Q121: asynchron | R121: 0 | S121: 0 | T121: 0 | U121: 0 | V121: 0 | W121: 0 | X121: 0 | Y121: 0 | Z121: 0 | AA121: 0 | AB121: -0.6341248883 | AC121: 2.483268803 | AD121: 0 | AE121: 1 | AF121: 0
G122: 11 | H122: Investitionskosten pro Fahrzeug | M122: -2.457640137 | N122: 2.457640137 | O122: 2.457640137 | P122: positiv | Q122: synchron | R122: -2.457640137 | S122: 2.457640137 | T122: 0 | U122: 0 | V122: 0 | W122: 0 | X122: 0 | Y122: 0 | Z122: 0 | AA122: 0 | AB122: 0 | AC122: 0 | AD122: 0 | AE122: 1 | AF122: 0
G123: 21 | H123: Anzahl Beladetechnik | M123: -2.048033448 | N123: 2.048033448 | O123: 2.048033448 | P123: positiv | Q123: synchron | R123: -2.048033448 | S123: 2.048033448 | T123: 0 | U123: 0 | V123: 0 | W123: 0 | X123: 0 | Y123: 0 | Z123: 0 | AA123: 0 | AB123: 0 | AC123: 0 | AD123: 1 | AE123: 0 | AF123: 0
G124: 22 | H124: Investitionskosten pro Beladetechnik | M124: -2.048033448 | N124: 2.048033448 | O124: 2.048033448 | P124: positiv | Q124: synchron | R124: -2.048033448 | S124: 2.048033448 | T124: 0 | U124: 0 | V124: 0 | W124: 0 | X124: 0 | Y124: 0 | Z124: 0 | AA124: 0 | AB124: 0 | AC124: 0 | AD124: 1 | AE124: 0 | AF124: 0
G125: 33 | H125: Dauer eines Haltevorgangs | M125: -1.178242034 | N125: 1.185625162 | O125: 1.185625162 | P125: kein | Q125: synchron | R125: 0 | S125: 0 | T125: 0 | U125: 0 | V125: 0 | W125: 0 | X125: 0 | Y125: 0 | Z125: -1.178242034 | AA125: 1.185625162 | AB125: 0 | AC125: 0 | AD125: 1 | AE125: 0 | AF125: 0
G126: 16 | H126: Investitionskosten je Anhänger | M126: -1.024016724 | N126: 1.024016724 | O126: 1.024016724 | P126: positiv | Q126: synchron | R126: -1.024016724 | S126: 1.024016724 | T126: 0 | U126: 0 | V126: 0 | W126: 0 | X126: 0 | Y126: 0 | Z126: 0 | AA126: 0 | AB126: 0 | AC126: 0 | AD126: 0 | AE126: 1 | AF126: 0
G127: 43 | H127: Summe Bestandskosten | M127: -0.5451977214 | N127: 0.5451977214 | O127: 0.5451977214 | P127: positiv | Q127: synchron | R127: -0.5451977214 | S127: 0.5451977214 | T127: 0 | U127: 0 | V127: 0 | W127: 0 | X127: 0 | Y127: 0 | Z127: 0 | AA127: 0 | AB127: 0 | AC127: 0 | AD127: 1 | AE127: 0 | AF127: 0
G128: 27 | H128: Anzahl Informationstechnik | M128: -0.455039833 | N128: 0.455039833 | O128: 0.455039833 | P128: positiv | Q128: synchron | R128: -0.455039833 | S128: 0.455039833 | T128: 0 | U128: 0 | V128: 0 | W128: 0 | X128: 0 | Y128: 0 | Z128: 0 | AA128: 0 | AB128: 0 | AC128: 0 | AD128: 1 | AE128: 0 | AF128: 0
G129: 28 | H129: Investitionskosten pro Informationstechnik | M129: -0.455039833 | N129: 0.455039833 | O129: 0.455039833 | P129: positiv | Q129: synchron | R129: -0.455039833 | S129: 0.455039833 | T129: 0 | U129: 0 | V129: 0 | W129: 0 | X129: 0 | Y129: 0 | Z129: 0 | AA129: 0 | AB129: 0 | AC129: 0 | AD129: 1 | AE129: 0 | AF129: 0
G130: 4 | H130: Minimale Routenfrequenz (Vorgabe) | M130: 0 | N130: 0.4314669135 | O130: 0.4314669135 | P130: positiv | Q130: asynchron | R130: 0 | S130: 0 | T130: 0 | U130: 0.4314669135 | V130: 0 | W130: 0 | X130: 0 | Y130: 0 | Z130: 0 | AA130: 0 | AB130: 0 | AC130: 0 | AD130: 1 | AE130: 0 | AF130: 0
G131: 12 | H131: Energieverbrauch Fahrzeug | M131: -0.3804607779 | N131: 0.3804607779 | O131: 0.3804607779 | P131: positiv | Q131: synchron | R131: -0.3804607779 | S131: 0.3804607779 | T131: 0 | U131: 0 | V131: 0 | W131: 0 | X131: 0 | Y131: 0 | Z131: 0 | AA131: 0 | AB131: 0 | AC131: 0 | AD131: 0 | AE131: 1 | AF131: 0
G132: 44 | H132: Summe Flächenkosten | M132: -0.3634651476 | N132: 0.3634651476 | O132: 0.3634651476 | P132: positiv | Q132: synchron | R132: -0.3634651476 | S132: 0.3634651476 | T132: 0 | U132: 0 | V132: 0 | W132: 0 | X132: 0 | Y132: 0 | Z132: 0 | AA132: 0 | AB132: 0 | AC132: 0 | AD132: 0 | AE132: 1 | AF132: 0
G133: 39 | H133: Summe sonstiger Investitionen | M133: -0.3278270314 | N133: 0.3278270314 | O133: 0.3278270314 | P133: positiv | Q133: synchron | R133: -0.3278270314 | S133: 0.3278270314 | T133: 0 | U133: 0 | V133: 0 | W133: 0 | X133: 0 | Y133: 0 | Z133: 0 | AA133: 0 | AB133: 0 | AC133: 0 | AD133: 1 | AE133: 0 | AF133: 0
G134: 25 | H134: Anzahl Bereitstelltechnik | M134: -0.2184332878 | N134: 0.2184332878 | O134: 0.2184332878 | P134: positiv | Q134: synchron | R134: -0.2184332878 | S134: 0.2184332878 | T134: 0 | U134: 0 | V134: 0 | W134: 0 | X134: 0 | Y134: 0 | Z134: 0 | AA134: 0 | AB134: 0 | AC134: 0 | AD134: 1 | AE134: 0 | AF134: 0
G135: 26 | H135: Investitionskosten pro Bereitstelltechnik | M135: -0.2184332878 | N135: 0.2184332878 | O135: 0.2184332878 | P135: positiv | Q135: synchron | R135: -0.2184332878 | S135: 0.2184332878 | T135: 0 | U135: 0 | V135: 0 | W135: 0 | X135: 0 | Y135: 0 | Z135: 0 | AA135: 0 | AB135: 0 | AC135: 0 | AD135: 0 | AE135: 1 | AF135: 0
G136: 42 | H136: Summe Lizenzkosten | M136: -0.1817325738 | N136: 0.1817325738 | O136: 0.1817325738 | P136: positiv | Q136: synchron | R136: -0.1817325738 | S136: 0.1817325738 | T136: 0 | U136: 0 | V136: 0 | W136: 0 | X136: 0 | Y136: 0 | Z136: 0 | AA136: 0 | AB136: 0 | AC136: 0 | AD136: 0 | AE136: 1 | AF136: 0
G137: 38 | H137: Kalkulatorischer Zinssatz pro Jahr | M137: -0.1771892595 | N137: 0.1771892595 | O137: 0.1771892595 | P137: positiv | Q137: synchron | R137: -0.1771892595 | S137: 0.1771892595 | T137: 0 | U137: 0 | V137: 0 | W137: 0 | X137: 0 | Y137: 0 | Z137: 0 | AA137: 0 | AB137: 0 | AC137: 0 | AD137: 0 | AE137: 1 | AF137: 0
G138: 7 | H138: Investitionskosten pro Ladungsträger | M138: -0.1410198443 | N138: 0.1410198443 | O138: 0.1410198443 | P138: positiv | Q138: synchron | R138: -0.1410198443 | S138: 0.1410198443 | T138: 0 | U138: 0 | V138: 0 | W138: 0 | X138: 0 | Y138: 0 | Z138: 0 | AA138: 0 | AB138: 0 | AC138: 0 | AD138: 0 | AE138: 1 | AF138: 0
G139: 40 | H139: Summe sonstiger Abschreibungen | M139: -0.0908662869 | N139: 0.0908662869 | O139: 0.0908662869 | P139: positiv | Q139: synchron | R139: -0.0908662869 | S139: 0.0908662869 | T139: 0 | U139: 0 | V139: 0 | W139: 0 | X139: 0 | Y139: 0 | Z139: 0 | AA139: 0 | AB139: 0 | AC139: 0 | AD139: 0 | AE139: 1 | AF139: 0
G140: 45 | H140: Summe sonstiger Energiekosten | M140: -0.0908662869 | N140: 0.0908662869 | O140: 0.0908662869 | P140: positiv | Q140: synchron | R140: -0.0908662869 | S140: 0.0908662869 | T140: 0 | U140: 0 | V140: 0 | W140: 0 | X140: 0 | Y140: 0 | Z140: 0 | AA140: 0 | AB140: 0 | AC140: 0 | AD140: 1 | AE140: 0 | AF140: 0
G141: 41 | H141: Summe sonstiger Wartungs- und Reparaturkosten | M141: -0.03634651476 | N141: 0.03634651476 | O141: 0.03634651476 | P141: positiv | Q141: synchron | R141: -0.03634651476 | S141: 0.03634651476 | T141: 0 | U141: 0 | V141: 0 | W141: 0 | X141: 0 | Y141: 0 | Z141: 0 | AA141: 0 | AB141: 0 | AC141: 0 | AD141: 0 | AE141: 1 | AF141: 0
G142: 1 | H142: Gewicht Zuladung pro Ladungsträger | M142: 0 | N142: 0 | O142: 0 | P142: kein | Q142: synchron | R142: 0 | S142: 0 | T142: 0 | U142: 0 | V142: 0 | W142: 0 | X142: 0 | Y142: 0 | Z142: 0 | AA142: 0 | AB142: 0 | AC142: 0 | AD142: 1 | AE142: 0 | AF142: 0
G143: 2 | H143: Mittlere Entfernung Haltepunkt - Quelle | M143: 0 | N143: 0 | O143: 0 | P143: kein | Q143: synchron | R143: 0 | S143: 0 | T143: 0 | U143: 0 | V143: 0 | W143: 0 | X143: 0 | Y143: 0 | Z143: 0 | AA143: 0 | AB143: 0 | AC143: 0 | AD143: 1 | AE143: 0 | AF143: 0
G144: 3 | H144: Mittlere Entfernung Haltepunkt - Senke | M144: 0 | N144: 0 | O144: 0 | P144: kein | Q144: synchron | R144: 0 | S144: 0 | T144: 0 | U144: 0 | V144: 0 | W144: 0 | X144: 0 | Y144: 0 | Z144: 0 | AA144: 0 | AB144: 0 | AC144: 0 | AD144: 1 | AE144: 0 | AF144: 0
G145: 8 | H145: Transportkapazität pro Fahrzeug | M145: 0 | N145: 0 | O145: 0 | P145: kein | Q145: synchron | R145: 0 | S145: 0 | T145: 0 | U145: 0 | V145: 0 | W145: 0 | X145: 0 | Y145: 0 | Z145: 0 | AA145: 0 | AB145: 0 | AC145: 0 | AD145: 1 | AE145: 0 | AF145: 0
G146: 9 | H146: Länge Fahrzeug | M146: 0 | N146: 0 | O146: 0 | P146: kein | Q146: synchron | R146: 0 | S146: 0 | T146: 0 | U146: 0 | V146: 0 | W146: 0 | X146: 0 | Y146: 0 | Z146: 0 | AA146: 0 | AB146: 0 | AC146: 0 | AD146: 1 | AE146: 0 | AF146: 0
G147: 14 | H147: Länge Anhänger (inkl. Deichsel) | M147: 0 | N147: 0 | O147: 0 | P147: kein | Q147: synchron | R147: 0 | S147: 0 | T147: 0 | U147: 0 | V147: 0 | W147: 0 | X147: 0 | Y147: 0 | Z147: 0 | AA147: 0 | AB147: 0 | AC147: 0 | AD147: 1 | AE147: 0 | AF147: 0
G148: 17 | H148: Anzahl Rahmen oder Trolleys je Anhänger | M148: 0 | N148: 0 | O148: 0 | P148: kein | Q148: synchron | R148: 0 | S148: 0 | T148: 0 | U148: 0 | V148: 0 | W148: 0 | X148: 0 | Y148: 0 | Z148: 0 | AA148: 0 | AB148: 0 | AC148: 0 | AD148: 0 | AE148: 1 | AF148: 0
G149: 18 | H149: Transportkapazität pro Rahmen oder Trolley | M149: 0 | N149: 0 | O149: 0 | P149: kein | Q149: synchron | R149: 0 | S149: 0 | T149: 0 | U149: 0 | V149: 0 | W149: 0 | X149: 0 | Y149: 0 | Z149: 0 | AA149: 0 | AB149: 0 | AC149: 0 | AD149: 0 | AE149: 1 | AF149: 0
G150: 19 | H150: Investitionskosten pro Rahmen oder Trolley | M150: 0 | N150: 0 | O150: 0 | P150: kein | Q150: synchron | R150: 0 | S150: 0 | T150: 0 | U150: 0 | V150: 0 | W150: 0 | X150: 0 | Y150: 0 | Z150: 0 | AA150: 0 | AB150: 0 | AC150: 0 | AD150: 0 | AE150: 1 | AF150: 0
G151: 20 | H151: Investitionskosten pro Zug-/Schiebehilfe | M151: 0 | N151: 0 | O151: 0 | P151: kein | Q151: synchron | R151: 0 | S151: 0 | T151: 0 | U151: 0 | V151: 0 | W151: 0 | X151: 0 | Y151: 0 | Z151: 0 | AA151: 0 | AB151: 0 | AC151: 0 | AD151: 0 | AE151: 1 | AF151: 0
G152: 23 | H152: Anzahl Entladetechnik | M152: 0 | N152: 0 | O152: 0 | P152: kein | Q152: synchron | R152: 0 | S152: 0 | T152: 0 | U152: 0 | V152: 0 | W152: 0 | X152: 0 | Y152: 0 | Z152: 0 | AA152: 0 | AB152: 0 | AC152: 0 | AD152: 0 | AE152: 1 | AF152: 0
G153: 24 | H153: Investitionskosten pro Entladetechnik | M153: 0 | N153: 0 | O153: 0 | P153: kein | Q153: synchron | R153: 0 | S153: 0 | T153: 0 | U153: 0 | V153: 0 | W153: 0 | X153: 0 | Y153: 0 | Z153: 0 | AA153: 0 | AB153: 0 | AC153: 0 | AD153: 0 | AE153: 1 | AF153: 0
G154: 32 | H154: Zeitzuschlag | M154: 0 | N154: 0 | O154: 0 | P154: kein | Q154: synchron | R154: 0 | S154: 0 | T154: 0 | U154: 0 | V154: 0 | W154: 0 | X154: 0 | Y154: 0 | Z154: 0 | AA154: 0 | AB154: 0 | AC154: 0 | AD154: 0 | AE154: 1 | AF154: 0
G155: 35 | H155: Dauer eines Entladevorgangs (entkoppelt) | M155: 0 | N155: 0 | O155: 0 | P155: kein | Q155: synchron | R155: 0 | S155: 0 | T155: 0 | U155: 0 | V155: 0 | W155: 0 | X155: 0 | Y155: 0 | Z155: 0 | AA155: 0 | AB155: 0 | AC155: 0 | AD155: 0 | AE155: 1 | AF155: 0
G156: 37 | H156: Zeitbedarf für vorgelagerte Prozesse | M156: 0 | N156: 0 | O156: 0 | P156: kein | Q156: synchron | R156: 0 | S156: 0 | T156: 0 | U156: 0 | V156: 0 | W156: 0 | X156: 0 | Y156: 0 | Z156: 0 | AA156: 0 | AB156: 0 | AC156: 0 | AD156: 1 | AE156: 0 | AF156: 0
G157: 46 | H157: Ergonomie Beladevorgänge | M157: 0 | N157: 0 | O157: 0 | P157: kein | Q157: synchron | R157: 0 | S157: 0 | T157: 0 | U157: 0 | V157: 0 | W157: 0 | X157: 0 | Y157: 0 | Z157: 0 | AA157: 0 | AB157: 0 | AC157: 0 | AD157: 0 | AE157: 1 | AF157: 0

Sheet R_1 Eingabe
S2: Formeln Spalte E | T2: Formeln Spalte H
B3: EINGABEPARAMETER | D3: Route 1 | E3: Beispiel 1 | I3: Dropdown-Listen | S3: Beispiel Nr.
E4: VDI 5586 (Dimensionierung) | S4: Bezeichnung
C5: Route berücksichtigen? | E5: Ja | I5: Ja | J5: Nein
B6: Bezeichnung | D6: Einheit | E6: Ausprägung / Wert | F6: Bemerkung | S6: =$T$6 -> Ausprägung / Wert | T6: Ausprägung / Wert
B7: SYSTEMGESTALTUNG
B9: Technik
C11: Art des Ladungsträgers | E11: GLT | F11: Auswahl gemäß Dropdown-Liste | I11: kein Ladungsträger | J11: KLT | K11: GLT | U11: Auswahl gemäß Dropdown-Liste
C12: Art des Fahrzeugs | E12: Schlepper mit Anhänger | F12: Auswahl gemäß Dropdown-Liste | I12: Wagen mit fester Plattform | J12: Schlepper mit Anhänger | K12: Gabelstapler | L12: Kommissionierer | M12: Handwagen | U12: Auswahl gemäß Dropdown-Liste
C13: Art der Steuerung des Fahrzeugs | E13: fahrergeführt | F13: Auswahl gemäß Dropdown-Liste | I13: fahrergeführt | J13: fahrerlos | U13: Auswahl gemäß Dropdown-Liste
C14: Geschlecht Routenzugfahrer | E14: männlich | F14: Auswahl gemäß Dropdown-Liste | I14: entfällt | J14: weiblich | K14: männlich | U14: Auswahl gemäß Dropdown-Liste
C15: Antrieb des Fahrzeugs | E15: Elektroantrieb | F15: Auswahl gemäß Dropdown-Liste | I15: kein Antrieb | J15: Elektroantrieb | K15: Verbrennungsantrieb (Diesel) | L15: Verbrennungsantrieb (Gas) | M15: Hybridantrieb (Wasserstoff) | U15: Auswahl gemäß Dropdown-Liste
C16: Anhängertyp | E16: Plattformwagen | F16: Auswahl gemäß Dropdown-Liste | I16: kein Anhänger | J16: Plattformwagen | K16: Regalwagen | L16: Rollenverschiebesystem | M16: Taxiwagen | N16: C-/E-/H-/U-Rahmen | U16: Auswahl gemäß Dropdown-Liste
C17: Einsatz von Zug-/Schiebehilfen? | E17: Nein | F17: Auswahl gemäß Dropdown-Liste | I17: Ja | J17: Nein | U17: Auswahl gemäß Dropdown-Liste
C18: Beladetechnik Routenzug | E18: manuell mit Hilfsmittel | F18: Auswahl gemäß Dropdown-Liste | I18: manuell (ohne Hilfsmittel) | J18: manuell mit Hilfsmittel | K18: automatisch | U18: Auswahl gemäß Dropdown-Liste
C19: Beladetechnik Trolley/Rahmen | E19: kein Trolley-/Rahmeneinsatz | F19: Auswahl gemäß Dropdown-Liste | I19: kein Trolley-/Rahmeneinsatz | J19: manuell (ohne Hilfsmittel) | K19: manuell (mit Hilfsmittel) | L19: automatisch | U19: Auswahl gemäß Dropdown-Liste
C20: Entladetechnik Routenzug | E20: manuell (ohne Hilfsmittel) | F20: Auswahl gemäß Dropdown-Liste | I20: manuell (ohne Hilfsmittel) | J20: manuell mit Hilfsmittel | K20: automatisch | U20: Auswahl gemäß Dropdown-Liste
C21: Entladetechnik Trolley/Rahmen | E21: kein Trolley-/Rahmeneinsatz | F21: Auswahl gemäß Dropdown-Liste | I21: kein Trolley-/Rahmeneinsatz | J21: manuell (ohne Hilfsmittel) | K21: manuell (mit Hilfsmittel) | L21: automatisch | U21: Auswahl gemäß Dropdown-Liste
C22: Bereitstellung Quelle | E22: Bereitstellung auf Anhängern/Transporthilfsmitteln | F22: Auswahl gemäß Dropdown-Liste | I22: Bodenbereitstellung | J22: Regalbereitstellung | K22: Bereitstellung auf Anhängern/Transporthilfsmitteln | U22: Auswahl gemäß Dropdown-Liste
C23: Bereitstellung Senke | E23: Bereitstellung auf Anhängern/Transporthilfsmitteln | F23: Auswahl gemäß Dropdown-Liste | I23: Bodenbereitstellung | J23: Regalbereitstellung | K23: Bereitstellung auf Anhängern/Transporthilfsmitteln | U23: Auswahl gemäß Dropdown-Liste
C24: Technischer Informationsträger | E24: Computer (Produktionsplan) | F24: Auswahl gemäß Dropdown-Liste | I24: keiner (Signal-Kanban) | J24: Karte (Karten-Kanban) | K24: Behälter (Behälter-Kanban) | L24: Computer (e-Kanban) | M24: Computer (Produktionsplan) | U24: Auswahl gemäß Dropdown-Liste
B25: Organisation
C27: Primäre Transportaufgabe | E27: Versorgung | F27: Auswahl gemäß Dropdown-Liste | I27: Versorgung | J27: Entsorgung | U27: Auswahl gemäß Dropdown-Liste
C28: Materialflusssteuerungsprinzip | E28: bedarfsorientiert | F28: Auswahl gemäß Dropdown-Liste | I28: bedarfsorientiert | J28: verbrauchsorientiert | U28: Auswahl gemäß Dropdown-Liste
C29: Auslösung des Transportauftrags | E29: EDV | F29: Auswahl gemäß Dropdown-Liste | I29: EDV | J29: Fahrer | K29: Logistiker | L29: Mitarbeiter Produktion | M29: Technisches Hilfsmittel | U29: Auswahl gemäß Dropdown-Liste
C30: Steuerung Tourenstart | E30: fester Fahrplan | F30: Auswahl gemäß Dropdown-Liste | I30: fester Fahrplan | J30: auslastungsorientiert/ ereignisorientiert | K30: permanent | U30: Auswahl gemäß Dropdown-Liste
C31: Integration Beladung | E31: entkoppelt | F31: Auswahl gemäß Dropdown-Liste | I31: integriert | J31: entkoppelt | U31: Auswahl gemäß Dropdown-Liste
C32: Integration Entladung | E32: integriert | F32: Auswahl gemäß Dropdown-Liste | I32: integriert | J32: entkoppelt | U32: Auswahl gemäß Dropdown-Liste
C33: Verbindung von Schlepper und Anhängern im Routenzugprozess | E33: Anhänger fix miteinander verbunden, An- und Abkuppeln des Anhängerverbundes an/von Schlepper | F33: Auswahl gemäß Dropdown-Liste | I33: kein Schleppzug | J33: fixe Verbindung zwischen Schlepper und Anhänger | K33: Anhänger fix miteinander verbunden, An- und Abkuppeln des Anhängerverbundes an/von Schlepper | L33: An- und Abkuppeln der einzelnen Anhänger an/von Schlepper | U33: Auswahl gemäß Dropdown-Liste
B34: SYSTEMELEMENTE
B36: Transportgut
C38: =IF(E11="kein Ladungsträger","Gewicht pro Transporteinheit","Gewicht Zuladung pro Ladungsträger") -> Gewicht Zuladung pro Ladungsträger | D38: [kg] | E38: 200 | F38: Werte ≥ 0 | U38: Werte ≥ 0
B39: Route
C41: Anzahl der Bereitstellorte (Quelle) | D41: [Stk] | E41: 1 | F41: ganzzahlige Werte ≥ 1; abhängig von primärer Transportaufgabe | S41: =IF(S27="Versorgung",1,"") ->  | U41: ganzzahlige Werte ≥ 1; abhängig von primärer Transportaufgabe
C42: Anzahl der Bereitstellorte (Senke) | D42: [Stk] | E42: 10 | F42: ganzzahlige Werte ≥ 1; abhängig von primärer Transportaufgabe | S42: =IF(S27="Entsorgung",1,"") ->  | U42: ganzzahlige Werte ≥ 1; abhängig von primärer Transportaufgabe
C43: Mittlere Entfernung Haltepunkt - Quelle | D43: [m] | E43: 10 | F43: Werte ≥ 0 | U43: Werte ≥ 0
C44: Mittlere Entfernung Haltepunkt - Senke | D44: [m] | E44: 4 | F44: Werte ≥ 0 | U44: Werte ≥ 0
C45: Minimale Routenfrequenz (Vorgabe) | D45: [1/h] | E45: 1.5 | F45: Werte ≥ 0; Eingabe, sofern minimale Routenfrequenz vorgegeben (z. B. aufgrund von maximaler Pufferreichweite) | U45: Eingabe, sofern minimale Routenfrequenz vorgegeben (z. B. aufgrund von maximaler Pufferreichweite)
C46: Routenlänge | D46: [m] | E46: 500 | F46: Werte > 0 | U46: Werte > 0
B47: =IF(E27="Versorgung","Haltepunkte Entladung",IF(E27="Entsorgung","Haltepunkte Beladung","Haltepunkte")) -> Haltepunkte Entladung
C49: Durchsatz H_1 | D49: =IF(E11="kein Ladungsträger","[LE/h]","[LT/h]") -> [LT/h] | E49: 0.5 | F49: Werte > 0; abhängig von Art des Ladungsträgers | U49: Werte > 0; abhängig von Art des Ladungsträgers
C50: Durchsatz H_2 | D50: =IF(E11="kein Ladungsträger","[LE/h]","[LT/h]") -> [LT/h] | E50: 1.45 | F50: Werte ≥ 0; abhängig von Art des Ladungsträgers | U50: Werte ≥ 0; abhängig von Art des Ladungsträgers
C51: Durchsatz H_3 | D51: =IF(E11="kein Ladungsträger","[LE/h]","[LT/h]") -> [LT/h] | E51: 0.6 | F51: Werte ≥ 0; abhängig von Art des Ladungsträgers | U51: Werte ≥ 0; abhängig von Art des Ladungsträgers
C52: Durchsatz H_4 | D52: =IF(E11="kein Ladungsträger","[LE/h]","[LT/h]") -> [LT/h] | E52: 1.2 | F52: Werte ≥ 0; abhängig von Art des Ladungsträgers | U52: Werte ≥ 0; abhängig von Art des Ladungsträgers
C53: Durchsatz H_5 | D53: =IF(E11="kein Ladungsträger","[LE/h]","[LT/h]") -> [LT/h] | E53: 4.25 | F53: Werte ≥ 0; abhängig von Art des Ladungsträgers | U53: Werte ≥ 0; abhängig von Art des Ladungsträgers
C54: Durchsatz H_6 | D54: =IF(E11="kein Ladungsträger","[LE/h]","[LT/h]") -> [LT/h] | E54: 1.5 | F54: Werte ≥ 0; abhängig von Art des Ladungsträgers | U54: Werte ≥ 0; abhängig von Art des Ladungsträgers
C55: Durchsatz H_7 | D55: =IF(E11="kein Ladungsträger","[LE/h]","[LT/h]") -> [LT/h] | E55: 0 | F55: Werte ≥ 0; abhängig von Art des Ladungsträgers | U55: Werte ≥ 0; abhängig von Art des Ladungsträgers
C56: Durchsatz H_8 | D56: =IF(E11="kein Ladungsträger","[LE/h]","[LT/h]") -> [LT/h] | E56: 0 | F56: Werte ≥ 0; abhängig von Art des Ladungsträgers | U56: Werte ≥ 0; abhängig von Art des Ladungsträgers
C57: Durchsatz H_9 | D57: =IF(E11="kein Ladungsträger","[LE/h]","[LT/h]") -> [LT/h] | E57: 0 | F57: Werte ≥ 0; abhängig von Art des Ladungsträgers | U57: Werte ≥ 0; abhängig von Art des Ladungsträgers
C58: Durchsatz H_10 | D58: =IF(E11="kein Ladungsträger","[LE/h]","[LT/h]") -> [LT/h] | E58: 0 | F58: Werte ≥ 0; abhängig von Art des Ladungsträgers | U58: Werte ≥ 0; abhängig von Art des Ladungsträgers
C59: Durchsatz H_11 | D59: =IF(E11="kein Ladungsträger","[LE/h]","[LT/h]") -> [LT/h] | E59: 0 | F59: Werte ≥ 0; abhängig von Art des Ladungsträgers | U59: Werte ≥ 0; abhängig von Art des Ladungsträgers
C60: Durchsatz H_12 | D60: =IF(E11="kein Ladungsträger","[LE/h]","[LT/h]") -> [LT/h] | E60: 0 | F60: Werte ≥ 0; abhängig von Art des Ladungsträgers | U60: Werte ≥ 0; abhängig von Art des Ladungsträgers
C61: Durchsatz H_13 | D61: =IF(E11="kein Ladungsträger","[LE/h]","[LT/h]") -> [LT/h] | E61: 0 | F61: Werte ≥ 0; abhängig von Art des Ladungsträgers | U61: Werte ≥ 0; abhängig von Art des Ladungsträgers
C62: Durchsatz H_14 | D62: =IF(E11="kein Ladungsträger","[LE/h]","[LT/h]") -> [LT/h] | E62: 0 | F62: Werte ≥ 0; abhängig von Art des Ladungsträgers | U62: Werte ≥ 0; abhängig von Art des Ladungsträgers
C63: Durchsatz H_15 | D63: =IF(E11="kein Ladungsträger","[LE/h]","[LT/h]") -> [LT/h] | E63: 0 | F63: Werte ≥ 0; abhängig von Art des Ladungsträgers | U63: Werte ≥ 0; abhängig von Art des Ladungsträgers
C64: Durchsatz H_16 | D64: =IF(E11="kein Ladungsträger","[LE/h]","[LT/h]") -> [LT/h] | E64: 0 | F64: Werte ≥ 0; abhängig von Art des Ladungsträgers | U64: Werte ≥ 0; abhängig von Art des Ladungsträgers
C65: Durchsatz H_17 | D65: =IF(E11="kein Ladungsträger","[LE/h]","[LT/h]") -> [LT/h] | E65: 0 | F65: Werte ≥ 0; abhängig von Art des Ladungsträgers | U65: Werte ≥ 0; abhängig von Art des Ladungsträgers
C66: Durchsatz H_18 | D66: =IF(E11="kein Ladungsträger","[LE/h]","[LT/h]") -> [LT/h] | E66: 0 | F66: Werte ≥ 0; abhängig von Art des Ladungsträgers | U66: Werte ≥ 0; abhängig von Art des Ladungsträgers
C67: Durchsatz H_19 | D67: =IF(E11="kein Ladungsträger","[LE/h]","[LT/h]") -> [LT/h] | E67: 0 | F67: Werte ≥ 0; abhängig von Art des Ladungsträgers | U67: Werte ≥ 0; abhängig von Art des Ladungsträgers
C68: Durchsatz H_20 | D68: =IF(E11="kein Ladungsträger","[LE/h]","[LT/h]") -> [LT/h] | E68: 0 | F68: Werte ≥ 0; abhängig von Art des Ladungsträgers | U68: Werte ≥ 0; abhängig von Art des Ladungsträgers
C69: Durchsatz H_21 | D69: =IF(E11="kein Ladungsträger","[LE/h]","[LT/h]") -> [LT/h] | E69: 0 | F69: Werte ≥ 0; abhängig von Art des Ladungsträgers | U69: Werte ≥ 0; abhängig von Art des Ladungsträgers
C70: Durchsatz H_22 | D70: =IF(E11="kein Ladungsträger","[LE/h]","[LT/h]") -> [LT/h] | E70: 0 | F70: Werte ≥ 0; abhängig von Art des Ladungsträgers | U70: Werte ≥ 0; abhängig von Art des Ladungsträgers
C71: Durchsatz H_23 | D71: =IF(E11="kein Ladungsträger","[LE/h]","[LT/h]") -> [LT/h] | E71: 0 | F71: Werte ≥ 0; abhängig von Art des Ladungsträgers | U71: Werte ≥ 0; abhängig von Art des Ladungsträgers
C72: Durchsatz H_24 | D72: =IF(E11="kein Ladungsträger","[LE/h]","[LT/h]") -> [LT/h] | E72: 0 | F72: Werte ≥ 0; abhängig von Art des Ladungsträgers | U72: Werte ≥ 0; abhängig von Art des Ladungsträgers
C73: Durchsatz H_25 | D73: =IF(E11="kein Ladungsträger","[LE/h]","[LT/h]") -> [LT/h] | E73: 0 | F73: Werte ≥ 0; abhängig von Art des Ladungsträgers | U73: Werte ≥ 0; abhängig von Art des Ladungsträgers
C74: Durchsatz H_26 | D74: =IF(E11="kein Ladungsträger","[LE/h]","[LT/h]") -> [LT/h] | E74: 0 | F74: Werte ≥ 0; abhängig von Art des Ladungsträgers | U74: Werte ≥ 0; abhängig von Art des Ladungsträgers
C75: Durchsatz H_27 | D75: =IF(E11="kein Ladungsträger","[LE/h]","[LT/h]") -> [LT/h] | E75: 0 | F75: Werte ≥ 0; abhängig von Art des Ladungsträgers | U75: Werte ≥ 0; abhängig von Art des Ladungsträgers
C76: Durchsatz H_28 | D76: =IF(E11="kein Ladungsträger","[LE/h]","[LT/h]") -> [LT/h] | E76: 0 | F76: Werte ≥ 0; abhängig von Art des Ladungsträgers | U76: Werte ≥ 0; abhängig von Art des Ladungsträgers
C77: Durchsatz H_29 | D77: =IF(E11="kein Ladungsträger","[LE/h]","[LT/h]") -> [LT/h] | E77: 0 | F77: Werte ≥ 0; abhängig von Art des Ladungsträgers | U77: Werte ≥ 0; abhängig von Art des Ladungsträgers
C78: Durchsatz H_30 | D78: =IF(E11="kein Ladungsträger","[LE/h]","[LT/h]") -> [LT/h] | E78: 0 | F78: Werte ≥ 0; abhängig von Art des Ladungsträgers | U78: Werte ≥ 0; abhängig von Art des Ladungsträgers
B79: Ladungsträger
C81: Investitionskosten pro Ladungsträger | D81: [€] | E81: 50 | F81: Werte ≥ 0; abhängig von Art des Ladungsträgers | S81: =IF(S11="kein Ladungsträger","0","") ->  | U81: Werte ≥ 0; abhängig von Art des Ladungsträgers
C82: Abschreibungsdauer Ladungsträger | D82: [Jahre] | E82: 2 | F82: ganzzahlige Werte ≥ 0; abhängig von Art des Ladungsträgers | S82: =IF(S11="kein Ladungsträger","0","") ->  | U82: ganzzahlige Werte ≥ 0; abhängig von Art des Ladungsträgers
C83: Wartungs- und Reparaturfaktor Ladungsträger | D83: [%] | E83: 15 | F83: Werte ≥ 0; abhängig von Art des Ladungsträgers | S83: =IF(S11="kein Ladungsträger","0","") ->  | U83: Werte ≥ 0; abhängig von Art des Ladungsträgers
C84: Gewicht Ladungsträger (leer) | D84: [kg] | E84: 20 | F84: Werte ≥ 0; abhängig von Art des Ladungsträgers | S84: =IF(S11="kein Ladungsträger","0","") ->  | U84: Werte ≥ 0; abhängig von Art des Ladungsträgers
B85: Transportmittel
C87: Transportkapazität pro Fahrzeug | D87: =IF(E11="kein Ladungsträger","[LE]","[LT]") -> [LT] | E87: 0 | F87: ganzzahlige Werte ≥ 0; abhängig von Art des Fahrzeugs | S87: =IF(S12="Schlepper mit Anhänger","0","") ->  | U87: ganzzahlige Werte ≥ 0; abhängig von Art des Fahrzeugs
C88: Länge Fahrzeug | D88: [m] | E88: 2 | F88: Werte ≥ 0 | U88: Werte ≥ 0
C89: Fahrgeschwindigkeit | D89: [m/s] | E89: 1.666666667 | F89: Werte > 0 | U89: Werte > 0
C90: Ausfallzeit Fahrzeug pro Jahr | D90: [h] | E90: 20 | F90: Werte ≥ 0 | U90: Werte ≥ 0
C91: Investitionskosten pro Fahrzeug | D91: [€] | E91: 12000 | F91: Werte ≥ 0 | U91: Werte ≥ 0
C92: Abschreibungsdauer Fahrzeug | D92: [Jahre] | E92: 8 | F92: ganzzahlige Werte ≥ 0 | U92: ganzzahlige Werte ≥ 0
C93: Wartungs- und Reparaturfaktor Fahrzeug | D93: [%] | E93: 10 | F93: Werte ≥ 0 | U93: Werte ≥ 0
C94: Energieverbrauch Fahrzeug | D94: =IF(E15="Elektroantrieb","[kWh/h]",IF(E15="Verbrennungsantrieb (Diesel)","[l/h]",IF(E15="Verbrennungsantrieb (Gas)","[kg/h]",IF(E15="Hybridantrieb (Wasserstoff)","[kg/h]","[-]")))) -> [kWh/h] | E94: 0.99 | F94: Werte ≥ 0; abhängig von Antrieb des Fahrzeugs | U94: Werte ≥ 0; abhängig von Antrieb des Fahrzeugs
C95: Anzahl Anhänger je Fahrzeug | D95: [Stk] | E95: 5 | F95: ganzzahlige Werte ≥ 0; abhängig von Art des Fahrzeugs | S95: =IF(S12="Schlepper mit Anhänger","",IF(S12="","","0")) ->  | U95: ganzzahlige Werte ≥ 0; abhängig von Art des Fahrzeugs
C96: Länge Anhänger (inkl. Deichsel) | D96: [m] | E96: 2 | F96: Werte ≥ 0 | S96: =IF(S12="Schlepper mit Anhänger","",IF(S12="","","0")) ->  | U96: Werte ≥ 0
C97: Transportkapazität pro Anhänger | D97: =IF(E11="kein Ladungsträger","[LE]","[LT]") -> [LT] | E97: 1 | F97: ganzzahlige Werte ≥ 0; abhängig von Art des Anhängers | S97: =IF(AND(S12="Schlepper mit Anhänger",OR(S16="Plattformwagen",S16="Regalwagen")),"",IF(S12="","","0")) ->  | U97: ganzzahlige Werte ≥ 0; abhängig von Art des Anhängers
C98: Investitionskosten je Anhänger | D98: [€] | E98: 500 | F98: Werte ≥ 0; abhängig von Art des Fahrzeugs | S98: =IF(S12="Schlepper mit Anhänger","",IF(S12="","","0")) ->  | U98: Werte ≥ 0; abhängig von Art des Fahrzeugs
C99: Abschreibungsdauer Anhänger | D99: [Jahre] | E99: 8 | F99: ganzzahlige Werte ≥ 0; abhängig von Art des Fahrzeugs | S99: =IF(S12="Schlepper mit Anhänger","",IF(S12="","","0")) ->  | U99: ganzzahlige Werte ≥ 0; abhängig von Art des Fahrzeugs
C100: Wartungs- und Reparaturfaktor Anhänger | D100: [%] | E100: 10 | F100: Werte ≥ 0; abhängig von Art des Fahrzeugs | S100: =IF(S12="Schlepper mit Anhänger","",IF(S12="","","0")) ->  | U100: Werte ≥ 0; abhängig von Art des Fahrzeugs
C101: Gewicht Anhänger (leer) | D101: [kg] | E101: 200 | F101: Werte ≥ 0; abhängig von Art des Fahrzeugs | S101: =IF(S12="Schlepper mit Anhänger","",IF(S12="","","0")) ->  | U101: Werte ≥ 0; abhängig von Art des Fahrzeugs
C102: Anzahl Rahmen oder Trolleys je Anhänger | D102: [Stk] | E102: 0 | F102: ganzzahlige Werte ≥ 0; abhängig von Art des Anhängers | S102: =IF(OR(S16="kein Anhänger",S16="Plattformwagen",S16="Regalwagen"),"0","") ->  | U102: ganzzahlige Werte ≥ 0; abhängig von Art des Anhängers
C103: Transportkapazität pro Rahmen oder Trolley | D103: =IF(E11="kein Ladungsträger","[LE]","[LT]") -> [LT] | E103: 0 | F103: ganzzahlige Werte ≥ 0; abhängig von Art des Anhängers | S103: =IF(OR(S16="kein Anhänger",S16="Plattformwagen",S16="Regalwagen"),"0","") ->  | U103: ganzzahlige Werte ≥ 0; abhängig von Art des Anhängers
C104: Investitionskosten pro Rahmen oder Trolley | D104: [€] | E104: 0 | F104: Werte ≥ 0; abhängig von Art des Anhängers | S104: =IF(OR(S16="kein Anhänger",S16="Plattformwagen",S16="Regalwagen"),"0","") ->  | U104: Werte ≥ 0; abhängig von Art des Anhängers
C105: Abschreibungsdauer Rahmen oder Trolley | D105: [Jahre] | E105: 0 | F105: ganzzahlige Werte ≥ 0; abhängig von Art des Anhängers | S105: =IF(OR(S16="kein Anhänger",S16="Plattformwagen",S16="Regalwagen"),"0","") ->  | U105: ganzzahlige Werte ≥ 0; abhängig von Art des Anhängers
C106: Wartungs- und Reparaturfaktor Rahmen oder Trolley | D106: [%] | E106: 0 | F106: Werte ≥ 0; abhängig von Art des Anhängers | S106: =IF(OR(S16="kein Anhänger",S16="Plattformwagen",S16="Regalwagen"),"0","") ->  | U106: Werte ≥ 0; abhängig von Art des Anhängers
C107: Gewicht Trolley (leer) | D107: [kg] | E107: 0 | F107: Werte ≥ 0; abhängig von Art des Anhängers | S107: =IF(OR(S16="kein Anhänger",S16="Plattformwagen",S16="Regalwagen"),"0","") ->  | U107: Werte ≥ 0; abhängig von Art des Anhängers
C108: Investitionskosten pro Zug-/Schiebehilfe | D108: [€] | E108: 0 | F108: Werte ≥ 0; abhängig von Einsatz von Zug-/Schiebehilfen | S108: =IF(S17="Nein","0","") ->  | U108: Werte ≥ 0; abhängig von Einsatz von Zug-/Schiebehilfen
C109: Abschreibungsdauer Zug-/Schiebehilfe | D109: [Jahre] | E109: 0 | F109: ganzzahlige Werte ≥ 0; abhängig von Einsatz von Zug-/Schiebehilfen | S109: =IF(S17="Nein","0","") ->  | U109: ganzzahlige Werte ≥ 0; abhängig von Einsatz von Zug-/Schiebehilfen
C110: Wartungs- und Reparaturfaktor Zug-/Schiebehilfe | D110: [%] | E110: 0 | F110: Werte ≥ 0; abhängig von Einsatz von Zug-/Schiebehilfen | S110: =IF(S17="Nein","0","") ->  | U110: Werte ≥ 0; abhängig von Einsatz von Zug-/Schiebehilfen
B111: Be- und Entladetechnik
C113: Anzahl Beladetechnik | D113: [Stk] | E113: 1 | F113: ganzzahlige Werte ≥ 0; abhängig von Beladetechnik Routenzug und Trolley/Rahmen | S113: =IF(AND(S18="manuell (ohne Hilfsmittel)",OR(S19="kein Trolley-/Rahmeneinsatz",S19="manuell (ohne Hilfsmittel)")),"0","") ->  | U113: ganzzahlige Werte ≥ 0; abhängig von Beladetechnik Routenzug und Trolley/Rahmen
C114: Investitionskosten pro Beladetechnik | D114: [€] | E114: 10000 | F114: Werte ≥ 0; abhängig von Beladetechnik Routenzug und Trolley/Rahmen | S114: =IF(AND(S18="manuell (ohne Hilfsmittel)",OR(S19="kein Trolley-/Rahmeneinsatz",S19="manuell (ohne Hilfsmittel)")),"0","") ->  | U114: Werte ≥ 0; abhängig von Beladetechnik Routenzug und Trolley/Rahmen
C115: Abschreibungsdauer Beladetechnik | D115: [Jahre] | E115: 8 | F115: ganzzahlige Werte ≥ 0; abhängig von Beladetechnik Routenzug und Trolley/Rahmen | S115: =IF(AND(S18="manuell (ohne Hilfsmittel)",OR(S19="kein Trolley-/Rahmeneinsatz",S19="manuell (ohne Hilfsmittel)")),"0","") ->  | U115: ganzzahlige Werte ≥ 0; abhängig von Beladetechnik Routenzug und Trolley/Rahmen
C116: Wartungs- und Reparaturfaktor Beladetechnik | D116: [%] | E116: 10 | F116: Werte ≥ 0; abhängig von Beladetechnik Routenzug und Trolley/Rahmen | S116: =IF(AND(S18="manuell (ohne Hilfsmittel)",OR(S19="kein Trolley-/Rahmeneinsatz",S19="manuell (ohne Hilfsmittel)")),"0","") ->  | U116: Werte ≥ 0; abhängig von Beladetechnik Routenzug und Trolley/Rahmen
C117: Anzahl Entladetechnik | D117: [Stk] | E117: 0 | F117: ganzzahlige Werte ≥ 0; abhängig von Beladetechnik Routenzug und Trolley/Rahmen | S117: =IF(AND(S20="manuell (ohne Hilfsmittel)",OR(S21="kein Trolley-/Rahmeneinsatz",S21="manuell (ohne Hilfsmittel)")),"0","") ->  | U117: ganzzahlige Werte ≥ 0; abhängig von Beladetechnik Routenzug und Trolley/Rahmen
C118: Investitionskosten pro Entladetechnik | D118: [€] | E118: 0 | F118: Werte ≥ 0; abhängig von Beladetechnik Routenzug und Trolley/Rahmen | S118: =IF(AND(S20="manuell (ohne Hilfsmittel)",OR(S21="kein Trolley-/Rahmeneinsatz",S21="manuell (ohne Hilfsmittel)")),"0","") ->  | U118: Werte ≥ 0; abhängig von Beladetechnik Routenzug und Trolley/Rahmen
C119: Abschreibungsdauer Entladetechnik | D119: [Jahre] | E119: 0 | F119: ganzzahlige Werte ≥ 0; abhängig von Beladetechnik Routenzug und Trolley/Rahmen | S119: =IF(AND(S20="manuell (ohne Hilfsmittel)",OR(S21="kein Trolley-/Rahmeneinsatz",S21="manuell (ohne Hilfsmittel)")),"0","") ->  | U119: ganzzahlige Werte ≥ 0; abhängig von Beladetechnik Routenzug und Trolley/Rahmen
C120: Wartungs- und Reparaturfaktor Entladetechnik | D120: [%] | E120: 0 | F120: Werte ≥ 0; abhängig von Beladetechnik Routenzug und Trolley/Rahmen | S120: =IF(AND(S20="manuell (ohne Hilfsmittel)",OR(S21="kein Trolley-/Rahmeneinsatz",S21="manuell (ohne Hilfsmittel)")),"0","") ->  | U120: Werte ≥ 0; abhängig von Beladetechnik Routenzug und Trolley/Rahmen
B121: Bereitstelltechnik
C123: Mittlere Pufferkapazität je Bereitstellort | D123: =IF(E11="kein Ladungsträger","[LE]","[LT]") -> [LT] | E123: 3 | F123: Werte > 0 | U123: Werte > 0
C124: Mittlere Belegung je Puffer | D124: =IF(E11="kein Ladungsträger","[LE]","[LT]") -> [LT] | E124: 1.5 | F124: Werte ≥ 0 | U124: Werte ≥ 0
C125: Anzahl Bereitstelltechnik | D125: [Stk] | E125: 10 | F125: ganzzahlige Werte ≥ 0; abhängig von Bereitstellung Quelle und Senke | S125: =IF(OR(S22="Regalbereitstellung",S22="",S23="Regalbereitstellung",S23=""),"","0") ->  | U125: ganzzahlige Werte ≥ 0; abhängig von Bereitstellung Quelle und Senke
C126: Investitionskosten pro Bereitstelltechnik | D126: [€] | E126: 100 | F126: Werte ≥ 0; abhängig von Bereitstellung Quelle und Senke | S126: =IF(OR(S22="Regalbereitstellung",S22="",S23="Regalbereitstellung",S23=""),"","0") ->  | U126: Werte ≥ 0; abhängig von Bereitstellung Quelle und Senke
C127: Abschreibungsdauer Bereitstelltechnik | D127: [Jahre] | E127: 5 | F127: ganzzahlige Werte ≥ 0; abhängig von Bereitstellung Quelle und Senke | S127: =IF(OR(S22="Regalbereitstellung",S22="",S23="Regalbereitstellung",S23=""),"","0") ->  | U127: ganzzahlige Werte ≥ 0; abhängig von Bereitstellung Quelle und Senke
C128: Wartungs- und Reparaturfaktor Bereitstelltechnik | D128: [%] | E128: 10 | F128: Werte ≥ 0; abhängig von Bereitstellung Quelle und Senke | S128: =IF(OR(S22="Regalbereitstellung",S22="",S23="Regalbereitstellung",S23=""),"","0") ->  | U128: Werte ≥ 0; abhängig von Bereitstellung Quelle und Senke
B129: Informationstechnik
C131: Anzahl Informationstechnik | D131: [Stk] | E131: 1 | F131: ganzzahlige Werte ≥ 0; abhängig von technischem Informationsträger | S131: =IF(S24="keiner (Signal-Kanban)","0","") ->  | U131: ganzzahlige Werte ≥ 0; abhängig von technischem Informationsträger
C132: Investitionskosten pro Informationstechnik | D132: [€] | E132: 2000 | F132: Werte ≥ 0; abhängig von technischem Informationsträger | S132: =IF(S24="keiner (Signal-Kanban)","0","") ->  | U132: Werte ≥ 0; abhängig von technischem Informationsträger
C133: Abschreibungsdauer Informationstechnik | D133: [Jahre] | E133: 5 | F133: ganzzahlige Werte ≥ 0; abhängig von technischem Informationsträger | S133: =IF(S24="keiner (Signal-Kanban)","0","") ->  | U133: ganzzahlige Werte ≥ 0; abhängig von technischem Informationsträger
C134: Wartungs- und Reparaturfaktor Informationstechnik | D134: [%] | E134: 15 | F134: Werte ≥ 0; abhängig von technischem Informationsträger | S134: =IF(S24="keiner (Signal-Kanban)","0","") ->  | U134: Werte ≥ 0; abhängig von technischem Informationsträger
B135: Personal
C137: Lohnkosten Mitarbeiter pro Jahr | D137: [€] | E137: 50000 | F137: Werte ≥ 0; abhängig von Art der Steuerung des Fahrzeugs | S137: =IF(AND(S13="fahrerlos",S31="integriert",S32="integriert"),"0","") ->  | U137: Werte ≥ 0; abhängig von Art der Steuerung des Fahrzeugs
C138: Verteilzeitfaktor | D138: [%] | E138: 10 | F138: Werte ≥ 0; abhängig von Art der Steuerung des Fahrzeugs | S138: =IF(AND(S13="fahrerlos",S31="integriert",S32="integriert"),"0","") ->  | U138: Werte ≥ 0; abhängig von Art der Steuerung des Fahrzeugs
B139: SYSTEMPROZESSE
B140: (bezogen auf eine Tour bei mittlerer Beladung)
B141: Beladung
C143: Anzahl Beladevorgänge (integriert) | D143: [Stk] | E143: =IF(AND(E27="Versorgung",E31="entkoppelt"),"1",IF(E33="An- und Abkuppeln der einzelnen Anhänger an/von Schlepper",MIN('R_1 Berechnung'!F31,E95),IF(OR(E103="0",E22="Regalbereitstellung"),'R_1 Berechnung'!F31,IF(E103="","",'R_1 Berechnung'!F31/E103)))) -> 1 | F143: wird berechnet; abhängig von primärer Transportaufgabe, Entkopplung Beladung, Verbindung von Schlepper und Anhänger, Einsatz von Trolley/Rahmen | I143: Eingrenzung, je nachdem, ob An- und Abhängen von Anhängern bzw. Ladungsträger einzeln entladen | S143: =IF(AND(S27="Versorgung",S31="entkoppelt"),"1",IF(S33="An- und Abkuppeln der einzelnen Anhänger an/von Schlepper",MIN('R_1 Berechnung'!T31,S95),IF(OR(S103="0",S22="Regalbereitstellung"),'R_1 Berechnung'!T31,IF(S103="","",'R_1 Berechnung'!T31/S103)))) ->  | U143: wird berechnet; abhängig von primärer Transportaufgabe, Entkopplung Beladung, Verbindung von Schlepper und Anhänger, Einsatz von Trolley/Rahmen
C144: Dauer eines Beladevorgangs (integriert) | D144: [s] | E144: 360 | F144: Werte > 0 | U144: Werte > 0
C145: Anzahl Beladevorgänge (entkoppelt) | D145: [Stk] | E145: =IF(E31="integriert","0",IF(E31="entkoppelt",IF(E33="An- und Abkuppeln der einzelnen Anhänger an/von Schlepper",MIN(E95,'R_1 Berechnung'!F31),IF(E103="0",'R_1 Berechnung'!F31,IF(E103="","",'R_1 Berechnung'!F31/E103))),"")) -> 4.75 | F145: wird berechnet; abhängig von primärer Transportaufgabe, Entkopplung Beladung, Verbindung von Schlepper und Anhänger, Einsatz von Trolley/Rahmen | S145: =IF(S31="integriert","0",IF(S31="entkoppelt",IF(S33="An- und Abkuppeln der einzelnen Anhänger an/von Schlepper",MIN(S95,'R_1 Berechnung'!T31),IF(S103="0",'R_1 Berechnung'!T31,IF(S103="","",'R_1 Berechnung'!T31/S103))),"")) ->  | U145: wird berechnet; abhängig von primärer Transportaufgabe, Entkopplung Beladung, Verbindung von Schlepper und Anhänger, Einsatz von Trolley/Rahmen
C146: Dauer eines Beladevorgangs (entkoppelt) | D146: [s] | E146: 120 | F146: Werte ≥ 0 | S146: =IF(S31="integriert","0","") ->  | U146: Werte ≥ 0
B147: Fahrt
C149: Zeitzuschlag | D149: [s] | E149: 0 | F149: Werte ≥ 0 | U149: Werte ≥ 0
B150: Halt
C152: Dauer eines Haltevorgangs | D152: [s] | E152: 10 | F152: Werte ≥ 0 | U152: Werte ≥ 0
B153: Entladung
C155: Anzahl Entladevorgänge (integriert) | D155: [Stk] | E155: =IF(AND(E27="Entsorgung",E32="entkoppelt"),"1",IF(E33="An- und Abkuppeln der einzelnen Anhänger an/von Schlepper",MIN('R_1 Berechnung'!F31,E95),IF(OR(E103="0",E23="Regalbereitstellung"),'R_1 Berechnung'!F31,IF(E103="","",'R_1 Berechnung'!F31/E103)))) -> 4.75 | F155: wird berechnet; abhängig von primärer Transportaufgabe, Entkopplung Entladung, Verbindung von Schlepper und Anhänger, Einsatz von Trolley/Rahmen | I155: Eingrenzung, je nachdem, ob An- und Abhängen von Anhängern bzw. Ladungsträger einzeln entladen | S155: =IF(AND(S27="Entsorgung",S32="entkoppelt"),"1",IF(S33="An- und Abkuppeln der einzelnen Anhänger an/von Schlepper",MIN('R_1 Berechnung'!T31,S95),IF(OR(S103="0",S23="Regalbereitstellung"),'R_1 Berechnung'!T31,IF(S103="","",'R_1 Berechnung'!T31/S103)))) ->  | U155: wird berechnet; abhängig von primärer Transportaufgabe, Entkopplung Entladung, Verbindung von Schlepper und Anhänger, Einsatz von Trolley/Rahmen
C156: Dauer eines Entladevorgangs (integriert) | D156: [s] | E156: 60 | F156: Werte > 0 | U156: Werte > 0
C157: Anzahl Entladevorgänge (entkoppelt) | D157: [Stk] | E157: =IF(E32="integriert","0",IF(E32="entkoppelt",IF(E33="An- und Abkuppeln der einzelnen Anhänger an/von Schlepper",MIN(E95,'R_1 Berechnung'!F31),IF(E103="0",'R_1 Berechnung'!F31,IF(E103="","",'R_1 Berechnung'!F31/E103))),"")) -> 0 | F157: wird berechnet; abhängig von primärer Transportaufgabe, Entkopplung Entladung, Verbindung von Schlepper und Anhänger, Einsatz von Trolley/Rahmen | S157: =IF(S32="integriert","0",IF(S32="entkoppelt",IF(S33="An- und Abkuppeln der einzelnen Anhänger an/von Schlepper",MIN(S95,'R_1 Berechnung'!T31),IF(S103="0",'R_1 Berechnung'!T31,IF(S103="","",'R_1 Berechnung'!T31/S103))),"")) ->  | U157: wird berechnet; abhängig von primärer Transportaufgabe, Entkopplung Entladung, Verbindung von Schlepper und Anhänger, Einsatz von Trolley/Rahmen
C158: Dauer eines Entladevorgangs (entkoppelt) | D158: [s] | E158: 0 | F158: Werte ≥ 0 | S158: =IF(S32="integriert","0","") ->  | U158: Werte ≥ 0
B159: Routenfrequenz/Tourenstartabstand
C161: Realisierter bzw. festgelegter Tourenstartabstand | D161: [min] | E161: 30 | F161: wird berechnet; abhängig von Steuerung Tourenstart; Werte zwischen tTA,min und tTA,max; siehe Felder H160 und H161; | G161: tTA,min= | H161: =IF(OR(E144="",E156=""),0,(SMALL('R_1 Berechnung'!S25:AF25,1)+0.5)) -> 14 | S161: =IF(OR(S30="fester Fahrplan",S30=""),"",IF(S30="auslastungsorientiert/ ereignisorientiert",V162,V161)) ->  | T161: =(SMALL('R_1 Berechnung'!AE25:AG25,1)+1) -> 14.5 | U161: wird berechnet; abhängig von Steuerung Tourenstart; Werte zwischen tTA,min und tTA,max; siehe Felder H160 und H161;
B162: bzw. | C162: Geplanter kapazitiver Nutzungsgrad Routenzug | D162: [%] | E162: =IFERROR((E161/'R_1 Berechnung'!F19*100),"---") -> 95 | F162: wird berechnet; dient als Orientierung für geplanten kapazitiven Nutzungsgrad des Routenzugs | G162: tTA,max= | H162: ='R_1 Berechnung'!F19 -> 31.57894737 | S162: =IFERROR((S161/'R_1 Berechnung'!T19*100),"---") -> --- | T162: ='R_1 Berechnung'!R19 -> 31.57894737 | U162: wird berechnet; dient als Orientierung für geplanten kapazitiven Nutzungsgrad des Routenzugs
B163: WEITERE EINGABEPARAMETER
B165: Arbeitszeit
C167: Arbeitszeit pro Schicht | D167: [h] | E167: 8 | F167: Werte > 0 | U167: Werte > 0
C168: Anzahl Schichten pro Tag | D168: [Stk] | E168: 2 | F168: ganzzahlige Werte ≥ 1 | U168: ganzzahlige Werte ≥ 1
C169: Arbeitstage pro Jahr | D169: [Tage] | E169: 240 | F169: ganzzahlige Werte ≥ 1 | U169: ganzzahlige Werte ≥ 1
B170: Wiederbeschaffungszeit
C172: Zeitbedarf für vorgelagerte Prozesse | D172: [min] | E172: 30 | F172: Werte ≥ 0 | U172: Werte ≥ 0
B173: Kostendaten
C175: Kalkulatorischer Zinssatz pro Jahr | D175: [%] | E175: 6 | F175: Werte ≥ 0 | U175: Werte ≥ 0
C176: Summe sonstiger Investitionen | D176: [€] | E176: 2000 | F176: Werte ≥ 0 | U176: Werte ≥ 0
C177: Summe sonstiger Abschreibungen | D177: [€/Jahr] | E177: 500 | F177: Werte ≥ 0 | U177: Werte ≥ 0
C178: Summe sonstiger Wartungs- und Reparaturkosten | D178: [€/Jahr] | E178: 200 | F178: Werte ≥ 0 | U178: Werte ≥ 0
C179: Summe Lizenzkosten | D179: [€/Jahr] | E179: 1000 | F179: Werte ≥ 0 | U179: Werte ≥ 0
C180: Summe Bestandskosten | D180: [€/Jahr] | E180: 3000 | F180: Werte ≥ 0 | U180: Werte ≥ 0
C181: Summe Flächenkosten | D181: [€/Jahr] | E181: 2000 | F181: Werte ≥ 0 | U181: Werte ≥ 0
C182: Summe sonstiger Energiekosten | D182: [€/Jahr] | E182: 500 | F182: Werte ≥ 0 | U182: Werte ≥ 0
B183: Qualitätsdaten (jeweils bezogen auf ein Jahr)
C185: Anzahl Transportaufträge | D185: =IF(E11="kein Ladungsträger","[LE]","[LT]") -> [LT] | E185: ='R_1 Berechnung'!F11*'R_1 Eingabe'!E167*'R_1 Eingabe'!E168*'R_1 Eingabe'!E169 -> 36480 | F185: wird berechnet; abhängig vom Durchsatz | S185: ='R_1 Berechnung'!T11*'R_1 Eingabe'!S167*'R_1 Eingabe'!S168*'R_1 Eingabe'!S169 -> 0 | U185: wird berechnet; abhängig vom Durchsatz
C186: Anzahl termintreuer Transportaufträge | D186: =IF(E11="kein Ladungsträger","[LE]","[LT]") -> [LT] | E186: 35320 | F186: ganzzahlige Werte ≥ 0 | U186: ganzzahlige Werte ≥ 0
C187: Summe Lieferterminabweichung | D187: [min] | E187: 6400 | F187: Werte ≥ 0 | U187: Werte ≥ 0
C188: Anzahl mengentreuer Transportaufträge | D188: =IF(E11="kein Ladungsträger","[LE]","[LT]") -> [LT] | E188: 36450 | F188: ganzzahlige Werte ≥ 0 | U188: ganzzahlige Werte ≥ 0
C189: Summe Liefermengenabweichung | D189: [Stk] | E189: 35 | F189: ganzzahlige Werte ≥ 0 | U189: ganzzahlige Werte ≥ 0
C190: Anzahl Unfälle mit Ausfallzeit | D190: [Stk] | E190: 1 | F190: ganzzahlige Werte ≥ 0 | U190: ganzzahlige Werte ≥ 0
C191: Zahl der geleisteten Arbeitsstunden | D191: [h] | E191: ='R_1 Berechnung'!F285*E167*'R_1 Eingabe'!E168*'R_1 Eingabe'!E169 -> 7327.466667 | F191: wird berechnet, abhängig vom Mitarbeiterbedarf | S191: ='R_1 Berechnung'!T285*S167*'R_1 Eingabe'!S168*'R_1 Eingabe'!S169 -> 0 | U191: wird berechnet, abhängig vom Mitarbeiterbedarf
C192: Anzahl der Ausfalltage | D192: [Tage] | E192: 3 | F192: ganzzahlige Werte ≥ 0 | U192: ganzzahlige Werte ≥ 0
B193: Ergonomie Beladevorgänge
C195: Umsetzen/Halten/Tragen - einhändig/zweihändig | E195: 0 | F195: Auswahl gemäß Dropdown-Liste; siehe auch Einstufungshilfe MLT | I195: einhändig | J195: zweihändig | S195: =IF(AND(S31="integriert",'R_1 Berechnung'!X314>0),"","0") -> 0 | U195: Auswahl gemäß Dropdown-Liste; siehe auch Einstufungshilfe MLT
C196: Umsetzen/Halten/Tragen - Körperhaltung | E196: 0 | F196: Werte ≥ 1 und ≤ 8; siehe auch Einstufungshilfe MLT | I196: 1 | J196: 2 | K196: 4 | L196: 8 | S196: =IF(AND(S31="integriert",'R_1 Berechnung'!X314>0),"","0") -> 0 | U196: Werte ≥ 1 und ≤ 8; siehe auch Einstufungshilfe MLT
C197: Umsetzen/Halten/Tragen - Ausführungsbedingungen | E197: 0 | F197: Werte ≥ 0 und ≤ 8; siehe auch Einstufungshilfe MLT | I197: 0 | J197: 1 | K197: 2 | L197: 3 | M197: 4 | N197: 5 | O197: 6 | P197: 7 | Q197: 8 | S197: =IF(AND(S31="integriert",'R_1 Berechnung'!X314>0),"","0") -> 0 | U197: Werte ≥ 0 und ≤ 8; siehe auch Einstufungshilfe MLT
C198: Kriterium - Anzahl Vorgänge (Umsetzen) | E198: 0 | F198: Auswahl gemäß Dropdown-Liste; mehrere Kriterien auswählbar | I198: Ja | J198: Nein | S198: =IF(AND(S31="integriert",'R_1 Berechnung'!X314>0),"","0") -> 0 | U198: Auswahl gemäß Dropdown-Liste; mehrere Kriterien auswählbar
C199: Kriterium - Dauer Vorgänge (Halten) | E199: 0 | F199: Auswahl gemäß Dropdown-Liste; mehrere Kriterien auswählbar | I199: Ja | J199: Nein | S199: =IF(AND(S31="integriert",'R_1 Berechnung'!X314>0),"","0") -> 0 | U199: Auswahl gemäß Dropdown-Liste; mehrere Kriterien auswählbar
C200: Kriterium - Entfernung (Tragen) | E200: 0 | F200: Auswahl gemäß Dropdown-Liste; mehrere Kriterien auswählbar | I200: Ja | J200: Nein | S200: =IF(AND(S31="integriert",'R_1 Berechnung'!X314>0),"","0") -> 0 | U200: Auswahl gemäß Dropdown-Liste; mehrere Kriterien auswählbar
C201: Ziehen/Schieben - Körperhaltung | E201: 0 | F201: Werte ≥ 1 und ≤ 8; siehe auch Einstufungshilfe MLT | I201: 1 | J201: 2 | K201: 4 | L201: 8 | S201: =IF(AND(S31="integriert",'R_1 Berechnung'!X308>0),"","0") -> 0 | U201: Werte ≥ 1 und ≤ 8; siehe auch Einstufungshilfe MLT
C202: Ziehen/Schieben - Ausführungsbedingungen | E202: 0 | F202: Werte ≥ 0 und ≤ 8; siehe auch Einstufungshilfe MLT | I202: 0 | J202: 2 | K202: 4 | L202: 8 | S202: =IF(AND(S31="integriert",'R_1 Berechnung'!X308>0),"","0") -> 0 | U202: Werte ≥ 0 und ≤ 8; siehe auch Einstufungshilfe MLT
C203: Ziehen/Schieben - Positioniergenauigkeit | E203: 0 | F203: Werte ≥ 1 und ≤ 4; siehe auch Einstufungshilfe MLT | I203: 1 | J203: 2 | K203: 4 | S203: =IF(AND(S31="integriert",'R_1 Berechnung'!X308>0),"","0") -> 0 | U203: Werte ≥ 1 und ≤ 4; siehe auch Einstufungshilfe MLT
C204: Trolley/Anhänger NUR Lenkrollen | E204: 0 | F204: Auswahl gemäß Dropdown-Liste; siehe auch Einstufungshilfe MLT | I204: Ja | J204: Nein | S204: =IF(AND(S31="integriert",'R_1 Berechnung'!X308>0),"","0") -> 0 | U204: Auswahl gemäß Dropdown-Liste; siehe auch Einstufungshilfe MLT
C205: Kriterium - Anzahl Vorgänge (≤5m) | E205: 0 | F205: Auswahl gemäß Dropdown-Liste; ein Kriterium auswählbar | I205: Ja | J205: Nein | S205: =IF(AND(S31="integriert",'R_1 Berechnung'!X308>0),"","0") -> 0 | U205: Auswahl gemäß Dropdown-Liste; ein Kriterium auswählbar
C206: Kriterium - Entfernung (>5m) | E206: 0 | F206: Auswahl gemäß Dropdown-Liste; ein Kriterium auswählbar | I206: Ja | J206: Nein | S206: =IF(AND(S31="integriert",'R_1 Berechnung'!X308>0),"","0") -> 0 | U206: Auswahl gemäß Dropdown-Liste; ein Kriterium auswählbar
B207: Ergonomie Entladevorgänge
C209: Umsetzen/Halten/Tragen - einhändig/zweihändig | E209: 0 | F209: Auswahl gemäß Dropdown-Liste; siehe auch Einstufungshilfe MLT | I209: einhändig | J209: zweihändig | S209: =IF(AND(S32="integriert",'R_1 Berechnung'!X330>0),"","0") -> 0 | U209: Auswahl gemäß Dropdown-Liste; siehe auch Einstufungshilfe MLT
C210: Umsetzen/Halten/Tragen - Körperhaltung | E210: 0 | F210: Werte ≥ 1 und ≤ 8; siehe auch Einstufungshilfe MLT | I210: 1 | J210: 2 | K210: 4 | L210: 8 | S210: =IF(AND(S32="integriert",'R_1 Berechnung'!X330>0),"","0") -> 0 | U210: Werte ≥ 1 und ≤ 8; siehe auch Einstufungshilfe MLT
C211: Umsetzen/Halten/Tragen - Ausführungsbedingungen | E211: 0 | F211: Werte ≥ 0 und ≤ 8; siehe auch Einstufungshilfe MLT | I211: 0 | J211: 1 | K211: 2 | L211: 3 | M211: 4 | N211: 5 | O211: 6 | P211: 7 | Q211: 8 | S211: =IF(AND(S32="integriert",'R_1 Berechnung'!X330>0),"","0") -> 0 | U211: Werte ≥ 0 und ≤ 8; siehe auch Einstufungshilfe MLT
C212: Kriterium - Anzahl Vorgänge (Umsetzen) | E212: 0 | F212: Auswahl gemäß Dropdown-Liste; mehrere Kriterien auswählbar | I212: Ja | J212: Nein | S212: =IF(AND(S32="integriert",'R_1 Berechnung'!X330>0),"","0") -> 0 | U212: Auswahl gemäß Dropdown-Liste; mehrere Kriterien auswählbar
C213: Kriterium - Dauer Vorgänge (Halten) | E213: 0 | F213: Auswahl gemäß Dropdown-Liste; mehrere Kriterien auswählbar | I213: Ja | J213: Nein | S213: =IF(AND(S32="integriert",'R_1 Berechnung'!X330>0),"","0") -> 0 | U213: Auswahl gemäß Dropdown-Liste; mehrere Kriterien auswählbar
C214: Kriterium - Entfernung (Tragen) | E214: 0 | F214: Auswahl gemäß Dropdown-Liste; mehrere Kriterien auswählbar | I214: Ja | J214: Nein | S214: =IF(AND(S32="integriert",'R_1 Berechnung'!X330>0),"","0") -> 0 | U214: Auswahl gemäß Dropdown-Liste; mehrere Kriterien auswählbar
C215: Ziehen/Schieben - Körperhaltung | E215: 2 | F215: Werte ≥ 1 und ≤ 8; siehe auch Einstufungshilfe MLT | I215: 1 | J215: 2 | K215: 4 | L215: 8 | S215: =IF(AND(S32="integriert",'R_1 Berechnung'!X324>0),"","0") -> 0 | U215: Werte ≥ 1 und ≤ 8; siehe auch Einstufungshilfe MLT
C216: Ziehen/Schieben - Ausführungsbedingungen | E216: 1 | F216: Werte ≥ 0 und ≤ 8; siehe auch Einstufungshilfe MLT | I216: 0 | J216: 2 | K216: 4 | L216: 8 | S216: =IF(AND(S32="integriert",'R_1 Berechnung'!X324>0),"","0") -> 0 | U216: Werte ≥ 0 und ≤ 8; siehe auch Einstufungshilfe MLT
C217: Ziehen/Schieben - Positioniergenauigkeit | E217: 1.5 | F217: Werte ≥ 1 und ≤ 4; siehe auch Einstufungshilfe MLT | I217: 1 | J217: 2 | K217: 4 | S217: =IF(AND(S32="integriert",'R_1 Berechnung'!X324>0),"","0") -> 0 | U217: Werte ≥ 1 und ≤ 4; siehe auch Einstufungshilfe MLT
C218: Trolley/Anhänger NUR Lenkrollen | E218: Nein | F218: Auswahl gemäß Dropdown-Liste; siehe auch Einstufungshilfe MLT | I218: Ja | J218: Nein | S218: =IF(AND(S32="integriert",'R_1 Berechnung'!X324>0),"","0") -> 0 | U218: Auswahl gemäß Dropdown-Liste; siehe auch Einstufungshilfe MLT
C219: Kriterium - Anzahl Vorgänge (≤5m) | E219: Ja | F219: Auswahl gemäß Dropdown-Liste; ein Kriterium auswählbar | I219: Ja | J219: Nein | S219: =IF(AND(S32="integriert",'R_1 Berechnung'!X324>0),"","0") -> 0 | U219: Auswahl gemäß Dropdown-Liste; ein Kriterium auswählbar
C220: Kriterium - Entfernung (>5m) | E220: Nein | F220: Auswahl gemäß Dropdown-Liste; ein Kriterium auswählbar | I220: Ja | J220: Nein | S220: =IF(AND(S32="integriert",'R_1 Berechnung'!X324>0),"","0") -> 0 | U220: Auswahl gemäß Dropdown-Liste; ein Kriterium auswählbar

Sheet R_1 Berechnung
B2: Dimensionierung nach VDI 5586 | E2: ='R_1 Eingabe'!D3 -> Route 1 | H2: Dimensionierung nach VDI 5586 | K2: =E2 -> Route 1 | N2: Dimensionierung nach VDI 5586 | Q2: =K2 -> Route 1
B3: (festgelegter Tourenstartabstand) | H3: (kapazitiver Nutzungsgrad = 100% --> max. Tourenstartabstand) | N3: (zeitlicher Nutzungsgrad ≈ 100% --> min. Tourenstartabstand) | Q3: Iteration | R3: 1 | S3: 2 | T3: 3 | U3: 4 | V3: 5 | W3: 6 | X3: 7 | Y3: 8 | Z3: 9 | AA3: 10 | AB3: 11 | AC3: 12 | AD3: 13 | AE3: 14 | AF3: 15
B4: Bezeichnung | E4: Einheit | F4: Wert | H4: Bezeichnung | K4: Einheit | L4: Wert | N4: Bezeichnung | Q4: Einheit | R4: Wert | S4: Wert | T4: Wert | U4: Wert | V4: Wert | W4: Wert | X4: Wert | Y4: Wert | Z4: Wert | AA4: Wert | AB4: Wert | AC4: Wert | AD4: Wert | AE4: Wert | AF4: Wert
B5: Routenfrequenz/Tourenstartabstand | H5: Routenfrequenz/Tourenstartabstand | N5: Routenfrequenz/Tourenstartabstand
B7: Minimale Routenfrequenz/Anzahl benötigter Touren | H7: Minimale Routenfrequenz/Anzahl benötigter Touren | N7: Minimale Routenfrequenz/Anzahl benötigter Touren
C9: fR,min | D9: Minimale Routenfrequenz (Vorgabe) | E9: ='R_1 Eingabe'!D45 -> [1/h] | F9: ='R_1 Eingabe'!E45 -> 1.5 | I9: fR,min | J9: Minimale Routenfrequenz (Vorgabe) | K9: ='R_1 Eingabe'!D45 -> [1/h] | L9: ='R_1 Eingabe'!E45 -> 1.5 | O9: fR,min | P9: Minimale Routenfrequenz (Vorgabe) | Q9: =K9 -> [1/h] | R9: =L9 -> 1.5 | S9: =R9 -> 1.5 | T9: 1.5 | U9: 1.5 | V9: 1.5 | W9: 1.5 | X9: 1.5 | Y9: 1.5 | Z9: 1.5 | AA9: 1.5 | AB9: 1.5 | AC9: 1.5 | AD9: 1.5 | AE9: 1.5 | AF9: 1.5
C11: λR | D11: Durchsatz | E11: ='R_1 Eingabe'!D49 -> [LT/h] | F11: =SUM('R_1 Eingabe'!E49:E78) -> 9.5 | I11: λR | J11: Durchsatz | K11: ='R_1 Eingabe'!D49 -> [LT/h] | L11: =SUM('R_1 Eingabe'!E49:E78) -> 9.5 | O11: λR | P11: Durchsatz | Q11: =K11 -> [LT/h] | R11: =L11 -> 9.5 | S11: =R11 -> 9.5 | T11: 9.5 | U11: 9.5 | V11: 9.5 | W11: 9.5 | X11: 9.5 | Y11: 9.5 | Z11: 9.5 | AA11: 9.5 | AB11: 9.5 | AC11: 9.5 | AD11: 9.5 | AE11: 9.5 | AF11: 9.5
C12: KRZ | D12: Kapazität Routenzug | E12: ='R_1 Eingabe'!D87 -> [LT] | F12: =IFERROR(IF(OR('R_1 Eingabe'!E16="Plattformwagen",'R_1 Eingabe'!E16="Regalwagen"),'R_1 Eingabe'!E95*'R_1 Eingabe'!E97,IF('R_1 Eingabe'!E16="kein Anhänger",'R_1 Eingabe'!E87,'R_1 Eingabe'!E95*'R_1 Eingabe'!E102*'R_1 Eingabe'!E103)),0) -> 5 | I12: KRZ | J12: Kapazität Routenzug | K12: ='R_1 Eingabe'!D87 -> [LT] | L12: =IFERROR(IF(OR('R_1 Eingabe'!E16="Plattformwagen",'R_1 Eingabe'!E16="Regalwagen"),'R_1 Eingabe'!E95*'R_1 Eingabe'!E97,IF('R_1 Eingabe'!E16="kein Anhänger",'R_1 Eingabe'!E87,'R_1 Eingabe'!E95*'R_1 Eingabe'!E102*'R_1 Eingabe'!E103)),0) -> 5 | O12: KRZ | P12: Kapazität Routenzug | Q12: =K12 -> [LT] | R12: =L12 -> 5 | S12: =R12 -> 5 | T12: 5 | U12: 5 | V12: 5 | W12: 5 | X12: 5 | Y12: 5 | Z12: 5 | AA12: 5 | AB12: 5 | AC12: 5 | AD12: 5 | AE12: 5 | AF12: 5
C13: nTour,min | D13: Anzahl benötigter Touren (berechnet) | E13: [1/h] | F13: =IFERROR(F11/F12,0) -> 1.9 | I13: nTour,min | J13: Anzahl benötigter Touren (berechnet) | K13: [1/h] | L13: =IFERROR(L11/L12,0) -> 1.9 | O13: nTour,min | P13: Anzahl benötigter Touren (berechnet) | Q13: [1/h] | R13: =L13 -> 1.9 | S13: =R13 -> 1.9 | T13: 1.9 | U13: 1.9 | V13: 1.9 | W13: 1.9 | X13: 1.9 | Y13: 1.9 | Z13: 1.9 | AA13: 1.9 | AB13: 1.9 | AC13: 1.9 | AD13: 1.9 | AE13: 1.9 | AF13: 1.9
B15: Maximaler Tourenstartabstand | H15: Maximaler Tourenstartabstand | N15: Maximaler Tourenstartabstand
C17: tTA,max,Vorgabe | D17: Maximal möglicher Tourenstartabstand (Vorgabe) | E17: [min] | F17: =IFERROR(1/F9*60,0) -> 40 | I17: tTA,max,Vorgabe | J17: Maximal möglicher Tourenstartabstand (Vorgabe) | K17: [min] | L17: =IFERROR(1/L9*60,0) -> 40 | O17: tTA,max,Vorgabe | P17: Maximal möglicher Tourenstartabstand (Vorgabe) | Q17: [min] | R17: =L17 -> 40 | S17: =R17 -> 40 | T17: 40 | U17: 40 | V17: 40 | W17: 40 | X17: 40 | Y17: 40 | Z17: 40 | AA17: 40 | AB17: 40 | AC17: 40 | AD17: 40 | AE17: 40 | AF17: 40
C18: tTA,max,berechnet | D18: Maximal möglicher Tourenstartabstand (berechnet) | E18: [min] | F18: =IFERROR(1/F13*60,0) -> 31.57894737 | I18: tTA,max,berechnet | J18: Maximal möglicher Tourenstartabstand (berechnet) | K18: [min] | L18: =IFERROR(1/L13*60,0) -> 31.57894737 | O18: tTA,max,berechnet | P18: Maximal möglicher Tourenstartabstand (berechnet) | Q18: [min] | R18: =L18 -> 31.57894737 | S18: =R18 -> 31.57894737 | T18: 31.57894737 | U18: 31.57894737 | V18: 31.57894737 | W18: 31.57894737 | X18: 31.57894737 | Y18: 31.57894737 | Z18: 31.57894737 | AA18: 31.57894737 | AB18: 31.57894737 | AC18: 31.57894737 | AD18: 31.57894737 | AE18: 31.57894737 | AF18: 31.57894737
C19: tTA,max | D19: Maximal möglicher Tourenstartabstand | E19: [min] | F19: =IF(AND(F17=0,NOT(F18=0)),F18,MIN(F17,F18)) -> 31.57894737 | I19: tTA,max | J19: Maximal möglicher Tourenstartabstand | K19: [min] | L19: =IF(AND(L17=0,NOT(L18=0)),L18,MIN(L17,L18)) -> 31.57894737 | O19: tTA,max | P19: Maximal möglicher Tourenstartabstand | Q19: [min] | R19: =L19 -> 31.57894737 | S19: =R19 -> 31.57894737 | T19: 31.57894737 | U19: 31.57894737 | V19: 31.57894737 | W19: 31.57894737 | X19: 31.57894737 | Y19: 31.57894737 | Z19: 31.57894737 | AA19: 31.57894737 | AB19: 31.57894737 | AC19: 31.57894737 | AD19: 31.57894737 | AE19: 31.57894737 | AF19: 31.57894737
B21: Tatsächlicher Tourenstartabstand | H21: Tatsächlicher Tourenstartabstand | N21: Tatsächlicher Tourenstartabstand
C23: ηK,RZ | D23: Kapazitiver Nutzungsgrad Routenzug | E23: ='R_1 Eingabe'!D162 -> [%] | F23: =IF('R_1 Eingabe'!E162="---",0,'R_1 Eingabe'!E162) -> 95 | I23: ηK,RZ | J23: ='R_1 Eingabe'!C162 -> Geplanter kapazitiver Nutzungsgrad Routenzug | K23: ='R_1 Eingabe'!D162 -> [%] | L23: 100 | O23: ηK,RZ | P23: =J23 -> Geplanter kapazitiver Nutzungsgrad Routenzug | Q23: =K23 -> [%] | R23: =L116 -> 53.18055556 | S23: =IFERROR(S25/'R_1 Berechnung'!S19*100,0) -> 50.66666667 | T23: =IFERROR(T25/'R_1 Berechnung'!T19*100,0) -> 49.08333333 | U23: =IFERROR(U25/'R_1 Berechnung'!U19*100,0) -> 47.5 | V23: =IFERROR(V25/'R_1 Berechnung'!V19*100,0) -> 45.91666667 | W23: =IFERROR(W25/'R_1 Berechnung'!W19*100,0) -> 44.33333333 | X23: =IFERROR(X25/'R_1 Berechnung'!X19*100,0) -> 42.75 | Y23: =IFERROR(Y25/'R_1 Berechnung'!Y19*100,0) -> 44.33333333 | Z23: =IFERROR(Z25/'R_1 Berechnung'!Z19*100,0) -> 42.75 | AA23: =IFERROR(AA25/'R_1 Berechnung'!AA19*100,0) -> 44.33333333 | AB23: =IFERROR(AB25/'R_1 Berechnung'!AB19*100,0) -> 42.75 | AC23: =IFERROR(AC25/'R_1 Berechnung'!AC19*100,0) -> 44.33333333 | AD23: =IFERROR(AD25/'R_1 Berechnung'!AD19*100,0) -> 42.75 | AE23: =IFERROR(AE25/'R_1 Berechnung'!AE19*100,0) -> 44.33333333 | AF23: =IFERROR(AF25/'R_1 Berechnung'!AF19*100,0) -> 42.75
C24: tTA,max | D24: =D19 -> Maximal möglicher Tourenstartabstand | E24: =E19 -> [min] | F24: =F19 -> 31.57894737 | I24: tTA,max | J24: =J19 -> Maximal möglicher Tourenstartabstand | K24: =K19 -> [min] | L24: =L19 -> 31.57894737 | O24: tTA,max | P24: =P19 -> Maximal möglicher Tourenstartabstand | Q24: [min] | R24: 31.57894737 | S24: 31.57894737 | T24: 31.57894737 | U24: 31.57894737 | V24: 31.57894737 | W24: 31.57894737 | X24: 31.57894737 | Y24: 31.57894737 | Z24: 31.57894737 | AA24: 31.57894737 | AB24: =AB19 -> 31.57894737 | AC24: 31.57894737 | AD24: =AD19 -> 31.57894737 | AE24: 31.57894737 | AF24: =AF19 -> 31.57894737
C25: tTA | D25: Tatsächlicher Tourenstartabstand | E25: [min] | F25: =IF('R_1 Eingabe'!E161="",0,'R_1 Eingabe'!E161) -> 30 | I25: tTA | J25: Tatsächlicher Tourenstartabstand | K25: [min] | L25: =L24*L23/100 -> 31.57894737 | O25: tTA | P25: Tatsächlicher Tourenstartabstand | Q25: [min] | R25: =R24*R23/100 -> 16.79385965 | S25: =IF(R116<100,ROUNDDOWN(R25,0),R25) -> 16 | T25: =IF(S115>R115,R25,S25-0.5) -> 15.5 | U25: 15 | V25: 14.5 | W25: 14 | X25: 13.5 | Y25: 14 | Z25: 13.5 | AA25: 14 | AB25: 13.5 | AC25: 14 | AD25: 13.5 | AE25: 14 | AF25: 13.5
B27: Mittlere Beladung Routenzug pro Tour | H27: Mittlere Beladung Routenzug pro Tour | N27: Mittlere Beladung Routenzug pro Tour
C29: λR | D29: =D11 -> Durchsatz | E29: =E11 -> [LT/h] | F29: =F11 -> 9.5 | I29: λR | J29: =J11 -> Durchsatz | K29: =K11 -> [LT/h] | L29: =L11 -> 9.5 | O29: λR | P29: =P11 -> Durchsatz | Q29: =K29 -> [LT/h] | R29: =R11 -> 9.5 | S29: 9.5 | T29: 9.5 | U29: 9.5 | V29: 9.5 | W29: 9.5 | X29: 9.5 | Y29: 9.5 | Z29: 9.5 | AA29: 9.5 | AB29: =AB11 -> 9.5 | AC29: 9.5 | AD29: =AD11 -> 9.5 | AE29: 9.5 | AF29: =AF11 -> 9.5
C30: tTA | D30: =D25 -> Tatsächlicher Tourenstartabstand | E30: =E25 -> [min] | F30: =F25 -> 30 | I30: tTA | J30: =J25 -> Tatsächlicher Tourenstartabstand | K30: =K25 -> [min] | L30: =L25 -> 31.57894737 | O30: tTA | P30: =P25 -> Tatsächlicher Tourenstartabstand | Q30: [min] | R30: 16.79385965 | S30: 16 | T30: 15.5 | U30: 15 | V30: 14.5 | W30: 14 | X30: 13.5 | Y30: 14 | Z30: 13.5 | AA30: 14 | AB30: =AB25 -> 13.5 | AC30: 14 | AD30: =AD25 -> 13.5 | AE30: 14 | AF30: =AF25 -> 13.5
C31: nLT,Tour | D31: Mittlere Beladung Routenzug pro Tour | E31: =E12 -> [LT] | F31: =F29*F30/60 -> 4.75 | I31: nLT,Tour | J31: Mittlere Beladung Routenzug pro Tour | K31: =K12 -> [LT] | L31: =L29*L30/60 -> 5 | O31: nLT,Tour | P31: Mittlere Beladung Routenzug pro Tour | Q31: =K31 -> [LT] | R31: =R29*R30/60 -> 2.659027778 | S31: 2.533333333 | T31: 2.454166667 | U31: 2.375 | V31: 2.295833333 | W31: 2.216666667 | X31: 2.1375 | Y31: 2.216666667 | Z31: 2.1375 | AA31: 2.216666667 | AB31: =AB29*AB30/60 -> 2.1375 | AC31: 2.216666667 | AD31: =AD29*AD30/60 -> 2.1375 | AE31: 2.216666667 | AF31: =AF29*AF30/60 -> 2.1375
B33: Zykluszeit | H33: Zykluszeit | N33: Zykluszeit
B35: Beladezeit | H35: Beladezeit | N35: Beladezeit
C37: nB, integriert | D37: ='R_1 Eingabe'!C143 -> Anzahl Beladevorgänge (integriert) | E37: ='R_1 Eingabe'!D143 -> [Stk] | F37: =IF('R_1 Eingabe'!E143="",0,'R_1 Eingabe'!E143) -> 1 | I37: nB, integriert | J37: ='R_1 Eingabe'!C143 -> Anzahl Beladevorgänge (integriert) | K37: ='R_1 Eingabe'!D143 -> [Stk] | L37: =IF(AND('R_1 Eingabe'!$E$27="Versorgung",'R_1 Eingabe'!$E$31="entkoppelt"),"1",IF('R_1 Eingabe'!$E$33="An- und Abkuppeln der einzelnen Anhänger an/von Schlepper",MIN('R_1 Berechnung'!L31,'R_1 Eingabe'!$E$95),IF('R_1 Eingabe'!$E$103="0",'R_1 Berechnung'!L31,IF('R_1 Eingabe'!$E$103="","0",'R_1 Berechnung'!L31/'R_1 Eingabe'!$E$103)))) -> 1 | O37: nB, integriert | P37: =J37 -> Anzahl Beladevorgänge (integriert) | Q37: [Stk] | R37: =IF(AND('R_1 Eingabe'!$E$27="Versorgung",'R_1 Eingabe'!$E$31="entkoppelt"),"1",IF('R_1 Eingabe'!$E$33="An- und Abkuppeln der einzelnen Anhänger an/von Schlepper",MIN('R_1 Berechnung'!R31,'R_1 Eingabe'!$E$95),IF('R_1 Eingabe'!$E$103="0",'R_1 Berechnung'!R31,IF('R_1 Eingabe'!$E$103="","0",'R_1 Berechnung'!R31/'R_1 Eingabe'!$E$103)))) -> 1 | S37: =IF(AND('R_1 Eingabe'!$E$27="Versorgung",'R_1 Eingabe'!$E$31="entkoppelt"),"1",IF('R_1 Eingabe'!$E$33="An- und Abkuppeln der einzelnen Anhänger an/von Schlepper",MIN('R_1 Berechnung'!S31,'R_1 Eingabe'!$E$95),IF('R_1 Eingabe'!$E$103="0",'R_1 Berechnung'!S31,IF('R_1 Eingabe'!$E$103="","0",'R_1 Berechnung'!S31/'R_1 Eingabe'!$E$103)))) -> 1 | T37: =IF(AND('R_1 Eingabe'!$E$27="Versorgung",'R_1 Eingabe'!$E$31="entkoppelt"),"1",IF('R_1 Eingabe'!$E$33="An- und Abkuppeln der einzelnen Anhänger an/von Schlepper",MIN('R_1 Berechnung'!T31,'R_1 Eingabe'!$E$95),IF('R_1 Eingabe'!$E$103="0",'R_1 Berechnung'!T31,IF('R_1 Eingabe'!$E$103="","0",'R_1 Berechnung'!T31/'R_1 Eingabe'!$E$103)))) -> 1 | U37: =IF(AND('R_1 Eingabe'!$E$27="Versorgung",'R_1 Eingabe'!$E$31="entkoppelt"),"1",IF('R_1 Eingabe'!$E$33="An- und Abkuppeln der einzelnen Anhänger an/von Schlepper",MIN('R_1 Berechnung'!U31,'R_1 Eingabe'!$E$95),IF('R_1 Eingabe'!$E$103="0",'R_1 Berechnung'!U31,IF('R_1 Eingabe'!$E$103="","0",'R_1 Berechnung'!U31/'R_1 Eingabe'!$E$103)))) -> 1 | V37: =IF(AND('R_1 Eingabe'!$E$27="Versorgung",'R_1 Eingabe'!$E$31="entkoppelt"),"1",IF('R_1 Eingabe'!$E$33="An- und Abkuppeln der einzelnen Anhänger an/von Schlepper",MIN('R_1 Berechnung'!V31,'R_1 Eingabe'!$E$95),IF('R_1 Eingabe'!$E$103="0",'R_1 Berechnung'!V31,IF('R_1 Eingabe'!$E$103="","0",'R_1 Berechnung'!V31/'R_1 Eingabe'!$E$103)))) -> 1 | W37: =IF(AND('R_1 Eingabe'!$E$27="Versorgung",'R_1 Eingabe'!$E$31="entkoppelt"),"1",IF('R_1 Eingabe'!$E$33="An- und Abkuppeln der einzelnen Anhänger an/von Schlepper",MIN('R_1 Berechnung'!W31,'R_1 Eingabe'!$E$95),IF('R_1 Eingabe'!$E$103="0",'R_1 Berechnung'!W31,IF('R_1 Eingabe'!$E$103="","0",'R_1 Berechnung'!W31/'R_1 Eingabe'!$E$103)))) -> 1 | X37: =IF(AND('R_1 Eingabe'!$E$27="Versorgung",'R_1 Eingabe'!$E$31="entkoppelt"),"1",IF('R_1 Eingabe'!$E$33="An- und Abkuppeln der einzelnen Anhänger an/von Schlepper",MIN('R_1 Berechnung'!X31,'R_1 Eingabe'!$E$95),IF('R_1 Eingabe'!$E$103="0",'R_1 Berechnung'!X31,IF('R_1 Eingabe'!$E$103="","0",'R_1 Berechnung'!X31/'R_1 Eingabe'!$E$103)))) -> 1 | Y37: =IF(AND('R_1 Eingabe'!$E$27="Versorgung",'R_1 Eingabe'!$E$31="entkoppelt"),"1",IF('R_1 Eingabe'!$E$33="An- und Abkuppeln der einzelnen Anhänger an/von Schlepper",MIN('R_1 Berechnung'!Y31,'R_1 Eingabe'!$E$95),IF('R_1 Eingabe'!$E$103="0",'R_1 Berechnung'!Y31,IF('R_1 Eingabe'!$E$103="","0",'R_1 Berechnung'!Y31/'R_1 Eingabe'!$E$103)))) -> 1 | Z37: =IF(AND('R_1 Eingabe'!$E$27="Versorgung",'R_1 Eingabe'!$E$31="entkoppelt"),"1",IF('R_1 Eingabe'!$E$33="An- und Abkuppeln der einzelnen Anhänger an/von Schlepper",MIN('R_1 Berechnung'!Z31,'R_1 Eingabe'!$E$95),IF('R_1 Eingabe'!$E$103="0",'R_1 Berechnung'!Z31,IF('R_1 Eingabe'!$E$103="","0",'R_1 Berechnung'!Z31/'R_1 Eingabe'!$E$103)))) -> 1 | AA37: =IF(AND('R_1 Eingabe'!$E$27="Versorgung",'R_1 Eingabe'!$E$31="entkoppelt"),"1",IF('R_1 Eingabe'!$E$33="An- und Abkuppeln der einzelnen Anhänger an/von Schlepper",MIN('R_1 Berechnung'!AA31,'R_1 Eingabe'!$E$95),IF('R_1 Eingabe'!$E$103="0",'R_1 Berechnung'!AA31,IF('R_1 Eingabe'!$E$103="","0",'R_1 Berechnung'!AA31/'R_1 Eingabe'!$E$103)))) -> 1 | AB37: =IF(AND('R_1 Eingabe'!$E$27="Versorgung",'R_1 Eingabe'!$E$31="entkoppelt"),"1",IF('R_1 Eingabe'!$E$33="An- und Abkuppeln der einzelnen Anhänger an/von Schlepper",MIN('R_1 Berechnung'!AB31,'R_1 Eingabe'!$E$95),IF('R_1 Eingabe'!$E$103="0",'R_1 Berechnung'!AB31,IF('R_1 Eingabe'!$E$103="","0",'R_1 Berechnung'!AB31/'R_1 Eingabe'!$E$103)))) -> 1 | AC37: =IF(AND('R_1 Eingabe'!$E$27="Versorgung",'R_1 Eingabe'!$E$31="entkoppelt"),"1",IF('R_1 Eingabe'!$E$33="An- und Abkuppeln der einzelnen Anhänger an/von Schlepper",MIN('R_1 Berechnung'!AC31,'R_1 Eingabe'!$E$95),IF('R_1 Eingabe'!$E$103="0",'R_1 Berechnung'!AC31,IF('R_1 Eingabe'!$E$103="","0",'R_1 Berechnung'!AC31/'R_1 Eingabe'!$E$103)))) -> 1 | AD37: =IF(AND('R_1 Eingabe'!$E$27="Versorgung",'R_1 Eingabe'!$E$31="entkoppelt"),"1",IF('R_1 Eingabe'!$E$33="An- und Abkuppeln der einzelnen Anhänger an/von Schlepper",MIN('R_1 Berechnung'!AD31,'R_1 Eingabe'!$E$95),IF('R_1 Eingabe'!$E$103="0",'R_1 Berechnung'!AD31,IF('R_1 Eingabe'!$E$103="","0",'R_1 Berechnung'!AD31/'R_1 Eingabe'!$E$103)))) -> 1 | AE37: =IF(AND('R_1 Eingabe'!$E$27="Versorgung",'R_1 Eingabe'!$E$31="entkoppelt"),"1",IF('R_1 Eingabe'!$E$33="An- und Abkuppeln der einzelnen Anhänger an/von Schlepper",MIN('R_1 Berechnung'!AE31,'R_1 Eingabe'!$E$95),IF('R_1 Eingabe'!$E$103="0",'R_1 Berechnung'!AE31,IF('R_1 Eingabe'!$E$103="","0",'R_1 Berechnung'!AE31/'R_1 Eingabe'!$E$103)))) -> 1 | AF37: =IF(AND('R_1 Eingabe'!$E$27="Versorgung",'R_1 Eingabe'!$E$31="entkoppelt"),"1",IF('R_1 Eingabe'!$E$33="An- und Abkuppeln der einzelnen Anhänger an/von Schlepper",MIN('R_1 Berechnung'!AF31,'R_1 Eingabe'!$E$95),IF('R_1 Eingabe'!$E$103="0",'R_1 Berechnung'!AF31,IF('R_1 Eingabe'!$E$103="","0",'R_1 Berechnung'!AF31/'R_1 Eingabe'!$E$103)))) -> 1
C38: tb, integriert | D38: ='R_1 Eingabe'!C144 -> Dauer eines Beladevorgangs (integriert) | E38: ='R_1 Eingabe'!D144 -> [s] | F38: ='R_1 Eingabe'!E144 -> 360 | I38: tb, integriert | J38: ='R_1 Eingabe'!C144 -> Dauer eines Beladevorgangs (integriert) | K38: ='R_1 Eingabe'!D144 -> [s] | L38: ='R_1 Eingabe'!E144 -> 360 | O38: tb, integriert | P38: Dauer eines Beladevorgangs (integriert) | Q38: [s] | R38: ='R_1 Eingabe'!E144 -> 360 | S38: ='R_1 Eingabe'!E144 -> 360 | T38: ='R_1 Eingabe'!E144 -> 360 | U38: ='R_1 Eingabe'!E144 -> 360 | V38: ='R_1 Eingabe'!E144 -> 360 | W38: ='R_1 Eingabe'!E144 -> 360 | X38: ='R_1 Eingabe'!E144 -> 360 | Y38: ='R_1 Eingabe'!E144 -> 360 | Z38: ='R_1 Eingabe'!E144 -> 360 | AA38: ='R_1 Eingabe'!E144 -> 360 | AB38: ='R_1 Eingabe'!E144 -> 360 | AC38: ='R_1 Eingabe'!E144 -> 360 | AD38: ='R_1 Eingabe'!E144 -> 360 | AE38: ='R_1 Eingabe'!E144 -> 360 | AF38: ='R_1 Eingabe'!E144 -> 360
C39: tB, integriert | D39: Beladezeit (integriert) | E39: [s] | F39: =IFERROR(F37*F38,0) -> 360 | I39: tB, integriert | J39: Beladezeit (integriert) | K39: [s] | L39: =IFERROR(L37*L38,0) -> 360 | O39: tB, integriert | P39: Beladezeit (integriert) | Q39: [s] | R39: =IFERROR(R37*R38,0) -> 360 | S39: 360 | T39: 360 | U39: 360 | V39: 360 | W39: 360 | X39: 360 | Y39: 360 | Z39: 360 | AA39: 360 | AB39: =IFERROR(AB37*AB38,0) -> 360 | AC39: 360 | AD39: =IFERROR(AD37*AD38,0) -> 360 | AE39: 360 | AF39: =IFERROR(AF37*AF38,0) -> 360
B41: Fahrzeit | H41: Fahrzeit | N41: Fahrzeit
C43: sR | D43: ='R_1 Eingabe'!C46 -> Routenlänge | E43: ='R_1 Eingabe'!D46 -> [m] | F43: ='R_1 Eingabe'!E46 -> 500 | I43: sR | J43: ='R_1 Eingabe'!C46 -> Routenlänge | K43: ='R_1 Eingabe'!D46 -> [m] | L43: ='R_1 Eingabe'!E46 -> 500 | O43: sR | P43: =J43 -> Routenlänge | Q43: [m] | R43: ='R_1 Eingabe'!E46 -> 500 | S43: =R43 -> 500 | T43: 500 | U43: 500 | V43: 500 | W43: 500 | X43: 500 | Y43: 500 | Z43: 500 | AA43: 500 | AB43: 500 | AC43: 500 | AD43: 500 | AE43: 500 | AF43: 500
C44: vRZ | D44: ='R_1 Eingabe'!C89 -> Fahrgeschwindigkeit | E44: ='R_1 Eingabe'!D89 -> [m/s] | F44: ='R_1 Eingabe'!E89 -> 1.666666667 | I44: vRZ | J44: ='R_1 Eingabe'!C89 -> Fahrgeschwindigkeit | K44: ='R_1 Eingabe'!D89 -> [m/s] | L44: ='R_1 Eingabe'!E89 -> 1.666666667 | O44: vRZ | P44: Fahrgeschwindigkeit | Q44: [m/s] | R44: ='R_1 Eingabe'!E89 -> 1.666666667 | S44: 1.666666667 | T44: 1.666666667 | U44: 1.666666667 | V44: 1.666666667 | W44: 1.666666667 | X44: 1.666666667 | Y44: 1.666666667 | Z44: 1.666666667 | AA44: 1.666666667 | AB44: 1.666666667 | AC44: 1.666666667 | AD44: 1.666666667 | AE44: 1.666666667 | AF44: 1.666666667
C45: tzu | D45: ='R_1 Eingabe'!C149 -> Zeitzuschlag | E45: ='R_1 Eingabe'!D149 -> [s] | F45: ='R_1 Eingabe'!E149 -> 0 | I45: tzu | J45: ='R_1 Eingabe'!C149 -> Zeitzuschlag | K45: ='R_1 Eingabe'!D149 -> [s] | L45: ='R_1 Eingabe'!E149 -> 0 | O45: tzu | P45: Zeitzuschlag | Q45: [s] | R45: ='R_1 Eingabe'!E149 -> 0 | S45: 0 | T45: 0 | U45: 0 | V45: 0 | W45: 0 | X45: 0 | Y45: 0 | Z45: 0 | AA45: 0 | AB45: 0 | AC45: 0 | AD45: 0 | AE45: 0 | AF45: 0
C46: tF | D46: Fahrzeit | E46: [s] | F46: =IFERROR((F43/F44)+F45,0) -> 300 | I46: tF | J46: Fahrzeit | K46: [s] | L46: =IFERROR((L43/L44)+L45,0) -> 300 | O46: tF | P46: Fahrzeit | Q46: [s] | R46: =IFERROR((R43/R44)+R45,0) -> 300 | S46: 300 | T46: 300 | U46: 300 | V46: 300 | W46: 300 | X46: 300 | Y46: 300 | Z46: 300 | AA46: 300 | AB46: =IFERROR((AB43/AB44)+AB45,0) -> 300 | AC46: 300 | AD46: =IFERROR((AD43/AD44)+AD45,0) -> 300 | AE46: 300 | AF46: =IFERROR((AF43/AF44)+AF45,0) -> 300
B48: Haltewahrscheinlichkeiten | H48: Haltewahrscheinlichkeiten | N48: Haltewahrscheinlichkeiten
C50: pH_1 | D50: Haltewahrscheinlichkeit H_1 | F50: =MIN('R_1 Eingabe'!E49*'R_1 Berechnung'!$F$25/60,1) -> 0.25 | I50: pH_1 | J50: Haltewahrscheinlichkeit H_1 | L50: =MIN('R_1 Eingabe'!E49*'R_1 Berechnung'!$L$25/60,1) -> 0.2631578947 | O50: pH_1 | P50: Haltewahrscheinlichkeit H_1 | R50: =MIN('R_1 Eingabe'!$E49*'R_1 Berechnung'!R$25/60,1) -> 0.1399488304 | S50: =MIN('R_1 Eingabe'!$E49*'R_1 Berechnung'!S$25/60,1) -> 0.1333333333 | T50: =MIN('R_1 Eingabe'!$E49*'R_1 Berechnung'!T$25/60,1) -> 0.1291666667 | U50: =MIN('R_1 Eingabe'!$E49*'R_1 Berechnung'!U$25/60,1) -> 0.125 | V50: =MIN('R_1 Eingabe'!$E49*'R_1 Berechnung'!V$25/60,1) -> 0.1208333333 | W50: =MIN('R_1 Eingabe'!$E49*'R_1 Berechnung'!W$25/60,1) -> 0.1166666667 | X50: =MIN('R_1 Eingabe'!$E49*'R_1 Berechnung'!X$25/60,1) -> 0.1125 | Y50: =MIN('R_1 Eingabe'!$E49*'R_1 Berechnung'!Y$25/60,1) -> 0.1166666667 | Z50: =MIN('R_1 Eingabe'!$E49*'R_1 Berechnung'!Z$25/60,1) -> 0.1125 | AA50: =MIN('R_1 Eingabe'!$E49*'R_1 Berechnung'!AA$25/60,1) -> 0.1166666667 | AB50: =MIN('R_1 Eingabe'!$E49*'R_1 Berechnung'!AB$25/60,1) -> 0.1125 | AC50: =MIN('R_1 Eingabe'!$E49*'R_1 Berechnung'!AC$25/60,1) -> 0.1166666667 | AD50: =MIN('R_1 Eingabe'!$E49*'R_1 Berechnung'!AD$25/60,1) -> 0.1125 | AE50: =MIN('R_1 Eingabe'!$E49*'R_1 Berechnung'!AE$25/60,1) -> 0.1166666667 | AF50: =MIN('R_1 Eingabe'!$E49*'R_1 Berechnung'!AF$25/60,1) -> 0.1125
C51: pH_2 | D51: Haltewahrscheinlichkeit H_2 | F51: =MIN('R_1 Eingabe'!E50*'R_1 Berechnung'!$F$25/60,1) -> 0.725 | I51: pH_2 | J51: Haltewahrscheinlichkeit H_2 | L51: =MIN('R_1 Eingabe'!E50*'R_1 Berechnung'!$L$25/60,1) -> 0.7631578947 | O51: pH_2 | P51: Haltewahrscheinlichkeit H_2 | R51: =MIN('R_1 Eingabe'!$E50*'R_1 Berechnung'!R$25/60,1) -> 0.4058516082 | S51: =MIN('R_1 Eingabe'!$E50*'R_1 Berechnung'!S$25/60,1) -> 0.3866666667 | T51: =MIN('R_1 Eingabe'!$E50*'R_1 Berechnung'!T$25/60,1) -> 0.3745833333 | U51: =MIN('R_1 Eingabe'!$E50*'R_1 Berechnung'!U$25/60,1) -> 0.3625 | V51: =MIN('R_1 Eingabe'!$E50*'R_1 Berechnung'!V$25/60,1) -> 0.3504166667 | W51: =MIN('R_1 Eingabe'!$E50*'R_1 Berechnung'!W$25/60,1) -> 0.3383333333 | X51: =MIN('R_1 Eingabe'!$E50*'R_1 Berechnung'!X$25/60,1) -> 0.32625 | Y51: =MIN('R_1 Eingabe'!$E50*'R_1 Berechnung'!Y$25/60,1) -> 0.3383333333 | Z51: =MIN('R_1 Eingabe'!$E50*'R_1 Berechnung'!Z$25/60,1) -> 0.32625 | AA51: =MIN('R_1 Eingabe'!$E50*'R_1 Berechnung'!AA$25/60,1) -> 0.3383333333 | AB51: =MIN('R_1 Eingabe'!$E50*'R_1 Berechnung'!AB$25/60,1) -> 0.32625 | AC51: =MIN('R_1 Eingabe'!$E50*'R_1 Berechnung'!AC$25/60,1) -> 0.3383333333 | AD51: =MIN('R_1 Eingabe'!$E50*'R_1 Berechnung'!AD$25/60,1) -> 0.32625 | AE51: =MIN('R_1 Eingabe'!$E50*'R_1 Berechnung'!AE$25/60,1) -> 0.3383333333 | AF51: =MIN('R_1 Eingabe'!$E50*'R_1 Berechnung'!AF$25/60,1) -> 0.32625
C52: pH_3 | D52: Haltewahrscheinlichkeit H_3 | F52: =MIN('R_1 Eingabe'!E51*'R_1 Berechnung'!$F$25/60,1) -> 0.3 | I52: pH_3 | J52: Haltewahrscheinlichkeit H_3 | L52: =MIN('R_1 Eingabe'!E51*'R_1 Berechnung'!$L$25/60,1) -> 0.3157894737 | O52: pH_3 | P52: Haltewahrscheinlichkeit H_3 | R52: =MIN('R_1 Eingabe'!$E51*'R_1 Berechnung'!R$25/60,1) -> 0.1679385965 | S52: =MIN('R_1 Eingabe'!$E51*'R_1 Berechnung'!S$25/60,1) -> 0.16 | T52: =MIN('R_1 Eingabe'!$E51*'R_1 Berechnung'!T$25/60,1) -> 0.155 | U52: =MIN('R_1 Eingabe'!$E51*'R_1 Berechnung'!U$25/60,1) -> 0.15 | V52: =MIN('R_1 Eingabe'!$E51*'R_1 Berechnung'!V$25/60,1) -> 0.145 | W52: =MIN('R_1 Eingabe'!$E51*'R_1 Berechnung'!W$25/60,1) -> 0.14 | X52: =MIN('R_1 Eingabe'!$E51*'R_1 Berechnung'!X$25/60,1) -> 0.135 | Y52: =MIN('R_1 Eingabe'!$E51*'R_1 Berechnung'!Y$25/60,1) -> 0.14 | Z52: =MIN('R_1 Eingabe'!$E51*'R_1 Berechnung'!Z$25/60,1) -> 0.135 | AA52: =MIN('R_1 Eingabe'!$E51*'R_1 Berechnung'!AA$25/60,1) -> 0.14 | AB52: =MIN('R_1 Eingabe'!$E51*'R_1 Berechnung'!AB$25/60,1) -> 0.135 | AC52: =MIN('R_1 Eingabe'!$E51*'R_1 Berechnung'!AC$25/60,1) -> 0.14 | AD52: =MIN('R_1 Eingabe'!$E51*'R_1 Berechnung'!AD$25/60,1) -> 0.135 | AE52: =MIN('R_1 Eingabe'!$E51*'R_1 Berechnung'!AE$25/60,1) -> 0.14 | AF52: =MIN('R_1 Eingabe'!$E51*'R_1 Berechnung'!AF$25/60,1) -> 0.135
C53: pH_4 | D53: Haltewahrscheinlichkeit H_4 | F53: =MIN('R_1 Eingabe'!E52*'R_1 Berechnung'!$F$25/60,1) -> 0.6 | I53: pH_4 | J53: Haltewahrscheinlichkeit H_4 | L53: =MIN('R_1 Eingabe'!E52*'R_1 Berechnung'!$L$25/60,1) -> 0.6315789474 | O53: pH_4 | P53: Haltewahrscheinlichkeit H_4 | R53: =MIN('R_1 Eingabe'!$E52*'R_1 Berechnung'!R$25/60,1) -> 0.335877193 | S53: =MIN('R_1 Eingabe'!$E52*'R_1 Berechnung'!S$25/60,1) -> 0.32 | T53: =MIN('R_1 Eingabe'!$E52*'R_1 Berechnung'!T$25/60,1) -> 0.31 | U53: =MIN('R_1 Eingabe'!$E52*'R_1 Berechnung'!U$25/60,1) -> 0.3 | V53: =MIN('R_1 Eingabe'!$E52*'R_1 Berechnung'!V$25/60,1) -> 0.29 | W53: =MIN('R_1 Eingabe'!$E52*'R_1 Berechnung'!W$25/60,1) -> 0.28 | X53: =MIN('R_1 Eingabe'!$E52*'R_1 Berechnung'!X$25/60,1) -> 0.27 | Y53: =MIN('R_1 Eingabe'!$E52*'R_1 Berechnung'!Y$25/60,1) -> 0.28 | Z53: =MIN('R_1 Eingabe'!$E52*'R_1 Berechnung'!Z$25/60,1) -> 0.27 | AA53: =MIN('R_1 Eingabe'!$E52*'R_1 Berechnung'!AA$25/60,1) -> 0.28 | AB53: =MIN('R_1 Eingabe'!$E52*'R_1 Berechnung'!AB$25/60,1) -> 0.27 | AC53: =MIN('R_1 Eingabe'!$E52*'R_1 Berechnung'!AC$25/60,1) -> 0.28 | AD53: =MIN('R_1 Eingabe'!$E52*'R_1 Berechnung'!AD$25/60,1) -> 0.27 | AE53: =MIN('R_1 Eingabe'!$E52*'R_1 Berechnung'!AE$25/60,1) -> 0.28 | AF53: =MIN('R_1 Eingabe'!$E52*'R_1 Berechnung'!AF$25/60,1) -> 0.27
C54: pH_5 | D54: Haltewahrscheinlichkeit H_5 | F54: =MIN('R_1 Eingabe'!E53*'R_1 Berechnung'!$F$25/60,1) -> 1 | I54: pH_5 | J54: Haltewahrscheinlichkeit H_5 | L54: =MIN('R_1 Eingabe'!E53*'R_1 Berechnung'!$L$25/60,1) -> 1 | O54: pH_5 | P54: Haltewahrscheinlichkeit H_5 | R54: =MIN('R_1 Eingabe'!$E53*'R_1 Berechnung'!R$25/60,1) -> 1 | S54: =MIN('R_1 Eingabe'!$E53*'R_1 Berechnung'!S$25/60,1) -> 1 | T54: =MIN('R_1 Eingabe'!$E53*'R_1 Berechnung'!T$25/60,1) -> 1 | U54: =MIN('R_1 Eingabe'!$E53*'R_1 Berechnung'!U$25/60,1) -> 1 | V54: =MIN('R_1 Eingabe'!$E53*'R_1 Berechnung'!V$25/60,1) -> 1 | W54: =MIN('R_1 Eingabe'!$E53*'R_1 Berechnung'!W$25/60,1) -> 0.9916666667 | X54: =MIN('R_1 Eingabe'!$E53*'R_1 Berechnung'!X$25/60,1) -> 0.95625 | Y54: =MIN('R_1 Eingabe'!$E53*'R_1 Berechnung'!Y$25/60,1) -> 0.9916666667 | Z54: =MIN('R_1 Eingabe'!$E53*'R_1 Berechnung'!Z$25/60,1) -> 0.95625 | AA54: =MIN('R_1 Eingabe'!$E53*'R_1 Berechnung'!AA$25/60,1) -> 0.9916666667 | AB54: =MIN('R_1 Eingabe'!$E53*'R_1 Berechnung'!AB$25/60,1) -> 0.95625 | AC54: =MIN('R_1 Eingabe'!$E53*'R_1 Berechnung'!AC$25/60,1) -> 0.9916666667 | AD54: =MIN('R_1 Eingabe'!$E53*'R_1 Berechnung'!AD$25/60,1) -> 0.95625 | AE54: =MIN('R_1 Eingabe'!$E53*'R_1 Berechnung'!AE$25/60,1) -> 0.9916666667 | AF54: =MIN('R_1 Eingabe'!$E53*'R_1 Berechnung'!AF$25/60,1) -> 0.95625
C55: pH_6 | D55: Haltewahrscheinlichkeit H_6 | F55: =MIN('R_1 Eingabe'!E54*'R_1 Berechnung'!$F$25/60,1) -> 0.75 | I55: pH_6 | J55: Haltewahrscheinlichkeit H_6 | L55: =MIN('R_1 Eingabe'!E54*'R_1 Berechnung'!$L$25/60,1) -> 0.7894736842 | O55: pH_6 | P55: Haltewahrscheinlichkeit H_6 | R55: =MIN('R_1 Eingabe'!$E54*'R_1 Berechnung'!R$25/60,1) -> 0.4198464912 | S55: =MIN('R_1 Eingabe'!$E54*'R_1 Berechnung'!S$25/60,1) -> 0.4 | T55: =MIN('R_1 Eingabe'!$E54*'R_1 Berechnung'!T$25/60,1) -> 0.3875 | U55: =MIN('R_1 Eingabe'!$E54*'R_1 Berechnung'!U$25/60,1) -> 0.375 | V55: =MIN('R_1 Eingabe'!$E54*'R_1 Berechnung'!V$25/60,1) -> 0.3625 | W55: =MIN('R_1 Eingabe'!$E54*'R_1 Berechnung'!W$25/60,1) -> 0.35 | X55: =MIN('R_1 Eingabe'!$E54*'R_1 Berechnung'!X$25/60,1) -> 0.3375 | Y55: =MIN('R_1 Eingabe'!$E54*'R_1 Berechnung'!Y$25/60,1) -> 0.35 | Z55: =MIN('R_1 Eingabe'!$E54*'R_1 Berechnung'!Z$25/60,1) -> 0.3375 | AA55: =MIN('R_1 Eingabe'!$E54*'R_1 Berechnung'!AA$25/60,1) -> 0.35 | AB55: =MIN('R_1 Eingabe'!$E54*'R_1 Berechnung'!AB$25/60,1) -> 0.3375 | AC55: =MIN('R_1 Eingabe'!$E54*'R_1 Berechnung'!AC$25/60,1) -> 0.35 | AD55: =MIN('R_1 Eingabe'!$E54*'R_1 Berechnung'!AD$25/60,1) -> 0.3375 | AE55: =MIN('R_1 Eingabe'!$E54*'R_1 Berechnung'!AE$25/60,1) -> 0.35 | AF55: =MIN('R_1 Eingabe'!$E54*'R_1 Berechnung'!AF$25/60,1) -> 0.3375
C56: pH_7 | D56: Haltewahrscheinlichkeit H_7 | F56: =MIN('R_1 Eingabe'!E55*'R_1 Berechnung'!$F$25/60,1) -> 0 | I56: pH_7 | J56: Haltewahrscheinlichkeit H_7 | L56: =MIN('R_1 Eingabe'!E55*'R_1 Berechnung'!$L$25/60,1) -> 0 | O56: pH_7 | P56: Haltewahrscheinlichkeit H_7 | R56: =MIN('R_1 Eingabe'!$E55*'R_1 Berechnung'!R$25/60,1) -> 0 | S56: =MIN('R_1 Eingabe'!$E55*'R_1 Berechnung'!S$25/60,1) -> 0 | T56: =MIN('R_1 Eingabe'!$E55*'R_1 Berechnung'!T$25/60,1) -> 0 | U56: =MIN('R_1 Eingabe'!$E55*'R_1 Berechnung'!U$25/60,1) -> 0 | V56: =MIN('R_1 Eingabe'!$E55*'R_1 Berechnung'!V$25/60,1) -> 0 | W56: =MIN('R_1 Eingabe'!$E55*'R_1 Berechnung'!W$25/60,1) -> 0 | X56: =MIN('R_1 Eingabe'!$E55*'R_1 Berechnung'!X$25/60,1) -> 0 | Y56: =MIN('R_1 Eingabe'!$E55*'R_1 Berechnung'!Y$25/60,1) -> 0 | Z56: =MIN('R_1 Eingabe'!$E55*'R_1 Berechnung'!Z$25/60,1) -> 0 | AA56: =MIN('R_1 Eingabe'!$E55*'R_1 Berechnung'!AA$25/60,1) -> 0 | AB56: =MIN('R_1 Eingabe'!$E55*'R_1 Berechnung'!AB$25/60,1) -> 0 | AC56: =MIN('R_1 Eingabe'!$E55*'R_1 Berechnung'!AC$25/60,1) -> 0 | AD56: =MIN('R_1 Eingabe'!$E55*'R_1 Berechnung'!AD$25/60,1) -> 0 | AE56: =MIN('R_1 Eingabe'!$E55*'R_1 Berechnung'!AE$25/60,1) -> 0 | AF56: =MIN('R_1 Eingabe'!$E55*'R_1 Berechnung'!AF$25/60,1) -> 0
C57: pH_8 | D57: Haltewahrscheinlichkeit H_8 | F57: =MIN('R_1 Eingabe'!E56*'R_1 Berechnung'!$F$25/60,1) -> 0 | I57: pH_8 | J57: Haltewahrscheinlichkeit H_8 | L57: =MIN('R_1 Eingabe'!E56*'R_1 Berechnung'!$L$25/60,1) -> 0 | O57: pH_8 | P57: Haltewahrscheinlichkeit H_8 | R57: =MIN('R_1 Eingabe'!$E56*'R_1 Berechnung'!R$25/60,1) -> 0 | S57: =MIN('R_1 Eingabe'!$E56*'R_1 Berechnung'!S$25/60,1) -> 0 | T57: =MIN('R_1 Eingabe'!$E56*'R_1 Berechnung'!T$25/60,1) -> 0 | U57: =MIN('R_1 Eingabe'!$E56*'R_1 Berechnung'!U$25/60,1) -> 0 | V57: =MIN('R_1 Eingabe'!$E56*'R_1 Berechnung'!V$25/60,1) -> 0 | W57: =MIN('R_1 Eingabe'!$E56*'R_1 Berechnung'!W$25/60,1) -> 0 | X57: =MIN('R_1 Eingabe'!$E56*'R_1 Berechnung'!X$25/60,1) -> 0 | Y57: =MIN('R_1 Eingabe'!$E56*'R_1 Berechnung'!Y$25/60,1) -> 0 | Z57: =MIN('R_1 Eingabe'!$E56*'R_1 Berechnung'!Z$25/60,1) -> 0 | AA57: =MIN('R_1 Eingabe'!$E56*'R_1 Berechnung'!AA$25/60,1) -> 0 | AB57: =MIN('R_1 Eingabe'!$E56*'R_1 Berechnung'!AB$25/60,1) -> 0 | AC57: =MIN('R_1 Eingabe'!$E56*'R_1 Berechnung'!AC$25/60,1) -> 0 | AD57: =MIN('R_1 Eingabe'!$E56*'R_1 Berechnung'!AD$25/60,1) -> 0 | AE57: =MIN('R_1 Eingabe'!$E56*'R_1 Berechnung'!AE$25/60,1) -> 0 | AF57: =MIN('R_1 Eingabe'!$E56*'R_1 Berechnung'!AF$25/60,1) -> 0
C58: pH_9 | D58: Haltewahrscheinlichkeit H_9 | F58: =MIN('R_1 Eingabe'!E57*'R_1 Berechnung'!$F$25/60,1) -> 0 | I58: pH_9 | J58: Haltewahrscheinlichkeit H_9 | L58: =MIN('R_1 Eingabe'!E57*'R_1 Berechnung'!$L$25/60,1) -> 0 | O58: pH_9 | P58: Haltewahrscheinlichkeit H_9 | R58: =MIN('R_1 Eingabe'!$E57*'R_1 Berechnung'!R$25/60,1) -> 0 | S58: =MIN('R_1 Eingabe'!$E57*'R_1 Berechnung'!S$25/60,1) -> 0 | T58: =MIN('R_1 Eingabe'!$E57*'R_1 Berechnung'!T$25/60,1) -> 0 | U58: =MIN('R_1 Eingabe'!$E57*'R_1 Berechnung'!U$25/60,1) -> 0 | V58: =MIN('R_1 Eingabe'!$E57*'R_1 Berechnung'!V$25/60,1) -> 0 | W58: =MIN('R_1 Eingabe'!$E57*'R_1 Berechnung'!W$25/60,1) -> 0 | X58: =MIN('R_1 Eingabe'!$E57*'R_1 Berechnung'!X$25/60,1) -> 0 | Y58: =MIN('R_1 Eingabe'!$E57*'R_1 Berechnung'!Y$25/60,1) -> 0 | Z58: =MIN('R_1 Eingabe'!$E57*'R_1 Berechnung'!Z$25/60,1) -> 0 | AA58: =MIN('R_1 Eingabe'!$E57*'R_1 Berechnung'!AA$25/60,1) -> 0 | AB58: =MIN('R_1 Eingabe'!$E57*'R_1 Berechnung'!AB$25/60,1) -> 0 | AC58: =MIN('R_1 Eingabe'!$E57*'R_1 Berechnung'!AC$25/60,1) -> 0 | AD58: =MIN('R_1 Eingabe'!$E57*'R_1 Berechnung'!AD$25/60,1) -> 0 | AE58: =MIN('R_1 Eingabe'!$E57*'R_1 Berechnung'!AE$25/60,1) -> 0 | AF58: =MIN('R_1 Eingabe'!$E57*'R_1 Berechnung'!AF$25/60,1) -> 0
